Workbook

Sheet PI vs x
A1: Measurement | B1: Hall
A2: Type | B2: Off-axis
A4: Project | B4: ='10 x=-2'!B5 -> 504314
A5: PS serial no | B5: ='10 x=-2'!B7 -> 2410097
A7: Measurement date | B7: =LEFT('10 x=-2'!B4,10) -> 17-09-2024
C11: Nominal gap [mm] | D11: Encoder [counts] | E11: Encoder [mm] | F11: PI [T^2mm^3] | G11: x [mm] | H11: Encoder value at 10 mm gap:
B12: ='PI vs x'!$C$12 & "mm gap" -> 10mm gap | C12: ='10 x=-2'!B48 -> 10 | D12: ='10 x=-2'!$B$50 -> 19.6817 | E12: =D12-$H$12+10 -> 10 | F12: ='10 x=-2'!$K$3 -> 10589.47278 | G12: -2 | H12: 19.6817
C13: =C12 -> 10 | D13: ='10 x=-1'!$B$50 -> 19.6817 | E13: =D13-$H$12+10 -> 10 | F13: ='10 x=-1'!$K$3 -> 10595.79994 | G13: -1
C14: =C13 -> 10 | D14: ='10 x=0'!$B$50 -> 19.6817 | E14: 10 | F14: ='10 x=0'!$K$3 -> 10597.03788 | G14: 0
C15: 10 | D15: ='10 x=1'!$B$50 -> 19.6817 | E15: 10 | F15: ='10 x=1'!$K$3 -> 10592.54029 | G15: 1
C16: 10 | D16: ='10 x=2'!$B$50 -> 19.6817 | E16: 10 | F16: ='10 x=2'!$K$3 -> 10589.72988 | G16: 2
B17: ='PI vs x'!$C$17 & "mm gap" -> 30mm gap | C17: ='30 x=-2'!B48 -> 30 | D17: ='30 x=-2'!$B$50 -> 39.6772 | E17: 29.9955 | F17: ='30 x=-2'!$K$3 -> 2474.428445 | G17: =G12 -> -2
C18: 30 | D18: ='30 x=-1'!$B$50 -> 39.6772 | E18: 29.9955 | F18: ='30 x=-1'!$K$3 -> 2478.360907 | G18: =G13 -> -1
C19: 30 | D19: ='30 x=0'!$B$50 -> 39.6772 | E19: 29.9955 | F19: ='30 x=0'!$K$3 -> 2478.553299 | G19: 0
C20: 30 | D20: ='30 x=1'!$B$50 -> 39.6772 | E20: 29.9955 | F20: ='30 x=1'!$K$3 -> 2477.025664 | G20: 1
C21: 30 | D21: ='30 x=2'!$B$50 -> 39.6772 | E21: 29.9955 | F21: ='30 x=2'!$K$3 -> 2472.191923 | G21: 2

Sheet 10 x=-2
A1: =IF('DF raw data'!A1="","",'DF raw data'!A1) -> Number of header lines | B1: =IF('DF raw data'!B1="","",'DF raw data'!B1) -> 54 | C1: =IF('DF raw data'!C1="","",'DF raw data'!C1) ->  | D1: =IF('DF raw data'!D1="","",'DF raw data'!D1) ->  | F1: T_coeff | G1: -0.001 | H1: /degC | J1: IBy total | K1: =J1262*1000 -> -15.83397156 | L1: muTm | M1: =L1262*1000 -> 0.4690498893 | R1: DF ref | S1: 1
A2: =IF('DF raw data'!A2="","",'DF raw data'!A2) -> Measured by | B2: =IF('DF raw data'!B2="","",'DF raw data'!B2) -> Danfysik | C2: =IF('DF raw data'!C2="","",'DF raw data'!C2) ->  | D2: =IF('DF raw data'!D2="","",'DF raw data'!D2) ->  | F2: Tcorr | G2: 20 | H2: degC | J2: JBy total | K2: =K1262 -> -6.531422123 | L2: muTm^2 | M2: =M1262 -> -2.346827752
A3: =IF('DF raw data'!A3="","",'DF raw data'!A3) -> Operator | B3: =IF('DF raw data'!B3="","",'DF raw data'!B3) -> PMHA | C3: =IF('DF raw data'!C3="","",'DF raw data'!C3) ->  | D3: =IF('DF raw data'!D3="","",'DF raw data'!D3) ->  | F3: Step | G3: =A63-A62 -> 0.5 | H3: mm | J3: PI total | K3: =N1262 -> 10589.47278 | L3: T^2mm^3
A4: =IF('DF raw data'!A4="","",'DF raw data'!A4) -> Data-time | B4: =IF('DF raw data'!B4="","",'DF raw data'!B4) -> 17-09-2024, 14:14:32 | C4: =IF('DF raw data'!C4="","",'DF raw data'!C4) ->  | D4: =IF('DF raw data'!D4="","",'DF raw data'!D4) -> 
A5: =IF('DF raw data'!A5="","",'DF raw data'!A5) -> Project | B5: =IF('DF raw data'!B5="","",'DF raw data'!B5) -> 504314 | C5: =IF('DF raw data'!C5="","",'DF raw data'!C5) ->  | D5: =IF('DF raw data'!D5="","",'DF raw data'!D5) -> 
A6: =IF('DF raw data'!A6="","",'DF raw data'!A6) -> Magnet type | B6: =IF('DF raw data'!B6="","",'DF raw data'!B6) -> Dipole | C6: =IF('DF raw data'!C6="","",'DF raw data'!C6) ->  | D6: =IF('DF raw data'!D6="","",'DF raw data'!D6) -> 
A7: =IF('DF raw data'!A7="","",'DF raw data'!A7) -> Magnet nr. | B7: =IF('DF raw data'!B7="","",'DF raw data'!B7) -> 2410097 | C7: =IF('DF raw data'!C7="","",'DF raw data'!C7) ->  | D7: =IF('DF raw data'!D7="","",'DF raw data'!D7) -> 
A8: =IF('DF raw data'!A8="","",'DF raw data'!A8) -> Meas. number | B8: =IF('DF raw data'!B8="","",'DF raw data'!B8) -> 549 | C8: =IF('DF raw data'!C8="","",'DF raw data'!C8) ->  | D8: =IF('DF raw data'!D8="","",'DF raw data'!D8) -> 
A9: =IF('DF raw data'!A9="","",'DF raw data'!A9) -> Add. info | B9: =IF('DF raw data'!B9="","",'DF raw data'!B9) -> X-alignment scan 1) | C9: =IF('DF raw data'!C9="","",'DF raw data'!C9) ->  | D9: =IF('DF raw data'!D9="","",'DF raw data'!D9) -> 
A10: =IF('DF raw data'!A10="","",'DF raw data'!A10) -> Device | B10: =IF('DF raw data'!B10="","",'DF raw data'!B10) -> (HAL) HALL-PROBE | C10: =IF('DF raw data'!C10="","",'DF raw data'!C10) ->  | D10: =IF('DF raw data'!D10="","",'DF raw data'!D10) -> 
A11: =IF('DF raw data'!A11="","",'DF raw data'!A11) -> Goal | B11: =IF('DF raw data'!B11="","",'DF raw data'!B11) -> (AXI) AXis Integral (Line, EFB) | C11: =IF('DF raw data'!C11="","",'DF raw data'!C11) ->  | D11: =IF('DF raw data'!D11="","",'DF raw data'!D11) -> 
A12: =IF('DF raw data'!A12="","",'DF raw data'!A12) -> Power supply mode | B12: =IF('DF raw data'!B12="","",'DF raw data'!B12) -> (PM) Permanent Magnet (no MPS in use) | C12: =IF('DF raw data'!C12="","",'DF raw data'!C12) ->  | D12: =IF('DF raw data'!D12="","",'DF raw data'!D12) -> 
A13: =IF('DF raw data'!A13="","",'DF raw data'!A13) -> Data format | B13: =IF('DF raw data'!B13="","",'DF raw data'!B13) -> Raw data text file | C13: =IF('DF raw data'!C13="","",'DF raw data'!C13) ->  | D13: =IF('DF raw data'!D13="","",'DF raw data'!D13) -> 
A14: =IF('DF raw data'!A14="","",'DF raw data'!A14) -> Direction of the pos. x-axis | B14: =IF('DF raw data'!B14="","",'DF raw data'!B14) -> See test program | C14: =IF('DF raw data'!C14="","",'DF raw data'!C14) ->  | D14: =IF('DF raw data'!D14="","",'DF raw data'!D14) -> 
A15: =IF('DF raw data'!A15="","",'DF raw data'!A15) -> Direction of the pos. y-axis | B15: =IF('DF raw data'!B15="","",'DF raw data'!B15) -> Vertical up | C15: =IF('DF raw data'!C15="","",'DF raw data'!C15) ->  | D15: =IF('DF raw data'!D15="","",'DF raw data'!D15) -> 
A16: =IF('DF raw data'!A16="","",'DF raw data'!A16) -> Direction of the pos. z-axis | B16: =IF('DF raw data'!B16="","",'DF raw data'!B16) -> See test program | C16: =IF('DF raw data'!C16="","",'DF raw data'!C16) ->  | D16: =IF('DF raw data'!D16="","",'DF raw data'!D16) -> 
A17: =IF('DF raw data'!A17="","",'DF raw data'!A17) -> Mapper type | B17: =IF('DF raw data'!B17="","",'DF raw data'!B17) -> Precision Hall Mapper | C17: =IF('DF raw data'!C17="","",'DF raw data'!C17) ->  | D17: =IF('DF raw data'!D17="","",'DF raw data'!D17) -> 
A18: =IF('DF raw data'!A18="","",'DF raw data'!A18) -> Mapper Danfysik Reg. Number | B18: =IF('DF raw data'!B18="","",'DF raw data'!B18) -> 2033-D (mapper 1) | C18: =IF('DF raw data'!C18="","",'DF raw data'!C18) ->  | D18: =IF('DF raw data'!D18="","",'DF raw data'!D18) -> 
A19: =IF('DF raw data'!A19="","",'DF raw data'!A19) -> Measurement consept | B19: =IF('DF raw data'!B19="","",'DF raw data'!B19) -> Square line grid | C19: =IF('DF raw data'!C19="","",'DF raw data'!C19) ->  | D19: =IF('DF raw data'!D19="","",'DF raw data'!D19) -> 
A20: =IF('DF raw data'!A20="","",'DF raw data'!A20) -> Mode | B20: =IF('DF raw data'!B20="","",'DF raw data'!B20) -> On-the-fly measurement | C20: =IF('DF raw data'!C20="","",'DF raw data'!C20) ->  | D20: =IF('DF raw data'!D20="","",'DF raw data'!D20) -> 
A21: =IF('DF raw data'!A21="","",'DF raw data'!A21) ->  | B21: =IF('DF raw data'!B21="","",'DF raw data'!B21) ->  | C21: =IF('DF raw data'!C21="","",'DF raw data'!C21) ->  | D21: =IF('DF raw data'!D21="","",'DF raw data'!D21) -> 
A22: =IF('DF raw data'!A22="","",'DF raw data'!A22) -> Probe Name | B22: =IF('DF raw data'!B22="","",'DF raw data'!B22) -> ID12_By | C22: =IF('DF raw data'!C22="","",'DF raw data'!C22) ->  | D22: =IF('DF raw data'!D22="","",'DF raw data'!D22) -> 
A23: =IF('DF raw data'!A23="","",'DF raw data'!A23) -> Probe Type | B23: =IF('DF raw data'!B23="","",'DF raw data'!B23) -> DF_ID_3D_Bxyz | C23: =IF('DF raw data'!C23="","",'DF raw data'!C23) ->  | D23: =IF('DF raw data'!D23="","",'DF raw data'!D23) -> 
A24: =IF('DF raw data'!A24="","",'DF raw data'!A24) -> Probe Danfysik Reg. Number | B24: =IF('DF raw data'!B24="","",'DF raw data'!B24) -> 2277 | C24: =IF('DF raw data'!C24="","",'DF raw data'!C24) ->  | D24: =IF('DF raw data'!D24="","",'DF raw data'!D24) -> 
A25: =IF('DF raw data'!A25="","",'DF raw data'!A25) -> Probe Axis | B25: =IF('DF raw data'!B25="","",'DF raw data'!B25) -> By | C25: =IF('DF raw data'!C25="","",'DF raw data'!C25) ->  | D25: =IF('DF raw data'!D25="","",'DF raw data'!D25) -> 
A26: =IF('DF raw data'!A26="","",'DF raw data'!A26) -> Probe Current Supply | B26: =IF('DF raw data'!B26="","",'DF raw data'!B26) -> 1825-D | C26: =IF('DF raw data'!C26="","",'DF raw data'!C26) ->  | D26: =IF('DF raw data'!D26="","",'DF raw data'!D26) -> 
A27: =IF('DF raw data'!A27="","",'DF raw data'!A27) -> Probe Gain Correction | B27: =IF('DF raw data'!B27="","",'DF raw data'!B27) -> 0.99606 | C27: =IF('DF raw data'!C27="","",'DF raw data'!C27) ->  | D27: =IF('DF raw data'!D27="","",'DF raw data'!D27) -> 
A28: =IF('DF raw data'!A28="","",'DF raw data'!A28) -> Probe Offset Correction | B28: =IF('DF raw data'!B28="","",'DF raw data'!B28) -> 0.0027513 | C28: =IF('DF raw data'!C28="","",'DF raw data'!C28) ->  | D28: =IF('DF raw data'!D28="","",'DF raw data'!D28) -> 
A29: =IF('DF raw data'!A29="","",'DF raw data'!A29) -> DVM Number | B29: =IF('DF raw data'!B29="","",'DF raw data'!B29) -> 2 | C29: =IF('DF raw data'!C29="","",'DF raw data'!C29) ->  | D29: =IF('DF raw data'!D29="","",'DF raw data'!D29) -> 
A30: =IF('DF raw data'!A30="","",'DF raw data'!A30) -> DVM Type | B30: =IF('DF raw data'!B30="","",'DF raw data'!B30) -> K2701 | C30: =IF('DF raw data'!C30="","",'DF raw data'!C30) ->  | D30: =IF('DF raw data'!D30="","",'DF raw data'!D30) -> 
A31: =IF('DF raw data'!A31="","",'DF raw data'!A31) -> DVM Danfysik Reg. Number | B31: =IF('DF raw data'!B31="","",'DF raw data'!B31) -> 1743-D | C31: =IF('DF raw data'!C31="","",'DF raw data'!C31) ->  | D31: =IF('DF raw data'!D31="","",'DF raw data'!D31) -> 
A32: =IF('DF raw data'!A32="","",'DF raw data'!A32) -> Probe Name | B32: =IF('DF raw data'!B32="","",'DF raw data'!B32) -> ID12_Bx | C32: =IF('DF raw data'!C32="","",'DF raw data'!C32) ->  | D32: =IF('DF raw data'!D32="","",'DF raw data'!D32) -> 
A33: =IF('DF raw data'!A33="","",'DF raw data'!A33) -> Probe Type | B33: =IF('DF raw data'!B33="","",'DF raw data'!B33) -> DF_ID_3D_Bxyz | C33: =IF('DF raw data'!C33="","",'DF raw data'!C33) ->  | D33: =IF('DF raw data'!D33="","",'DF raw data'!D33) -> 
A34: =IF('DF raw data'!A34="","",'DF raw data'!A34) -> Probe Danfysik Reg. Number | B34: =IF('DF raw data'!B34="","",'DF raw data'!B34) -> 2277 | C34: =IF('DF raw data'!C34="","",'DF raw data'!C34) ->  | D34: =IF('DF raw data'!D34="","",'DF raw data'!D34) -> 
A35: =IF('DF raw data'!A35="","",'DF raw data'!A35) -> Probe Axis | B35: =IF('DF raw data'!B35="","",'DF raw data'!B35) -> Bx | C35: =IF('DF raw data'!C35="","",'DF raw data'!C35) ->  | D35: =IF('DF raw data'!D35="","",'DF raw data'!D35) -> 
A36: =IF('DF raw data'!A36="","",'DF raw data'!A36) -> Probe Current Supply | B36: =IF('DF raw data'!B36="","",'DF raw data'!B36) -> 1825-D | C36: =IF('DF raw data'!C36="","",'DF raw data'!C36) ->  | D36: =IF('DF raw data'!D36="","",'DF raw data'!D36) -> 
A37: =IF('DF raw data'!A37="","",'DF raw data'!A37) -> Probe Gain Correction | B37: =IF('DF raw data'!B37="","",'DF raw data'!B37) -> 1 | C37: =IF('DF raw data'!C37="","",'DF raw data'!C37) ->  | D37: =IF('DF raw data'!D37="","",'DF raw data'!D37) -> 
A38: =IF('DF raw data'!A38="","",'DF raw data'!A38) -> Probe Offset Correction | B38: =IF('DF raw data'!B38="","",'DF raw data'!B38) -> -0.17549 | C38: =IF('DF raw data'!C38="","",'DF raw data'!C38) ->  | D38: =IF('DF raw data'!D38="","",'DF raw data'!D38) -> 
A39: =IF('DF raw data'!A39="","",'DF raw data'!A39) -> DVM Number | B39: =IF('DF raw data'!B39="","",'DF raw data'!B39) -> 3 | C39: =IF('DF raw data'!C39="","",'DF raw data'!C39) ->  | D39: =IF('DF raw data'!D39="","",'DF raw data'!D39) -> 
A40: =IF('DF raw data'!A40="","",'DF raw data'!A40) -> DVM Type | B40: =IF('DF raw data'!B40="","",'DF raw data'!B40) -> K2701 | C40: =IF('DF raw data'!C40="","",'DF raw data'!C40) ->  | D40: =IF('DF raw data'!D40="","",'DF raw data'!D40) -> 
A41: =IF('DF raw data'!A41="","",'DF raw data'!A41) -> DVM Danfysik Reg. Number | B41: =IF('DF raw data'!B41="","",'DF raw data'!B41) -> 1744-D | C41: =IF('DF raw data'!C41="","",'DF raw data'!C41) ->  | D41: =IF('DF raw data'!D41="","",'DF raw data'!D41) -> 
A42: =IF('DF raw data'!A42="","",'DF raw data'!A42) -> Probe Name | B42: =IF('DF raw data'!B42="","",'DF raw data'!B42) -> ID12_Bz | C42: =IF('DF raw data'!C42="","",'DF raw data'!C42) ->  | D42: =IF('DF raw data'!D42="","",'DF raw data'!D42) -> 
A43: =IF('DF raw data'!A43="","",'DF raw data'!A43) -> Probe Type | B43: =IF('DF raw data'!B43="","",'DF raw data'!B43) -> DF_ID_3D_Bxyz | C43: =IF('DF raw data'!C43="","",'DF raw data'!C43) ->  | D43: =IF('DF raw data'!D43="","",'DF raw data'!D43) -> 
A44: =IF('DF raw data'!A44="","",'DF raw data'!A44) -> Probe Danfysik Reg. Number | B44: =IF('DF raw data'!B44="","",'DF raw data'!B44) -> 2277 | C44: =IF('DF raw data'!C44="","",'DF raw data'!C44) ->  | D44: =IF('DF raw data'!D44="","",'DF raw data'!D44) -> 
A45: =IF('DF raw data'!A45="","",'DF raw data'!A45) -> Probe Axis | B45: =IF('DF raw data'!B45="","",'DF raw data'!B45) -> Bz | C45: =IF('DF raw data'!C45="","",'DF raw data'!C45) ->  | D45: =IF('DF raw data'!D45="","",'DF raw data'!D45) -> 
A46: =IF('DF raw data'!A46="","",'DF raw data'!A46) -> Probe Current Supply | B46: =IF('DF raw data'!B46="","",'DF raw data'!B46) -> 1825-D | C46: =IF('DF raw data'!C46="","",'DF raw data'!C46) ->  | D46: =IF('DF raw data'!D46="","",'DF raw data'!D46) -> 
A47: =IF('DF raw data'!A47="","",'DF raw data'!A47) -> Probe Gain Correction | B47: =IF('DF raw data'!B47="","",'DF raw data'!B47) -> 1 | C47: =IF('DF raw data'!C47="","",'DF raw data'!C47) ->  | D47: =IF('DF raw data'!D47="","",'DF raw data'!D47) -> 
A48: =IF('DF raw data'!A53="","",'DF raw data'!A53) -> PS-Gap: | B48: =IF('DF raw data'!B53="","",'DF raw data'!B53) -> 10 | C48: =IF('DF raw data'!C53="","",'DF raw data'!C53) ->  | D48: =IF('DF raw data'!D53="","",'DF raw data'!D53) -> 
A49: =IF('DF raw data'!A54="","",'DF raw data'!A54) -> PS-Temperature: | B49: =IF('DF raw data'!B54="","",'DF raw data'!B54) -> 23.5 | C49: =IF('DF raw data'!C54="","",'DF raw data'!C54) ->  | D49: =IF('DF raw data'!D54="","",'DF raw data'!D54) -> 
A50: =IF('DF raw data'!A55="","",'DF raw data'!A55) -> PS-Encoder: | B50: =IF('DF raw data'!B55="","",'DF raw data'!B55) -> 19.6817 | C50: =IF('DF raw data'!C55="","",'DF raw data'!C55) ->  | D50: =IF('DF raw data'!D55="","",'DF raw data'!D55) -> 
A51: =IF('DF raw data'!A56="","",'DF raw data'!A56) ->  | B51: =IF('DF raw data'!B56="","",'DF raw data'!B56) ->  | C51: =IF('DF raw data'!C56="","",'DF raw data'!C56) ->  | D51: =IF('DF raw data'!D56="","",'DF raw data'!D56) -> 
A52: =IF('DF raw data'!A57="","",'DF raw data'!A57) -> Monitor-Index | B52: =IF('DF raw data'!B57="","",'DF raw data'!B57) -> [1,1,4] | C52: =IF('DF raw data'!C57="","",'DF raw data'!C57) ->  | D52: =IF('DF raw data'!D57="","",'DF raw data'!D57) -> 
A53: =IF('DF raw data'!A58="","",'DF raw data'!A58) ->  | B53: =IF('DF raw data'!B58="","",'DF raw data'!B58) ->  | C53: =IF('DF raw data'!C58="","",'DF raw data'!C58) ->  | D53: =IF('DF raw data'!D58="","",'DF raw data'!D58) -> 
A54: =IF('DF raw data'!A59="","",'DF raw data'!A59) -> Time [s] | B54: =IF('DF raw data'!B59="","",'DF raw data'!B59) -> Y [mm] | C54: =IF('DF raw data'!C59="","",'DF raw data'!C59) -> X [mm] | D54: =IF('DF raw data'!D59="","",'DF raw data'!D59) -> Nominal current [A]
A55: =IF('DF raw data'!A60="","",'DF raw data'!A60) ->  | B55: =IF('DF raw data'!B60="","",'DF raw data'!B60) ->  | C55: =IF('DF raw data'!C60="","",'DF raw data'!C60) ->  | D55: =IF('DF raw data'!D60="","",'DF raw data'!D60) -> 
A56: =IF('DF raw data'!A61="","",'DF raw data'!A61) -> 208.3 | B56: =IF('DF raw data'!B61="","",'DF raw data'!B61) -> 31.56 | C56: =IF('DF raw data'!C61="","",'DF raw data'!C61) -> 299.55 | D56: =IF('DF raw data'!D61="","",'DF raw data'!D61) -> 0
A57: =IF('DF raw data'!A62="","",'DF raw data'!A62) ->  | B57: =IF('DF raw data'!B62="","",'DF raw data'!B62) ->  | C57: =IF('DF raw data'!C62="","",'DF raw data'!C62) ->  | D57: =IF('DF raw data'!D62="","",'DF raw data'!D62) -> 
A58: =IF('DF raw data'!A63="","",'DF raw data'!A63) -> Measurement-Index | B58: =IF('DF raw data'!B63="","",'DF raw data'!B63) -> [1,1,1201,2] | C58: =IF('DF raw data'!C63="","",'DF raw data'!C63) ->  | D58: =IF('DF raw data'!D63="","",'DF raw data'!D63) -> 
A59: =IF('DF raw data'!A64="","",'DF raw data'!A64) ->  | B59: =IF('DF raw data'!B64="","",'DF raw data'!B64) ->  | C59: =IF('DF raw data'!C64="","",'DF raw data'!C64) ->  | D59: =IF('DF raw data'!D64="","",'DF raw data'!D64) -> 
A60: =IF('DF raw data'!A65="","",'DF raw data'!A65) -> Z [mm] | B60: =IF('DF raw data'!B65="","",'DF raw data'!B65) -> By [T] | C60: =IF('DF raw data'!C65="","",'DF raw data'!C65) -> Bx [T] | D60: =IF('DF raw data'!D65="","",'DF raw data'!D65) -> Bz [T] | F60: By_corr | G60: Bx_corr | H60: Bz_corr | J60: Iy | K60: Jy | L60: Ix | M60: Jx | N60: PI
A62: =IF('DF raw data'!A67="","",'DF raw data'!A67) -> -300 | B62: =IF('DF raw data'!B67="","",'DF raw data'!B67) -> -2.37874e-05 | C62: =IF('DF raw data'!C67="","",'DF raw data'!C67) -> 4.12308e-05 | D62: =IF('DF raw data'!D67="","",'DF raw data'!D67) -> -1.99354e-05 | F62: =(1-$G$1*($B$49))*B62 -> -2.43464039e-05 | G62: =(1-$G$1*($B$49-$G$2))*C62 -> 4.13751078e-05 | H62: =(1-$G$1*($B$49-$G$2))*D62 -> -2.00051739e-05 | J62: =F62*$G$3 -> -1.217320195e-05 | K62: =J62*$G$3 -> -6.086600975e-06 | L62: =G62*$G$3 -> 2.06875539e-05 | M62: =L62*$G$3 -> 1.034377695e-05 | N62: =(J62^2+L62^2)*$G$3 -> 2.88080866e-10
A63: =IF('DF raw data'!A68="","",'DF raw data'!A68) -> -299.5 | B63: =IF('DF raw data'!B68="","",'DF raw data'!B68) -> -3.18628e-05 | C63: =IF('DF raw data'!C68="","",'DF raw data'!C68) -> 4.45056e-05 | D63: =IF('DF raw data'!D68="","",'DF raw data'!D68) -> -1.9221e-05 | F63: =(1-$G$1*($B$49-$G$2))*B63 -> -3.19743198e-05 | G63: =(1-$G$1*($B$49-$G$2))*C63 -> 4.46613696e-05 | H63: -1.92882735e-05 | J63: =F63*$G$3+J62 -> -2.816036185e-05 | K63: =J63*$G$3+K62 -> -2.01667819e-05 | L63: =G63*$G$3+L62 -> 4.30182387e-05 | M63: =L63*$G$3+M62 -> 3.18528963e-05 | N63: =(J63^2+L63^2)*$G$3+N62 -> 1.609868286e-09
A64: =IF('DF raw data'!A69="","",'DF raw data'!A69) -> -299 | B64: =IF('DF raw data'!B69="","",'DF raw data'!B69) -> -3.41064e-05 | C64: =IF('DF raw data'!C69="","",'DF raw data'!C69) -> 3.98118e-05 | D64: =IF('DF raw data'!D69="","",'DF raw data'!D69) -> -1.7755e-05 | F64: =(1-$G$1*($B$49-$G$2))*B64 -> -3.42257724e-05 | G64: 3.99511413e-05 | H64: -1.78171425e-05 | J64: =F64*$G$3+J63 -> -4.527324805e-05 | K64: =J64*$G$3+K63 -> -4.280340592e-05 | L64: =G64*$G$3+L63 -> 6.299380935e-05 | M64: =L64*$G$3+M63 -> 6.334980098e-05 | N64: =(J64^2+L64^2)*$G$3+N63 -> 4.618811789e-09
A65: =IF('DF raw data'!A70="","",'DF raw data'!A70) -> -298.5 | B65: =IF('DF raw data'!B70="","",'DF raw data'!B70) -> -2.92347e-05 | C65: =IF('DF raw data'!C70="","",'DF raw data'!C70) -> 3.65379e-05 | D65: =IF('DF raw data'!D70="","",'DF raw data'!D70) -> -1.70991e-05 | F65: -2.933702145e-05 | G65: 3.666578265e-05 | H65: -1.715894685e-05 | J65: -5.994175877e-05 | K65: -7.277428531e-05 | L65: 8.132670068e-05 | M65: 0.0001040131513 | N65: 9.722335133e-09
A66: =IF('DF raw data'!A71="","",'DF raw data'!A71) -> -298 | B66: =IF('DF raw data'!B71="","",'DF raw data'!B71) -> -1.34729e-05 | C66: =IF('DF raw data'!C71="","",'DF raw data'!C71) -> 4.68757e-05 | D66: =IF('DF raw data'!D71="","",'DF raw data'!D71) -> -1.78833e-05 | F66: -1.352005515e-05 | G66: 4.703976495e-05 | H66: -1.794589155e-05 | J66: -6.670178635e-05 | K66: -0.0001061251785 | L66: 0.0001048465832 | M66: 0.0001564364429 | N66: 1.744330228e-08
A67: =IF('DF raw data'!A72="","",'DF raw data'!A72) -> -297.5 | B67: =IF('DF raw data'!B72="","",'DF raw data'!B72) -> -3.07715e-05 | C67: =IF('DF raw data'!C72="","",'DF raw data'!C72) -> 4.38055e-05 | D67: =IF('DF raw data'!D72="","",'DF raw data'!D72) -> -1.85797e-05 | F67: -3.087920025e-05 | G67: 4.395881925e-05 | H67: -1.864472895e-05 | J67: -8.214138648e-05 | K67: -0.0001471958717 | L67: 0.0001268259928 | M67: 0.0002198494393 | N67: 2.885932219e-08
A68: =IF('DF raw data'!A73="","",'DF raw data'!A73) -> -297 | B68: =IF('DF raw data'!B73="","",'DF raw data'!B73) -> -2.52629e-05 | C68: =IF('DF raw data'!C73="","",'DF raw data'!C73) -> 3.95014e-05 | D68: =IF('DF raw data'!D73="","",'DF raw data'!D73) -> -1.8506e-05 | F68: -2.535132015e-05 | G68: 3.96396549e-05 | H68: -1.8570771e-05 | J68: -9.481704655e-05 | K68: -0.000194604395 | L68: 0.0001466458202 | M68: 0.0002931723494 | N68: 4.410695664e-08
A69: =IF('DF raw data'!A74="","",'DF raw data'!A74) -> -296.5 | B69: =IF('DF raw data'!B74="","",'DF raw data'!B74) -> -2.65429e-05 | C69: =IF('DF raw data'!C74="","",'DF raw data'!C74) -> 4.06465e-05 | D69: =IF('DF raw data'!D74="","",'DF raw data'!D74) -> -1.82635e-05 | F69: -2.663580015e-05 | G69: 4.078876275e-05 | H69: -1.832742225e-05 | J69: -0.0001081349466 | K69: -0.0002486718683 | L69: 0.0001670402016 | M69: 0.0003766924502 | N69: 6.390475446e-08
A70: =IF('DF raw data'!A75="","",'DF raw data'!A75) -> -296 | B70: =IF('DF raw data'!B75="","",'DF raw data'!B75) -> -2.7506e-05 | C70: =IF('DF raw data'!C75="","",'DF raw data'!C75) -> 4.55618e-05 | D70: =IF('DF raw data'!D75="","",'DF raw data'!D75) -> -1.82089e-05 | F70: -2.7602271e-05 | G70: 4.57212663e-05 | H70: -1.827263115e-05 | J70: -0.0001219360821 | K70: -0.0003096399094 | L70: 0.0001899008348 | M70: 0.0004716428676 | N70: 8.937012204e-08
A71: =IF('DF raw data'!A76="","",'DF raw data'!A76) -> -295.5 | B71: =IF('DF raw data'!B76="","",'DF raw data'!B76) -> -2.67991e-05 | C71: =IF('DF raw data'!C76="","",'DF raw data'!C76) -> 4.2932e-05 | D71: =IF('DF raw data'!D76="","",'DF raw data'!D76) -> -1.81544e-05 | F71: -2.689289685e-05 | G71: 4.3082262e-05 | H71: -1.82179404e-05 | J71: -0.0001353825306 | K71: -0.0003773311747 | L71: 0.0002114419658 | M71: 0.0005773638504 | N71: 1.208881893e-07
A72: =IF('DF raw data'!A77="","",'DF raw data'!A77) -> -295 | B72: =IF('DF raw data'!B77="","",'DF raw data'!B77) -> -2.69934e-05 | C72: =IF('DF raw data'!C77="","",'DF raw data'!C77) -> 4.20625e-05 | D72: =IF('DF raw data'!D77="","",'DF raw data'!D77) -> -1.81738e-05 | F72: -2.70878769e-05 | G72: 4.220971875e-05 | H72: -1.82374083e-05 | J72: -0.000148926469 | K72: -0.0004517944092 | L72: 0.0002325468251 | M72: 0.000693637263 | N72: 1.590167488e-07
A73: =IF('DF raw data'!A78="","",'DF raw data'!A78) -> -294.5 | B73: =IF('DF raw data'!B78="","",'DF raw data'!B78) -> -2.62864e-05 | C73: =IF('DF raw data'!C78="","",'DF raw data'!C78) -> 3.64242e-05 | D73: =IF('DF raw data'!D78="","",'DF raw data'!D78) -> -1.83797e-05 | F73: -2.63784024e-05 | G73: 3.65516847e-05 | H73: -1.844402895e-05 | J73: -0.0001621156702 | K73: -0.0005328522443 | L73: 0.0002508226675 | M73: 0.0008190485967 | N73: 2.036134993e-07
A74: =IF('DF raw data'!A79="","",'DF raw data'!A79) -> -294 | B74: =IF('DF raw data'!B79="","",'DF raw data'!B79) -> -2.69294e-05 | C74: =IF('DF raw data'!C79="","",'DF raw data'!C79) -> 4.54803e-05 | D74: =IF('DF raw data'!D79="","",'DF raw data'!D79) -> -1.84866e-05 | F74: -2.70236529e-05 | G74: 4.563948105e-05 | H74: -1.85513031e-05 | J74: -0.0001756274967 | K74: -0.0006206659926 | L74: 0.000273642408 | M74: 0.0009558698007 | N74: 2.564760918e-07
A75: =IF('DF raw data'!A80="","",'DF raw data'!A80) -> -293.5 | B75: =IF('DF raw data'!B80="","",'DF raw data'!B80) -> -3.14765e-05 | C75: =IF('DF raw data'!C80="","",'DF raw data'!C80) -> 3.80372e-05 | D75: =IF('DF raw data'!D80="","",'DF raw data'!D80) -> -1.81514e-05 | F75: -3.158666775e-05 | G75: 3.81703302e-05 | H75: -1.82149299e-05 | J75: -0.0001914208305 | K75: -0.0007163764078 | L75: 0.0002927275731 | M75: 0.001102233587 | N75: 3.17641775e-07
A76: =IF('DF raw data'!A81="","",'DF raw data'!A81) -> -293 | B76: =IF('DF raw data'!B81="","",'DF raw data'!B81) -> -2.94285e-05 | C76: =IF('DF raw data'!C81="","",'DF raw data'!C81) -> 3.28927e-05 | D76: =IF('DF raw data'!D81="","",'DF raw data'!D81) -> -1.78516e-05 | F76: -2.953149975e-05 | G76: 3.300782445e-05 | H76: -1.79140806e-05 | J76: -0.0002061865804 | K76: -0.000819469698 | L76: 0.0003092314853 | M76: 0.00125684933 | N76: 3.867102838e-07
A77: =IF('DF raw data'!A82="","",'DF raw data'!A82) -> -292.5 | B77: =IF('DF raw data'!B82="","",'DF raw data'!B82) -> -2.22496e-05 | C77: =IF('DF raw data'!C82="","",'DF raw data'!C82) -> 3.86555e-05 | D77: =IF('DF raw data'!D82="","",'DF raw data'!D82) -> -1.82324e-05 | F77: -2.23274736e-05 | G77: 3.879079425e-05 | H77: -1.82962134e-05 | J77: -0.0002173503172 | K77: -0.0009281448566 | L77: 0.0003286268824 | M77: 0.001421162771 | N77: 4.643286779e-07
A78: =IF('DF raw data'!A83="","",'DF raw data'!A83) -> -292 | B78: =IF('DF raw data'!B83="","",'DF raw data'!B83) -> -2.98766e-05 | C78: =IF('DF raw data'!C83="","",'DF raw data'!C83) -> 3.49095e-05 | D78: =IF('DF raw data'!D83="","",'DF raw data'!D83) -> -1.87662e-05 | F78: -2.99811681e-05 | G78: 3.503168325e-05 | H78: -1.88318817e-05 | J78: -0.0002323409013 | K78: -0.001044315307 | L78: 0.0003461427241 | M78: 0.001594234133 | N78: 5.512272178e-07
A79: =IF('DF raw data'!A84="","",'DF raw data'!A84) -> -291.5 | B79: =IF('DF raw data'!B84="","",'DF raw data'!B84) -> -2.94217e-05 | C79: =IF('DF raw data'!C84="","",'DF raw data'!C84) -> 2.79748e-05 | D79: =IF('DF raw data'!D84="","",'DF raw data'!D84) -> -2.49349e-05 | F79: -2.952467595e-05 | G79: 2.80727118e-05 | H79: -2.502217215e-05 | J79: -0.0002471032392 | K79: -0.001167866927 | L79: 0.00036017908 | M79: 0.001774323673 | N79: 6.46621708e-07
A80: =IF('DF raw data'!A85="","",'DF raw data'!A85) -> -291 | B80: =IF('DF raw data'!B85="","",'DF raw data'!B85) -> -3.73002e-05 | C80: =IF('DF raw data'!C85="","",'DF raw data'!C85) -> 2.85328e-05 | D80: =IF('DF raw data'!D85="","",'DF raw data'!D85) -> -3.32038e-05 | F80: -3.74307507e-05 | G80: 2.86326648e-05 | H80: -3.33200133e-05 | J80: -0.0002658186146 | K80: -0.001300776234 | L80: 0.0003744954124 | M80: 0.001961571379 | N80: 7.520748829e-07
A81: =IF('DF raw data'!A86="","",'DF raw data'!A86) -> -290.5 | B81: =IF('DF raw data'!B86="","",'DF raw data'!B86) -> -2.39133e-05 | C81: =IF('DF raw data'!C86="","",'DF raw data'!C86) -> 3.42821e-05 | D81: =IF('DF raw data'!D86="","",'DF raw data'!D86) -> -2.22627e-05 | F81: -2.399699655e-05 | G81: 3.440208735e-05 | H81: -2.234061945e-05 | J81: -0.0002778171129 | K81: -0.001439684791 | L81: 0.000391696456 | M81: 0.002157419607 | N81: 8.673791139e-07
A82: =IF('DF raw data'!A87="","",'DF raw data'!A87) -> -290 | B82: =IF('DF raw data'!B87="","",'DF raw data'!B87) -> -3.71787e-05 | C82: =IF('DF raw data'!C87="","",'DF raw data'!C87) -> 3.63123e-05 | D82: =IF('DF raw data'!D87="","",'DF raw data'!D87) -> -2.28816e-05 | F82: -3.730882545e-05 | G82: 3.643939305e-05 | H82: -2.29616856e-05 | J82: -0.0002964715256 | K82: -0.001587920553 | L82: 0.0004099161526 | M82: 0.002362377684 | N82: 9.953424227e-07
A83: =IF('DF raw data'!A88="","",'DF raw data'!A88) -> -289.5 | B83: =IF('DF raw data'!B88="","",'DF raw data'!B88) -> -1.80206e-05 | C83: =IF('DF raw data'!C88="","",'DF raw data'!C88) -> 3.42032e-05 | D83: =IF('DF raw data'!D88="","",'DF raw data'!D88) -> -1.89805e-05 | F83: -1.80836721e-05 | G83: 3.43229112e-05 | H83: -1.904693175e-05 | J83: -0.0003055133616 | K83: -0.001740677234 | L83: 0.0004270776082 | M83: 0.002575916488 | N83: 1.133209271e-06
A84: =IF('DF raw data'!A89="","",'DF raw data'!A89) -> -289 | B84: =IF('DF raw data'!B89="","",'DF raw data'!B89) -> -2.79482e-05 | C84: =IF('DF raw data'!C89="","",'DF raw data'!C89) -> 3.8403e-05 | D84: =IF('DF raw data'!D89="","",'DF raw data'!D89) -> -2.79347e-05 | F84: -2.80460187e-05 | G84: 3.85374105e-05 | H84: -2.803247145e-05 | J84: -0.000319536371 | K84: -0.00190044542 | L84: 0.0004463463134 | M84: 0.002799089645 | N84: 1.283873533e-06
A85: =IF('DF raw data'!A90="","",'DF raw data'!A90) -> -288.5 | B85: =IF('DF raw data'!B90="","",'DF raw data'!B90) -> -2.65483e-05 | C85: =IF('DF raw data'!C90="","",'DF raw data'!C90) -> 4.87505e-05 | D85: =IF('DF raw data'!D90="","",'DF raw data'!D90) -> -1.01476e-05 | F85: -2.664121905e-05 | G85: 4.892112675e-05 | H85: -1.01831166e-05 | J85: -0.0003328569805 | K85: -0.00206687391 | L85: 0.0004708068768 | M85: 0.003034493083 | N85: 1.450099976e-06
A86: =IF('DF raw data'!A91="","",'DF raw data'!A91) -> -288 | B86: =IF('DF raw data'!B91="","",'DF raw data'!B91) -> -2.80184e-05 | C86: =IF('DF raw data'!C91="","",'DF raw data'!C91) -> 4.60812e-05 | D86: =IF('DF raw data'!D91="","",'DF raw data'!D91) -> -1.8301e-05 | F86: -2.81164644e-05 | G86: 4.62424842e-05 | H86: -1.83650535e-05 | J86: -0.0003469152127 | K86: -0.002240331516 | L86: 0.0004939281189 | M86: 0.003281457142 | N86: 1.632257551e-06
A87: =IF('DF raw data'!A92="","",'DF raw data'!A92) -> -287.5 | B87: =IF('DF raw data'!B92="","",'DF raw data'!B92) -> -3.62154e-05 | C87: =IF('DF raw data'!C92="","",'DF raw data'!C92) -> 3.23057e-05 | D87: =IF('DF raw data'!D92="","",'DF raw data'!D92) -> -2.23478e-05 | F87: -3.63421539e-05 | G87: 3.241876995e-05 | H87: -2.24260173e-05 | J87: -0.0003650862897 | K87: -0.002422874661 | L87: 0.0005101375039 | M87: 0.003536525894 | N87: 1.829021687e-06
A88: =IF('DF raw data'!A93="","",'DF raw data'!A93) -> -287 | B88: =IF('DF raw data'!B93="","",'DF raw data'!B93) -> -3.03845e-05 | C88: =IF('DF raw data'!C93="","",'DF raw data'!C93) -> 2.76418e-05 | D88: =IF('DF raw data'!D93="","",'DF raw data'!D93) -> -2.57934e-05 | F88: -3.049084575e-05 | G88: 2.77385463e-05 | H88: -2.58836769e-05 | J88: -0.0003803317125 | K88: -0.002613040517 | L88: 0.000524006777 | M88: 0.003798529283 | N88: 2.038639344e-06
A89: =IF('DF raw data'!A94="","",'DF raw data'!A94) -> -286.5 | B89: =IF('DF raw data'!B94="","",'DF raw data'!B94) -> -3.05777e-05 | C89: =IF('DF raw data'!C94="","",'DF raw data'!C94) -> 3.36523e-05 | D89: =IF('DF raw data'!D94="","",'DF raw data'!D94) -> -2.12353e-05 | F89: -3.068472195e-05 | G89: 3.377008305e-05 | H89: -2.130962355e-05 | J89: -0.0003956740735 | K89: -0.002810877554 | L89: 0.0005408918185 | M89: 0.004068975192 | N89: 2.26320031e-06
A90: =IF('DF raw data'!A95="","",'DF raw data'!A95) -> -286 | B90: =IF('DF raw data'!B95="","",'DF raw data'!B95) -> -2.84628e-05 | C90: =IF('DF raw data'!C95="","",'DF raw data'!C95) -> 2.91117e-05 | D90: =IF('DF raw data'!D95="","",'DF raw data'!D95) -> -2.50258e-05 | F90: -2.85624198e-05 | G90: 2.921359095e-05 | H90: -2.51133903e-05 | J90: -0.0004099552834 | K90: -0.003015855196 | L90: 0.000555498614 | M90: 0.004346724499 | N90: 2.501521332e-06
A91: =IF('DF raw data'!A96="","",'DF raw data'!A96) -> -285.5 | B91: =IF('DF raw data'!B96="","",'DF raw data'!B96) -> -2.99956e-05 | C91: =IF('DF raw data'!C96="","",'DF raw data'!C96) -> 2.18732e-05 | D91: =IF('DF raw data'!D96="","",'DF raw data'!D96) -> -2.93901e-05 | F91: -3.01005846e-05 | G91: 2.19497562e-05 | H91: -2.949296535e-05 | J91: -0.0004250055757 | K91: -0.003228357984 | L91: 0.0005664734921 | M91: 0.004629961245 | N91: 2.752282311e-06
A92: =IF('DF raw data'!A97="","",'DF raw data'!A97) -> -285 | B92: =IF('DF raw data'!B97="","",'DF raw data'!B97) -> -3.19873e-05 | C92: =IF('DF raw data'!C97="","",'DF raw data'!C97) -> 2.10093e-05 | D92: =IF('DF raw data'!D97="","",'DF raw data'!D97) -> -2.47757e-05 | F92: -3.209925555e-05 | G92: 2.108283255e-05 | H92: -2.486241495e-05 | J92: -0.0004410552035 | K92: -0.003448885585 | L92: 0.0005770149084 | M92: 0.004918468699 | N92: 3.016020259e-06
A93: =IF('DF raw data'!A98="","",'DF raw data'!A98) -> -284.5 | B93: =IF('DF raw data'!B98="","",'DF raw data'!B98) -> -2.71128e-05 | C93: =IF('DF raw data'!C98="","",'DF raw data'!C98) -> 2.7647e-05 | D93: =IF('DF raw data'!D98="","",'DF raw data'!D98) -> -2.85987e-05 | F93: -2.72076948e-05 | G93: 2.77437645e-05 | H93: -2.869879545e-05 | J93: -0.0004546590509 | K93: -0.003676215111 | L93: 0.0005908867907 | M93: 0.005213912095 | N93: 3.293951285e-06
A94: =IF('DF raw data'!A99="","",'DF raw data'!A99) -> -284 | B94: =IF('DF raw data'!B99="","",'DF raw data'!B99) -> -2.87189e-05 | C94: =IF('DF raw data'!C99="","",'DF raw data'!C99) -> 3.44209e-05 | D94: =IF('DF raw data'!D99="","",'DF raw data'!D99) -> -2.52389e-05 | F94: -2.881941615e-05 | G94: 3.454137315e-05 | H94: -2.532723615e-05 | J94: -0.000469068759 | K94: -0.00391074949 | L94: 0.0006081574772 | M94: 0.005517990833 | N94: 3.588891794e-06
A95: =IF('DF raw data'!A100="","",'DF raw data'!A100) -> -283.5 | B95: =IF('DF raw data'!B100="","",'DF raw data'!B100) -> -3.07024e-05 | C95: =IF('DF raw data'!C100="","",'DF raw data'!C100) -> 2.8961e-05 | D95: =IF('DF raw data'!D100="","",'DF raw data'!D100) -> -2.67028e-05 | F95: -3.08098584e-05 | G95: 2.90623635e-05 | H95: -2.67962598e-05 | J95: -0.0004844736882 | K95: -0.004152986334 | L95: 0.000622688659 | M95: 0.005829335163 | N95: 3.900119754e-06
A96: =IF('DF raw data'!A101="","",'DF raw data'!A101) -> -283 | B96: =IF('DF raw data'!B101="","",'DF raw data'!B101) -> -2.15518e-05 | C96: =IF('DF raw data'!C101="","",'DF raw data'!C101) -> 2.6808e-05 | D96: =IF('DF raw data'!D101="","",'DF raw data'!D101) -> -1.03696e-05 | F96: -2.16272313e-05 | G96: 2.6901828e-05 | H96: -1.04058936e-05 | J96: -0.0004952873038 | K96: -0.004400629986 | L96: 0.000636139573 | M96: 0.006147404949 | N96: 4.225111289e-06
A97: =IF('DF raw data'!A102="","",'DF raw data'!A102) -> -282.5 | B97: =IF('DF raw data'!B102="","",'DF raw data'!B102) -> -2.53272e-05 | C97: =IF('DF raw data'!C102="","",'DF raw data'!C102) -> 3.16019e-05 | D97: =IF('DF raw data'!D102="","",'DF raw data'!D102) -> -1.57897e-05 | F97: -2.54158452e-05 | G97: 3.171250665e-05 | H97: -1.584496395e-05 | J97: -0.0005079952264 | K97: -0.004654627599 | L97: 0.0006519958263 | M97: 0.006473402862 | N97: 4.566690143e-06
A98: =IF('DF raw data'!A103="","",'DF raw data'!A103) -> -282 | B98: =IF('DF raw data'!B103="","",'DF raw data'!B103) -> -2.54465e-05 | C98: =IF('DF raw data'!C103="","",'DF raw data'!C103) -> 4.41438e-05 | D98: =IF('DF raw data'!D103="","",'DF raw data'!D103) -> -3.19509e-05 | F98: -2.553556275e-05 | G98: 4.42983033e-05 | H98: -3.206272815e-05 | J98: -0.0005207630078 | K98: -0.004915009103 | L98: 0.0006741449779 | M98: 0.006810475351 | N98: 4.929522924e-06
A99: =IF('DF raw data'!A104="","",'DF raw data'!A104) -> -281.5 | B99: =IF('DF raw data'!B104="","",'DF raw data'!B104) -> -3.2495e-05 | C99: =IF('DF raw data'!C104="","",'DF raw data'!C104) -> 4.23473e-05 | D99: =IF('DF raw data'!D104="","",'DF raw data'!D104) -> -2.89043e-05 | F99: -3.26087325e-05 | G99: 4.249551555e-05 | H99: -2.900546505e-05 | J99: -0.000537067374 | K99: -0.00518354279 | L99: 0.0006953927357 | M99: 0.007158171719 | N99: 5.315529134e-06
A100: =IF('DF raw data'!A105="","",'DF raw data'!A105) -> -281 | B100: =IF('DF raw data'!B105="","",'DF raw data'!B105) -> -2.84022e-05 | C100: =IF('DF raw data'!C105="","",'DF raw data'!C105) -> 3.67411e-05 | D100: =IF('DF raw data'!D105="","",'DF raw data'!D105) -> -1.91265e-05 | F100: -2.85016077e-05 | G100: 3.686969385e-05 | H100: -1.919344275e-05 | J100: -0.0005513181779 | K100: -0.005459201879 | L100: 0.0007138275826 | M100: 0.007515085511 | N100: 5.72227991e-06
A101: =IF('DF raw data'!A106="","",'DF raw data'!A106) -> -280.5 | B101: =IF('DF raw data'!B106="","",'DF raw data'!B106) -> -3.27557e-05 | C101: =IF('DF raw data'!C106="","",'DF raw data'!C106) -> 3.40294e-05 | D101: =IF('DF raw data'!D106="","",'DF raw data'!D106) -> -2.23388e-05 | F101: -3.287034495e-05 | G101: 3.41485029e-05 | H101: -2.24169858e-05 | J101: -0.0005677533504 | K101: -0.005743078554 | L101: 0.0007309018341 | M101: 0.007880536428 | N101: 6.150560589e-06
A102: =IF('DF raw data'!A107="","",'DF raw data'!A107) -> -280 | B102: =IF('DF raw data'!B107="","",'DF raw data'!B107) -> -2.65409e-05 | C102: =IF('DF raw data'!C107="","",'DF raw data'!C107) -> 3.0683e-05 | D102: =IF('DF raw data'!D107="","",'DF raw data'!D107) -> -2.41656e-05 | F102: -2.663379315e-05 | G102: 3.07903905e-05 | H102: -2.42501796e-05 | J102: -0.0005810702469 | K102: -0.006033613678 | L102: 0.0007462970293 | M102: 0.008253684942 | N102: 6.597861533e-06
A103: =IF('DF raw data'!A108="","",'DF raw data'!A108) -> -279.5 | B103: =IF('DF raw data'!B108="","",'DF raw data'!B108) -> -3.39049e-05 | C103: =IF('DF raw data'!C108="","",'DF raw data'!C108) -> 3.88598e-05 | D103: =IF('DF raw data'!D108="","",'DF raw data'!D108) -> -2.87055e-05 | F103: -3.402356715e-05 | G103: 3.89958093e-05 | H103: -2.880596925e-05 | J103: -0.0005980820305 | K103: -0.006332654693 | L103: 0.000765794934 | M103: 0.008636582409 | N103: 7.069933531e-06
A104: =IF('DF raw data'!A109="","",'DF raw data'!A109) -> -279 | B104: =IF('DF raw data'!B109="","",'DF raw data'!B109) -> -3.74338e-05 | C104: =IF('DF raw data'!C109="","",'DF raw data'!C109) -> 4.43648e-05 | D104: =IF('DF raw data'!D109="","",'DF raw data'!D109) -> -2.43261e-05 | F104: -3.75648183e-05 | G104: 4.45200768e-05 | H104: -2.441124135e-05 | J104: -0.0006168644396 | K104: -0.006641086913 | L104: 0.0007880549724 | M104: 0.009030609895 | N104: 7.570709719e-06
A105: =IF('DF raw data'!A110="","",'DF raw data'!A110) -> -278.5 | B105: =IF('DF raw data'!B110="","",'DF raw data'!B110) -> -2.41131e-05 | C105: =IF('DF raw data'!C110="","",'DF raw data'!C110) -> 3.76182e-05 | D105: =IF('DF raw data'!D110="","",'DF raw data'!D110) -> -1.09303e-05 | F105: -2.419749585e-05 | G105: 3.77498637e-05 | H105: -1.096855605e-05 | J105: -0.0006289631876 | K105: -0.006955568507 | L105: 0.0008069299043 | M105: 0.009434074848 | N105: 8.094075e-06
A106: =IF('DF raw data'!A111="","",'DF raw data'!A111) -> -278 | B106: =IF('DF raw data'!B111="","",'DF raw data'!B111) -> -2.25668e-05 | C106: =IF('DF raw data'!C111="","",'DF raw data'!C111) -> 3.58747e-05 | D106: =IF('DF raw data'!D111="","",'DF raw data'!D111) -> -2.54033e-05 | F106: -2.26457838e-05 | G106: 3.600026145e-05 | H106: -2.549221155e-05 | J106: -0.0006402860795 | K106: -0.007275711547 | L106: 0.000824930035 | M106: 0.009846539865 | N106: 8.639312913e-06
A107: =IF('DF raw data'!A112="","",'DF raw data'!A112) -> -277.5 | B107: =IF('DF raw data'!B112="","",'DF raw data'!B112) -> -2.29477e-05 | C107: =IF('DF raw data'!C112="","",'DF raw data'!C112) -> 3.71161e-05 | D107: =IF('DF raw data'!D112="","",'DF raw data'!D112) -> -2.97932e-05 | F107: -2.302801695e-05 | G107: 3.724600635e-05 | H107: -2.98974762e-05 | J107: -0.0006518000879 | K107: -0.007601611591 | L107: 0.0008435530382 | M107: 0.01026831638 | N107: 9.207525454e-06
A108: =IF('DF raw data'!A113="","",'DF raw data'!A113) -> -277 | B108: =IF('DF raw data'!B113="","",'DF raw data'!B113) -> -2.58311e-05 | C108: =IF('DF raw data'!C113="","",'DF raw data'!C113) -> 3.34892e-05 | D108: =IF('DF raw data'!D113="","",'DF raw data'!D113) -> -3.1067e-05 | F108: -2.592150885e-05 | G108: 3.36064122e-05 | H108: -3.11757345e-05 | J108: -0.0006647608424 | K108: -0.007933992012 | L108: 0.0008603562443 | M108: 0.01069849451 | N108: 9.798585377e-06
A109: =IF('DF raw data'!A114="","",'DF raw data'!A114) -> -276.5 | B109: =IF('DF raw data'!B114="","",'DF raw data'!B114) -> -2.29544e-05 | C109: =IF('DF raw data'!C114="","",'DF raw data'!C114) -> 3.28862e-05 | D109: =IF('DF raw data'!D114="","",'DF raw data'!D114) -> -1.95048e-05 | F109: -2.30347404e-05 | G109: 3.30013017e-05 | H109: -1.95730668e-05 | J109: -0.0006762782126 | K109: -0.008272131118 | L109: 0.0008768568951 | M109: 0.01113692295 | N109: 1.041170049e-05
A110: =IF('DF raw data'!A115="","",'DF raw data'!A115) -> -276 | B110: =IF('DF raw data'!B115="","",'DF raw data'!B115) -> -3.75533e-05 | C110: =IF('DF raw data'!C115="","",'DF raw data'!C115) -> 3.4884e-05 | D110: =IF('DF raw data'!D115="","",'DF raw data'!D115) -> -3.72333e-05 | F110: -3.768473655e-05 | G110: 3.5006094e-05 | H110: -3.736361655e-05 | J110: -0.0006951205809 | K110: -0.008619691408 | L110: 0.0008943599421 | M110: 0.01158410292 | N110: 1.105323666e-05
A111: =IF('DF raw data'!A116="","",'DF raw data'!A116) -> -275.5 | B111: =IF('DF raw data'!B116="","",'DF raw data'!B116) -> -3.32107e-05 | C111: =IF('DF raw data'!C116="","",'DF raw data'!C116) -> 3.40541e-05 | D111: =IF('DF raw data'!D116="","",'DF raw data'!D116) -> -1.32581e-05 | F111: -3.332693745e-05 | G111: 3.417328935e-05 | H111: -1.330450335e-05 | J111: -0.0007117840496 | K111: -0.008975583433 | L111: 0.0009114465868 | M111: 0.01203982622 | N111: 1.172192237e-05
A112: =IF('DF raw data'!A117="","",'DF raw data'!A117) -> -275 | B112: =IF('DF raw data'!B117="","",'DF raw data'!B117) -> -2.85289e-05 | C112: =IF('DF raw data'!C117="","",'DF raw data'!C117) -> 3.16346e-05 | D112: =IF('DF raw data'!D117="","",'DF raw data'!D117) -> -2.07962e-05 | F112: -2.862875115e-05 | G112: 3.17453211e-05 | H112: -2.08689867e-05 | J112: -0.0007260984252 | K112: -0.009338632646 | L112: 0.0009273192473 | M112: 0.01250348584 | N112: 1.241549232e-05
A113: =IF('DF raw data'!A118="","",'DF raw data'!A118) -> -274.5 | B113: =IF('DF raw data'!B118="","",'DF raw data'!B118) -> -2.76895e-05 | C113: =IF('DF raw data'!C118="","",'DF raw data'!C118) -> 3.49351e-05 | D113: =IF('DF raw data'!D118="","",'DF raw data'!D118) -> -2.97815e-05 | F113: -2.778641325e-05 | G113: 3.505737285e-05 | H113: -2.988573525e-05 | J113: -0.0007399916318 | K113: -0.009708628462 | L113: 0.0009448479338 | M113: 0.01297590981 | N113: 1.313565494e-05
A114: =IF('DF raw data'!A119="","",'DF raw data'!A119) -> -274 | B114: =IF('DF raw data'!B119="","",'DF raw data'!B119) -> -3.21691e-05 | C114: =IF('DF raw data'!C119="","",'DF raw data'!C119) -> 3.5997e-05 | D114: =IF('DF raw data'!D119="","",'DF raw data'!D119) -> -3.96325e-05 | F114: -3.228169185e-05 | G114: 3.61229895e-05 | H114: -3.977121375e-05 | J114: -0.0007561324777 | K114: -0.0100866947 | L114: 0.0009629094285 | M114: 0.01345736452 | N114: 1.388512038e-05
A115: =IF('DF raw data'!A120="","",'DF raw data'!A120) -> -273.5 | B115: =IF('DF raw data'!B120="","",'DF raw data'!B120) -> -3.69217e-05 | C115: =IF('DF raw data'!C120="","",'DF raw data'!C120) -> 3.16428e-05 | D115: =IF('DF raw data'!D120="","",'DF raw data'!D120) -> -2.13719e-05 | F115: -3.705092595e-05 | G115: 3.17535498e-05 | H115: -2.144670165e-05 | J115: -0.0007746579407 | K115: -0.01047402367 | L115: 0.0009787862034 | M115: 0.01394675762 | N115: 1.466417906e-05
A116: =IF('DF raw data'!A121="","",'DF raw data'!A121) -> -273 | B116: =IF('DF raw data'!B121="","",'DF raw data'!B121) -> -2.09021e-05 | C116: =IF('DF raw data'!C121="","",'DF raw data'!C121) -> 3.71599e-05 | D116: =IF('DF raw data'!D121="","",'DF raw data'!D121) -> -2.35259e-05 | F116: -2.097525735e-05 | G116: 3.728995965e-05 | H116: -2.360824065e-05 | J116: -0.0007851455694 | K116: -0.01086659646 | L116: 0.0009974311832 | M116: 0.01444547322 | N116: 1.546984033e-05
A117: =IF('DF raw data'!A122="","",'DF raw data'!A122) -> -272.5 | B117: =IF('DF raw data'!B122="","",'DF raw data'!B122) -> -4.39725e-05 | C117: =IF('DF raw data'!C122="","",'DF raw data'!C122) -> 3.7118e-05 | D117: =IF('DF raw data'!D122="","",'DF raw data'!D122) -> -1.7556e-05 | F117: -4.412640375e-05 | G117: 3.7247913e-05 | H117: -1.7617446e-05 | J117: -0.0008072087712 | K117: -0.01127020084 | L117: 0.00101605514 | M117: 0.01495350079 | N117: 1.631181735e-05
A118: =IF('DF raw data'!A123="","",'DF raw data'!A123) -> -272 | B118: =IF('DF raw data'!B123="","",'DF raw data'!B123) -> -3.35881e-05 | C118: =IF('DF raw data'!C123="","",'DF raw data'!C123) -> 3.75371e-05 | D118: =IF('DF raw data'!D123="","",'DF raw data'!D123) -> -2.56054e-05 | F118: -3.370565835e-05 | G118: 3.766847985e-05 | H118: -2.56950189e-05 | J118: -0.0008240616004 | K118: -0.01168223164 | L118: 0.00103488938 | M118: 0.01547094548 | N118: 1.718685412e-05
A119: =IF('DF raw data'!A124="","",'DF raw data'!A124) -> -271.5 | B119: =IF('DF raw data'!B124="","",'DF raw data'!B124) -> -2.93609e-05 | C119: =IF('DF raw data'!C124="","",'DF raw data'!C124) -> 3.98874e-05 | D119: =IF('DF raw data'!D124="","",'DF raw data'!D124) -> -2.10741e-05 | F119: -2.946366315e-05 | G119: 4.00270059e-05 | H119: -2.114785935e-05 | J119: -0.000838793432 | K119: -0.01210162836 | L119: 0.001054902883 | M119: 0.01599839692 | N119: 1.809505138e-05
A120: =IF('DF raw data'!A125="","",'DF raw data'!A125) -> -271 | B120: =IF('DF raw data'!B125="","",'DF raw data'!B125) -> -2.64831e-05 | C120: =IF('DF raw data'!C125="","",'DF raw data'!C125) -> 3.80015e-05 | D120: =IF('DF raw data'!D125="","",'DF raw data'!D125) -> -1.38142e-05 | F120: -2.657579085e-05 | G120: 3.813450525e-05 | H120: -1.38625497e-05 | J120: -0.0008520813274 | K120: -0.01252766902 | L120: 0.001073970135 | M120: 0.01653538198 | N120: 1.90347786e-05
A121: =IF('DF raw data'!A126="","",'DF raw data'!A126) -> -270.5 | B121: =IF('DF raw data'!B126="","",'DF raw data'!B126) -> -2.93567e-05 | C121: =IF('DF raw data'!C126="","",'DF raw data'!C126) -> 3.93643e-05 | D121: =IF('DF raw data'!D126="","",'DF raw data'!D126) -> -2.76069e-05 | F121: -2.945944845e-05 | G121: 3.950207505e-05 | H121: -2.770352415e-05 | J121: -0.0008668110516 | K121: -0.01296107455 | L121: 0.001093721173 | M121: 0.01708224257 | N121: 2.00085723e-05
A122: =IF('DF raw data'!A127="","",'DF raw data'!A127) -> -270 | B122: =IF('DF raw data'!B127="","",'DF raw data'!B127) -> -2.3724e-05 | C122: =IF('DF raw data'!C127="","",'DF raw data'!C127) -> 3.77625e-05 | D122: =IF('DF raw data'!D127="","",'DF raw data'!D127) -> -1.95138e-05 | F122: -2.3807034e-05 | G122: 3.789466875e-05 | H122: -1.95820983e-05 | J122: -0.0008787145686 | K122: -0.01340043183 | L122: 0.001112668507 | M122: 0.01763857682 | N122: 2.101365755e-05
A123: =IF('DF raw data'!A128="","",'DF raw data'!A128) -> -269.5 | B123: =IF('DF raw data'!B128="","",'DF raw data'!B128) -> -2.83372e-05 | C123: =IF('DF raw data'!C128="","",'DF raw data'!C128) -> 4.04418e-05 | D123: =IF('DF raw data'!D128="","",'DF raw data'!D128) -> -1.89173e-05 | F123: -2.84363802e-05 | G123: 4.05833463e-05 | H123: -1.898351055e-05 | J123: -0.0008929327587 | K123: -0.01384689821 | L123: 0.00113296018 | M123: 0.01820505692 | N123: 2.205412139e-05
A124: =IF('DF raw data'!A129="","",'DF raw data'!A129) -> -269 | B124: =IF('DF raw data'!B129="","",'DF raw data'!B129) -> -3.03928e-05 | C124: =IF('DF raw data'!C129="","",'DF raw data'!C129) -> 4.22954e-05 | D124: =IF('DF raw data'!D129="","",'DF raw data'!D129) -> -1.22193e-05 | F124: -3.04991748e-05 | G124: 4.24434339e-05 | H124: -1.226206755e-05 | J124: -0.0009081823461 | K124: -0.01430098938 | L124: 0.001154181897 | M124: 0.01878214786 | N124: 2.313258691e-05
A125: =IF('DF raw data'!A130="","",'DF raw data'!A130) -> -268.5 | B125: =IF('DF raw data'!B130="","",'DF raw data'!B130) -> -3.13527e-05 | C125: =IF('DF raw data'!C130="","",'DF raw data'!C130) -> 3.94064e-05 | D125: =IF('DF raw data'!D130="","",'DF raw data'!D130) -> -1.27736e-05 | F125: -3.146243445e-05 | G125: 3.95443224e-05 | H125: -1.28183076e-05 | J125: -0.0009239135633 | K125: -0.01476294617 | L125: 0.001173954058 | M125: 0.01936912489 | N125: 2.424847911e-05
A126: =IF('DF raw data'!A131="","",'DF raw data'!A131) -> -268 | B126: =IF('DF raw data'!B131="","",'DF raw data'!B131) -> -2.12254e-05 | C126: =IF('DF raw data'!C131="","",'DF raw data'!C131) -> 3.78231e-05 | D126: =IF('DF raw data'!D131="","",'DF raw data'!D131) -> -1.87527e-05 | F126: -2.12996889e-05 | G126: 3.795548085e-05 | H126: -1.881833445e-05 | J126: -0.0009345634078 | K126: -0.01523022787 | L126: 0.001192931799 | M126: 0.01996559079 | N126: 2.539672663e-05
A127: =IF('DF raw data'!A132="","",'DF raw data'!A132) -> -267.5 | B127: =IF('DF raw data'!B132="","",'DF raw data'!B132) -> -3.49324e-05 | C127: =IF('DF raw data'!C132="","",'DF raw data'!C132) -> 3.59504e-05 | D127: =IF('DF raw data'!D132="","",'DF raw data'!D132) -> -2.58327e-05 | F127: -3.50546634e-05 | G127: 3.60762264e-05 | H127: -2.592311445e-05 | J127: -0.0009520907395 | K127: -0.01570627324 | L127: 0.001210969912 | M127: 0.02057107575 | N127: 2.658318908e-05
A128: =IF('DF raw data'!A133="","",'DF raw data'!A133) -> -267 | B128: =IF('DF raw data'!B133="","",'DF raw data'!B133) -> -3.673e-05 | C128: =IF('DF raw data'!C133="","",'DF raw data'!C133) -> 3.74132e-05 | D128: =IF('DF raw data'!D133="","",'DF raw data'!D133) -> -2.24381e-05 | F128: =(1-$G$1*($B$49-$G$2))*B128 -> -3.6858555e-05 | G128: 3.75441462e-05 | H128: -2.251663335e-05 | J128: =F128*$G$3+J127 -> -0.000970520017 | K128: =J128*$G$3+K127 -> -0.01619153325 | L128: =G128*$G$3+L127 -> 0.001229741985 | M128: =L128*$G$3+M127 -> 0.02118594674 | N128: =(J128^2+L128^2)*$G$3+N127 -> 2.781027631e-05
A129: =IF('DF raw data'!A134="","",'DF raw data'!A134) -> -266.5 | B129: =IF('DF raw data'!B134="","",'DF raw data'!B134) -> -3.35236e-05 | C129: =IF('DF raw data'!C134="","",'DF raw data'!C134) -> 3.4182e-05 | D129: =IF('DF raw data'!D134="","",'DF raw data'!D134) -> -2.47755e-05 | F129: -3.36409326e-05 | G129: 3.4301637e-05 | H129: -2.486221425e-05 | J129: -0.0009873404833 | K129: -0.01668520349 | L129: 0.001246892804 | M129: 0.02180939314 | N129: 2.907506775e-05
A130: =IF('DF raw data'!A135="","",'DF raw data'!A135) -> -266 | B130: =IF('DF raw data'!B135="","",'DF raw data'!B135) -> -2.59619e-05 | C130: =IF('DF raw data'!C135="","",'DF raw data'!C135) -> 3.23526e-05 | D130: =IF('DF raw data'!D135="","",'DF raw data'!D135) -> -2.69043e-05 | F130: -2.605276665e-05 | G130: 3.24658341e-05 | H130: -2.699846505e-05 | J130: -0.001000366867 | K130: -0.01718538692 | L130: 0.001263125721 | M130: 0.022440956 | N130: 3.037317798e-05
A131: =IF('DF raw data'!A136="","",'DF raw data'!A136) -> -265.5 | B131: =IF('DF raw data'!B136="","",'DF raw data'!B136) -> -2.83333e-05 | C131: =IF('DF raw data'!C136="","",'DF raw data'!C136) -> 3.55933e-05 | D131: =IF('DF raw data'!D136="","",'DF raw data'!D136) -> -2.50877e-05 | F131: -2.843246655e-05 | G131: 3.571787655e-05 | H131: -2.517550695e-05 | J131: -0.0010145831 | K131: -0.01769267847 | L131: 0.001280984659 | M131: 0.02308144833 | N131: 3.170832826e-05
A132: =IF('DF raw data'!A137="","",'DF raw data'!A137) -> -265 | B132: =IF('DF raw data'!B137="","",'DF raw data'!B137) -> -2.609e-05 | C132: =IF('DF raw data'!C137="","",'DF raw data'!C137) -> 3.78723e-05 | D132: =IF('DF raw data'!D137="","",'DF raw data'!D137) -> -2.67963e-05 | F132: -2.6181315e-05 | G132: 3.800485305e-05 | H132: -2.689008705e-05 | J132: -0.001027673757 | K132: -0.01820651535 | L132: 0.001299987085 | M132: 0.02373144188 | N132: 3.308136815e-05
A133: =IF('DF raw data'!A138="","",'DF raw data'!A138) -> -264.5 | B133: =IF('DF raw data'!B138="","",'DF raw data'!B138) -> -2.8465e-05 | C133: =IF('DF raw data'!C138="","",'DF raw data'!C138) -> 4.21294e-05 | D133: =IF('DF raw data'!D138="","",'DF raw data'!D138) -> -1.9844e-05 | F133: -2.85646275e-05 | G133: 4.22768529e-05 | H133: -1.9913454e-05 | J133: -0.001041956071 | K133: -0.01872749339 | L133: 0.001321125512 | M133: 0.02439200463 | N133: 3.449689069e-05
A134: =IF('DF raw data'!A139="","",'DF raw data'!A139) -> -264 | B134: =IF('DF raw data'!B139="","",'DF raw data'!B139) -> -3.85196e-05 | C134: =IF('DF raw data'!C139="","",'DF raw data'!C139) -> 3.74842e-05 | D134: =IF('DF raw data'!D139="","",'DF raw data'!D139) -> -2.89558e-05 | F134: -3.86544186e-05 | G134: 3.76153947e-05 | H134: -2.90571453e-05 | J134: -0.00106128328 | K134: -0.01925813503 | L134: 0.001339933209 | M134: 0.02506197124 | N134: 3.595776229e-05
A135: =IF('DF raw data'!A140="","",'DF raw data'!A140) -> -263.5 | B135: =IF('DF raw data'!B140="","",'DF raw data'!B140) -> -2.9044e-05 | C135: =IF('DF raw data'!C140="","",'DF raw data'!C140) -> 3.52406e-05 | D135: =IF('DF raw data'!D140="","",'DF raw data'!D140) -> -1.60582e-05 | F135: -2.9145654e-05 | G135: 3.53639421e-05 | H135: -1.61144037e-05 | J135: -0.001075856107 | K135: -0.01979606308 | L135: 0.00135761518 | M135: 0.02574077883 | N135: 3.745805496e-05
A136: =IF('DF raw data'!A141="","",'DF raw data'!A141) -> -263 | B136: =IF('DF raw data'!B141="","",'DF raw data'!B141) -> -4.03176e-05 | C136: =IF('DF raw data'!C141="","",'DF raw data'!C141) -> 2.70386e-05 | D136: =IF('DF raw data'!D141="","",'DF raw data'!D141) -> -2.2975e-05 | F136: -4.04587116e-05 | G136: 2.71332351e-05 | H136: -2.30554125e-05 | J136: -0.001096085463 | K136: -0.02034410581 | L136: 0.001371181798 | M136: 0.02642636973 | N136: 3.899882639e-05
A137: =IF('DF raw data'!A142="","",'DF raw data'!A142) -> -262.5 | B137: =IF('DF raw data'!B142="","",'DF raw data'!B142) -> -3.71186e-05 | C137: =IF('DF raw data'!C142="","",'DF raw data'!C142) -> 2.50269e-05 | D137: =IF('DF raw data'!D142="","",'DF raw data'!D142) -> -1.50052e-05 | F137: -3.72485151e-05 | G137: 2.511449415e-05 | H137: -1.50577182e-05 | J137: -0.001114709721 | K137: -0.02090146067 | L137: 0.001383739045 | M137: 0.02711823925 | N137: 4.057748215e-05
A138: =IF('DF raw data'!A143="","",'DF raw data'!A143) -> -262 | B138: =IF('DF raw data'!B143="","",'DF raw data'!B143) -> -2.93668e-05 | C138: =IF('DF raw data'!C143="","",'DF raw data'!C143) -> 3.315e-05 | D138: =IF('DF raw data'!D143="","",'DF raw data'!D143) -> -1.30185e-05 | F138: -2.94695838e-05 | G138: 3.3266025e-05 | H138: -1.306406475e-05 | J138: -0.001129444513 | K138: -0.02146618293 | L138: 0.001400372057 | M138: 0.02781842528 | N138: 4.219582555e-05
A139: =IF('DF raw data'!A144="","",'DF raw data'!A144) -> -261.5 | B139: =IF('DF raw data'!B144="","",'DF raw data'!B144) -> -2.91094e-05 | C139: =IF('DF raw data'!C144="","",'DF raw data'!C144) -> 2.83234e-05 | D139: =IF('DF raw data'!D144="","",'DF raw data'!D144) -> -1.44415e-05 | F139: -2.92112829e-05 | G139: 2.84225319e-05 | H139: -1.449204525e-05 | J139: -0.001144050154 | K139: -0.02203820801 | L139: 0.001414583323 | M139: 0.02852571694 | N139: 4.385077392e-05
A140: =IF('DF raw data'!A145="","",'DF raw data'!A145) -> -261 | B140: =IF('DF raw data'!B145="","",'DF raw data'!B145) -> -3.74371e-05 | C140: =IF('DF raw data'!C145="","",'DF raw data'!C145) -> 1.90189e-05 | D140: =IF('DF raw data'!D145="","",'DF raw data'!D145) -> -1.80862e-05 | F140: -3.756812985e-05 | G140: 1.908546615e-05 | H140: -1.81495017e-05 | J140: -0.001162834219 | K140: -0.02261962512 | L140: 0.001424126057 | M140: 0.02923777997 | N140: 4.554093314e-05
A141: =IF('DF raw data'!A146="","",'DF raw data'!A146) -> -260.5 | B141: =IF('DF raw data'!B146="","",'DF raw data'!B146) -> -3.58304e-05 | C141: =IF('DF raw data'!C146="","",'DF raw data'!C146) -> 2.41628e-05 | D141: =IF('DF raw data'!D146="","",'DF raw data'!D146) -> -2.5085e-05 | F141: -3.59558064e-05 | G141: 2.42473698e-05 | H141: -2.51727975e-05 | J141: -0.001180812122 | K141: -0.02321003118 | L141: 0.001436249741 | M141: 0.02995590484 | N141: 4.726949843e-05
A142: =IF('DF raw data'!A147="","",'DF raw data'!A147) -> -260 | B142: =IF('DF raw data'!B147="","",'DF raw data'!B147) -> -3.11608e-05 | C142: =IF('DF raw data'!C147="","",'DF raw data'!C147) -> 2.96571e-05 | D142: =IF('DF raw data'!D147="","",'DF raw data'!D147) -> -1.31332e-05 | F142: -3.12698628e-05 | G142: 2.976089985e-05 | H142: -1.31791662e-05 | J142: -0.001196447054 | K142: -0.0238082547 | L142: 0.001451130191 | M142: 0.03068146993 | N142: 4.903813062e-05
A143: =IF('DF raw data'!A148="","",'DF raw data'!A148) -> -259.5 | B143: =IF('DF raw data'!B148="","",'DF raw data'!B148) -> -2.16718e-05 | C143: =IF('DF raw data'!C148="","",'DF raw data'!C148) -> 2.83287e-05 | D143: =IF('DF raw data'!D148="","",'DF raw data'!D148) -> -2.1675e-05 | F143: -2.17476513e-05 | G143: 2.842785045e-05 | H143: -2.17508625e-05 | J143: -0.001207320879 | K143: -0.02441191514 | L143: 0.001465344117 | M143: 0.03141414199 | N143: 5.084055917e-05
A144: =IF('DF raw data'!A149="","",'DF raw data'!A149) -> -259 | B144: =IF('DF raw data'!B149="","",'DF raw data'!B149) -> -3.17953e-05 | C144: =IF('DF raw data'!C149="","",'DF raw data'!C149) -> 2.7516e-05 | D144: =IF('DF raw data'!D149="","",'DF raw data'!D149) -> -2.27222e-05 | F144: -3.190658355e-05 | G144: 2.7612306e-05 | H144: -2.28017277e-05 | J144: -0.001223274171 | K144: -0.02502355223 | L144: 0.00147915027 | M144: 0.03215371713 | N144: 5.268270178e-05
A145: =IF('DF raw data'!A150="","",'DF raw data'!A150) -> -258.5 | B145: =IF('DF raw data'!B150="","",'DF raw data'!B150) -> -3.01943e-05 | C145: =IF('DF raw data'!C150="","",'DF raw data'!C150) -> 2.30288e-05 | D145: =IF('DF raw data'!D150="","",'DF raw data'!D150) -> -2.13456e-05 | F145: -3.029998005e-05 | G145: 2.31094008e-05 | H145: -2.14203096e-05 | J145: -0.001238424161 | K145: -0.02564276431 | L145: 0.00149070497 | M145: 0.03289906961 | N145: 5.456064963e-05
A146: =IF('DF raw data'!A151="","",'DF raw data'!A151) -> -258 | B146: =IF('DF raw data'!B151="","",'DF raw data'!B151) -> -2.8209e-05 | C146: =IF('DF raw data'!C151="","",'DF raw data'!C151) -> 3.12886e-05 | D146: =IF('DF raw data'!D151="","",'DF raw data'!D151) -> -1.98659e-05 | F146: -2.83077315e-05 | G146: 3.13981101e-05 | H146: -1.993543065e-05 | J146: -0.001252578027 | K146: -0.02626905332 | L146: 0.001506404025 | M146: 0.03365227162 | N146: 5.647975203e-05
A147: =IF('DF raw data'!A152="","",'DF raw data'!A152) -> -257.5 | B147: =IF('DF raw data'!B152="","",'DF raw data'!B152) -> -3.02621e-05 | C147: =IF('DF raw data'!C152="","",'DF raw data'!C152) -> 3.19154e-05 | D147: =IF('DF raw data'!D152="","",'DF raw data'!D152) -> -1.54518e-05 | F147: -3.036801735e-05 | G147: 3.20271039e-05 | H147: -1.55058813e-05 | J147: -0.001267762036 | K147: -0.02690293434 | L147: 0.001522417577 | M147: 0.03441348041 | N147: 5.844223996e-05
A148: =IF('DF raw data'!A153="","",'DF raw data'!A153) -> -257 | B148: =IF('DF raw data'!B153="","",'DF raw data'!B153) -> -3.66689e-05 | C148: =IF('DF raw data'!C153="","",'DF raw data'!C153) -> 3.15819e-05 | D148: =IF('DF raw data'!D153="","",'DF raw data'!D153) -> -1.71739e-05 | F148: -3.679724115e-05 | G148: 3.169243665e-05 | H148: -1.723400865e-05 | J148: -0.001286160656 | K148: -0.02754601467 | L148: 0.001538263795 | M148: 0.03518261231 | N148: 6.045247233e-05
A149: =IF('DF raw data'!A154="","",'DF raw data'!A154) -> -256.5 | B149: =IF('DF raw data'!B154="","",'DF raw data'!B154) -> -3.60898e-05 | C149: =IF('DF raw data'!C154="","",'DF raw data'!C154) -> 3.21528e-05 | D149: =IF('DF raw data'!D154="","",'DF raw data'!D154) -> -2.03346e-05 | F149: -3.62161143e-05 | G149: 3.22653348e-05 | H149: -2.04057711e-05 | J149: -0.001304268713 | K149: -0.02819814903 | L149: 0.001554396463 | M149: 0.03595981054 | N149: 6.251110495e-05
A150: =IF('DF raw data'!A155="","",'DF raw data'!A155) -> -256 | B150: =IF('DF raw data'!B155="","",'DF raw data'!B155) -> -2.51982e-05 | C150: =IF('DF raw data'!C155="","",'DF raw data'!C155) -> 2.6284e-05 | D150: =IF('DF raw data'!D155="","",'DF raw data'!D155) -> -1.86413e-05 | F150: -2.52863937e-05 | G150: 2.6375994e-05 | H150: -1.870654455e-05 | J150: -0.00131691191 | K150: -0.02885660498 | L150: 0.00156758446 | M150: 0.03674360277 | N150: 6.460689396e-05
A151: =IF('DF raw data'!A156="","",'DF raw data'!A156) -> -255.5 | B151: =IF('DF raw data'!B156="","",'DF raw data'!B156) -> -3.26284e-05 | C151: =IF('DF raw data'!C156="","",'DF raw data'!C156) -> 2.41291e-05 | D151: =IF('DF raw data'!D156="","",'DF raw data'!D156) -> -2.24959e-05 | F151: -3.27425994e-05 | G151: 2.421355185e-05 | H151: -2.257463565e-05 | J151: -0.00133328321 | K151: -0.02952324659 | L151: 0.001579691236 | M151: 0.03753344839 | N151: 6.674342822e-05
A152: =IF('DF raw data'!A157="","",'DF raw data'!A157) -> -255 | B152: =IF('DF raw data'!B157="","",'DF raw data'!B157) -> -2.72547e-05 | C152: =IF('DF raw data'!C157="","",'DF raw data'!C157) -> 2.73139e-05 | D152: =IF('DF raw data'!D157="","",'DF raw data'!D157) -> -9.13667e-06 | F152: -2.735009145e-05 | G152: 2.740949865e-05 | H152: -9.168648345e-06 | J152: -0.001346958256 | K152: -0.03019672571 | L152: 0.001593395985 | M152: 0.03833014638 | N152: 6.892003187e-05
A153: =IF('DF raw data'!A158="","",'DF raw data'!A158) -> -254.5 | B153: =IF('DF raw data'!B158="","",'DF raw data'!B158) -> -1.96262e-05 | C153: =IF('DF raw data'!C158="","",'DF raw data'!C158) -> 4.08619e-05 | D153: =IF('DF raw data'!D158="","",'DF raw data'!D158) -> -1.43617e-05 | F153: -1.96948917e-05 | G153: 4.100491665e-05 | H153: -1.441196595e-05 | J153: -0.001356805701 | K153: -0.03087512856 | L153: 0.001613898443 | M153: 0.0391370956 | N153: 7.114282682e-05
A154: =IF('DF raw data'!A159="","",'DF raw data'!A159) -> -254 | B154: =IF('DF raw data'!B159="","",'DF raw data'!B159) -> -3.55181e-05 | C154: =IF('DF raw data'!C159="","",'DF raw data'!C159) -> 3.64867e-05 | D154: =IF('DF raw data'!D159="","",'DF raw data'!D159) -> -1.32654e-05 | F154: -3.564241335e-05 | G154: 3.661440345e-05 | H154: -1.33118289e-05 | J154: -0.001374626908 | K154: -0.03156244202 | L154: 0.001632205645 | M154: 0.03995319842 | N154: 7.341967402e-05
A155: =IF('DF raw data'!A160="","",'DF raw data'!A160) -> -253.5 | B155: =IF('DF raw data'!B160="","",'DF raw data'!B160) -> -3.44235e-05 | C155: =IF('DF raw data'!C160="","",'DF raw data'!C160) -> 2.83669e-05 | D155: =IF('DF raw data'!D160="","",'DF raw data'!D160) -> -2.09049e-05 | F155: -3.454398225e-05 | G155: 2.846618415e-05 | H155: -2.097806715e-05 | J155: -0.001391898899 | K155: -0.03225839147 | L155: 0.001646438737 | M155: 0.04077641779 | N155: 7.574374555e-05
A156: =IF('DF raw data'!A161="","",'DF raw data'!A161) -> -253 | B156: =IF('DF raw data'!B161="","",'DF raw data'!B161) -> -2.90393e-05 | C156: =IF('DF raw data'!C161="","",'DF raw data'!C161) -> 2.74501e-05 | D156: =IF('DF raw data'!D161="","",'DF raw data'!D161) -> -2.39212e-05 | F156: -2.914093755e-05 | G156: 2.754617535e-05 | H156: -2.40049242e-05 | J156: -0.001406469368 | K156: -0.03296162615 | L156: 0.001660211825 | M156: 0.04160652371 | N156: 7.811097524e-05
A157: =IF('DF raw data'!A162="","",'DF raw data'!A162) -> -252.5 | B157: =IF('DF raw data'!B162="","",'DF raw data'!B162) -> -1.99404e-05 | C157: =IF('DF raw data'!C162="","",'DF raw data'!C162) -> 4.16641e-05 | D157: =IF('DF raw data'!D162="","",'DF raw data'!D162) -> -2.37296e-05 | F157: -2.00101914e-05 | G157: 4.180992435e-05 | H157: -2.38126536e-05 | J157: -0.001416474464 | K157: -0.03366986338 | L157: 0.001681116787 | M157: 0.0424470821 | N157: 8.052725202e-05
A158: =IF('DF raw data'!A163="","",'DF raw data'!A163) -> -252 | B158: =IF('DF raw data'!B163="","",'DF raw data'!B163) -> -3.15342e-05 | C158: =IF('DF raw data'!C163="","",'DF raw data'!C163) -> 3.62028e-05 | D158: =IF('DF raw data'!D163="","",'DF raw data'!D163) -> -3.01923e-05 | F158: -3.16445697e-05 | G158: 3.63295098e-05 | H158: -3.029797305e-05 | J158: -0.001432296749 | K158: -0.03438601176 | L158: 0.001699281542 | M158: 0.04329672287 | N158: 8.299676789e-05
A159: =IF('DF raw data'!A164="","",'DF raw data'!A164) -> -251.5 | B159: =IF('DF raw data'!B164="","",'DF raw data'!B164) -> -4.14693e-05 | C159: =IF('DF raw data'!C164="","",'DF raw data'!C164) -> 3.62373e-05 | D159: =IF('DF raw data'!D164="","",'DF raw data'!D164) -> -2.5152e-05 | F159: -4.161444255e-05 | G159: 3.636413055e-05 | H159: -2.5240032e-05 | J159: -0.00145310397 | K159: -0.03511256374 | L159: 0.001717463607 | M159: 0.04415545467 | N159: 8.552736408e-05
A160: =IF('DF raw data'!A165="","",'DF raw data'!A165) -> -251 | B160: =IF('DF raw data'!B165="","",'DF raw data'!B165) -> -4.42313e-05 | C160: =IF('DF raw data'!C165="","",'DF raw data'!C165) -> 3.35935e-05 | D160: =IF('DF raw data'!D165="","",'DF raw data'!D165) -> -1.49549e-05 | F160: -4.438610955e-05 | G160: 3.371107725e-05 | H160: -1.500724215e-05 | J160: -0.001475297025 | K160: -0.03585021225 | L160: 0.001734319146 | M160: 0.04502261425 | N160: 8.811954619e-05
A161: =IF('DF raw data'!A166="","",'DF raw data'!A166) -> -250.5 | B161: =IF('DF raw data'!B166="","",'DF raw data'!B166) -> -3.21843e-05 | C161: =IF('DF raw data'!C166="","",'DF raw data'!C166) -> 2.96234e-05 | D161: =IF('DF raw data'!D166="","",'DF raw data'!D166) -> -1.56355e-05 | F161: -3.229694505e-05 | G161: 2.97270819e-05 | H161: -1.569022425e-05 | J161: -0.001491445497 | K161: -0.036595935 | L161: 0.001749182687 | M161: 0.04589720559 | N161: 9.076157106e-05
A162: =IF('DF raw data'!A167="","",'DF raw data'!A167) -> -250 | B162: =IF('DF raw data'!B167="","",'DF raw data'!B167) -> -2.98781e-05 | C162: =IF('DF raw data'!C167="","",'DF raw data'!C167) -> 3.42711e-05 | D162: =IF('DF raw data'!D167="","",'DF raw data'!D167) -> -1.49354e-05 | F162: -2.998267335e-05 | G162: 3.439104885e-05 | H162: -1.49876739e-05 | J162: -0.001506436834 | K162: -0.03734915342 | L162: 0.001766378211 | M162: 0.0467803947 | N162: 9.345629302e-05
A163: =IF('DF raw data'!A168="","",'DF raw data'!A168) -> -249.5 | B163: =IF('DF raw data'!B168="","",'DF raw data'!B168) -> -1.92372e-05 | C163: =IF('DF raw data'!C168="","",'DF raw data'!C168) -> 3.08974e-05 | D163: =IF('DF raw data'!D168="","",'DF raw data'!D168) -> -2.11109e-05 | F163: -1.93045302e-05 | G163: 3.10055409e-05 | H163: -2.118478815e-05 | J163: -0.001516089099 | K163: -0.03810719797 | L163: 0.001781880982 | M163: 0.04767133519 | N163: 9.619310601e-05
A164: =IF('DF raw data'!A169="","",'DF raw data'!A169) -> -249 | B164: =IF('DF raw data'!B169="","",'DF raw data'!B169) -> -3.73082e-05 | C164: =IF('DF raw data'!C169="","",'DF raw data'!C169) -> 2.49758e-05 | D164: =IF('DF raw data'!D169="","",'DF raw data'!D169) -> -1.91982e-05 | F164: -3.74387787e-05 | G164: 2.50632153e-05 | H164: -1.92653937e-05 | J164: -0.001534808488 | K164: -0.03887460221 | L164: 0.001794412589 | M164: 0.04856854148 | N164: 9.898088283e-05
A165: =IF('DF raw data'!A170="","",'DF raw data'!A170) -> -248.5 | B165: =IF('DF raw data'!B170="","",'DF raw data'!B170) -> -3.28873e-05 | C165: =IF('DF raw data'!C170="","",'DF raw data'!C170) -> 2.2585e-05 | D165: =IF('DF raw data'!D170="","",'DF raw data'!D170) -> -1.8711e-05 | F165: -3.300240555e-05 | G165: 2.26640475e-05 | H165: -1.87764885e-05 | J165: -0.001551309691 | K165: -0.03965025706 | L165: 0.001805744613 | M165: 0.04947141379 | N165: 0.0001018145205
A166: =IF('DF raw data'!A171="","",'DF raw data'!A171) -> -248 | B166: =IF('DF raw data'!B171="","",'DF raw data'!B171) -> -1.82705e-05 | C166: =IF('DF raw data'!C171="","",'DF raw data'!C171) -> 2.52157e-05 | D166: =IF('DF raw data'!D171="","",'DF raw data'!D171) -> -2.9878e-05 | F166: -1.833444675e-05 | G166: 2.530395495e-05 | H166: -2.9982573e-05 | J166: -0.001560476914 | K166: -0.04043049552 | L166: 0.00181839659 | M166: 0.05038061208 | N166: 0.0001046853477
A167: =IF('DF raw data'!A172="","",'DF raw data'!A172) -> -247.5 | B167: =IF('DF raw data'!B172="","",'DF raw data'!B172) -> -2.58966e-05 | C167: =IF('DF raw data'!C172="","",'DF raw data'!C172) -> 3.68724e-05 | D167: =IF('DF raw data'!D172="","",'DF raw data'!D172) -> -2.83218e-05 | F167: -2.59872381e-05 | G167: 3.70014534e-05 | H167: -2.84209263e-05 | J167: -0.001573470533 | K167: -0.04121723078 | L167: 0.001836897317 | M167: 0.05129906074 | N167: 0.0001076103483
A168: =IF('DF raw data'!A173="","",'DF raw data'!A173) -> -247 | B168: =IF('DF raw data'!B173="","",'DF raw data'!B173) -> -3.27543e-05 | C168: =IF('DF raw data'!C173="","",'DF raw data'!C173) -> 3.13685e-05 | D168: =IF('DF raw data'!D173="","",'DF raw data'!D173) -> -2.61964e-05 | F168: -3.286894005e-05 | G168: 3.147828975e-05 | H168: -2.62880874e-05 | J168: -0.001589905003 | K168: -0.04201218328 | L168: 0.001852636462 | M168: 0.05222537897 | N168: 0.0001105903782
A169: =IF('DF raw data'!A174="","",'DF raw data'!A174) -> -246.5 | B169: =IF('DF raw data'!B174="","",'DF raw data'!B174) -> -4.08249e-05 | C169: =IF('DF raw data'!C174="","",'DF raw data'!C174) -> 3.42299e-05 | D169: =IF('DF raw data'!D174="","",'DF raw data'!D174) -> -3.09162e-05 | F169: -4.096778715e-05 | G169: 3.434970465e-05 | H169: -3.10244067e-05 | J169: -0.001610388897 | K169: -0.04281737773 | L169: 0.001869811314 | M169: 0.05316028463 | N169: 0.0001136351516
A170: =IF('DF raw data'!A175="","",'DF raw data'!A175) -> -246 | B170: =IF('DF raw data'!B175="","",'DF raw data'!B175) -> -2.45646e-05 | C170: =IF('DF raw data'!C175="","",'DF raw data'!C175) -> 2.90847e-05 | D170: =IF('DF raw data'!D175="","",'DF raw data'!D175) -> -7.5204e-06 | F170: -2.46505761e-05 | G170: 2.918649645e-05 | H170: -7.5467214e-06 | J170: -0.001622714185 | K170: -0.04362873483 | L170: 0.001884404563 | M170: 0.05410248691 | N170: 0.0001167272425
A171: =IF('DF raw data'!A176="","",'DF raw data'!A176) -> -245.5 | B171: =IF('DF raw data'!B176="","",'DF raw data'!B176) -> -2.50042e-05 | C171: =IF('DF raw data'!C176="","",'DF raw data'!C176) -> 2.12434e-05 | D171: =IF('DF raw data'!D176="","",'DF raw data'!D176) -> -2.10614e-05 | F171: -2.50917147e-05 | G171: 2.13177519e-05 | H171: -2.11351149e-05 | J171: -0.001635260042 | K171: -0.04444636485 | L171: 0.001895063438 | M171: 0.05505001863 | N171: 0.000119859913
A172: =IF('DF raw data'!A177="","",'DF raw data'!A177) -> -245 | B172: =IF('DF raw data'!B177="","",'DF raw data'!B177) -> -2.37177e-05 | C172: =IF('DF raw data'!C177="","",'DF raw data'!C177) -> 2.22618e-05 | D172: =IF('DF raw data'!D177="","",'DF raw data'!D177) -> -2.87775e-05 | F172: -2.380071195e-05 | G172: 2.23397163e-05 | H172: -2.887822125e-05 | J172: -0.001647160398 | K172: -0.04526994505 | L172: 0.001906233297 | M172: 0.05600313528 | N172: 0.0001230333443
A173: =IF('DF raw data'!A178="","",'DF raw data'!A178) -> -244.5 | B173: =IF('DF raw data'!B178="","",'DF raw data'!B178) -> -2.84031e-05 | C173: =IF('DF raw data'!C178="","",'DF raw data'!C178) -> 2.69855e-05 | D173: =IF('DF raw data'!D178="","",'DF raw data'!D178) -> -1.67409e-05 | F173: -2.850251085e-05 | G173: 2.707994925e-05 | H173: -1.679949315e-05 | J173: -0.001661411654 | K173: -0.04610065087 | L173: 0.001919773271 | M173: 0.05696302191 | N173: 0.0001262562534
A174: =IF('DF raw data'!A179="","",'DF raw data'!A179) -> -244 | B174: =IF('DF raw data'!B179="","",'DF raw data'!B179) -> -2.5771e-05 | C174: =IF('DF raw data'!C179="","",'DF raw data'!C179) -> 3.6488e-05 | D174: =IF('DF raw data'!D179="","",'DF raw data'!D179) -> -2.43185e-05 | F174: -2.58611985e-05 | G174: 3.6615708e-05 | H174: -2.440361475e-05 | J174: -0.001674342253 | K174: -0.046937822 | L174: 0.001938081125 | M174: 0.05793206248 | N174: 0.0001295360436
A175: =IF('DF raw data'!A180="","",'DF raw data'!A180) -> -243.5 | B175: =IF('DF raw data'!B180="","",'DF raw data'!B180) -> -2.74448e-05 | C175: =IF('DF raw data'!C180="","",'DF raw data'!C180) -> 3.13554e-05 | D175: =IF('DF raw data'!D180="","",'DF raw data'!D180) -> -1.26551e-05 | F175: -2.75408568e-05 | G175: 3.14651439e-05 | H175: -1.269939285e-05 | J175: -0.001688112681 | K175: -0.04778187834 | L175: 0.001953813697 | M175: 0.05890896932 | N175: 0.0001328695998
A176: =IF('DF raw data'!A181="","",'DF raw data'!A181) -> -243 | B176: =IF('DF raw data'!B181="","",'DF raw data'!B181) -> -3.69848e-05 | C176: =IF('DF raw data'!C181="","",'DF raw data'!C181) -> 2.83756e-05 | D176: =IF('DF raw data'!D181="","",'DF raw data'!D181) -> -2.42166e-05 | F176: -3.71142468e-05 | G176: 2.84749146e-05 | H176: -2.43013581e-05 | J176: -0.001706669805 | K176: -0.04863521324 | L176: 0.001968051154 | M176: 0.0598929949 | N176: 0.0001362625734
A177: =IF('DF raw data'!A182="","",'DF raw data'!A182) -> -242.5 | B177: =IF('DF raw data'!B182="","",'DF raw data'!B182) -> -2.91079e-05 | C177: =IF('DF raw data'!C182="","",'DF raw data'!C182) -> 2.61489e-05 | D177: =IF('DF raw data'!D182="","",'DF raw data'!D182) -> -1.70885e-05 | F177: -2.920977765e-05 | G177: 2.624042115e-05 | H177: -1.714830975e-05 | J177: -0.001721274694 | K177: -0.04949585059 | L177: 0.001981171365 | M177: 0.06088358058 | N177: 0.0001397064867
A178: =IF('DF raw data'!A183="","",'DF raw data'!A183) -> -242 | B178: =IF('DF raw data'!B183="","",'DF raw data'!B183) -> -3.32058e-05 | C178: =IF('DF raw data'!C183="","",'DF raw data'!C183) -> 2.43793e-05 | D178: =IF('DF raw data'!D183="","",'DF raw data'!D183) -> -2.17885e-05 | F178: -3.33220203e-05 | G178: 2.446462755e-05 | H178: -2.186475975e-05 | J178: -0.001737935704 | K178: -0.05036481844 | L178: 0.001993403679 | M178: 0.06188028242 | N178: 0.000143203526
A179: =IF('DF raw data'!A184="","",'DF raw data'!A184) -> -241.5 | B179: =IF('DF raw data'!B184="","",'DF raw data'!B184) -> -2.35936e-05 | C179: =IF('DF raw data'!C184="","",'DF raw data'!C184) -> 3.05561e-05 | D179: =IF('DF raw data'!D184="","",'DF raw data'!D184) -> -2.26205e-05 | F179: -2.36761776e-05 | G179: 3.066304635e-05 | H179: -2.269967175e-05 | J179: -0.001749773793 | K179: -0.05123970534 | L179: 0.002008735202 | M179: 0.06288465002 | N179: 0.0001467518887
A180: =IF('DF raw data'!A185="","",'DF raw data'!A185) -> -241 | B180: =IF('DF raw data'!B185="","",'DF raw data'!B185) -> -3.26947e-05 | C180: =IF('DF raw data'!C185="","",'DF raw data'!C185) -> 2.17925e-05 | D180: =IF('DF raw data'!D185="","",'DF raw data'!D185) -> -1.91536e-05 | F180: -3.280913145e-05 | G180: 2.186877375e-05 | H180: -1.92206376e-05 | J180: -0.001766178358 | K180: -0.05212279452 | L180: 0.002019669589 | M180: 0.06389448482 | N180: 0.0001503511144
A181: =IF('DF raw data'!A186="","",'DF raw data'!A186) -> -240.5 | B181: =IF('DF raw data'!B186="","",'DF raw data'!B186) -> -3.53855e-05 | C181: =IF('DF raw data'!C186="","",'DF raw data'!C186) -> 2.65818e-05 | D181: =IF('DF raw data'!D186="","",'DF raw data'!D186) -> -2.00666e-05 | F181: -3.550934925e-05 | G181: 2.66748363e-05 | H181: -2.01368331e-05 | J181: -0.001783933033 | K181: -0.05301476103 | L181: 0.002033007007 | M181: 0.06491098832 | N181: 0.0001540088816
A182: =IF('DF raw data'!A187="","",'DF raw data'!A187) -> -240 | B182: =IF('DF raw data'!B187="","",'DF raw data'!B187) -> -2.70578e-05 | C182: =IF('DF raw data'!C187="","",'DF raw data'!C187) -> 2.65983e-05 | D182: =IF('DF raw data'!D187="","",'DF raw data'!D187) -> -1.64631e-05 | F182: -2.71525023e-05 | G182: 2.669139405e-05 | H182: -1.652072085e-05 | J182: -0.001797509284 | K182: -0.05391351568 | L182: 0.002046352704 | M182: 0.06593416467 | N182: 0.0001577181811
A183: =IF('DF raw data'!A188="","",'DF raw data'!A188) -> -239.5 | B183: =IF('DF raw data'!B188="","",'DF raw data'!B188) -> -3.75614e-05 | C183: =IF('DF raw data'!C188="","",'DF raw data'!C188) -> 2.40911e-05 | D183: =IF('DF raw data'!D188="","",'DF raw data'!D188) -> -2.40922e-05 | F183: -3.76928649e-05 | G183: 2.417541885e-05 | H183: -2.41765227e-05 | J183: -0.001816355717 | K183: -0.05482169353 | L183: 0.002058440413 | M183: 0.06696338488 | N183: 0.0001614863437
A184: =IF('DF raw data'!A189="","",'DF raw data'!A189) -> -239 | B184: =IF('DF raw data'!B189="","",'DF raw data'!B189) -> -2.59649e-05 | C184: =IF('DF raw data'!C189="","",'DF raw data'!C189) -> 3.35399e-05 | D184: =IF('DF raw data'!D189="","",'DF raw data'!D189) -> -2.1971e-05 | F184: -2.605577715e-05 | G184: 3.365728965e-05 | H184: -2.20478985e-05 | J184: -0.001829383605 | K184: -0.05573638534 | L184: 0.002075269058 | M184: 0.06800101941 | N184: 0.0001653130367
A185: =IF('DF raw data'!A190="","",'DF raw data'!A190) -> -238.5 | B185: =IF('DF raw data'!B190="","",'DF raw data'!B190) -> -3.23126e-05 | C185: =IF('DF raw data'!C190="","",'DF raw data'!C190) -> 4.15483e-05 | D185: =IF('DF raw data'!D190="","",'DF raw data'!D190) -> -1.5485e-05 | F185: -3.24256941e-05 | G185: 4.169371905e-05 | H185: -1.55391975e-05 | J185: -0.001845596452 | K185: -0.05665918356 | L185: 0.002096115918 | M185: 0.06904907737 | N185: 0.0001692130008
A186: =IF('DF raw data'!A191="","",'DF raw data'!A191) -> -238 | B186: =IF('DF raw data'!B191="","",'DF raw data'!B191) -> -3.27658e-05 | C186: =IF('DF raw data'!C191="","",'DF raw data'!C191) -> 2.88083e-05 | D186: =IF('DF raw data'!D191="","",'DF raw data'!D191) -> -8.47861e-06 | F186: -3.28804803e-05 | G186: 2.890912905e-05 | H186: -8.508285135e-06 | J186: -0.001862036692 | K186: -0.05759020191 | L186: 0.002110570482 | M186: 0.07010436261 | N186: 0.000173173845
A187: =IF('DF raw data'!A192="","",'DF raw data'!A192) -> -237.5 | B187: =IF('DF raw data'!B192="","",'DF raw data'!B192) -> -3.67931e-05 | C187: =IF('DF raw data'!C192="","",'DF raw data'!C192) -> 2.55207e-05 | D187: =IF('DF raw data'!D192="","",'DF raw data'!D192) -> -2.32962e-05 | F187: -3.692187585e-05 | G187: 2.561002245e-05 | H187: -2.33777367e-05 | J187: -0.00188049763 | K187: -0.05853045072 | L187: 0.002123375494 | M187: 0.07116605036 | N187: 0.0001771963424
A188: =IF('DF raw data'!A193="","",'DF raw data'!A193) -> -237 | B188: =IF('DF raw data'!B193="","",'DF raw data'!B193) -> -2.68601e-05 | C188: =IF('DF raw data'!C193="","",'DF raw data'!C193) -> 3.46962e-05 | D188: =IF('DF raw data'!D193="","",'DF raw data'!D193) -> -2.47568e-05 | F188: -2.695411035e-05 | G188: 3.48176367e-05 | H188: -2.48434488e-05 | J188: -0.001893974685 | K188: -0.05947743807 | L188: 0.002140784312 | M188: 0.07223644251 | N188: 0.0001812813912
A189: =IF('DF raw data'!A194="","",'DF raw data'!A194) -> -236.5 | B189: =IF('DF raw data'!B194="","",'DF raw data'!B194) -> -2.9423e-05 | C189: =IF('DF raw data'!C194="","",'DF raw data'!C194) -> 3.0638e-05 | D189: =IF('DF raw data'!D194="","",'DF raw data'!D194) -> -2.50348e-05 | F189: -2.95259805e-05 | G189: 3.0745233e-05 | H189: -2.51224218e-05 | J189: -0.001908737676 | K189: -0.0604318069 | L189: 0.002156156928 | M189: 0.07331452098 | N189: 0.0001854275373
A190: =IF('DF raw data'!A195="","",'DF raw data'!A195) -> -236 | B190: =IF('DF raw data'!B195="","",'DF raw data'!B195) -> -3.5123e-05 | C190: =IF('DF raw data'!C195="","",'DF raw data'!C195) -> 3.16311e-05 | D190: =IF('DF raw data'!D195="","",'DF raw data'!D195) -> -2.96183e-05 | F190: -3.52459305e-05 | G190: 3.174180885e-05 | H190: -2.972196405e-05 | J190: -0.001926360641 | K190: -0.06139498723 | L190: 0.002172027833 | M190: 0.07440053489 | N190: 0.0001896418224
A191: =IF('DF raw data'!A196="","",'DF raw data'!A196) -> -235.5 | B191: =IF('DF raw data'!B196="","",'DF raw data'!B196) -> -2.21203e-05 | C191: =IF('DF raw data'!C196="","",'DF raw data'!C196) -> 2.92106e-05 | D191: =IF('DF raw data'!D196="","",'DF raw data'!D196) -> -2.17432e-05 | F191: -2.219772105e-05 | G191: 2.93128371e-05 | H191: -2.18193012e-05 | J191: -0.001937459501 | K191: -0.06236371698 | L191: 0.002186684251 | M191: 0.07549387702 | N191: 0.0001939094911
A192: =IF('DF raw data'!A197="","",'DF raw data'!A197) -> -235 | B192: =IF('DF raw data'!B197="","",'DF raw data'!B197) -> -2.66115e-05 | C192: =IF('DF raw data'!C197="","",'DF raw data'!C197) -> 2.25713e-05 | D192: =IF('DF raw data'!D197="","",'DF raw data'!D197) -> -1.29066e-05 | F192: =(1-$G$1*($B$49-$G$2))*B192 -> -2.670464025e-05 | G192: 2.265029955e-05 | H192: -1.29517731e-05 | J192: =F192*$G$3+J191 -> -0.001950811822 | K192: =J192*$G$3+K191 -> -0.06333912289 | L192: =G192*$G$3+L191 -> 0.002198009401 | M192: =L192*$G$3+M191 -> 0.07659288172 | N192: =(J192^2+L192^2)*$G$3+N191 -> 0.0001982279471
A193: =IF('DF raw data'!A198="","",'DF raw data'!A198) -> -234.5 | B193: =IF('DF raw data'!B198="","",'DF raw data'!B198) -> -1.97521e-05 | C193: =IF('DF raw data'!C198="","",'DF raw data'!C198) -> 2.29964e-05 | D193: =IF('DF raw data'!D198="","",'DF raw data'!D198) -> -1.79947e-05 | F193: -1.982123235e-05 | G193: 2.30768874e-05 | H193: -1.805768145e-05 | J193: -0.001960722438 | K193: -0.06431948411 | L193: 0.002209547845 | M193: 0.07769765564 | N193: 0.0002025912142
A194: =IF('DF raw data'!A199="","",'DF raw data'!A199) -> -234 | B194: =IF('DF raw data'!B199="","",'DF raw data'!B199) -> -2.29563e-05 | C194: =IF('DF raw data'!C199="","",'DF raw data'!C199) -> 2.96751e-05 | D194: =IF('DF raw data'!D199="","",'DF raw data'!D199) -> -1.71924e-05 | F194: -2.303664705e-05 | G194: 2.977896285e-05 | H194: -1.72525734e-05 | J194: -0.001972240761 | K194: -0.06530560449 | L194: 0.002224437326 | M194: 0.07880987431 | N194: 0.0002070101417
A195: =IF('DF raw data'!A200="","",'DF raw data'!A200) -> -233.5 | B195: =IF('DF raw data'!B200="","",'DF raw data'!B200) -> -2.3598e-05 | C195: =IF('DF raw data'!C200="","",'DF raw data'!C200) -> 3.06216e-05 | D195: =IF('DF raw data'!D200="","",'DF raw data'!D200) -> -1.58946e-05 | F195: -2.3680593e-05 | G195: 3.07287756e-05 | H195: -1.59502311e-05 | J195: -0.001984081058 | K195: -0.06629764502 | L195: 0.002239801714 | M195: 0.07992977516 | N195: 0.0002114867864
A196: =IF('DF raw data'!A201="","",'DF raw data'!A201) -> -233 | B196: =IF('DF raw data'!B201="","",'DF raw data'!B201) -> -1.98152e-05 | C196: =IF('DF raw data'!C201="","",'DF raw data'!C201) -> 3.11494e-05 | D196: =IF('DF raw data'!D201="","",'DF raw data'!D201) -> -1.92489e-05 | F196: -1.98845532e-05 | G196: 3.12584229e-05 | H196: -1.931627115e-05 | J196: -0.001994023334 | K196: -0.06729465668 | L196: 0.002255430926 | M196: 0.08105749063 | N196: 0.0002160183353
A197: =IF('DF raw data'!A202="","",'DF raw data'!A202) -> -232.5 | B197: =IF('DF raw data'!B202="","",'DF raw data'!B202) -> -3.30084e-05 | C197: =IF('DF raw data'!C202="","",'DF raw data'!C202) -> 3.447e-05 | D197: =IF('DF raw data'!D202="","",'DF raw data'!D202) -> -2.96584e-05 | F197: -3.31239294e-05 | G197: 3.4590645e-05 | H197: -2.97622044e-05 | J197: -0.002010585299 | K197: -0.06829994933 | L197: 0.002272726248 | M197: 0.08219385375 | N197: 0.0002206222042
A198: =IF('DF raw data'!A203="","",'DF raw data'!A203) -> -232 | B198: =IF('DF raw data'!B203="","",'DF raw data'!B203) -> -1.84602e-05 | C198: =IF('DF raw data'!C203="","",'DF raw data'!C203) -> 2.57903e-05 | D198: =IF('DF raw data'!D203="","",'DF raw data'!D203) -> -3.3643e-05 | F198: -1.85248107e-05 | G198: 2.588056605e-05 | H198: -3.37607505e-05 | J198: -0.002019847704 | K198: -0.06930987318 | L198: 0.002285666531 | M198: 0.08333668702 | N198: 0.0002252742323
A199: =IF('DF raw data'!A204="","",'DF raw data'!A204) -> -231.5 | B199: =IF('DF raw data'!B204="","",'DF raw data'!B204) -> -3.11e-05 | C199: =IF('DF raw data'!C204="","",'DF raw data'!C204) -> 2.81166e-05 | D199: =IF('DF raw data'!D204="","",'DF raw data'!D204) -> -8.40551e-06 | F199: -3.120885e-05 | G199: 2.82150081e-05 | H199: -8.434929285e-06 | J199: -0.002035452129 | K199: -0.07032759925 | L199: 0.002299774035 | M199: 0.08448657403 | N199: 0.0002299902453
A200: =IF('DF raw data'!A205="","",'DF raw data'!A205) -> -231 | B200: =IF('DF raw data'!B205="","",'DF raw data'!B205) -> -3.45524e-05 | C200: =IF('DF raw data'!C205="","",'DF raw data'!C205) -> 3.2274e-05 | D200: =IF('DF raw data'!D205="","",'DF raw data'!D205) -> -2.0051e-05 | F200: -3.46733334e-05 | G200: 3.2386959e-05 | H200: -2.01211785e-05 | J200: -0.002052788796 | K200: -0.07135399365 | L200: 0.002315967515 | M200: 0.08564455779 | N200: 0.000234779069
A201: =IF('DF raw data'!A206="","",'DF raw data'!A206) -> -230.5 | B201: =IF('DF raw data'!B206="","",'DF raw data'!B206) -> -3.47433e-05 | C201: =IF('DF raw data'!C206="","",'DF raw data'!C206) -> 1.54955e-05 | D201: =IF('DF raw data'!D206="","",'DF raw data'!D206) -> -2.23267e-05 | F201: -3.486490155e-05 | G201: 1.554973425e-05 | H201: -2.240484345e-05 | J201: -0.002070221247 | K201: -0.07238910427 | L201: 0.002323742382 | M201: 0.08680642898 | N201: 0.0002396218663
... 1061 more rows

Sheet 10 x=-1
A1: =IF('DF raw data'!E1="","",'DF raw data'!E1) -> Number of header lines | B1: =IF('DF raw data'!F1="","",'DF raw data'!F1) -> 54 | C1: =IF('DF raw data'!G1="","",'DF raw data'!G1) ->  | D1: =IF('DF raw data'!H1="","",'DF raw data'!H1) ->  | F1: T_coeff | G1: -0.001 | H1: /degC | J1: IBy total | K1: =J1262*1000 -> -17.75172504 | L1: muTm | M1: =L1262*1000 -> 35.37663592 | R1: DF ref | S1: ='10 x=-2'!S1 -> 1
A2: =IF('DF raw data'!E2="","",'DF raw data'!E2) -> Measured by | B2: =IF('DF raw data'!F2="","",'DF raw data'!F2) -> Danfysik | C2: =IF('DF raw data'!G2="","",'DF raw data'!G2) ->  | D2: =IF('DF raw data'!H2="","",'DF raw data'!H2) ->  | F2: Tcorr | G2: 20 | H2: degC | J2: JBy total | K2: =K1262 -> -7.160124754 | L2: muTm^2 | M2: =M1262 -> 10.13711172
A3: =IF('DF raw data'!E3="","",'DF raw data'!E3) -> Operator | B3: =IF('DF raw data'!F3="","",'DF raw data'!F3) -> PMHA | C3: =IF('DF raw data'!G3="","",'DF raw data'!G3) ->  | D3: =IF('DF raw data'!H3="","",'DF raw data'!H3) ->  | F3: Step | G3: =A63-A62 -> 0.5 | H3: mm | J3: PI total | K3: =N1262 -> 10595.79994 | L3: T^2mm^3
A4: =IF('DF raw data'!E4="","",'DF raw data'!E4) -> Data-time | B4: =IF('DF raw data'!F4="","",'DF raw data'!F4) -> 17-09-2024, 14:18:02 | C4: =IF('DF raw data'!G4="","",'DF raw data'!G4) ->  | D4: =IF('DF raw data'!H4="","",'DF raw data'!H4) -> 
A5: =IF('DF raw data'!E5="","",'DF raw data'!E5) -> Project | B5: =IF('DF raw data'!F5="","",'DF raw data'!F5) -> 504314 | C5: =IF('DF raw data'!G5="","",'DF raw data'!G5) ->  | D5: =IF('DF raw data'!H5="","",'DF raw data'!H5) -> 
A6: =IF('DF raw data'!E6="","",'DF raw data'!E6) -> Magnet type | B6: =IF('DF raw data'!F6="","",'DF raw data'!F6) -> Dipole | C6: =IF('DF raw data'!G6="","",'DF raw data'!G6) ->  | D6: =IF('DF raw data'!H6="","",'DF raw data'!H6) -> 
A7: =IF('DF raw data'!E7="","",'DF raw data'!E7) -> Magnet nr. | B7: =IF('DF raw data'!F7="","",'DF raw data'!F7) -> 2410097 | C7: =IF('DF raw data'!G7="","",'DF raw data'!G7) ->  | D7: =IF('DF raw data'!H7="","",'DF raw data'!H7) -> 
A8: =IF('DF raw data'!E8="","",'DF raw data'!E8) -> Meas. number | B8: =IF('DF raw data'!F8="","",'DF raw data'!F8) -> 550 | C8: =IF('DF raw data'!G8="","",'DF raw data'!G8) ->  | D8: =IF('DF raw data'!H8="","",'DF raw data'!H8) -> 
A9: =IF('DF raw data'!E9="","",'DF raw data'!E9) -> Add. info | B9: =IF('DF raw data'!F9="","",'DF raw data'!F9) -> X-alignment scan 2) | C9: =IF('DF raw data'!G9="","",'DF raw data'!G9) ->  | D9: =IF('DF raw data'!H9="","",'DF raw data'!H9) -> 
A10: =IF('DF raw data'!E10="","",'DF raw data'!E10) -> Device | B10: =IF('DF raw data'!F10="","",'DF raw data'!F10) -> (HAL) HALL-PROBE | C10: =IF('DF raw data'!G10="","",'DF raw data'!G10) ->  | D10: =IF('DF raw data'!H10="","",'DF raw data'!H10) -> 
A11: =IF('DF raw data'!E11="","",'DF raw data'!E11) -> Goal | B11: =IF('DF raw data'!F11="","",'DF raw data'!F11) -> (AXI) AXis Integral (Line, EFB) | C11: =IF('DF raw data'!G11="","",'DF raw data'!G11) ->  | D11: =IF('DF raw data'!H11="","",'DF raw data'!H11) -> 
A12: =IF('DF raw data'!E12="","",'DF raw data'!E12) -> Power supply mode | B12: =IF('DF raw data'!F12="","",'DF raw data'!F12) -> (PM) Permanent Magnet (no MPS in use) | C12: =IF('DF raw data'!G12="","",'DF raw data'!G12) ->  | D12: =IF('DF raw data'!H12="","",'DF raw data'!H12) -> 
A13: =IF('DF raw data'!E13="","",'DF raw data'!E13) -> Data format | B13: =IF('DF raw data'!F13="","",'DF raw data'!F13) -> Raw data text file | C13: =IF('DF raw data'!G13="","",'DF raw data'!G13) ->  | D13: =IF('DF raw data'!H13="","",'DF raw data'!H13) -> 
A14: =IF('DF raw data'!E14="","",'DF raw data'!E14) -> Direction of the pos. x-axis | B14: =IF('DF raw data'!F14="","",'DF raw data'!F14) -> See test program | C14: =IF('DF raw data'!G14="","",'DF raw data'!G14) ->  | D14: =IF('DF raw data'!H14="","",'DF raw data'!H14) -> 
A15: =IF('DF raw data'!E15="","",'DF raw data'!E15) -> Direction of the pos. y-axis | B15: =IF('DF raw data'!F15="","",'DF raw data'!F15) -> Vertical up | C15: =IF('DF raw data'!G15="","",'DF raw data'!G15) ->  | D15: =IF('DF raw data'!H15="","",'DF raw data'!H15) -> 
A16: =IF('DF raw data'!E16="","",'DF raw data'!E16) -> Direction of the pos. z-axis | B16: =IF('DF raw data'!F16="","",'DF raw data'!F16) -> See test program | C16: =IF('DF raw data'!G16="","",'DF raw data'!G16) ->  | D16: =IF('DF raw data'!H16="","",'DF raw data'!H16) -> 
A17: =IF('DF raw data'!E17="","",'DF raw data'!E17) -> Mapper type | B17: =IF('DF raw data'!F17="","",'DF raw data'!F17) -> Precision Hall Mapper | C17: =IF('DF raw data'!G17="","",'DF raw data'!G17) ->  | D17: =IF('DF raw data'!H17="","",'DF raw data'!H17) -> 
A18: =IF('DF raw data'!E18="","",'DF raw data'!E18) -> Mapper Danfysik Reg. Number | B18: =IF('DF raw data'!F18="","",'DF raw data'!F18) -> 2033-D (mapper 1) | C18: =IF('DF raw data'!G18="","",'DF raw data'!G18) ->  | D18: =IF('DF raw data'!H18="","",'DF raw data'!H18) -> 
A19: =IF('DF raw data'!E19="","",'DF raw data'!E19) -> Measurement consept | B19: =IF('DF raw data'!F19="","",'DF raw data'!F19) -> Square line grid | C19: =IF('DF raw data'!G19="","",'DF raw data'!G19) ->  | D19: =IF('DF raw data'!H19="","",'DF raw data'!H19) -> 
A20: =IF('DF raw data'!E20="","",'DF raw data'!E20) -> Mode | B20: =IF('DF raw data'!F20="","",'DF raw data'!F20) -> On-the-fly measurement | C20: =IF('DF raw data'!G20="","",'DF raw data'!G20) ->  | D20: =IF('DF raw data'!H20="","",'DF raw data'!H20) -> 
A21: =IF('DF raw data'!E21="","",'DF raw data'!E21) ->  | B21: =IF('DF raw data'!F21="","",'DF raw data'!F21) ->  | C21: =IF('DF raw data'!G21="","",'DF raw data'!G21) ->  | D21: =IF('DF raw data'!H21="","",'DF raw data'!H21) -> 
A22: =IF('DF raw data'!E22="","",'DF raw data'!E22) -> Probe Name | B22: =IF('DF raw data'!F22="","",'DF raw data'!F22) -> ID12_By | C22: =IF('DF raw data'!G22="","",'DF raw data'!G22) ->  | D22: =IF('DF raw data'!H22="","",'DF raw data'!H22) -> 
A23: =IF('DF raw data'!E23="","",'DF raw data'!E23) -> Probe Type | B23: =IF('DF raw data'!F23="","",'DF raw data'!F23) -> DF_ID_3D_Bxyz | C23: =IF('DF raw data'!G23="","",'DF raw data'!G23) ->  | D23: =IF('DF raw data'!H23="","",'DF raw data'!H23) -> 
A24: =IF('DF raw data'!E24="","",'DF raw data'!E24) -> Probe Danfysik Reg. Number | B24: =IF('DF raw data'!F24="","",'DF raw data'!F24) -> 2277 | C24: =IF('DF raw data'!G24="","",'DF raw data'!G24) ->  | D24: =IF('DF raw data'!H24="","",'DF raw data'!H24) -> 
A25: =IF('DF raw data'!E25="","",'DF raw data'!E25) -> Probe Axis | B25: =IF('DF raw data'!F25="","",'DF raw data'!F25) -> By | C25: =IF('DF raw data'!G25="","",'DF raw data'!G25) ->  | D25: =IF('DF raw data'!H25="","",'DF raw data'!H25) -> 
A26: =IF('DF raw data'!E26="","",'DF raw data'!E26) -> Probe Current Supply | B26: =IF('DF raw data'!F26="","",'DF raw data'!F26) -> 1825-D | C26: =IF('DF raw data'!G26="","",'DF raw data'!G26) ->  | D26: =IF('DF raw data'!H26="","",'DF raw data'!H26) -> 
A27: =IF('DF raw data'!E27="","",'DF raw data'!E27) -> Probe Gain Correction | B27: =IF('DF raw data'!F27="","",'DF raw data'!F27) -> 0.99606 | C27: =IF('DF raw data'!G27="","",'DF raw data'!G27) ->  | D27: =IF('DF raw data'!H27="","",'DF raw data'!H27) -> 
A28: =IF('DF raw data'!E28="","",'DF raw data'!E28) -> Probe Offset Correction | B28: =IF('DF raw data'!F28="","",'DF raw data'!F28) -> 0.0027513 | C28: =IF('DF raw data'!G28="","",'DF raw data'!G28) ->  | D28: =IF('DF raw data'!H28="","",'DF raw data'!H28) -> 
A29: =IF('DF raw data'!E29="","",'DF raw data'!E29) -> DVM Number | B29: =IF('DF raw data'!F29="","",'DF raw data'!F29) -> 2 | C29: =IF('DF raw data'!G29="","",'DF raw data'!G29) ->  | D29: =IF('DF raw data'!H29="","",'DF raw data'!H29) -> 
A30: =IF('DF raw data'!E30="","",'DF raw data'!E30) -> DVM Type | B30: =IF('DF raw data'!F30="","",'DF raw data'!F30) -> K2701 | C30: =IF('DF raw data'!G30="","",'DF raw data'!G30) ->  | D30: =IF('DF raw data'!H30="","",'DF raw data'!H30) -> 
A31: =IF('DF raw data'!E31="","",'DF raw data'!E31) -> DVM Danfysik Reg. Number | B31: =IF('DF raw data'!F31="","",'DF raw data'!F31) -> 1743-D | C31: =IF('DF raw data'!G31="","",'DF raw data'!G31) ->  | D31: =IF('DF raw data'!H31="","",'DF raw data'!H31) -> 
A32: =IF('DF raw data'!E32="","",'DF raw data'!E32) -> Probe Name | B32: =IF('DF raw data'!F32="","",'DF raw data'!F32) -> ID12_Bx | C32: =IF('DF raw data'!G32="","",'DF raw data'!G32) ->  | D32: =IF('DF raw data'!H32="","",'DF raw data'!H32) -> 
A33: =IF('DF raw data'!E33="","",'DF raw data'!E33) -> Probe Type | B33: =IF('DF raw data'!F33="","",'DF raw data'!F33) -> DF_ID_3D_Bxyz | C33: =IF('DF raw data'!G33="","",'DF raw data'!G33) ->  | D33: =IF('DF raw data'!H33="","",'DF raw data'!H33) -> 
A34: =IF('DF raw data'!E34="","",'DF raw data'!E34) -> Probe Danfysik Reg. Number | B34: =IF('DF raw data'!F34="","",'DF raw data'!F34) -> 2277 | C34: =IF('DF raw data'!G34="","",'DF raw data'!G34) ->  | D34: =IF('DF raw data'!H34="","",'DF raw data'!H34) -> 
A35: =IF('DF raw data'!E35="","",'DF raw data'!E35) -> Probe Axis | B35: =IF('DF raw data'!F35="","",'DF raw data'!F35) -> Bx | C35: =IF('DF raw data'!G35="","",'DF raw data'!G35) ->  | D35: =IF('DF raw data'!H35="","",'DF raw data'!H35) -> 
A36: =IF('DF raw data'!E36="","",'DF raw data'!E36) -> Probe Current Supply | B36: =IF('DF raw data'!F36="","",'DF raw data'!F36) -> 1825-D | C36: =IF('DF raw data'!G36="","",'DF raw data'!G36) ->  | D36: =IF('DF raw data'!H36="","",'DF raw data'!H36) -> 
A37: =IF('DF raw data'!E37="","",'DF raw data'!E37) -> Probe Gain Correction | B37: =IF('DF raw data'!F37="","",'DF raw data'!F37) -> 1 | C37: =IF('DF raw data'!G37="","",'DF raw data'!G37) ->  | D37: =IF('DF raw data'!H37="","",'DF raw data'!H37) -> 
A38: =IF('DF raw data'!E38="","",'DF raw data'!E38) -> Probe Offset Correction | B38: =IF('DF raw data'!F38="","",'DF raw data'!F38) -> -0.17549 | C38: =IF('DF raw data'!G38="","",'DF raw data'!G38) ->  | D38: =IF('DF raw data'!H38="","",'DF raw data'!H38) -> 
A39: =IF('DF raw data'!E39="","",'DF raw data'!E39) -> DVM Number | B39: =IF('DF raw data'!F39="","",'DF raw data'!F39) -> 3 | C39: =IF('DF raw data'!G39="","",'DF raw data'!G39) ->  | D39: =IF('DF raw data'!H39="","",'DF raw data'!H39) -> 
A40: =IF('DF raw data'!E40="","",'DF raw data'!E40) -> DVM Type | B40: =IF('DF raw data'!F40="","",'DF raw data'!F40) -> K2701 | C40: =IF('DF raw data'!G40="","",'DF raw data'!G40) ->  | D40: =IF('DF raw data'!H40="","",'DF raw data'!H40) -> 
A41: =IF('DF raw data'!E41="","",'DF raw data'!E41) -> DVM Danfysik Reg. Number | B41: =IF('DF raw data'!F41="","",'DF raw data'!F41) -> 1744-D | C41: =IF('DF raw data'!G41="","",'DF raw data'!G41) ->  | D41: =IF('DF raw data'!H41="","",'DF raw data'!H41) -> 
A42: =IF('DF raw data'!E42="","",'DF raw data'!E42) -> Probe Name | B42: =IF('DF raw data'!F42="","",'DF raw data'!F42) -> ID12_Bz | C42: =IF('DF raw data'!G42="","",'DF raw data'!G42) ->  | D42: =IF('DF raw data'!H42="","",'DF raw data'!H42) -> 
A43: =IF('DF raw data'!E43="","",'DF raw data'!E43) -> Probe Type | B43: =IF('DF raw data'!F43="","",'DF raw data'!F43) -> DF_ID_3D_Bxyz | C43: =IF('DF raw data'!G43="","",'DF raw data'!G43) ->  | D43: =IF('DF raw data'!H43="","",'DF raw data'!H43) -> 
A44: =IF('DF raw data'!E44="","",'DF raw data'!E44) -> Probe Danfysik Reg. Number | B44: =IF('DF raw data'!F44="","",'DF raw data'!F44) -> 2277 | C44: =IF('DF raw data'!G44="","",'DF raw data'!G44) ->  | D44: =IF('DF raw data'!H44="","",'DF raw data'!H44) -> 
A45: =IF('DF raw data'!E45="","",'DF raw data'!E45) -> Probe Axis | B45: =IF('DF raw data'!F45="","",'DF raw data'!F45) -> Bz | C45: =IF('DF raw data'!G45="","",'DF raw data'!G45) ->  | D45: =IF('DF raw data'!H45="","",'DF raw data'!H45) -> 
A46: =IF('DF raw data'!E46="","",'DF raw data'!E46) -> Probe Current Supply | B46: =IF('DF raw data'!F46="","",'DF raw data'!F46) -> 1825-D | C46: =IF('DF raw data'!G46="","",'DF raw data'!G46) ->  | D46: =IF('DF raw data'!H46="","",'DF raw data'!H46) -> 
A47: =IF('DF raw data'!E47="","",'DF raw data'!E47) -> Probe Gain Correction | B47: =IF('DF raw data'!F47="","",'DF raw data'!F47) -> 1 | C47: =IF('DF raw data'!G47="","",'DF raw data'!G47) ->  | D47: =IF('DF raw data'!H47="","",'DF raw data'!H47) -> 
A48: =IF('DF raw data'!E53="","",'DF raw data'!E53) -> PS-Gap: | B48: =IF('DF raw data'!F53="","",'DF raw data'!F53) -> 10 | C48: =IF('DF raw data'!G53="","",'DF raw data'!G53) ->  | D48: =IF('DF raw data'!H53="","",'DF raw data'!H53) -> 
A49: =IF('DF raw data'!E54="","",'DF raw data'!E54) -> PS-Temperature: | B49: =IF('DF raw data'!F54="","",'DF raw data'!F54) -> 23.5 | C49: =IF('DF raw data'!G54="","",'DF raw data'!G54) ->  | D49: =IF('DF raw data'!H54="","",'DF raw data'!H54) -> 
A50: =IF('DF raw data'!E55="","",'DF raw data'!E55) -> PS-Encoder: | B50: =IF('DF raw data'!F55="","",'DF raw data'!F55) -> 19.6817 | C50: =IF('DF raw data'!G55="","",'DF raw data'!G55) ->  | D50: =IF('DF raw data'!H55="","",'DF raw data'!H55) -> 
A51: =IF('DF raw data'!E56="","",'DF raw data'!E56) ->  | B51: =IF('DF raw data'!F56="","",'DF raw data'!F56) ->  | C51: =IF('DF raw data'!G56="","",'DF raw data'!G56) ->  | D51: =IF('DF raw data'!H56="","",'DF raw data'!H56) -> 
A52: =IF('DF raw data'!E57="","",'DF raw data'!E57) -> Monitor-Index | B52: =IF('DF raw data'!F57="","",'DF raw data'!F57) -> [1,1,4] | C52: =IF('DF raw data'!G57="","",'DF raw data'!G57) ->  | D52: =IF('DF raw data'!H57="","",'DF raw data'!H57) -> 
A53: =IF('DF raw data'!E58="","",'DF raw data'!E58) ->  | B53: =IF('DF raw data'!F58="","",'DF raw data'!F58) ->  | C53: =IF('DF raw data'!G58="","",'DF raw data'!G58) ->  | D53: =IF('DF raw data'!H58="","",'DF raw data'!H58) -> 
A54: =IF('DF raw data'!E59="","",'DF raw data'!E59) -> Time [s] | B54: =IF('DF raw data'!F59="","",'DF raw data'!F59) -> Y [mm] | C54: =IF('DF raw data'!G59="","",'DF raw data'!G59) -> X [mm] | D54: =IF('DF raw data'!H59="","",'DF raw data'!H59) -> Nominal current [A]
A55: =IF('DF raw data'!E60="","",'DF raw data'!E60) ->  | B55: =IF('DF raw data'!F60="","",'DF raw data'!F60) ->  | C55: =IF('DF raw data'!G60="","",'DF raw data'!G60) ->  | D55: =IF('DF raw data'!H60="","",'DF raw data'!H60) -> 
A56: =IF('DF raw data'!E61="","",'DF raw data'!E61) -> 209.5 | B56: =IF('DF raw data'!F61="","",'DF raw data'!F61) -> 31.56 | C56: =IF('DF raw data'!G61="","",'DF raw data'!G61) -> 300.55 | D56: =IF('DF raw data'!H61="","",'DF raw data'!H61) -> 0
A57: =IF('DF raw data'!E62="","",'DF raw data'!E62) ->  | B57: =IF('DF raw data'!F62="","",'DF raw data'!F62) ->  | C57: =IF('DF raw data'!G62="","",'DF raw data'!G62) ->  | D57: =IF('DF raw data'!H62="","",'DF raw data'!H62) -> 
A58: =IF('DF raw data'!E63="","",'DF raw data'!E63) -> Measurement-Index | B58: =IF('DF raw data'!F63="","",'DF raw data'!F63) -> [1,1,1201,2] | C58: =IF('DF raw data'!G63="","",'DF raw data'!G63) ->  | D58: =IF('DF raw data'!H63="","",'DF raw data'!H63) -> 
A59: =IF('DF raw data'!E64="","",'DF raw data'!E64) ->  | B59: =IF('DF raw data'!F64="","",'DF raw data'!F64) ->  | C59: =IF('DF raw data'!G64="","",'DF raw data'!G64) ->  | D59: =IF('DF raw data'!H64="","",'DF raw data'!H64) -> 
A60: =IF('DF raw data'!E65="","",'DF raw data'!E65) -> Z [mm] | B60: By [T] | C60: Bx [T] | D60: Bz [T] | F60: By_corr | G60: Bx_corr | H60: Bz_corr | J60: Iy | K60: Jy | L60: Ix | M60: Jx | N60: PI
A62: =IF('DF raw data'!E67="","",'DF raw data'!E67) -> -300 | B62: =IF('DF raw data'!F67="","",'DF raw data'!F67) -> -1.91048e-05 | C62: =IF('DF raw data'!G67="","",'DF raw data'!G67) -> 8.04021e-05 | D62: =IF('DF raw data'!H67="","",'DF raw data'!H67) -> -2.7755e-05 | F62: =(1-$G$1*($B$49))*B62 -> -1.95537628e-05 | G62: =(1-$G$1*($B$49-$G$2))*C62 -> 8.068350735e-05 | H62: =(1-$G$1*($B$49-$G$2))*D62 -> -2.78521425e-05 | J62: =F62*$G$3 -> -9.7768814e-06 | K62: =J62*$G$3 -> -4.8884407e-06 | L62: =G62*$G$3 -> 4.034175368e-05 | M62: =L62*$G$3 -> 2.017087684e-05 | N62: =(J62^2+L62^2)*$G$3 -> 8.615222497e-10
A63: =IF('DF raw data'!E68="","",'DF raw data'!E68) -> -299.5 | B63: =IF('DF raw data'!F68="","",'DF raw data'!F68) -> -2.62175e-05 | C63: =IF('DF raw data'!G68="","",'DF raw data'!G68) -> 8.07864e-05 | D63: =IF('DF raw data'!H68="","",'DF raw data'!H68) -> -2.72887e-05 | F63: =(1-$G$1*($B$49-$G$2))*B63 -> -2.630926125e-05 | G63: =(1-$G$1*($B$49-$G$2))*C63 -> 8.10691524e-05 | H63: -2.738421045e-05 | J63: =F63*$G$3+J62 -> -2.293151203e-05 | K63: =J63*$G$3+K62 -> -1.635419671e-05 | L63: =G63*$G$3+L62 -> 8.087632987e-05 | M63: =L63*$G$3+M62 -> 6.060904178e-05 | N63: =(J63^2+L63^2)*$G$3+N62 -> 4.394939739e-09
A64: =IF('DF raw data'!E69="","",'DF raw data'!E69) -> -299 | B64: =IF('DF raw data'!F69="","",'DF raw data'!F69) -> -2.71793e-05 | C64: =IF('DF raw data'!G69="","",'DF raw data'!G69) -> 9.18608e-05 | D64: =IF('DF raw data'!H69="","",'DF raw data'!H69) -> -2.65708e-05 | F64: =(1-$G$1*($B$49-$G$2))*B64 -> -2.727442755e-05 | G64: 9.21823128e-05 | H64: -2.66637978e-05 | J64: =F64*$G$3+J63 -> -3.65687258e-05 | K64: =J64*$G$3+K63 -> -3.463855961e-05 | L64: =G64*$G$3+L63 -> 0.0001269674863 | M64: =L64*$G$3+M63 -> 0.0001240927849 | N64: =(J64^2+L64^2)*$G$3+N63 -> 1.312394688e-08
A65: =IF('DF raw data'!E70="","",'DF raw data'!E70) -> -298.5 | B65: =IF('DF raw data'!F70="","",'DF raw data'!F70) -> -2.13493e-05 | C65: =IF('DF raw data'!G70="","",'DF raw data'!G70) -> 8.99192e-05 | D65: =IF('DF raw data'!H70="","",'DF raw data'!H70) -> -2.63247e-05 | F65: -2.142402255e-05 | G65: 9.02339172e-05 | H65: -2.641683645e-05 | J65: -4.728073708e-05 | K65: -5.827892815e-05 | L65: 0.0001720844449 | M65: 0.0002101350073 | N65: 2.904820901e-08
A66: =IF('DF raw data'!E71="","",'DF raw data'!E71) -> -298 | B66: =IF('DF raw data'!F71="","",'DF raw data'!F71) -> -2.92937e-05 | C66: =IF('DF raw data'!G71="","",'DF raw data'!G71) -> 8.92828e-05 | D66: =IF('DF raw data'!H71="","",'DF raw data'!H71) -> -2.6394e-05 | F66: -2.939622795e-05 | G66: 8.95952898e-05 | H66: -2.6486379e-05 | J66: -6.197885105e-05 | K66: -8.926835367e-05 | L66: 0.0002168820898 | M66: 0.0003185760522 | N66: 5.448781843e-08
A67: =IF('DF raw data'!E72="","",'DF raw data'!E72) -> -297.5 | B67: =IF('DF raw data'!F72="","",'DF raw data'!F72) -> -2.05802e-05 | C67: =IF('DF raw data'!G72="","",'DF raw data'!G72) -> 9.59568e-05 | D67: =IF('DF raw data'!H72="","",'DF raw data'!H72) -> -2.67183e-05 | F67: -2.06522307e-05 | G67: 9.62926488e-05 | H67: -2.681181405e-05 | J67: -7.23049664e-05 | K67: -0.0001254208369 | L67: 0.0002650284142 | M67: 0.0004510902593 | N67: 9.222185268e-08
A68: =IF('DF raw data'!E73="","",'DF raw data'!E73) -> -297 | B68: =IF('DF raw data'!F73="","",'DF raw data'!F73) -> -2.9806e-05 | C68: =IF('DF raw data'!G73="","",'DF raw data'!G73) -> 0.000102636 | D68: =IF('DF raw data'!H73="","",'DF raw data'!H73) -> -2.69983e-05 | F68: -2.9910321e-05 | G68: 0.000102995226 | H68: -2.709279405e-05 | J68: -8.72601269e-05 | K68: -0.0001690509003 | L68: 0.0003165260272 | M68: 0.0006093532729 | N68: 1.461233805e-07
A69: =IF('DF raw data'!E74="","",'DF raw data'!E74) -> -296.5 | B69: =IF('DF raw data'!F74="","",'DF raw data'!F74) -> -2.76284e-05 | C69: =IF('DF raw data'!G74="","",'DF raw data'!G74) -> 9.26004e-05 | D69: =IF('DF raw data'!H74="","",'DF raw data'!H74) -> -2.68755e-05 | F69: -2.77250994e-05 | G69: 9.29245014e-05 | H69: -2.696956425e-05 | J69: -0.0001011226766 | K69: -0.0002196122386 | L69: 0.0003629882779 | M69: 0.0007908474119 | N69: 2.171165233e-07
A70: =IF('DF raw data'!E75="","",'DF raw data'!E75) -> -296 | B70: =IF('DF raw data'!F75="","",'DF raw data'!F75) -> -3.71103e-05 | C70: =IF('DF raw data'!G75="","",'DF raw data'!G75) -> 8.41513e-05 | D70: =IF('DF raw data'!H75="","",'DF raw data'!H75) -> -2.65597e-05 | F70: -3.724018605e-05 | G70: 8.444582955e-05 | H70: -2.665265895e-05 | J70: -0.0001197427696 | K70: -0.0002794836234 | L70: 0.0004052111927 | M70: 0.0009934530082 | N70: 3.06383744e-07
A71: =IF('DF raw data'!E76="","",'DF raw data'!E76) -> -295.5 | B71: =IF('DF raw data'!F76="","",'DF raw data'!F76) -> -2.31434e-05 | C71: =IF('DF raw data'!G76="","",'DF raw data'!G76) -> 9.44394e-05 | D71: =IF('DF raw data'!H76="","",'DF raw data'!H76) -> -2.67277e-05 | F71: -2.32244019e-05 | G71: 9.47699379e-05 | H71: -2.682124695e-05 | J71: -0.0001313549706 | K71: -0.0003451611087 | L71: 0.0004525961616 | M71: 0.001219751089 | N71: 4.174324509e-07
A72: =IF('DF raw data'!E77="","",'DF raw data'!E77) -> -295 | B72: =IF('DF raw data'!F77="","",'DF raw data'!F77) -> -3.79431e-05 | C72: =IF('DF raw data'!G77="","",'DF raw data'!G77) -> 9.94861e-05 | D72: =IF('DF raw data'!H77="","",'DF raw data'!H77) -> -2.64302e-05 | F72: -3.807590085e-05 | G72: 9.983430135e-05 | H72: -2.65227057e-05 | J72: -0.000150392921 | K72: -0.0004203575692 | L72: 0.0005025133123 | M72: 0.001471007745 | N72: 5.550012808e-07
A73: =IF('DF raw data'!E78="","",'DF raw data'!E78) -> -294.5 | B73: =IF('DF raw data'!F78="","",'DF raw data'!F78) -> -3.74333e-05 | C73: =IF('DF raw data'!G78="","",'DF raw data'!G78) -> 0.000102956 | D73: =IF('DF raw data'!H78="","",'DF raw data'!H78) -> -2.51986e-05 | F73: -3.756431655e-05 | G73: 0.000103316346 | H73: -2.52867951e-05 | J73: -0.0001691750793 | K73: -0.0005049451089 | L73: 0.0005541714853 | M73: 0.001748093488 | N73: 7.228644021e-07
A74: =IF('DF raw data'!E79="","",'DF raw data'!E79) -> -294 | B74: =IF('DF raw data'!F79="","",'DF raw data'!F79) -> -2.57704e-05 | C74: =IF('DF raw data'!G79="","",'DF raw data'!G79) -> 0.00010379 | D74: =IF('DF raw data'!H79="","",'DF raw data'!H79) -> -2.45279e-05 | F74: -2.58605964e-05 | G74: 0.000104153265 | H74: -2.461374765e-05 | J74: -0.0001821053775 | K74: -0.0005959977976 | L74: 0.0006062481178 | M74: 0.002051217547 | N74: 9.232139765e-07
A75: =IF('DF raw data'!E80="","",'DF raw data'!E80) -> -293.5 | B75: =IF('DF raw data'!F80="","",'DF raw data'!F80) -> -1.59038e-05 | C75: =IF('DF raw data'!G80="","",'DF raw data'!G80) -> 9.45967e-05 | D75: =IF('DF raw data'!H80="","",'DF raw data'!H80) -> -2.55468e-05 | F75: -1.59594633e-05 | G75: 9.492778845e-05 | H75: -2.56362138e-05 | J75: -0.0001900851091 | K75: -0.0006910403522 | L75: 0.000653712012 | M75: 0.002378073553 | N75: 1.154949848e-06
A76: =IF('DF raw data'!E81="","",'DF raw data'!E81) -> -293 | B76: =IF('DF raw data'!F81="","",'DF raw data'!F81) -> -1.8721e-05 | C76: =IF('DF raw data'!G81="","",'DF raw data'!G81) -> 8.56018e-05 | D76: =IF('DF raw data'!H81="","",'DF raw data'!H81) -> -2.7002e-05 | F76: -1.87865235e-05 | G76: 8.59014063e-05 | H76: -2.7096507e-05 | J76: -0.0001994783709 | K76: -0.0007907795376 | L76: 0.0006966627152 | M76: 0.00272640491 | N76: 1.417515128e-06
A77: =IF('DF raw data'!E82="","",'DF raw data'!E82) -> -292.5 | B77: =IF('DF raw data'!F82="","",'DF raw data'!F82) -> -2.91661e-05 | C77: =IF('DF raw data'!G82="","",'DF raw data'!G82) -> 8.96401e-05 | D77: =IF('DF raw data'!H82="","",'DF raw data'!H82) -> -2.75237e-05 | F77: -2.926818135e-05 | G77: 8.995384035e-05 | H77: -2.762003295e-05 | J77: -0.0002141124616 | K77: -0.0008978357684 | L77: 0.0007416396353 | M77: 0.003097224728 | N77: 1.715451875e-06
A78: =IF('DF raw data'!E83="","",'DF raw data'!E83) -> -292 | B78: =IF('DF raw data'!F83="","",'DF raw data'!F83) -> -2.5961e-05 | C78: =IF('DF raw data'!G83="","",'DF raw data'!G83) -> 0.000100522 | D78: =IF('DF raw data'!H83="","",'DF raw data'!H83) -> -2.72901e-05 | F78: -2.60518635e-05 | G78: 0.000100873827 | H78: -2.738561535e-05 | J78: -0.0002271383933 | K78: -0.001011404965 | L78: 0.0007920765488 | M78: 0.003493263002 | N78: 2.05494043e-06
A79: =IF('DF raw data'!E84="","",'DF raw data'!E84) -> -291.5 | B79: =IF('DF raw data'!F84="","",'DF raw data'!F84) -> -3.55728e-05 | C79: =IF('DF raw data'!G84="","",'DF raw data'!G84) -> 8.58712e-05 | D79: =IF('DF raw data'!H84="","",'DF raw data'!H84) -> -2.8598e-05 | F79: -3.56973048e-05 | G79: 8.61717492e-05 | H79: -2.8698093e-05 | J79: -0.0002449870457 | K79: -0.001133898488 | L79: 0.0008351624234 | M79: 0.003910844214 | N79: 2.433697893e-06
A80: =IF('DF raw data'!E85="","",'DF raw data'!E85) -> -291 | B80: =IF('DF raw data'!F85="","",'DF raw data'!F85) -> -3.12129e-05 | C80: =IF('DF raw data'!G85="","",'DF raw data'!G85) -> 8.32357e-05 | D80: =IF('DF raw data'!H85="","",'DF raw data'!H85) -> -3.03172e-05 | F80: -3.132214515e-05 | G80: 8.352702495e-05 | H80: -3.04233102e-05 | J80: -0.0002606481183 | K80: -0.001264222547 | L80: 0.0008769259359 | M80: 0.004349307182 | N80: 2.852166162e-06
A81: =IF('DF raw data'!E86="","",'DF raw data'!E86) -> -290.5 | B81: =IF('DF raw data'!F86="","",'DF raw data'!F86) -> -3.00012e-05 | C81: =IF('DF raw data'!G86="","",'DF raw data'!G86) -> 9.37663e-05 | D81: =IF('DF raw data'!H86="","",'DF raw data'!H86) -> -2.43069e-05 | F81: -3.01062042e-05 | G81: 9.409448205e-05 | H81: -2.439197415e-05 | J81: -0.0002757012204 | K81: -0.001402073157 | L81: 0.0009239731769 | M81: 0.00481129377 | N81: 3.317034959e-06
A82: =IF('DF raw data'!E87="","",'DF raw data'!E87) -> -290 | B82: =IF('DF raw data'!F87="","",'DF raw data'!F87) -> -3.23733e-05 | C82: =IF('DF raw data'!G87="","",'DF raw data'!G87) -> 8.41243e-05 | D82: =IF('DF raw data'!H87="","",'DF raw data'!H87) -> -1.9301e-05 | F82: -3.248660655e-05 | G82: 8.441873505e-05 | H82: -1.93685535e-05 | J82: -0.0002919445236 | K82: -0.001548045419 | L82: 0.0009661825444 | M82: 0.005294385043 | N82: 3.826405116e-06
A83: =IF('DF raw data'!E88="","",'DF raw data'!E88) -> -289.5 | B83: =IF('DF raw data'!F88="","",'DF raw data'!F88) -> -3.41009e-05 | C83: =IF('DF raw data'!G88="","",'DF raw data'!G88) -> 8.63225e-05 | D83: =IF('DF raw data'!H88="","",'DF raw data'!H88) -> -2.62517e-05 | F83: -3.422025315e-05 | G83: 8.662462875e-05 | H83: -2.634358095e-05 | J83: -0.0003090546502 | K83: -0.001702572744 | L83: 0.001009494859 | M83: 0.005799132472 | N83: 4.38370244e-06
A84: =IF('DF raw data'!E89="","",'DF raw data'!E89) -> -289 | B84: =IF('DF raw data'!F89="","",'DF raw data'!F89) -> -3.85819e-05 | C84: =IF('DF raw data'!G89="","",'DF raw data'!G89) -> 8.94799e-05 | D84: =IF('DF raw data'!H89="","",'DF raw data'!H89) -> -2.86924e-05 | F84: -3.871693665e-05 | G84: 8.979307965e-05 | H84: -2.87928234e-05 | J84: -0.0003284131186 | K84: -0.001866779303 | L84: 0.001054391399 | M84: 0.006326328171 | N84: 4.993500639e-06
A85: =IF('DF raw data'!E90="","",'DF raw data'!E90) -> -288.5 | B85: =IF('DF raw data'!F90="","",'DF raw data'!F90) -> -3.14143e-05 | C85: =IF('DF raw data'!G90="","",'DF raw data'!G90) -> 9.60619e-05 | D85: =IF('DF raw data'!H90="","",'DF raw data'!H90) -> -1.90975e-05 | F85: -3.152425005e-05 | G85: 9.639811665e-05 | H85: -1.916434125e-05 | J85: -0.0003441752436 | K85: -0.002038866925 | L85: 0.001102590457 | M85: 0.0068776234 | N85: 5.660581796e-06
A86: =IF('DF raw data'!E91="","",'DF raw data'!E91) -> -288 | B86: =IF('DF raw data'!F91="","",'DF raw data'!F91) -> -1.61624e-05 | C86: =IF('DF raw data'!G91="","",'DF raw data'!G91) -> 0.000101447 | D86: =IF('DF raw data'!H91="","",'DF raw data'!H91) -> -2.03777e-05 | F86: -1.62189684e-05 | G86: 0.0001018020645 | H86: -2.044902195e-05 | J86: -0.0003522847278 | K86: -0.002215009289 | L86: 0.001153491489 | M86: 0.007454369144 | N86: 6.387905368e-06
A87: =IF('DF raw data'!E92="","",'DF raw data'!E92) -> -287.5 | B87: =IF('DF raw data'!F92="","",'DF raw data'!F92) -> -3.83312e-05 | C87: =IF('DF raw data'!G92="","",'DF raw data'!G92) -> 0.000101591 | D87: =IF('DF raw data'!H92="","",'DF raw data'!H92) -> -2.43585e-05 | F87: -3.84653592e-05 | G87: 0.0001019465685 | H87: -2.444375475e-05 | J87: -0.0003715174074 | K87: -0.002400767993 | L87: 0.001204464773 | M87: 0.008056601531 | N87: 7.182285656e-06
A88: =IF('DF raw data'!E93="","",'DF raw data'!E93) -> -287 | B88: =IF('DF raw data'!F93="","",'DF raw data'!F93) -> -3.42249e-05 | C88: =IF('DF raw data'!G93="","",'DF raw data'!G93) -> 0.000100756 | D88: =IF('DF raw data'!H93="","",'DF raw data'!H93) -> -2.88481e-05 | F88: -3.434468715e-05 | G88: 0.000101108646 | H88: -2.894906835e-05 | J88: -0.000388689751 | K88: -0.002595112868 | L88: 0.001255019096 | M88: 0.008684111079 | N88: 8.045361983e-06
A89: =IF('DF raw data'!E94="","",'DF raw data'!E94) -> -286.5 | B89: =IF('DF raw data'!F94="","",'DF raw data'!F94) -> -3.57674e-05 | C89: =IF('DF raw data'!G94="","",'DF raw data'!G94) -> 0.000104032 | D89: =IF('DF raw data'!H94="","",'DF raw data'!H94) -> -2.59476e-05 | F89: -3.58925859e-05 | G89: 0.000104396112 | H89: -2.60384166e-05 | J89: -0.0004066360439 | K89: -0.00279843089 | L89: 0.001307217152 | M89: 0.009337719656 | N89: 8.982446761e-06
A90: =IF('DF raw data'!E95="","",'DF raw data'!E95) -> -286 | B90: =IF('DF raw data'!F95="","",'DF raw data'!F95) -> -3.35284e-05 | C90: =IF('DF raw data'!G95="","",'DF raw data'!G95) -> 0.000100315 | D90: =IF('DF raw data'!H95="","",'DF raw data'!H95) -> -1.58786e-05 | F90: -3.36457494e-05 | G90: 0.0001006661025 | H90: -1.59341751e-05 | J90: -0.0004234589186 | K90: -0.00301016035 | L90: 0.001357550204 | M90: 0.01001649476 | N90: 9.993576767e-06
A91: =IF('DF raw data'!E96="","",'DF raw data'!E96) -> -285.5 | B91: =IF('DF raw data'!F96="","",'DF raw data'!F96) -> -1.93034e-05 | C91: =IF('DF raw data'!G96="","",'DF raw data'!G96) -> 9.93474e-05 | D91: =IF('DF raw data'!H96="","",'DF raw data'!H96) -> -2.05806e-05 | F91: -1.93709619e-05 | G91: 9.96951159e-05 | H91: -2.06526321e-05 | J91: -0.0004331443996 | K91: -0.003226732549 | L91: 0.001407397762 | M91: 0.01072019364 | N91: 1.107776803e-05
A92: =IF('DF raw data'!E97="","",'DF raw data'!E97) -> -285 | B92: =IF('DF raw data'!F97="","",'DF raw data'!F97) -> -3.42335e-05 | C92: =IF('DF raw data'!G97="","",'DF raw data'!G97) -> 0.000107148 | D92: =IF('DF raw data'!H97="","",'DF raw data'!H97) -> -1.53794e-05 | F92: -3.435331725e-05 | G92: 0.000107523018 | H92: -1.54332279e-05 | J92: -0.0004503210582 | K92: -0.003451893078 | L92: 0.001461159271 | M92: 0.01145077327 | N92: 1.224665577e-05
A93: =IF('DF raw data'!E98="","",'DF raw data'!E98) -> -284.5 | B93: =IF('DF raw data'!F98="","",'DF raw data'!F98) -> -3.01899e-05 | C93: =IF('DF raw data'!G98="","",'DF raw data'!G98) -> 0.000103874 | D93: =IF('DF raw data'!H98="","",'DF raw data'!H98) -> -3.07514e-05 | F93: -3.029556465e-05 | G93: 0.000104237559 | H93: -3.08590299e-05 | J93: -0.0004654688405 | K93: -0.003684627499 | L93: 0.00151327805 | M93: 0.0122074123 | N93: 1.349999162e-05
A94: =IF('DF raw data'!E99="","",'DF raw data'!E99) -> -284 | B94: =IF('DF raw data'!F99="","",'DF raw data'!F99) -> -2.64794e-05 | C94: =IF('DF raw data'!G99="","",'DF raw data'!G99) -> 0.000107865 | D94: =IF('DF raw data'!H99="","",'DF raw data'!H99) -> -1.76358e-05 | F94: -2.65720779e-05 | G94: 0.0001082425275 | H94: -1.76975253e-05 | J94: -0.0004787548795 | K94: -0.003924004938 | L94: 0.001567399314 | M94: 0.01299111196 | N94: 1.484296504e-05
A95: =IF('DF raw data'!E100="","",'DF raw data'!E100) -> -283.5 | B95: =IF('DF raw data'!F100="","",'DF raw data'!F100) -> -4.26871e-05 | C95: =IF('DF raw data'!G100="","",'DF raw data'!G100) -> 9.76361e-05 | D95: =IF('DF raw data'!H100="","",'DF raw data'!H100) -> -2.71611e-05 | F95: -4.283650485e-05 | G95: 9.797782635e-05 | H95: -2.725616385e-05 | J95: -0.0005001731319 | K95: -0.004174091504 | L95: 0.001616388227 | M95: 0.01379930607 | N95: 1.627440707e-05
A96: =IF('DF raw data'!E101="","",'DF raw data'!E101) -> -283 | B96: =IF('DF raw data'!F101="","",'DF raw data'!F101) -> -2.98089e-05 | C96: =IF('DF raw data'!G101="","",'DF raw data'!G101) -> 9.93708e-05 | D96: =IF('DF raw data'!H101="","",'DF raw data'!H101) -> -2.09798e-05 | F96: -2.991323115e-05 | G96: 9.97185978e-05 | H96: -2.10532293e-05 | J96: -0.0005151297475 | K96: -0.004431656378 | L96: 0.001666247526 | M96: 0.01463242983 | N96: 1.779527681e-05
A97: =IF('DF raw data'!E102="","",'DF raw data'!E102) -> -282.5 | B97: =IF('DF raw data'!F102="","",'DF raw data'!F102) -> -1.9755e-05 | C97: =IF('DF raw data'!G102="","",'DF raw data'!G102) -> 0.000102654 | D97: =IF('DF raw data'!H102="","",'DF raw data'!H102) -> -1.59803e-05 | F97: -1.98241425e-05 | G97: 0.000103013289 | H97: -1.603623105e-05 | J97: -0.0005250418187 | K97: -0.004694177287 | L97: 0.001717754171 | M97: 0.01549130692 | N97: 1.940845096e-05
A98: =IF('DF raw data'!E103="","",'DF raw data'!E103) -> -282 | B98: =IF('DF raw data'!F103="","",'DF raw data'!F103) -> -2.61513e-05 | C98: =IF('DF raw data'!G103="","",'DF raw data'!G103) -> 0.000104498 | D98: =IF('DF raw data'!H103="","",'DF raw data'!H103) -> -2.97598e-05 | F98: -2.624282955e-05 | G98: 0.000104863743 | H98: -2.98639593e-05 | J98: -0.0005381632335 | K98: -0.004963258904 | L98: 0.001770186042 | M98: 0.01637639994 | N98: 2.11200401e-05
A99: =IF('DF raw data'!E104="","",'DF raw data'!E104) -> -281.5 | B99: =IF('DF raw data'!F104="","",'DF raw data'!F104) -> -2.72474e-05 | C99: =IF('DF raw data'!G104="","",'DF raw data'!G104) -> 0.000104703 | D99: =IF('DF raw data'!H104="","",'DF raw data'!H104) -> -2.29309e-05 | F99: -2.73427659e-05 | G99: 0.0001050694605 | H99: -2.301115815e-05 | J99: -0.0005518346164 | K99: -0.005239176212 | L99: 0.001822720772 | M99: 0.01728776032 | N99: 2.293345633e-05
A100: =IF('DF raw data'!E105="","",'DF raw data'!E105) -> -281 | B100: =IF('DF raw data'!F105="","",'DF raw data'!F105) -> -2.83392e-05 | C100: =IF('DF raw data'!G105="","",'DF raw data'!G105) -> 0.000100522 | D100: =IF('DF raw data'!H105="","",'DF raw data'!H105) -> -1.49541e-05 | F100: -2.84383872e-05 | G100: 0.000100873827 | H100: -1.500643935e-05 | J100: -0.00056605381 | K100: -0.005522203117 | L100: 0.001873157686 | M100: 0.01822433917 | N100: 2.484802465e-05
A101: =IF('DF raw data'!E106="","",'DF raw data'!E106) -> -280.5 | B101: =IF('DF raw data'!F106="","",'DF raw data'!F106) -> -2.68617e-05 | C101: =IF('DF raw data'!G106="","",'DF raw data'!G106) -> 0.000104077 | D101: =IF('DF raw data'!H106="","",'DF raw data'!H106) -> -2.47407e-05 | F101: -2.695571595e-05 | G101: 0.0001044412695 | H101: -2.482729245e-05 | J101: -0.000579531668 | K101: -0.005811968951 | L101: 0.00192537832 | M101: 0.01918702833 | N101: 2.686949396e-05
A102: =IF('DF raw data'!E107="","",'DF raw data'!E107) -> -280 | B102: =IF('DF raw data'!F107="","",'DF raw data'!F107) -> -3.32617e-05 | C102: =IF('DF raw data'!G107="","",'DF raw data'!G107) -> 9.98394e-05 | D102: =IF('DF raw data'!H107="","",'DF raw data'!H107) -> -3.15883e-05 | F102: -3.337811595e-05 | G102: 0.0001001888379 | H102: -3.169885905e-05 | J102: -0.000596220726 | K102: -0.006110079314 | L102: 0.001975472739 | M102: 0.0201747647 | N102: 2.899847981e-05
A103: =IF('DF raw data'!E108="","",'DF raw data'!E108) -> -279.5 | B103: =IF('DF raw data'!F108="","",'DF raw data'!F108) -> -2.35906e-05 | C103: =IF('DF raw data'!G108="","",'DF raw data'!G108) -> 9.75028e-05 | D103: =IF('DF raw data'!H108="","",'DF raw data'!H108) -> -2.96962e-05 | F103: -2.36731671e-05 | G103: 9.78440598e-05 | H103: -2.98001367e-05 | J103: -0.0006080573095 | K103: -0.006414107969 | L103: 0.002024394769 | M103: 0.02118696208 | N103: 3.123243375e-05
A104: =IF('DF raw data'!E109="","",'DF raw data'!E109) -> -279 | B104: =IF('DF raw data'!F109="","",'DF raw data'!F109) -> -2.33336e-05 | C104: =IF('DF raw data'!G109="","",'DF raw data'!G109) -> 9.4224e-05 | D104: =IF('DF raw data'!H109="","",'DF raw data'!H109) -> -2.73629e-05 | F104: -2.34152676e-05 | G104: 9.4553784e-05 | H104: -2.745867015e-05 | J104: -0.0006197649433 | K104: -0.006723990441 | L104: 0.002071671661 | M104: 0.02222279791 | N104: 3.357039978e-05
A105: =IF('DF raw data'!E110="","",'DF raw data'!E110) -> -278.5 | B105: =IF('DF raw data'!F110="","",'DF raw data'!F110) -> -3.19876e-05 | C105: =IF('DF raw data'!G110="","",'DF raw data'!G110) -> 9.68216e-05 | D105: =IF('DF raw data'!H110="","",'DF raw data'!H110) -> -2.52869e-05 | F105: -3.20995566e-05 | G105: 9.71604756e-05 | H105: -2.537540415e-05 | J105: -0.0006358147216 | K105: -0.007041897802 | L105: 0.002120251899 | M105: 0.02328292386 | N105: 3.602026402e-05
A106: =IF('DF raw data'!E111="","",'DF raw data'!E111) -> -278 | B106: =IF('DF raw data'!F111="","",'DF raw data'!F111) -> -2.23739e-05 | C106: =IF('DF raw data'!G111="","",'DF raw data'!G111) -> 0.000104203 | D106: =IF('DF raw data'!H111="","",'DF raw data'!H111) -> -2.55831e-05 | F106: -2.245220865e-05 | G106: 0.0001045677105 | H106: -2.567264085e-05 | J106: -0.000647040826 | K106: -0.007365418215 | L106: 0.002172535754 | M106: 0.02436919174 | N106: 3.858955073e-05
A107: =IF('DF raw data'!E112="","",'DF raw data'!E112) -> -277.5 | B107: =IF('DF raw data'!F112="","",'DF raw data'!F112) -> -2.1226e-05 | C107: =IF('DF raw data'!G112="","",'DF raw data'!G112) -> 0.000105014 | D107: =IF('DF raw data'!H112="","",'DF raw data'!H112) -> -1.99704e-05 | F107: -2.1300291e-05 | G107: 0.000105381549 | H107: -2.00402964e-05 | J107: -0.0006576909715 | K107: -0.0076942637 | L107: 0.002225226529 | M107: 0.025481805 | N107: 4.128164599e-05
A108: =IF('DF raw data'!E113="","",'DF raw data'!E113) -> -277 | B108: =IF('DF raw data'!F113="","",'DF raw data'!F113) -> -2.73125e-05 | C108: =IF('DF raw data'!G113="","",'DF raw data'!G113) -> 0.000108302 | D108: =IF('DF raw data'!H113="","",'DF raw data'!H113) -> -1.75597e-05 | F108: -2.740809375e-05 | G108: 0.000108681057 | H108: -1.762115895e-05 | J108: -0.0006713950183 | K108: -0.008029961209 | L108: 0.002279567057 | M108: 0.02662158853 | N108: 4.410524461e-05
A109: =IF('DF raw data'!E114="","",'DF raw data'!E114) -> -276.5 | B109: =IF('DF raw data'!F114="","",'DF raw data'!F114) -> -3.34016e-05 | C109: =IF('DF raw data'!G114="","",'DF raw data'!G114) -> 0.00010269 | D109: =IF('DF raw data'!H114="","",'DF raw data'!H114) -> -1.84879e-05 | F109: -3.35185056e-05 | G109: 0.000103049415 | H109: -1.855260765e-05 | J109: -0.0006881542711 | K109: -0.008374038345 | L109: 0.002331091765 | M109: 0.02778713442 | N109: 4.705901717e-05
A110: =IF('DF raw data'!E115="","",'DF raw data'!E115) -> -276 | B110: =IF('DF raw data'!F115="","",'DF raw data'!F115) -> -3.60865e-05 | C110: =IF('DF raw data'!G115="","",'DF raw data'!G115) -> 9.27496e-05 | D110: =IF('DF raw data'!H115="","",'DF raw data'!H115) -> -2.29072e-05 | F110: -3.621280275e-05 | G110: 9.30742236e-05 | H110: -2.29873752e-05 | J110: -0.0007062606725 | K110: -0.008727168681 | L110: 0.002377628877 | M110: 0.02897594885 | N110: 5.013497878e-05
A111: =IF('DF raw data'!E116="","",'DF raw data'!E116) -> -275.5 | B111: =IF('DF raw data'!F116="","",'DF raw data'!F116) -> -3.78125e-05 | C111: =IF('DF raw data'!G116="","",'DF raw data'!G116) -> 9.4227e-05 | D111: =IF('DF raw data'!H116="","",'DF raw data'!H116) -> -3.44202e-05 | F111: -3.794484375e-05 | G111: 9.45567945e-05 | H111: -3.45406707e-05 | J111: -0.0007252330944 | K111: -0.009089785228 | L111: 0.002424907274 | M111: 0.03018840249 | N111: 5.333804794e-05
A112: =IF('DF raw data'!E117="","",'DF raw data'!E117) -> -275 | B112: =IF('DF raw data'!F117="","",'DF raw data'!F117) -> -3.02624e-05 | C112: =IF('DF raw data'!G117="","",'DF raw data'!G117) -> 9.55779e-05 | D112: =IF('DF raw data'!H117="","",'DF raw data'!H117) -> -1.32373e-05 | F112: -3.03683184e-05 | G112: 9.591242265e-05 | H112: -1.328363055e-05 | J112: -0.0007404172536 | K112: -0.009459993855 | L112: 0.002472863485 | M112: 0.03142483423 | N112: 5.66696837e-05
A113: =IF('DF raw data'!E118="","",'DF raw data'!E118) -> -274.5 | B113: =IF('DF raw data'!F118="","",'DF raw data'!F118) -> -3.85278e-05 | C113: =IF('DF raw data'!G118="","",'DF raw data'!G118) -> 9.6857e-05 | D113: =IF('DF raw data'!H118="","",'DF raw data'!H118) -> -1.87617e-05 | F113: -3.86626473e-05 | G113: 9.71959995e-05 | H113: -1.882736595e-05 | J113: -0.0007597485772 | K113: -0.009839868144 | L113: 0.002521461485 | M113: 0.03268556498 | N113: 6.013717666e-05
A114: =IF('DF raw data'!E119="","",'DF raw data'!E119) -> -274 | B114: =IF('DF raw data'!F119="","",'DF raw data'!F119) -> -3.66623e-05 | C114: =IF('DF raw data'!G119="","",'DF raw data'!G119) -> 9.51308e-05 | D114: =IF('DF raw data'!H119="","",'DF raw data'!H119) -> -2.4137e-05 | F114: -3.679061805e-05 | G114: 9.54637578e-05 | H114: -2.42214795e-05 | J114: -0.0007781438862 | K114: -0.01022894009 | L114: 0.002569193364 | M114: 0.03397016166 | N114: 6.374030789e-05
A115: =IF('DF raw data'!E120="","",'DF raw data'!E120) -> -273.5 | B115: =IF('DF raw data'!F120="","",'DF raw data'!F120) -> -2.97495e-05 | C115: =IF('DF raw data'!G120="","",'DF raw data'!G120) -> 9.31785e-05 | D115: =IF('DF raw data'!H120="","",'DF raw data'!H120) -> -1.83323e-05 | F115: -2.985362325e-05 | G115: 9.350462475e-05 | H115: -1.839646305e-05 | J115: -0.0007930706979 | K115: -0.01062547544 | L115: 0.002615945676 | M115: 0.0352781345 | N115: 6.747637435e-05
A116: =IF('DF raw data'!E121="","",'DF raw data'!E121) -> -273 | B116: =IF('DF raw data'!F121="","",'DF raw data'!F121) -> -3.73024e-05 | C116: =IF('DF raw data'!G121="","",'DF raw data'!G121) -> 9.35241e-05 | D116: =IF('DF raw data'!H121="","",'DF raw data'!H121) -> -2.47124e-05 | F116: -3.74329584e-05 | G116: 9.385143435e-05 | H116: -2.47988934e-05 | J116: -0.0008117871771 | K116: -0.01103136902 | L116: 0.002662871393 | M116: 0.03660957019 | N116: 7.135131559e-05
A117: =IF('DF raw data'!E122="","",'DF raw data'!E122) -> -272.5 | B117: =IF('DF raw data'!F122="","",'DF raw data'!F122) -> -4.69193e-05 | C117: =IF('DF raw data'!G122="","",'DF raw data'!G122) -> 9.7922e-05 | D117: =IF('DF raw data'!H122="","",'DF raw data'!H122) -> -2.3101e-05 | F117: -4.708351755e-05 | G117: 9.8264727e-05 | H117: -2.31818535e-05 | J117: -0.0008353289359 | K117: -0.01144903349 | L117: 0.002712003757 | M117: 0.03796557207 | N117: 7.537768499e-05
A118: =IF('DF raw data'!E123="","",'DF raw data'!E123) -> -272 | B118: =IF('DF raw data'!F123="","",'DF raw data'!F123) -> -3.56344e-05 | C118: =IF('DF raw data'!G123="","",'DF raw data'!G123) -> 9.64753e-05 | D118: =IF('DF raw data'!H123="","",'DF raw data'!H123) -> -2.82268e-05 | F118: -3.57591204e-05 | G118: 9.681296355e-05 | H118: -2.83255938e-05 | J118: -0.0008532084961 | K118: -0.01187563774 | L118: 0.002760410239 | M118: 0.03934577719 | N118: 7.95515997e-05
A119: =IF('DF raw data'!E124="","",'DF raw data'!E124) -> -271.5 | B119: =IF('DF raw data'!F124="","",'DF raw data'!F124) -> -3.64727e-05 | C119: =IF('DF raw data'!G124="","",'DF raw data'!G124) -> 9.60314e-05 | D119: =IF('DF raw data'!H124="","",'DF raw data'!H124) -> -2.62891e-05 | F119: -3.660035445e-05 | G119: 9.63675099e-05 | H119: -2.638111185e-05 | J119: -0.0008715086733 | K119: -0.01231139208 | L119: 0.002808593994 | M119: 0.04075007419 | N119: 8.38754635e-05
A120: =IF('DF raw data'!E125="","",'DF raw data'!E125) -> -271 | B120: =IF('DF raw data'!F125="","",'DF raw data'!F125) -> -2.40473e-05 | C120: =IF('DF raw data'!G125="","",'DF raw data'!G125) -> 9.46409e-05 | D120: =IF('DF raw data'!H125="","",'DF raw data'!H125) -> -1.33698e-05 | F120: -2.413146555e-05 | G120: 9.497214315e-05 | H120: -1.34165943e-05 | J120: -0.0008835744061 | K120: -0.01275317928 | L120: 0.002856080065 | M120: 0.04217811422 | N120: 8.834441203e-05
A121: =IF('DF raw data'!E126="","",'DF raw data'!E126) -> -270.5 | B121: =IF('DF raw data'!F126="","",'DF raw data'!F126) -> -2.31513e-05 | C121: =IF('DF raw data'!G126="","",'DF raw data'!G126) -> 9.66083e-05 | D121: =IF('DF raw data'!H126="","",'DF raw data'!H126) -> -1.60274e-05 | F121: -2.323232955e-05 | G121: 9.694642905e-05 | H121: -1.60834959e-05 | J121: -0.0008951905708 | K121: -0.01320077457 | L121: 0.00290455328 | M121: 0.04363039086 | N121: 9.296330999e-05
A122: =IF('DF raw data'!E127="","",'DF raw data'!E127) -> -270 | B122: =IF('DF raw data'!F127="","",'DF raw data'!F127) -> -2.26293e-05 | C122: =IF('DF raw data'!G127="","",'DF raw data'!G127) -> 9.81717e-05 | D122: =IF('DF raw data'!H127="","",'DF raw data'!H127) -> -2.66729e-05 | F122: -2.270850255e-05 | G122: 9.851530095e-05 | H122: -2.676625515e-05 | J122: -0.0009065448221 | K122: -0.01365404698 | L122: 0.00295381093 | M122: 0.04510729632 | N122: 9.773672125e-05
A123: =IF('DF raw data'!E128="","",'DF raw data'!E128) -> -269.5 | B123: =IF('DF raw data'!F128="","",'DF raw data'!F128) -> -2.84712e-05 | C123: =IF('DF raw data'!G128="","",'DF raw data'!G128) -> 9.54552e-05 | D123: =IF('DF raw data'!H128="","",'DF raw data'!H128) -> -1.35976e-05 | F123: -2.85708492e-05 | G123: 9.57892932e-05 | H123: -1.36451916e-05 | J123: -0.0009208302467 | K123: -0.0141144621 | L123: 0.003001705577 | M123: 0.04660814911 | N123: 0.0001026658036
A124: =IF('DF raw data'!E129="","",'DF raw data'!E129) -> -269 | B124: =IF('DF raw data'!F129="","",'DF raw data'!F129) -> -2.36519e-05 | C124: =IF('DF raw data'!G129="","",'DF raw data'!G129) -> 9.40875e-05 | D124: =IF('DF raw data'!H129="","",'DF raw data'!H129) -> -3.05621e-05 | F124: -2.373468165e-05 | G124: 9.441680625e-05 | H124: -3.066906735e-05 | J124: -0.0009326975875 | K124: -0.01458081089 | L124: 0.00304891398 | M124: 0.0481326061 | N124: 0.0001077487042
A125: =IF('DF raw data'!E130="","",'DF raw data'!E130) -> -268.5 | B125: =IF('DF raw data'!F130="","",'DF raw data'!F130) -> -4.23625e-05 | C125: =IF('DF raw data'!G130="","",'DF raw data'!G130) -> 0.000104656 | D125: =IF('DF raw data'!H130="","",'DF raw data'!H130) -> -3.38835e-05 | F125: -4.251076875e-05 | G125: 0.000105022296 | H125: -3.400209225e-05 | J125: -0.0009539529719 | K125: -0.01505778738 | L125: 0.003101425128 | M125: 0.04968331867 | N125: 0.0001130131363
A126: =IF('DF raw data'!E131="","",'DF raw data'!E131) -> -268 | B126: =IF('DF raw data'!F131="","",'DF raw data'!F131) -> -2.59671e-05 | C126: =IF('DF raw data'!G131="","",'DF raw data'!G131) -> 0.000104314 | D126: =IF('DF raw data'!H131="","",'DF raw data'!H131) -> -1.70967e-05 | F126: -2.605798485e-05 | G126: 0.000104679099 | H126: -1.715653845e-05 | J126: -0.0009669819643 | K126: -0.01554127836 | L126: 0.003153764677 | M126: 0.05126020101 | N126: 0.0001184537792
A127: =IF('DF raw data'!E132="","",'DF raw data'!E132) -> -267.5 | B127: =IF('DF raw data'!F132="","",'DF raw data'!F132) -> -2.96142e-05 | C127: =IF('DF raw data'!G132="","",'DF raw data'!G132) -> 9.40708e-05 | D127: =IF('DF raw data'!H132="","",'DF raw data'!H132) -> -2.93586e-05 | F127: -2.97178497e-05 | G127: 9.44000478e-05 | H127: -2.94613551e-05 | J127: -0.0009818408892 | K127: -0.01603219881 | L127: 0.003200964701 | M127: 0.05286068336 | N127: 0.0001240588724
A128: =IF('DF raw data'!E133="","",'DF raw data'!E133) -> -267 | B128: =IF('DF raw data'!F133="","",'DF raw data'!F133) -> -2.55838e-05 | C128: =IF('DF raw data'!G133="","",'DF raw data'!G133) -> 9.87711e-05 | D128: =IF('DF raw data'!H133="","",'DF raw data'!H133) -> -1.53164e-05 | F128: =(1-$G$1*($B$49-$G$2))*B128 -> -2.56733433e-05 | G128: 9.911679885e-05 | H128: -1.53700074e-05 | J128: =F128*$G$3+J127 -> -0.0009946775608 | K128: =J128*$G$3+K127 -> -0.01652953759 | L128: =G128*$G$3+L127 -> 0.003250523101 | M128: =L128*$G$3+M127 -> 0.05448594491 | N128: =(J128^2+L128^2)*$G$3+N127 -> 0.0001298365144
A129: =IF('DF raw data'!E134="","",'DF raw data'!E134) -> -266.5 | B129: =IF('DF raw data'!F134="","",'DF raw data'!F134) -> -3.61508e-05 | C129: =IF('DF raw data'!G134="","",'DF raw data'!G134) -> 0.000101043 | D129: =IF('DF raw data'!H134="","",'DF raw data'!H134) -> -2.83967e-05 | F129: -3.62773278e-05 | G129: 0.0001013966505 | H129: -2.849608845e-05 | J129: -0.001012816225 | K129: -0.0170359457 | L129: 0.003301221426 | M129: 0.05613655562 | N129: 0.0001357984442
A130: =IF('DF raw data'!E135="","",'DF raw data'!E135) -> -266 | B130: =IF('DF raw data'!F135="","",'DF raw data'!F135) -> -3.84027e-05 | C130: =IF('DF raw data'!G135="","",'DF raw data'!G135) -> 0.000108426 | D130: =IF('DF raw data'!H135="","",'DF raw data'!H135) -> -7.88489e-06 | F130: -3.853710945e-05 | G130: 0.000108805491 | H130: -7.912487115e-06 | J130: -0.001032084779 | K130: -0.01755198809 | L130: 0.003355624172 | M130: 0.05781436771 | N130: 0.0001419611505
A131: =IF('DF raw data'!E136="","",'DF raw data'!E136) -> -265.5 | B131: =IF('DF raw data'!F136="","",'DF raw data'!F136) -> -3.57711e-05 | C131: =IF('DF raw data'!G136="","",'DF raw data'!G136) -> 0.000100984 | D131: =IF('DF raw data'!H136="","",'DF raw data'!H136) -> -2.10233e-05 | F131: -3.589629885e-05 | G131: 0.000101337444 | H131: -2.109688155e-05 | J131: -0.001050032929 | K131: -0.01807700455 | L131: 0.003406292894 | M131: 0.05951751415 | N131: 0.0001483138507
A132: =IF('DF raw data'!E137="","",'DF raw data'!E137) -> -265 | B132: =IF('DF raw data'!F137="","",'DF raw data'!F137) -> -2.4877e-05 | C132: =IF('DF raw data'!G137="","",'DF raw data'!G137) -> 9.66889e-05 | D132: =IF('DF raw data'!H137="","",'DF raw data'!H137) -> -1.82445e-05 | F132: -2.49640695e-05 | G132: 9.702731115e-05 | H132: -1.830835575e-05 | J132: -0.001062514964 | K132: -0.01860826204 | L132: 0.003454806549 | M132: 0.06124491743 | N132: 0.0001548461639
A133: =IF('DF raw data'!E138="","",'DF raw data'!E138) -> -264.5 | B133: =IF('DF raw data'!F138="","",'DF raw data'!F138) -> -2.59155e-05 | C133: =IF('DF raw data'!G138="","",'DF raw data'!G138) -> 9.94757e-05 | D133: =IF('DF raw data'!H138="","",'DF raw data'!H138) -> -2.3559e-06 | F133: -2.600620425e-05 | G133: 9.982386495e-05 | H133: -2.36414565e-06 | J133: -0.001075518066 | K133: -0.01914602107 | L133: 0.003504718482 | M133: 0.06299727667 | N133: 0.0001615660592
A134: =IF('DF raw data'!E139="","",'DF raw data'!E139) -> -264 | B134: =IF('DF raw data'!F139="","",'DF raw data'!F139) -> -3.16654e-05 | C134: =IF('DF raw data'!G139="","",'DF raw data'!G139) -> 0.000104652 | D134: =IF('DF raw data'!H139="","",'DF raw data'!H139) -> -2.29506e-05 | F134: -3.17762289e-05 | G134: 0.000105018282 | H134: -2.30309271e-05 | J134: -0.00109140618 | K134: -0.01969172416 | L134: 0.003557227623 | M134: 0.06477589048 | N134: 0.0001684885771
A135: =IF('DF raw data'!E140="","",'DF raw data'!E140) -> -263.5 | B135: =IF('DF raw data'!F140="","",'DF raw data'!F140) -> -3.16698e-05 | C135: =IF('DF raw data'!G140="","",'DF raw data'!G140) -> 0.000101558 | D135: =IF('DF raw data'!H140="","",'DF raw data'!H140) -> -2.1407e-05 | F135: -3.17806443e-05 | G135: 0.000101913453 | H135: -2.14819245e-05 | J135: -0.001107296502 | K135: -0.02024537241 | L135: 0.003608184349 | M135: 0.06657998265 | N135: 0.000175611127
A136: =IF('DF raw data'!E141="","",'DF raw data'!E141) -> -263 | B136: =IF('DF raw data'!F141="","",'DF raw data'!F141) -> -3.17276e-05 | C136: =IF('DF raw data'!G141="","",'DF raw data'!G141) -> 9.51622e-05 | D136: =IF('DF raw data'!H141="","",'DF raw data'!H141) -> -2.60075e-05 | F136: -3.18386466e-05 | G136: 9.54952677e-05 | H136: -2.609852625e-05 | J136: -0.001123215826 | K136: -0.02080698032 | L136: 0.003655931983 | M136: 0.06840794865 | N136: 0.0001829248533
A137: =IF('DF raw data'!E142="","",'DF raw data'!E142) -> -262.5 | B137: =IF('DF raw data'!F142="","",'DF raw data'!F142) -> -2.69911e-05 | C137: =IF('DF raw data'!G142="","",'DF raw data'!G142) -> 8.77807e-05 | D137: =IF('DF raw data'!H142="","",'DF raw data'!H142) -> -2.3249e-05 | F137: -2.708556885e-05 | G137: 8.808793245e-05 | H137: -2.33303715e-05 | J137: -0.00113675861 | K137: -0.02137535963 | L137: 0.003699975949 | M137: 0.07025793662 | N137: 0.0001904158744
A138: =IF('DF raw data'!E143="","",'DF raw data'!E143) -> -262 | B138: =IF('DF raw data'!F143="","",'DF raw data'!F143) -> -2.41662e-05 | C138: =IF('DF raw data'!G143="","",'DF raw data'!G143) -> 9.23014e-05 | D138: =IF('DF raw data'!H143="","",'DF raw data'!H143) -> -2.78092e-05 | F138: -2.42507817e-05 | G138: 9.26244549e-05 | H138: -2.79065322e-05 | J138: -0.001148884001 | K138: -0.02194980163 | L138: 0.003746288177 | M138: 0.07213108071 | N138: 0.0001980931791
A139: =IF('DF raw data'!E144="","",'DF raw data'!E144) -> -261.5 | B139: =IF('DF raw data'!F144="","",'DF raw data'!F144) -> -1.83532e-05 | C139: =IF('DF raw data'!G144="","",'DF raw data'!G144) -> 9.25226e-05 | D139: =IF('DF raw data'!H144="","",'DF raw data'!H144) -> -3.79345e-06 | F139: -1.84174362e-05 | G139: 9.28464291e-05 | H139: -3.806727075e-06 | J139: -0.001158092719 | K139: -0.02252884799 | L139: 0.003792711391 | M139: 0.0740274364 | N139: 0.0002059560984
A140: =IF('DF raw data'!E145="","",'DF raw data'!E145) -> -261 | B140: =IF('DF raw data'!F145="","",'DF raw data'!F145) -> -1.60968e-05 | C140: =IF('DF raw data'!G145="","",'DF raw data'!G145) -> 9.55538e-05 | D140: =IF('DF raw data'!H145="","",'DF raw data'!H145) -> -2.25967e-05 | F140: -1.61531388e-05 | G140: 9.58882383e-05 | H140: -2.267578845e-05 | J140: -0.001166169288 | K140: -0.02311193263 | L140: 0.00384065551 | M140: 0.07594776416 | N140: 0.0002140113911
A141: =IF('DF raw data'!E146="","",'DF raw data'!E146) -> -260.5 | B141: =IF('DF raw data'!F146="","",'DF raw data'!F146) -> -3.14791e-05 | C141: =IF('DF raw data'!G146="","",'DF raw data'!G146) -> 9.04887e-05 | D141: =IF('DF raw data'!H146="","",'DF raw data'!H146) -> -1.92761e-05 | F141: -3.158927685e-05 | G141: 9.080541045e-05 | H141: -1.934356635e-05 | J141: -0.001181963927 | K141: -0.02370291459 | L141: 0.003886058216 | M141: 0.07789079327 | N141: 0.0002222606347
A142: =IF('DF raw data'!E147="","",'DF raw data'!E147) -> -260 | B142: =IF('DF raw data'!F147="","",'DF raw data'!F147) -> -2.89766e-05 | C142: =IF('DF raw data'!G147="","",'DF raw data'!G147) -> 8.14288e-05 | D142: =IF('DF raw data'!H147="","",'DF raw data'!H147) -> -1.98803e-05 | F142: -2.90780181e-05 | G142: 8.17138008e-05 | H142: -1.994988105e-05 | J142: -0.001196502936 | K142: -0.02430116606 | L142: 0.003926915116 | M142: 0.07985425083 | N142: 0.0002306867755
A143: =IF('DF raw data'!E148="","",'DF raw data'!E148) -> -259.5 | B143: =IF('DF raw data'!F148="","",'DF raw data'!F148) -> -2.32764e-05 | C143: =IF('DF raw data'!G148="","",'DF raw data'!G148) -> 8.91902e-05 | D143: =IF('DF raw data'!H148="","",'DF raw data'!H148) -> -2.06748e-05 | F143: -2.33578674e-05 | G143: 8.95023657e-05 | H143: -2.07471618e-05 | J143: -0.00120818187 | K143: -0.024905257 | L143: 0.003971666299 | M143: 0.08184008397 | N143: 0.0002393036938
A144: =IF('DF raw data'!E149="","",'DF raw data'!E149) -> -259 | B144: =IF('DF raw data'!F149="","",'DF raw data'!F149) -> -3.37766e-05 | C144: =IF('DF raw data'!G149="","",'DF raw data'!G149) -> 9.3883e-05 | D144: =IF('DF raw data'!H149="","",'DF raw data'!H149) -> -2.80522e-05 | F144: -3.38948181e-05 | G144: 9.42115905e-05 | H144: -2.81503827e-05 | J144: -0.001225129279 | K144: -0.02551782164 | L144: 0.004018772094 | M144: 0.08384947002 | N144: 0.0002481294293
A145: =IF('DF raw data'!E150="","",'DF raw data'!E150) -> -258.5 | B145: =IF('DF raw data'!F150="","",'DF raw data'!F150) -> -2.88464e-05 | C145: =IF('DF raw data'!G150="","",'DF raw data'!G150) -> 9.11069e-05 | D145: =IF('DF raw data'!H150="","",'DF raw data'!H150) -> -2.76931e-05 | F145: -2.89473624e-05 | G145: 9.142577415e-05 | H145: -2.779002585e-05 | J145: -0.00123960296 | K145: -0.02613762312 | L145: 0.004064484981 | M145: 0.08588171251 | N145: 0.0002571577561
A146: =IF('DF raw data'!E151="","",'DF raw data'!E151) -> -258 | B146: =IF('DF raw data'!F151="","",'DF raw data'!F151) -> -3.44286e-05 | C146: =IF('DF raw data'!G151="","",'DF raw data'!G151) -> 8.72347e-05 | D146: =IF('DF raw data'!H151="","",'DF raw data'!H151) -> -1.05725e-05 | F146: -3.45491001e-05 | G146: 8.754002145e-05 | H146: -1.060950375e-05 | J146: -0.00125687751 | K146: -0.02676606187 | L146: 0.004108254992 | M146: 0.08793584001 | N146: 0.0002663865062
A147: =IF('DF raw data'!E152="","",'DF raw data'!E152) -> -257.5 | B147: =IF('DF raw data'!F152="","",'DF raw data'!F152) -> -3.70561e-05 | C147: =IF('DF raw data'!G152="","",'DF raw data'!G152) -> 8.2431e-05 | D147: =IF('DF raw data'!H152="","",'DF raw data'!H152) -> -1.52491e-05 | F147: -3.718579635e-05 | G147: 8.27195085e-05 | H147: -1.530247185e-05 | J147: -0.001275470408 | K147: -0.02740379708 | L147: 0.004149614746 | M147: 0.09001064738 | N147: 0.0002758095698
A148: =IF('DF raw data'!E153="","",'DF raw data'!E153) -> -257 | B148: =IF('DF raw data'!F153="","",'DF raw data'!F153) -> -3.87101e-05 | C148: =IF('DF raw data'!G153="","",'DF raw data'!G153) -> 8.66778e-05 | D148: =IF('DF raw data'!H153="","",'DF raw data'!H153) -> -2.80162e-05 | F148: -3.884558535e-05 | G148: 8.69811723e-05 | H148: -2.81142567e-05 | J148: -0.001294893201 | K148: -0.02805124368 | L148: 0.004193105332 | M148: 0.09210720005 | N148: 0.0002854390102
A149: =IF('DF raw data'!E154="","",'DF raw data'!E154) -> -256.5 | B149: =IF('DF raw data'!F154="","",'DF raw data'!F154) -> -2.67356e-05 | C149: =IF('DF raw data'!G154="","",'DF raw data'!G154) -> 9.1923e-05 | D149: =IF('DF raw data'!H154="","",'DF raw data'!H154) -> -2.15816e-05 | F149: -2.68291746e-05 | G149: 9.22447305e-05 | H149: -2.16571356e-05 | J149: -0.001308307788 | K149: -0.02870539757 | L149: 0.004239227698 | M149: 0.0942268139 | N149: 0.0002952803706
A150: =IF('DF raw data'!E155="","",'DF raw data'!E155) -> -256 | B150: =IF('DF raw data'!F155="","",'DF raw data'!F155) -> -3.32753e-05 | C150: =IF('DF raw data'!G155="","",'DF raw data'!G155) -> 8.92517e-05 | D150: =IF('DF raw data'!H155="","",'DF raw data'!H155) -> -1.11701e-05 | F150: -3.339176355e-05 | G150: 8.956408095e-05 | H150: -1.120919535e-05 | J150: -0.00132500367 | K150: -0.0293678994 | L150: 0.004284009738 | M150: 0.09636881877 | N150: 0.0003053345577
A151: =IF('DF raw data'!E156="","",'DF raw data'!E156) -> -255.5 | B151: =IF('DF raw data'!F156="","",'DF raw data'!F156) -> -3.52627e-05 | C151: =IF('DF raw data'!G156="","",'DF raw data'!G156) -> 8.73825e-05 | D151: =IF('DF raw data'!H156="","",'DF raw data'!H156) -> -1.38936e-05 | F151: -3.538611945e-05 | G151: 8.768833875e-05 | H151: -1.39422276e-05 | J151: -0.00134269673 | K151: -0.03003924777 | L151: 0.004327853907 | M151: 0.09853274572 | N151: 0.0003156011346
A152: =IF('DF raw data'!E157="","",'DF raw data'!E157) -> -255 | B152: =IF('DF raw data'!F157="","",'DF raw data'!F157) -> -2.46829e-05 | C152: =IF('DF raw data'!G157="","",'DF raw data'!G157) -> 9.56879e-05 | D152: =IF('DF raw data'!H157="","",'DF raw data'!H157) -> -2.1833e-05 | F152: -2.476929015e-05 | G152: 9.602280765e-05 | H152: -2.19094155e-05 | J152: -0.001355081375 | K152: -0.03071678846 | L152: 0.004375865311 | M152: 0.1007206784 | N152: 0.000326093356
A153: =IF('DF raw data'!E158="","",'DF raw data'!E158) -> -254.5 | B153: =IF('DF raw data'!F158="","",'DF raw data'!F158) -> -4.00085e-05 | C153: =IF('DF raw data'!G158="","",'DF raw data'!G158) -> 8.99114e-05 | D153: =IF('DF raw data'!H158="","",'DF raw data'!H158) -> -7.53651e-06 | F153: -4.014852975e-05 | G153: 9.02260899e-05 | H153: -7.562887785e-06 | J153: -0.001375155639 | K153: -0.03140436628 | L153: 0.004420978356 | M153: 0.1029311676 | N153: 0.0003368114073
A154: =IF('DF raw data'!E159="","",'DF raw data'!E159) -> -254 | B154: =IF('DF raw data'!F159="","",'DF raw data'!F159) -> -2.78263e-05 | C154: =IF('DF raw data'!G159="","",'DF raw data'!G159) -> 0.000105366 | D154: =IF('DF raw data'!H159="","",'DF raw data'!H159) -> -1.59298e-05 | F154: -2.792369205e-05 | G154: 0.000105734781 | H154: -1.59855543e-05 | J154: -0.001389117486 | K154: -0.03209892502 | L154: 0.004473845747 | M154: 0.1051680904 | N154: 0.0003477838789
A155: =IF('DF raw data'!E160="","",'DF raw data'!E160) -> -253.5 | B155: =IF('DF raw data'!F160="","",'DF raw data'!F160) -> -2.1161e-05 | C155: =IF('DF raw data'!G160="","",'DF raw data'!G160) -> 0.000111646 | D155: =IF('DF raw data'!H160="","",'DF raw data'!H160) -> -2.13918e-05 | F155: -2.12350635e-05 | G155: 0.000112036761 | H155: -2.14666713e-05 | J155: -0.001399735017 | K155: -0.03279879253 | L155: 0.004529864127 | M155: 0.1074330225 | N155: 0.0003590233425
A156: =IF('DF raw data'!E161="","",'DF raw data'!E161) -> -253 | B156: =IF('DF raw data'!F161="","",'DF raw data'!F161) -> -2.37941e-05 | C156: =IF('DF raw data'!G161="","",'DF raw data'!G161) -> 9.56392e-05 | D156: =IF('DF raw data'!H161="","",'DF raw data'!H161) -> -9.34404e-06 | F156: -2.387737935e-05 | G156: 9.59739372e-05 | H156: -9.37674414e-06 | J156: -0.001411673707 | K156: -0.03350462938 | L156: 0.004577851096 | M156: 0.109721948 | N156: 0.0003704981141
A157: =IF('DF raw data'!E162="","",'DF raw data'!E162) -> -252.5 | B157: =IF('DF raw data'!F162="","",'DF raw data'!F162) -> -1.80242e-05 | C157: =IF('DF raw data'!G162="","",'DF raw data'!G162) -> 9.13505e-05 | D157: =IF('DF raw data'!H162="","",'DF raw data'!H162) -> -1.68563e-05 | F157: -1.80872847e-05 | G157: 9.167022675e-05 | H157: -1.691529705e-05 | J157: -0.001420717349 | K157: -0.03421498806 | L157: 0.004623686209 | M157: 0.1120337911 | N157: 0.0003821965701
A158: =IF('DF raw data'!E163="","",'DF raw data'!E163) -> -252 | B158: =IF('DF raw data'!F163="","",'DF raw data'!F163) -> -2.03279e-05 | C158: =IF('DF raw data'!G163="","",'DF raw data'!G163) -> 0.000100888 | D158: =IF('DF raw data'!H163="","",'DF raw data'!H163) -> -1.8959e-05 | F158: -2.039904765e-05 | G158: 0.000101241108 | H158: -1.90253565e-05 | J158: -0.001430916873 | K158: -0.03493044649 | L158: 0.004674306763 | M158: 0.1143709445 | N158: 0.0003941449035
A159: =IF('DF raw data'!E164="","",'DF raw data'!E164) -> -251.5 | B159: =IF('DF raw data'!F164="","",'DF raw data'!F164) -> -3.32713e-05 | C159: =IF('DF raw data'!G164="","",'DF raw data'!G164) -> 0.000108891 | D159: =IF('DF raw data'!H164="","",'DF raw data'!H164) -> -2.1422e-05 | F159: -3.338774955e-05 | G159: 0.0001092721185 | H159: -2.1496977e-05 | J159: -0.001447610748 | K159: -0.03565425187 | L159: 0.004728942822 | M159: 0.1167354159 | N159: 0.0004063741421
A160: =IF('DF raw data'!E165="","",'DF raw data'!E165) -> -251 | B160: =IF('DF raw data'!F165="","",'DF raw data'!F165) -> -2.83332e-05 | C160: =IF('DF raw data'!G165="","",'DF raw data'!G165) -> 0.000114171 | D160: =IF('DF raw data'!H165="","",'DF raw data'!H165) -> -2.46503e-05 | F160: -2.84323662e-05 | G160: 0.0001145705985 | H160: -2.473657605e-05 | J160: -0.001461826931 | K160: -0.03638516533 | L160: 0.004786228122 | M160: 0.11912853 | N160: 0.0004188966009
A161: =IF('DF raw data'!E166="","",'DF raw data'!E166) -> -250.5 | B161: =IF('DF raw data'!F166="","",'DF raw data'!F166) -> -2.99428e-05 | C161: =IF('DF raw data'!G166="","",'DF raw data'!G166) -> 0.000104991 | D161: =IF('DF raw data'!H166="","",'DF raw data'!H166) -> -1.6366e-05 | F161: -3.00475998e-05 | G161: 0.0001053584685 | H161: -1.6423281e-05 | J161: -0.001476850731 | K161: -0.0371235907 | L161: 0.004838907356 | M161: 0.1215479837 | N161: 0.0004316946571
A162: =IF('DF raw data'!E167="","",'DF raw data'!E167) -> -250 | B162: =IF('DF raw data'!F167="","",'DF raw data'!F167) -> -2.07814e-05 | C162: =IF('DF raw data'!G167="","",'DF raw data'!G167) -> 0.000112246 | D162: =IF('DF raw data'!H167="","",'DF raw data'!H167) -> -1.1306e-05 | F162: -2.08541349e-05 | G162: 0.000112638861 | H162: -1.1345571e-05 | J162: -0.001487277798 | K162: -0.0378672296 | L162: 0.004895226786 | M162: 0.1239955971 | N162: 0.0004447822774
A163: =IF('DF raw data'!E168="","",'DF raw data'!E168) -> -249.5 | B163: =IF('DF raw data'!F168="","",'DF raw data'!F168) -> -3.03274e-05 | C163: =IF('DF raw data'!G168="","",'DF raw data'!G168) -> 0.000113452 | D163: =IF('DF raw data'!H168="","",'DF raw data'!H168) -> -1.61763e-05 | F163: -3.04335459e-05 | G163: 0.000113849082 | H163: -1.623291705e-05 | J163: -0.001502494571 | K163: -0.03861847688 | L163: 0.004952151327 | M163: 0.1264716727 | N163: 0.0004581729237
A164: =IF('DF raw data'!E169="","",'DF raw data'!E169) -> -249 | B164: =IF('DF raw data'!F169="","",'DF raw data'!F169) -> -3.03921e-05 | C164: =IF('DF raw data'!G169="","",'DF raw data'!G169) -> 0.000109312 | D164: =IF('DF raw data'!H169="","",'DF raw data'!H169) -> -1.11665e-05 | F164: -3.049847235e-05 | G164: 0.000109694592 | H164: -1.120558275e-05 | J164: -0.001517743807 | K164: -0.03937734879 | L164: 0.005006998623 | M164: 0.128975172 | N164: 0.0004718597145
A165: =IF('DF raw data'!E170="","",'DF raw data'!E170) -> -248.5 | B165: =IF('DF raw data'!F170="","",'DF raw data'!F170) -> -2.69244e-05 | C165: =IF('DF raw data'!G170="","",'DF raw data'!G170) -> 0.000106503 | D165: =IF('DF raw data'!H170="","",'DF raw data'!H170) -> -2.69397e-05 | F165: -2.70186354e-05 | G165: 0.0001068757605 | H165: -2.703398895e-05 | J165: -0.001531253125 | K165: -0.04014297535 | L165: 0.005060436504 | M165: 0.1315053903 | N165: 0.0004858360913
A166: =IF('DF raw data'!E171="","",'DF raw data'!E171) -> -248 | B166: =IF('DF raw data'!F171="","",'DF raw data'!F171) -> -1.75765e-05 | C166: =IF('DF raw data'!G171="","",'DF raw data'!G171) -> 0.000108539 | D166: =IF('DF raw data'!H171="","",'DF raw data'!H171) -> -1.32545e-05 | F166: -1.763801775e-05 | G166: 0.0001089188865 | H166: -1.330089075e-05 | J166: -0.001540072134 | K166: -0.04091301142 | L166: 0.005114895947 | M166: 0.1340628383 | N166: 0.0005001030827
A167: =IF('DF raw data'!E172="","",'DF raw data'!E172) -> -247.5 | B167: =IF('DF raw data'!F172="","",'DF raw data'!F172) -> -2.32202e-05 | C167: =IF('DF raw data'!G172="","",'DF raw data'!G172) -> 0.000106928 | D167: =IF('DF raw data'!H172="","",'DF raw data'!H172) -> -7.91861e-06 | F167: -2.33014707e-05 | G167: 0.000107302248 | H167: -7.946325135e-06 | J167: -0.001551722869 | K167: -0.04168887285 | L167: 0.005168547071 | M167: 0.1366471118 | N167: 0.000514663944
A168: =IF('DF raw data'!E173="","",'DF raw data'!E173) -> -247 | B168: =IF('DF raw data'!F173="","",'DF raw data'!F173) -> -1.52675e-05 | C168: =IF('DF raw data'!G173="","",'DF raw data'!G173) -> 0.000100753 | D168: =IF('DF raw data'!H173="","",'DF raw data'!H173) -> -1.7183e-05 | F168: -1.532093625e-05 | G168: 0.0001011056355 | H168: -1.72431405e-05 | J168: -0.001559383338 | K168: -0.04246856452 | L168: 0.005219099889 | M168: 0.1392566617 | N168: 0.0005294992841
A169: =IF('DF raw data'!E174="","",'DF raw data'!E174) -> -246.5 | B169: =IF('DF raw data'!F174="","",'DF raw data'!F174) -> -2.09055e-05 | C169: =IF('DF raw data'!G174="","",'DF raw data'!G174) -> 8.74815e-05 | D169: =IF('DF raw data'!H174="","",'DF raw data'!H174) -> -2.03149e-05 | F169: -2.097866925e-05 | G169: 8.778768525e-05 | H169: -2.038600215e-05 | J169: -0.001569872672 | K169: -0.04325350086 | L169: 0.005262993731 | M169: 0.1418881586 | N169: 0.0005445810857
A170: =IF('DF raw data'!E175="","",'DF raw data'!E175) -> -246 | B170: =IF('DF raw data'!F175="","",'DF raw data'!F175) -> -3.23045e-05 | C170: =IF('DF raw data'!G175="","",'DF raw data'!G175) -> 9.00247e-05 | D170: =IF('DF raw data'!H175="","",'DF raw data'!H175) -> -2.61632e-05 | F170: -3.241756575e-05 | G170: 9.033978645e-05 | H170: -2.62547712e-05 | J170: -0.001586081455 | K170: -0.04404654158 | L170: 0.005308163624 | M170: 0.1445422404 | N170: 0.0005599272134
A171: =IF('DF raw data'!E176="","",'DF raw data'!E176) -> -245.5 | B171: =IF('DF raw data'!F176="","",'DF raw data'!F176) -> -2.64905e-05 | C171: =IF('DF raw data'!G176="","",'DF raw data'!G176) -> 9.93284e-05 | D171: =IF('DF raw data'!H176="","",'DF raw data'!H176) -> -4.17108e-06 | F171: -2.658321675e-05 | G171: 9.96760494e-05 | H171: -4.18567878e-06 | J171: -0.001599373063 | K171: -0.04484622811 | L171: 0.005358001649 | M171: 0.1472212412 | N171: 0.0005755603013
A172: =IF('DF raw data'!E177="","",'DF raw data'!E177) -> -245 | B172: =IF('DF raw data'!F177="","",'DF raw data'!F177) -> -2.22523e-05 | C172: =IF('DF raw data'!G177="","",'DF raw data'!G177) -> 0.000103698 | D172: =IF('DF raw data'!H177="","",'DF raw data'!H177) -> -1.54954e-05 | F172: -2.233018305e-05 | G172: 0.000104060943 | H172: -1.55496339e-05 | J172: -0.001610538155 | K172: -0.04565149719 | L172: 0.005410032121 | M172: 0.1499262573 | N172: 0.0005914914417
A173: =IF('DF raw data'!E178="","",'DF raw data'!E178) -> -244.5 | B173: =IF('DF raw data'!F178="","",'DF raw data'!F178) -> -3.2307e-05 | C173: =IF('DF raw data'!G178="","",'DF raw data'!G178) -> 9.71551e-05 | D173: =IF('DF raw data'!H178="","",'DF raw data'!H178) -> -2.6255e-05 | F173: -3.24200745e-05 | G173: 9.749514285e-05 | H173: -2.63468925e-05 | J173: -0.001626748192 | K173: -0.04646487129 | L173: 0.005458779692 | M173: 0.1526556472 | N173: 0.0006077137344
A174: =IF('DF raw data'!E179="","",'DF raw data'!E179) -> -244 | B174: =IF('DF raw data'!F179="","",'DF raw data'!F179) -> -3.2248e-05 | C174: =IF('DF raw data'!G179="","",'DF raw data'!G179) -> 9.75457e-05 | D174: =IF('DF raw data'!H179="","",'DF raw data'!H179) -> -1.47984e-05 | F174: -3.2360868e-05 | G174: 9.788710995e-05 | H174: -1.48501944e-05 | J174: -0.001642928626 | K174: -0.0472863356 | L174: 0.005507723247 | M174: 0.1554095088 | N174: 0.0006242308493
A175: =IF('DF raw data'!E180="","",'DF raw data'!E180) -> -243.5 | B175: =IF('DF raw data'!F180="","",'DF raw data'!F180) -> -3.51985e-05 | C175: =IF('DF raw data'!G180="","",'DF raw data'!G180) -> 9.10126e-05 | D175: =IF('DF raw data'!H180="","",'DF raw data'!H180) -> -1.37259e-05 | F175: -3.532169475e-05 | G175: 9.13311441e-05 | H175: -1.377394065e-05 | J175: -0.001660589474 | K175: -0.04811663034 | L175: 0.005553388819 | M175: 0.1581862032 | N175: 0.0006410296917
A176: =IF('DF raw data'!E181="","",'DF raw data'!E181) -> -243 | B176: =IF('DF raw data'!F181="","",'DF raw data'!F181) -> -3.77474e-05 | C176: =IF('DF raw data'!G181="","",'DF raw data'!G181) -> 9.26636e-05 | D176: =IF('DF raw data'!H181="","",'DF raw data'!H181) -> -3.14757e-05 | F176: -3.78795159e-05 | G176: 9.29879226e-05 | H176: -3.158586495e-05 | J176: -0.001679529232 | K176: -0.04895639495 | L176: 0.00559988278 | M176: 0.1609861446 | N176: 0.0006581194445
A177: =IF('DF raw data'!E182="","",'DF raw data'!E182) -> -242.5 | B177: =IF('DF raw data'!F182="","",'DF raw data'!F182) -> -3.32062e-05 | C177: =IF('DF raw data'!G182="","",'DF raw data'!G182) -> 9.41597e-05 | D177: =IF('DF raw data'!H182="","",'DF raw data'!H182) -> -2.30162e-05 | F177: -3.33224217e-05 | G177: 9.448925895e-05 | H177: -2.30967567e-05 | J177: -0.001696190442 | K177: -0.04980449018 | L177: 0.00564712741 | M177: 0.1638097083 | N177: 0.0006755029995
A178: =IF('DF raw data'!E183="","",'DF raw data'!E183) -> -242 | B178: =IF('DF raw data'!F183="","",'DF raw data'!F183) -> -2.70539e-05 | C178: =IF('DF raw data'!G183="","",'DF raw data'!G183) -> 0.000101102 | D178: =IF('DF raw data'!H183="","",'DF raw data'!H183) -> -2.17146e-05 | F178: -2.714858865e-05 | G178: 0.000101455857 | H178: -2.17906011e-05 | J178: -0.001709764737 | K178: -0.05065937254 | L178: 0.005697855338 | M178: 0.166658636 | N178: 0.0006931974249
A179: =IF('DF raw data'!E184="","",'DF raw data'!E184) -> -241.5 | B179: =IF('DF raw data'!F184="","",'DF raw data'!F184) -> -2.23772e-05 | C179: =IF('DF raw data'!G184="","",'DF raw data'!G184) -> 0.00010096 | D179: =IF('DF raw data'!H184="","",'DF raw data'!H184) -> -2.33263e-05 | F179: -2.24555202e-05 | G179: 0.00010131336 | H179: -2.340794205e-05 | J179: -0.001720992497 | K179: -0.05151986879 | L179: 0.005748512018 | M179: 0.169532892 | N179: 0.0007112010277
A180: =IF('DF raw data'!E185="","",'DF raw data'!E185) -> -241 | B180: =IF('DF raw data'!F185="","",'DF raw data'!F185) -> -2.78955e-05 | C180: =IF('DF raw data'!G185="","",'DF raw data'!G185) -> 0.000106788 | D180: =IF('DF raw data'!H185="","",'DF raw data'!H185) -> -8.23758e-06 | F180: -2.799313425e-05 | G180: 0.000107161758 | H180: -8.26641153e-06 | J180: -0.001734989064 | K180: -0.05238736332 | L180: 0.005802092897 | M180: 0.1724339384 | N180: 0.0007295382623
A181: =IF('DF raw data'!E186="","",'DF raw data'!E186) -> -240.5 | B181: =IF('DF raw data'!F186="","",'DF raw data'!F186) -> -3.13558e-05 | C181: =IF('DF raw data'!G186="","",'DF raw data'!G186) -> 9.93604e-05 | D181: =IF('DF raw data'!H186="","",'DF raw data'!H186) -> -1.0774e-05 | F181: -3.14655453e-05 | G181: 9.97081614e-05 | H181: -1.0811709e-05 | J181: -0.001750721837 | K181: -0.05326272424 | L181: 0.005851946978 | M181: 0.1753599119 | N181: 0.0007481934175
A182: =IF('DF raw data'!E187="","",'DF raw data'!E187) -> -240 | B182: =IF('DF raw data'!F187="","",'DF raw data'!F187) -> -2.06537e-05 | C182: =IF('DF raw data'!G187="","",'DF raw data'!G187) -> 0.000102735 | D182: =IF('DF raw data'!H187="","",'DF raw data'!H187) -> -1.10738e-05 | F182: -2.072598795e-05 | G182: 0.0001030945725 | H182: -1.11125583e-05 | J182: -0.001761084831 | K182: -0.05414326666 | L182: 0.005903494264 | M182: 0.178311659 | N182: 0.0007671697496
A183: =IF('DF raw data'!E188="","",'DF raw data'!E188) -> -239.5 | B183: =IF('DF raw data'!F188="","",'DF raw data'!F188) -> -2.22515e-05 | C183: =IF('DF raw data'!G188="","",'DF raw data'!G188) -> 9.31869e-05 | D183: =IF('DF raw data'!H188="","",'DF raw data'!H188) -> -1.90382e-05 | F183: -2.232938025e-05 | G183: 9.351305415e-05 | H183: -1.91048337e-05 | J183: -0.001772249521 | K183: -0.05502939142 | L183: 0.005950250791 | M183: 0.1812867844 | N183: 0.000786442926
A184: =IF('DF raw data'!E189="","",'DF raw data'!E189) -> -239 | B184: =IF('DF raw data'!F189="","",'DF raw data'!F189) -> -3.51991e-05 | C184: =IF('DF raw data'!G189="","",'DF raw data'!G189) -> 9.57946e-05 | D184: =IF('DF raw data'!H189="","",'DF raw data'!H189) -> -9.16603e-06 | F184: -3.532229685e-05 | G184: 9.61298811e-05 | H184: -9.198111105e-06 | J184: -0.001789910669 | K184: -0.05592434675 | L184: 0.005998315732 | M184: 0.1842859423 | N184: 0.0008060347119
A185: =IF('DF raw data'!E190="","",'DF raw data'!E190) -> -238.5 | B185: =IF('DF raw data'!F190="","",'DF raw data'!F190) -> -2.70604e-05 | C185: =IF('DF raw data'!G190="","",'DF raw data'!G190) -> 0.000105018 | D185: =IF('DF raw data'!H190="","",'DF raw data'!H190) -> -1.4336e-05 | F185: -2.71551114e-05 | G185: 0.000105385563 | H185: -1.4386176e-05 | J185: -0.001803488225 | K185: -0.05682609086 | L185: 0.006051008513 | M185: 0.1873114466 | N185: 0.0008259683488
A186: =IF('DF raw data'!E191="","",'DF raw data'!E191) -> -238 | B186: =IF('DF raw data'!F191="","",'DF raw data'!F191) -> -2.83339e-05 | C186: =IF('DF raw data'!G191="","",'DF raw data'!G191) -> 0.000101628 | D186: =IF('DF raw data'!H191="","",'DF raw data'!H191) -> -2.4178e-05 | F186: -2.843306865e-05 | G186: 0.000101983698 | H186: -2.4262623e-05 | J186: -0.001817704759 | K186: -0.05773494324 | L186: 0.006102000362 | M186: 0.1903624467 | N186: 0.0008462375784
A187: =IF('DF raw data'!E192="","",'DF raw data'!E192) -> -237.5 | B187: =IF('DF raw data'!F192="","",'DF raw data'!F192) -> -2.75129e-05 | C187: =IF('DF raw data'!G192="","",'DF raw data'!G192) -> 0.000100885 | D187: =IF('DF raw data'!H192="","",'DF raw data'!H192) -> -7.95656e-06 | F187: -2.760919515e-05 | G187: 0.0001012380975 | H187: -7.98440796e-06 | J187: -0.001831509357 | K187: -0.05865069792 | L187: 0.006152619411 | M187: 0.1934387564 | N187: 0.0008668421544
A188: =IF('DF raw data'!E193="","",'DF raw data'!E193) -> -237 | B188: =IF('DF raw data'!F193="","",'DF raw data'!F193) -> -2.16059e-05 | C188: =IF('DF raw data'!G193="","",'DF raw data'!G193) -> 0.000104552 | D188: =IF('DF raw data'!H193="","",'DF raw data'!H193) -> -2.47357e-05 | F188: -2.168152065e-05 | G188: 0.000104917932 | H188: -2.482227495e-05 | J188: -0.001842350117 | K188: -0.05957187298 | L188: 0.006205078377 | M188: 0.1965412956 | N188: 0.0008877907802
A189: =IF('DF raw data'!E194="","",'DF raw data'!E194) -> -236.5 | B189: =IF('DF raw data'!F194="","",'DF raw data'!F194) -> -3.89112e-05 | C189: =IF('DF raw data'!G194="","",'DF raw data'!G194) -> 9.61725e-05 | D189: =IF('DF raw data'!H194="","",'DF raw data'!H194) -> -1.87548e-05 | F189: -3.90473892e-05 | G189: 9.650910375e-05 | H189: -1.88204418e-05 | J189: -0.001861873812 | K189: -0.06050280989 | L189: 0.006253332929 | M189: 0.1996679621 | N189: 0.0009090761536
A190: =IF('DF raw data'!E195="","",'DF raw data'!E195) -> -236 | B190: =IF('DF raw data'!F195="","",'DF raw data'!F195) -> -2.60957e-05 | C190: =IF('DF raw data'!G195="","",'DF raw data'!G195) -> 9.94673e-05 | D190: =IF('DF raw data'!H195="","",'DF raw data'!H195) -> -1.73418e-05 | F190: -2.618703495e-05 | G190: 9.981543555e-05 | H190: -1.74024963e-05 | J190: -0.001874967329 | K190: -0.06144029355 | L190: 0.006303240647 | M190: 0.2028195824 | N190: 0.0009306993262
A191: =IF('DF raw data'!E196="","",'DF raw data'!E196) -> -235.5 | B191: =IF('DF raw data'!F196="","",'DF raw data'!F196) -> -3.73077e-05 | C191: =IF('DF raw data'!G196="","",'DF raw data'!G196) -> 9.50841e-05 | D191: =IF('DF raw data'!H196="","",'DF raw data'!H196) -> -2.14332e-05 | F191: -3.743827695e-05 | G191: 9.541689435e-05 | H191: -2.15082162e-05 | J191: -0.001893686468 | K191: -0.06238713679 | L191: 0.006350949094 | M191: 0.205995057 | N191: 0.0009526596276
A192: =IF('DF raw data'!E197="","",'DF raw data'!E197) -> -235 | B192: =IF('DF raw data'!F197="","",'DF raw data'!F197) -> -3.14784e-05 | C192: =IF('DF raw data'!G197="","",'DF raw data'!G197) -> 9.1166e-05 | D192: =IF('DF raw data'!H197="","",'DF raw data'!H197) -> -1.63992e-05 | F192: =(1-$G$1*($B$49-$G$2))*B192 -> -3.15885744e-05 | G192: 9.1485081e-05 | H192: -1.64565972e-05 | J192: =F192*$G$3+J191 -> -0.001909480755 | K192: =J192*$G$3+K191 -> -0.06334187716 | L192: =G192*$G$3+L191 -> 0.006396691635 | M192: =L192*$G$3+M191 -> 0.2091934028 | N192: =(J192^2+L192^2)*$G$3+N191 -> 0.0009749415179
A193: =IF('DF raw data'!E198="","",'DF raw data'!E198) -> -234.5 | B193: =IF('DF raw data'!F198="","",'DF raw data'!F198) -> -4.08435e-05 | C193: =IF('DF raw data'!G198="","",'DF raw data'!G198) -> 9.40571e-05 | D193: =IF('DF raw data'!H198="","",'DF raw data'!H198) -> -3.52027e-06 | F193: -4.098645225e-05 | G193: 9.438629985e-05 | H193: -3.532590945e-06 | J193: -0.001929973981 | K193: -0.06430686415 | L193: 0.006443884784 | M193: 0.2124153452 | N193: 0.0009975657433
A194: =IF('DF raw data'!E199="","",'DF raw data'!E199) -> -234 | B194: =IF('DF raw data'!F199="","",'DF raw data'!F199) -> -2.32112e-05 | C194: =IF('DF raw data'!G199="","",'DF raw data'!G199) -> 0.000104052 | D194: =IF('DF raw data'!H199="","",'DF raw data'!H199) -> -1.93821e-05 | F194: -2.32924392e-05 | G194: 0.000104416182 | H194: -1.944993735e-05 | J194: -0.0019416202 | K194: -0.06527767425 | L194: 0.006496092875 | M194: 0.2156633916 | N194: 0.001020550299
A195: =IF('DF raw data'!E200="","",'DF raw data'!E200) -> -233.5 | B195: =IF('DF raw data'!F200="","",'DF raw data'!F200) -> -3.14122e-05 | C195: =IF('DF raw data'!G200="","",'DF raw data'!G200) -> 0.000104408 | D195: =IF('DF raw data'!H200="","",'DF raw data'!H200) -> -2.2282e-05 | F195: -3.15221427e-05 | G195: 0.000104773428 | H195: -2.2359987e-05 | J195: -0.001957381272 | K195: -0.06625636489 | L195: 0.006548479589 | M195: 0.2189376314 | N195: 0.001043907262
A196: =IF('DF raw data'!E201="","",'DF raw data'!E201) -> -233 | B196: =IF('DF raw data'!F201="","",'DF raw data'!F201) -> -3.03197e-05 | C196: =IF('DF raw data'!G201="","",'DF raw data'!G201) -> 9.75e-05 | D196: =IF('DF raw data'!H201="","",'DF raw data'!H201) -> -2.47887e-05 | F196: -3.042581895e-05 | G196: 9.784125e-05 | H196: -2.487546045e-05 | J196: -0.001972594181 | K196: -0.06724266198 | L196: 0.006597400214 | M196: 0.2222363315 | N196: 0.001067615671
A197: =IF('DF raw data'!E202="","",'DF raw data'!E202) -> -232.5 | B197: =IF('DF raw data'!F202="","",'DF raw data'!F202) -> -3.18549e-05 | C197: =IF('DF raw data'!G202="","",'DF raw data'!G202) -> 9.86182e-05 | D197: =IF('DF raw data'!H202="","",'DF raw data'!H202) -> -3.13705e-05 | F197: -3.196639215e-05 | G197: 9.89633637e-05 | H197: -3.148029675e-05 | J197: -0.001988577377 | K197: -0.06823695067 | L197: 0.006646881896 | M197: 0.2255597725 | N197: 0.00109168341
A198: =IF('DF raw data'!E203="","",'DF raw data'!E203) -> -232 | B198: =IF('DF raw data'!F203="","",'DF raw data'!F203) -> -3.06343e-05 | C198: =IF('DF raw data'!G203="","",'DF raw data'!G203) -> 0.000100646 | D198: =IF('DF raw data'!H203="","",'DF raw data'!H203) -> -3.33797e-05 | F198: -3.074152005e-05 | G198: 0.000100998261 | H198: -3.349652895e-05 | J198: -0.002003948137 | K198: -0.06923892474 | L198: 0.006697381027 | M198: 0.228908463 | N198: 0.001116118771
A199: =IF('DF raw data'!E204="","",'DF raw data'!E204) -> -231.5 | B199: =IF('DF raw data'!F204="","",'DF raw data'!F204) -> -3.3532e-05 | C199: =IF('DF raw data'!G204="","",'DF raw data'!G204) -> 0.000102913 | D199: =IF('DF raw data'!H204="","",'DF raw data'!H204) -> -1.41608e-05 | F199: -3.3649362e-05 | G199: 0.0001032731955 | H199: -1.42103628e-05 | J199: -0.002020772818 | K199: -0.07024931115 | L199: 0.006749017625 | M199: 0.2322829718 | N199: 0.001140935152
A200: =IF('DF raw data'!E205="","",'DF raw data'!E205) -> -231 | B200: =IF('DF raw data'!F205="","",'DF raw data'!F205) -> -3.33341e-05 | C200: =IF('DF raw data'!G205="","",'DF raw data'!G205) -> 0.000102855 | D200: =IF('DF raw data'!H205="","",'DF raw data'!H205) -> -2.00864e-05 | F200: -3.345076935e-05 | G200: 0.0001032149925 | H200: -2.01567024e-05 | J200: -0.002037498203 | K200: -0.07126806025 | L200: 0.006800625121 | M200: 0.2356832843 | N200: 0.001166135102
A201: =IF('DF raw data'!E206="","",'DF raw data'!E206) -> -230.5 | B201: =IF('DF raw data'!F206="","",'DF raw data'!F206) -> -2.41079e-05 | C201: =IF('DF raw data'!G206="","",'DF raw data'!G206) -> 9.62523e-05 | D201: =IF('DF raw data'!H206="","",'DF raw data'!H206) -> -2.18643e-05 | F201: -2.419227765e-05 | G201: 9.658918305e-05 | H201: -2.194082505e-05 | J201: -0.002049594342 | K201: -0.07229285742 | L201: 0.006848919712 | M201: 0.2391077442 | N201: 0.001191689371
... 1061 more rows

Sheet 10 x=0
A1: =IF('DF raw data'!I1="","",'DF raw data'!I1) -> Number of header lines | B1: =IF('DF raw data'!J1="","",'DF raw data'!J1) -> 54 | C1: =IF('DF raw data'!K1="","",'DF raw data'!K1) ->  | D1: =IF('DF raw data'!L1="","",'DF raw data'!L1) ->  | F1: T_coeff | G1: -0.001 | H1: /degC | J1: IBy total | K1: =J1262*1000 -> -17.45822278 | L1: muTm | M1: =L1262*1000 -> 46.33301472 | R1: DF ref | S1: ='10 x=-2'!S1 -> 1
A2: =IF('DF raw data'!I2="","",'DF raw data'!I2) -> Measured by | B2: =IF('DF raw data'!J2="","",'DF raw data'!J2) -> Danfysik | C2: =IF('DF raw data'!K2="","",'DF raw data'!K2) ->  | D2: =IF('DF raw data'!L2="","",'DF raw data'!L2) ->  | F2: Tcorr | G2: 20 | H2: degC | J2: JBy total | K2: =K1262 -> -6.984836203 | L2: muTm^2 | M2: =M1262 -> 13.73532279
A3: =IF('DF raw data'!I3="","",'DF raw data'!I3) -> Operator | B3: =IF('DF raw data'!J3="","",'DF raw data'!J3) -> PMHA | C3: =IF('DF raw data'!K3="","",'DF raw data'!K3) ->  | D3: =IF('DF raw data'!L3="","",'DF raw data'!L3) ->  | F3: Step | G3: =A63-A62 -> 0.5 | H3: mm | J3: PI total | K3: =N1262 -> 10597.03788 | L3: T^2mm^3
A4: =IF('DF raw data'!I4="","",'DF raw data'!I4) -> Data-time | B4: =IF('DF raw data'!J4="","",'DF raw data'!J4) -> 17-09-2024, 14:21:32 | C4: =IF('DF raw data'!K4="","",'DF raw data'!K4) ->  | D4: =IF('DF raw data'!L4="","",'DF raw data'!L4) -> 
A5: =IF('DF raw data'!I5="","",'DF raw data'!I5) -> Project | B5: =IF('DF raw data'!J5="","",'DF raw data'!J5) -> 504314 | C5: =IF('DF raw data'!K5="","",'DF raw data'!K5) ->  | D5: =IF('DF raw data'!L5="","",'DF raw data'!L5) -> 
A6: =IF('DF raw data'!I6="","",'DF raw data'!I6) -> Magnet type | B6: =IF('DF raw data'!J6="","",'DF raw data'!J6) -> Dipole | C6: =IF('DF raw data'!K6="","",'DF raw data'!K6) ->  | D6: =IF('DF raw data'!L6="","",'DF raw data'!L6) -> 
A7: =IF('DF raw data'!I7="","",'DF raw data'!I7) -> Magnet nr. | B7: =IF('DF raw data'!J7="","",'DF raw data'!J7) -> 2410097 | C7: =IF('DF raw data'!K7="","",'DF raw data'!K7) ->  | D7: =IF('DF raw data'!L7="","",'DF raw data'!L7) -> 
A8: =IF('DF raw data'!I8="","",'DF raw data'!I8) -> Meas. number | B8: =IF('DF raw data'!J8="","",'DF raw data'!J8) -> 551 | C8: =IF('DF raw data'!K8="","",'DF raw data'!K8) ->  | D8: =IF('DF raw data'!L8="","",'DF raw data'!L8) -> 
A9: =IF('DF raw data'!I9="","",'DF raw data'!I9) -> Add. info | B9: =IF('DF raw data'!J9="","",'DF raw data'!J9) -> X-alignment scan 3) | C9: =IF('DF raw data'!K9="","",'DF raw data'!K9) ->  | D9: =IF('DF raw data'!L9="","",'DF raw data'!L9) -> 
A10: =IF('DF raw data'!I10="","",'DF raw data'!I10) -> Device | B10: =IF('DF raw data'!J10="","",'DF raw data'!J10) -> (HAL) HALL-PROBE | C10: =IF('DF raw data'!K10="","",'DF raw data'!K10) ->  | D10: =IF('DF raw data'!L10="","",'DF raw data'!L10) -> 
A11: =IF('DF raw data'!I11="","",'DF raw data'!I11) -> Goal | B11: =IF('DF raw data'!J11="","",'DF raw data'!J11) -> (AXI) AXis Integral (Line, EFB) | C11: =IF('DF raw data'!K11="","",'DF raw data'!K11) ->  | D11: =IF('DF raw data'!L11="","",'DF raw data'!L11) -> 
A12: =IF('DF raw data'!I12="","",'DF raw data'!I12) -> Power supply mode | B12: =IF('DF raw data'!J12="","",'DF raw data'!J12) -> (PM) Permanent Magnet (no MPS in use) | C12: =IF('DF raw data'!K12="","",'DF raw data'!K12) ->  | D12: =IF('DF raw data'!L12="","",'DF raw data'!L12) -> 
A13: =IF('DF raw data'!I13="","",'DF raw data'!I13) -> Data format | B13: =IF('DF raw data'!J13="","",'DF raw data'!J13) -> Raw data text file | C13: =IF('DF raw data'!K13="","",'DF raw data'!K13) ->  | D13: =IF('DF raw data'!L13="","",'DF raw data'!L13) -> 
A14: =IF('DF raw data'!I14="","",'DF raw data'!I14) -> Direction of the pos. x-axis | B14: =IF('DF raw data'!J14="","",'DF raw data'!J14) -> See test program | C14: =IF('DF raw data'!K14="","",'DF raw data'!K14) ->  | D14: =IF('DF raw data'!L14="","",'DF raw data'!L14) -> 
A15: =IF('DF raw data'!I15="","",'DF raw data'!I15) -> Direction of the pos. y-axis | B15: =IF('DF raw data'!J15="","",'DF raw data'!J15) -> Vertical up | C15: =IF('DF raw data'!K15="","",'DF raw data'!K15) ->  | D15: =IF('DF raw data'!L15="","",'DF raw data'!L15) -> 
A16: =IF('DF raw data'!I16="","",'DF raw data'!I16) -> Direction of the pos. z-axis | B16: =IF('DF raw data'!J16="","",'DF raw data'!J16) -> See test program | C16: =IF('DF raw data'!K16="","",'DF raw data'!K16) ->  | D16: =IF('DF raw data'!L16="","",'DF raw data'!L16) -> 
A17: =IF('DF raw data'!I17="","",'DF raw data'!I17) -> Mapper type | B17: =IF('DF raw data'!J17="","",'DF raw data'!J17) -> Precision Hall Mapper | C17: =IF('DF raw data'!K17="","",'DF raw data'!K17) ->  | D17: =IF('DF raw data'!L17="","",'DF raw data'!L17) -> 
A18: =IF('DF raw data'!I18="","",'DF raw data'!I18) -> Mapper Danfysik Reg. Number | B18: =IF('DF raw data'!J18="","",'DF raw data'!J18) -> 2033-D (mapper 1) | C18: =IF('DF raw data'!K18="","",'DF raw data'!K18) ->  | D18: =IF('DF raw data'!L18="","",'DF raw data'!L18) -> 
A19: =IF('DF raw data'!I19="","",'DF raw data'!I19) -> Measurement consept | B19: =IF('DF raw data'!J19="","",'DF raw data'!J19) -> Square line grid | C19: =IF('DF raw data'!K19="","",'DF raw data'!K19) ->  | D19: =IF('DF raw data'!L19="","",'DF raw data'!L19) -> 
A20: =IF('DF raw data'!I20="","",'DF raw data'!I20) -> Mode | B20: =IF('DF raw data'!J20="","",'DF raw data'!J20) -> On-the-fly measurement | C20: =IF('DF raw data'!K20="","",'DF raw data'!K20) ->  | D20: =IF('DF raw data'!L20="","",'DF raw data'!L20) -> 
A21: =IF('DF raw data'!I21="","",'DF raw data'!I21) ->  | B21: =IF('DF raw data'!J21="","",'DF raw data'!J21) ->  | C21: =IF('DF raw data'!K21="","",'DF raw data'!K21) ->  | D21: =IF('DF raw data'!L21="","",'DF raw data'!L21) -> 
A22: =IF('DF raw data'!I22="","",'DF raw data'!I22) -> Probe Name | B22: =IF('DF raw data'!J22="","",'DF raw data'!J22) -> ID12_By | C22: =IF('DF raw data'!K22="","",'DF raw data'!K22) ->  | D22: =IF('DF raw data'!L22="","",'DF raw data'!L22) -> 
A23: =IF('DF raw data'!I23="","",'DF raw data'!I23) -> Probe Type | B23: =IF('DF raw data'!J23="","",'DF raw data'!J23) -> DF_ID_3D_Bxyz | C23: =IF('DF raw data'!K23="","",'DF raw data'!K23) ->  | D23: =IF('DF raw data'!L23="","",'DF raw data'!L23) -> 
A24: =IF('DF raw data'!I24="","",'DF raw data'!I24) -> Probe Danfysik Reg. Number | B24: =IF('DF raw data'!J24="","",'DF raw data'!J24) -> 2277 | C24: =IF('DF raw data'!K24="","",'DF raw data'!K24) ->  | D24: =IF('DF raw data'!L24="","",'DF raw data'!L24) -> 
A25: =IF('DF raw data'!I25="","",'DF raw data'!I25) -> Probe Axis | B25: =IF('DF raw data'!J25="","",'DF raw data'!J25) -> By | C25: =IF('DF raw data'!K25="","",'DF raw data'!K25) ->  | D25: =IF('DF raw data'!L25="","",'DF raw data'!L25) -> 
A26: =IF('DF raw data'!I26="","",'DF raw data'!I26) -> Probe Current Supply | B26: =IF('DF raw data'!J26="","",'DF raw data'!J26) -> 1825-D | C26: =IF('DF raw data'!K26="","",'DF raw data'!K26) ->  | D26: =IF('DF raw data'!L26="","",'DF raw data'!L26) -> 
A27: =IF('DF raw data'!I27="","",'DF raw data'!I27) -> Probe Gain Correction | B27: =IF('DF raw data'!J27="","",'DF raw data'!J27) -> 0.99606 | C27: =IF('DF raw data'!K27="","",'DF raw data'!K27) ->  | D27: =IF('DF raw data'!L27="","",'DF raw data'!L27) -> 
A28: =IF('DF raw data'!I28="","",'DF raw data'!I28) -> Probe Offset Correction | B28: =IF('DF raw data'!J28="","",'DF raw data'!J28) -> 0.0027513 | C28: =IF('DF raw data'!K28="","",'DF raw data'!K28) ->  | D28: =IF('DF raw data'!L28="","",'DF raw data'!L28) -> 
A29: =IF('DF raw data'!I29="","",'DF raw data'!I29) -> DVM Number | B29: =IF('DF raw data'!J29="","",'DF raw data'!J29) -> 2 | C29: =IF('DF raw data'!K29="","",'DF raw data'!K29) ->  | D29: =IF('DF raw data'!L29="","",'DF raw data'!L29) -> 
A30: =IF('DF raw data'!I30="","",'DF raw data'!I30) -> DVM Type | B30: =IF('DF raw data'!J30="","",'DF raw data'!J30) -> K2701 | C30: =IF('DF raw data'!K30="","",'DF raw data'!K30) ->  | D30: =IF('DF raw data'!L30="","",'DF raw data'!L30) -> 
A31: =IF('DF raw data'!I31="","",'DF raw data'!I31) -> DVM Danfysik Reg. Number | B31: =IF('DF raw data'!J31="","",'DF raw data'!J31) -> 1743-D | C31: =IF('DF raw data'!K31="","",'DF raw data'!K31) ->  | D31: =IF('DF raw data'!L31="","",'DF raw data'!L31) -> 
A32: =IF('DF raw data'!I32="","",'DF raw data'!I32) -> Probe Name | B32: =IF('DF raw data'!J32="","",'DF raw data'!J32) -> ID12_Bx | C32: =IF('DF raw data'!K32="","",'DF raw data'!K32) ->  | D32: =IF('DF raw data'!L32="","",'DF raw data'!L32) -> 
A33: =IF('DF raw data'!I33="","",'DF raw data'!I33) -> Probe Type | B33: =IF('DF raw data'!J33="","",'DF raw data'!J33) -> DF_ID_3D_Bxyz | C33: =IF('DF raw data'!K33="","",'DF raw data'!K33) ->  | D33: =IF('DF raw data'!L33="","",'DF raw data'!L33) -> 
A34: =IF('DF raw data'!I34="","",'DF raw data'!I34) -> Probe Danfysik Reg. Number | B34: =IF('DF raw data'!J34="","",'DF raw data'!J34) -> 2277 | C34: =IF('DF raw data'!K34="","",'DF raw data'!K34) ->  | D34: =IF('DF raw data'!L34="","",'DF raw data'!L34) -> 
A35: =IF('DF raw data'!I35="","",'DF raw data'!I35) -> Probe Axis | B35: =IF('DF raw data'!J35="","",'DF raw data'!J35) -> Bx | C35: =IF('DF raw data'!K35="","",'DF raw data'!K35) ->  | D35: =IF('DF raw data'!L35="","",'DF raw data'!L35) -> 
A36: =IF('DF raw data'!I36="","",'DF raw data'!I36) -> Probe Current Supply | B36: =IF('DF raw data'!J36="","",'DF raw data'!J36) -> 1825-D | C36: =IF('DF raw data'!K36="","",'DF raw data'!K36) ->  | D36: =IF('DF raw data'!L36="","",'DF raw data'!L36) -> 
A37: =IF('DF raw data'!I37="","",'DF raw data'!I37) -> Probe Gain Correction | B37: =IF('DF raw data'!J37="","",'DF raw data'!J37) -> 1 | C37: =IF('DF raw data'!K37="","",'DF raw data'!K37) ->  | D37: =IF('DF raw data'!L37="","",'DF raw data'!L37) -> 
A38: =IF('DF raw data'!I38="","",'DF raw data'!I38) -> Probe Offset Correction | B38: =IF('DF raw data'!J38="","",'DF raw data'!J38) -> -0.17549 | C38: =IF('DF raw data'!K38="","",'DF raw data'!K38) ->  | D38: =IF('DF raw data'!L38="","",'DF raw data'!L38) -> 
A39: =IF('DF raw data'!I39="","",'DF raw data'!I39) -> DVM Number | B39: =IF('DF raw data'!J39="","",'DF raw data'!J39) -> 3 | C39: =IF('DF raw data'!K39="","",'DF raw data'!K39) ->  | D39: =IF('DF raw data'!L39="","",'DF raw data'!L39) -> 
A40: =IF('DF raw data'!I40="","",'DF raw data'!I40) -> DVM Type | B40: =IF('DF raw data'!J40="","",'DF raw data'!J40) -> K2701 | C40: =IF('DF raw data'!K40="","",'DF raw data'!K40) ->  | D40: =IF('DF raw data'!L40="","",'DF raw data'!L40) -> 
A41: =IF('DF raw data'!I41="","",'DF raw data'!I41) -> DVM Danfysik Reg. Number | B41: =IF('DF raw data'!J41="","",'DF raw data'!J41) -> 1744-D | C41: =IF('DF raw data'!K41="","",'DF raw data'!K41) ->  | D41: =IF('DF raw data'!L41="","",'DF raw data'!L41) -> 
A42: =IF('DF raw data'!I42="","",'DF raw data'!I42) -> Probe Name | B42: =IF('DF raw data'!J42="","",'DF raw data'!J42) -> ID12_Bz | C42: =IF('DF raw data'!K42="","",'DF raw data'!K42) ->  | D42: =IF('DF raw data'!L42="","",'DF raw data'!L42) -> 
A43: =IF('DF raw data'!I43="","",'DF raw data'!I43) -> Probe Type | B43: =IF('DF raw data'!J43="","",'DF raw data'!J43) -> DF_ID_3D_Bxyz | C43: =IF('DF raw data'!K43="","",'DF raw data'!K43) ->  | D43: =IF('DF raw data'!L43="","",'DF raw data'!L43) -> 
A44: =IF('DF raw data'!I44="","",'DF raw data'!I44) -> Probe Danfysik Reg. Number | B44: =IF('DF raw data'!J44="","",'DF raw data'!J44) -> 2277 | C44: =IF('DF raw data'!K44="","",'DF raw data'!K44) ->  | D44: =IF('DF raw data'!L44="","",'DF raw data'!L44) -> 
A45: =IF('DF raw data'!I45="","",'DF raw data'!I45) -> Probe Axis | B45: =IF('DF raw data'!J45="","",'DF raw data'!J45) -> Bz | C45: =IF('DF raw data'!K45="","",'DF raw data'!K45) ->  | D45: =IF('DF raw data'!L45="","",'DF raw data'!L45) -> 
A46: =IF('DF raw data'!I46="","",'DF raw data'!I46) -> Probe Current Supply | B46: =IF('DF raw data'!J46="","",'DF raw data'!J46) -> 1825-D | C46: =IF('DF raw data'!K46="","",'DF raw data'!K46) ->  | D46: =IF('DF raw data'!L46="","",'DF raw data'!L46) -> 
A47: =IF('DF raw data'!I47="","",'DF raw data'!I47) -> Probe Gain Correction | B47: =IF('DF raw data'!J47="","",'DF raw data'!J47) -> 1 | C47: =IF('DF raw data'!K47="","",'DF raw data'!K47) ->  | D47: =IF('DF raw data'!L47="","",'DF raw data'!L47) -> 
A48: =IF('DF raw data'!I53="","",'DF raw data'!I53) -> PS-Gap: | B48: =IF('DF raw data'!J53="","",'DF raw data'!J53) -> 10 | C48: =IF('DF raw data'!K53="","",'DF raw data'!K53) ->  | D48: =IF('DF raw data'!L53="","",'DF raw data'!L53) -> 
A49: =IF('DF raw data'!I54="","",'DF raw data'!I54) -> PS-Temperature: | B49: =IF('DF raw data'!J54="","",'DF raw data'!J54) -> 23.5 | C49: =IF('DF raw data'!K54="","",'DF raw data'!K54) ->  | D49: =IF('DF raw data'!L54="","",'DF raw data'!L54) -> 
A50: =IF('DF raw data'!I55="","",'DF raw data'!I55) -> PS-Encoder: | B50: =IF('DF raw data'!J55="","",'DF raw data'!J55) -> 19.6817 | C50: =IF('DF raw data'!K55="","",'DF raw data'!K55) ->  | D50: =IF('DF raw data'!L55="","",'DF raw data'!L55) -> 
A51: =IF('DF raw data'!I56="","",'DF raw data'!I56) ->  | B51: =IF('DF raw data'!J56="","",'DF raw data'!J56) ->  | C51: =IF('DF raw data'!K56="","",'DF raw data'!K56) ->  | D51: =IF('DF raw data'!L56="","",'DF raw data'!L56) -> 
A52: =IF('DF raw data'!I57="","",'DF raw data'!I57) -> Monitor-Index | B52: =IF('DF raw data'!J57="","",'DF raw data'!J57) -> [1,1,4] | C52: =IF('DF raw data'!K57="","",'DF raw data'!K57) ->  | D52: =IF('DF raw data'!L57="","",'DF raw data'!L57) -> 
A53: =IF('DF raw data'!I58="","",'DF raw data'!I58) ->  | B53: =IF('DF raw data'!J58="","",'DF raw data'!J58) ->  | C53: =IF('DF raw data'!K58="","",'DF raw data'!K58) ->  | D53: =IF('DF raw data'!L58="","",'DF raw data'!L58) -> 
A54: =IF('DF raw data'!I59="","",'DF raw data'!I59) -> Time [s] | B54: =IF('DF raw data'!J59="","",'DF raw data'!J59) -> Y [mm] | C54: =IF('DF raw data'!K59="","",'DF raw data'!K59) -> X [mm] | D54: =IF('DF raw data'!L59="","",'DF raw data'!L59) -> Nominal current [A]
A55: =IF('DF raw data'!I60="","",'DF raw data'!I60) ->  | B55: =IF('DF raw data'!J60="","",'DF raw data'!J60) ->  | C55: =IF('DF raw data'!K60="","",'DF raw data'!K60) ->  | D55: =IF('DF raw data'!L60="","",'DF raw data'!L60) -> 
A56: =IF('DF raw data'!I61="","",'DF raw data'!I61) -> 209.9 | B56: =IF('DF raw data'!J61="","",'DF raw data'!J61) -> 31.56 | C56: =IF('DF raw data'!K61="","",'DF raw data'!K61) -> 301.55 | D56: =IF('DF raw data'!L61="","",'DF raw data'!L61) -> 0
A57: =IF('DF raw data'!I62="","",'DF raw data'!I62) ->  | B57: =IF('DF raw data'!J62="","",'DF raw data'!J62) ->  | C57: =IF('DF raw data'!K62="","",'DF raw data'!K62) ->  | D57: =IF('DF raw data'!L62="","",'DF raw data'!L62) -> 
A58: =IF('DF raw data'!I63="","",'DF raw data'!I63) -> Measurement-Index | B58: =IF('DF raw data'!J63="","",'DF raw data'!J63) -> [1,1,1201,2] | C58: =IF('DF raw data'!K63="","",'DF raw data'!K63) ->  | D58: =IF('DF raw data'!L63="","",'DF raw data'!L63) -> 
A59: =IF('DF raw data'!I64="","",'DF raw data'!I64) ->  | B59: =IF('DF raw data'!J64="","",'DF raw data'!J64) ->  | C59: =IF('DF raw data'!K64="","",'DF raw data'!K64) ->  | D59: =IF('DF raw data'!L64="","",'DF raw data'!L64) -> 
A60: =IF('DF raw data'!I65="","",'DF raw data'!I65) -> Z [mm] | B60: By [T] | C60: Bx [T] | D60: Bz [T] | F60: By_corr | G60: Bx_corr | H60: Bz_corr | J60: Iy | K60: Jy | L60: Ix | M60: Jx | N60: PI
A62: =IF('DF raw data'!I67="","",'DF raw data'!I67) -> -300 | B62: =IF('DF raw data'!J67="","",'DF raw data'!J67) -> -1.69353e-05 | C62: =IF('DF raw data'!K67="","",'DF raw data'!K67) -> 0.000134196 | D62: =IF('DF raw data'!L67="","",'DF raw data'!L67) -> -1.19803e-05 | F62: =(1-$G$1*($B$49))*B62 -> -1.733327955e-05 | G62: =(1-$G$1*($B$49-$G$2))*C62 -> 0.000134665686 | H62: =(1-$G$1*($B$49-$G$2))*D62 -> -1.202223105e-05 | J62: =F62*$G$3 -> -8.666639775e-06 | K62: =J62*$G$3 -> -4.333319888e-06 | L62: =G62*$G$3 -> 6.7332843e-05 | M62: =L62*$G$3 -> 3.36664215e-05 | N62: =(J62^2+L62^2)*$G$3 -> 2.304411196e-09
A63: =IF('DF raw data'!I68="","",'DF raw data'!I68) -> -299.5 | B63: =IF('DF raw data'!J68="","",'DF raw data'!J68) -> -3.039e-05 | C63: =IF('DF raw data'!K68="","",'DF raw data'!K68) -> 0.000130089 | D63: =IF('DF raw data'!L68="","",'DF raw data'!L68) -> -1.11682e-05 | F63: =(1-$G$1*($B$49-$G$2))*B63 -> -3.0496365e-05 | G63: =(1-$G$1*($B$49-$G$2))*C63 -> 0.0001305443115 | H63: -1.12072887e-05 | J63: =F63*$G$3+J62 -> -2.391482228e-05 | K63: =J63*$G$3+K62 -> -1.629073103e-05 | L63: =G63*$G$3+L62 -> 0.0001326049988 | M63: =L63*$G$3+M62 -> 9.996892088e-05 | N63: =(J63^2+L63^2)*$G$3+N62 -> 1.13824134e-08
A64: =IF('DF raw data'!I69="","",'DF raw data'!I69) -> -299 | B64: =IF('DF raw data'!J69="","",'DF raw data'!J69) -> -3.49396e-05 | C64: =IF('DF raw data'!K69="","",'DF raw data'!K69) -> 0.000132635 | D64: =IF('DF raw data'!L69="","",'DF raw data'!L69) -> -9.95256e-06 | F64: =(1-$G$1*($B$49-$G$2))*B64 -> -3.50618886e-05 | G64: 0.0001330992225 | H64: -9.98739396e-06 | J64: =F64*$G$3+J63 -> -4.144576658e-05 | K64: =J64*$G$3+K63 -> -3.701361431e-05 | L64: =G64*$G$3+L63 -> 0.00019915461 | M64: =L64*$G$3+M63 -> 0.0001995462259 | N64: =(J64^2+L64^2)*$G$3+N63 -> 3.207256853e-08
A65: =IF('DF raw data'!I70="","",'DF raw data'!I70) -> -298.5 | B65: =IF('DF raw data'!J70="","",'DF raw data'!J70) -> -2.43049e-05 | C65: =IF('DF raw data'!K70="","",'DF raw data'!K70) -> 0.000129778 | D65: =IF('DF raw data'!L70="","",'DF raw data'!L70) -> -9.4817e-06 | F65: -2.438996715e-05 | G65: 0.000130232223 | H65: -9.51488595e-06 | J65: -5.364075015e-05 | K65: -6.383398939e-05 | L65: 0.0002642707215 | M65: 0.0003316815866 | N65: 6.843074069e-08
A66: =IF('DF raw data'!I71="","",'DF raw data'!I71) -> -298 | B66: =IF('DF raw data'!J71="","",'DF raw data'!J71) -> -4.2373e-05 | C66: =IF('DF raw data'!K71="","",'DF raw data'!K71) -> 0.000139503 | D66: =IF('DF raw data'!L71="","",'DF raw data'!L71) -> -8.95931e-06 | F66: -4.25213055e-05 | G66: 0.0001399912605 | H66: -8.990667585e-06 | J66: -7.49014029e-05 | K66: -0.0001012846908 | L66: 0.0003342663517 | M66: 0.0004988147625 | N66: 1.271028477e-07
A67: =IF('DF raw data'!I72="","",'DF raw data'!I72) -> -297.5 | B67: =IF('DF raw data'!J72="","",'DF raw data'!J72) -> -2.94951e-05 | C67: =IF('DF raw data'!K72="","",'DF raw data'!K72) -> 0.000141367 | D67: =IF('DF raw data'!L72="","",'DF raw data'!L72) -> -8.29302e-06 | F67: -2.959833285e-05 | G67: 0.0001418617845 | H67: -8.32204557e-06 | J67: -8.970056933e-05 | K67: -0.0001461349755 | L67: 0.000405197244 | M67: 0.0007014133845 | N67: 2.132183471e-07
A68: =IF('DF raw data'!I73="","",'DF raw data'!I73) -> -297 | B68: =IF('DF raw data'!J73="","",'DF raw data'!J73) -> -3.05849e-05 | C68: =IF('DF raw data'!K73="","",'DF raw data'!K73) -> 0.000138151 | D68: =IF('DF raw data'!L73="","",'DF raw data'!L73) -> -8.21744e-06 | F68: -3.069194715e-05 | G68: 0.0001386345285 | H68: -8.24620104e-06 | J68: -0.0001050465429 | K68: -0.0001986582469 | L68: 0.0004745145082 | M68: 0.0009386706386 | N68: 3.313177444e-07
A69: =IF('DF raw data'!I74="","",'DF raw data'!I74) -> -296.5 | B69: =IF('DF raw data'!J74="","",'DF raw data'!J74) -> -2.27677e-05 | C69: =IF('DF raw data'!K74="","",'DF raw data'!K74) -> 0.000142873 | D69: =IF('DF raw data'!L74="","",'DF raw data'!L74) -> -8.95405e-06 | F69: -2.284738695e-05 | G69: 0.0001433730555 | H69: -8.985389175e-06 | J69: -0.0001164702364 | K69: -0.0002568933651 | L69: 0.000546201036 | M69: 0.001211771157 | N69: 4.872681883e-07
A70: =IF('DF raw data'!I75="","",'DF raw data'!I75) -> -296 | B70: =IF('DF raw data'!J75="","",'DF raw data'!J75) -> -3.07121e-05 | C70: =IF('DF raw data'!K75="","",'DF raw data'!K75) -> 0.000149393 | D70: =IF('DF raw data'!L75="","",'DF raw data'!L75) -> -9.70724e-06 | F70: -3.081959235e-05 | G70: 0.0001499158755 | H70: -9.74121534e-06 | J70: -0.0001318800326 | K70: -0.0003228333814 | L70: 0.0006211589737 | M70: 0.001522350643 | N70: 6.888835951e-07
A71: =IF('DF raw data'!I76="","",'DF raw data'!I76) -> -295.5 | B71: =IF('DF raw data'!J76="","",'DF raw data'!J76) -> -2.80849e-05 | C71: =IF('DF raw data'!K76="","",'DF raw data'!K76) -> 0.000147676 | D71: =IF('DF raw data'!L76="","",'DF raw data'!L76) -> -9.84047e-06 | F71: -2.818319715e-05 | G71: 0.000148192866 | H71: -9.874911645e-06 | J71: -0.0001459716311 | K71: -0.000395819197 | L71: 0.0006952554067 | M71: 0.001869978347 | N71: 9.412274939e-07
A72: =IF('DF raw data'!I77="","",'DF raw data'!I77) -> -295 | B72: =IF('DF raw data'!J77="","",'DF raw data'!J77) -> -4.16682e-05 | C72: =IF('DF raw data'!K77="","",'DF raw data'!K77) -> 0.000141052 | D72: =IF('DF raw data'!L77="","",'DF raw data'!L77) -> -8.94987e-06 | F72: -4.18140387e-05 | G72: 0.000141545682 | H72: -8.981194545e-06 | J72: -0.0001668786505 | K72: -0.0004792585222 | L72: 0.0007660282477 | M72: 0.002252992471 | N72: 1.248551374e-06
A73: =IF('DF raw data'!I78="","",'DF raw data'!I78) -> -294.5 | B73: =IF('DF raw data'!J78="","",'DF raw data'!J78) -> -3.02006e-05 | C73: =IF('DF raw data'!K78="","",'DF raw data'!K78) -> 0.000137024 | D73: =IF('DF raw data'!L78="","",'DF raw data'!L78) -> -7.75581e-06 | F73: -3.03063021e-05 | G73: 0.000137503584 | H73: -7.782955335e-06 | J73: -0.0001820318015 | K73: -0.000570274423 | L73: 0.0008347800397 | M73: 0.002670382491 | N73: 1.61354802e-06
A74: =IF('DF raw data'!I79="","",'DF raw data'!I79) -> -294 | B74: =IF('DF raw data'!J79="","",'DF raw data'!J79) -> -3.01367e-05 | C74: =IF('DF raw data'!K79="","",'DF raw data'!K79) -> 0.000127916 | D74: =IF('DF raw data'!L79="","",'DF raw data'!L79) -> -7.40795e-06 | F74: -3.024217845e-05 | G74: 0.000128363706 | H74: -7.433877825e-06 | J74: -0.0001971528907 | K74: -0.0006688508683 | L74: 0.0008989618927 | M74: 0.003119863437 | N74: 2.037048893e-06
A75: =IF('DF raw data'!I80="","",'DF raw data'!I80) -> -293.5 | B75: =IF('DF raw data'!J80="","",'DF raw data'!J80) -> -1.42468e-05 | C75: =IF('DF raw data'!K80="","",'DF raw data'!K80) -> 0.000135707 | D75: =IF('DF raw data'!L80="","",'DF raw data'!L80) -> -8.60611e-06 | F75: -1.42966638e-05 | G75: 0.0001361819745 | H75: -8.636231385e-06 | J75: -0.0002043012226 | K75: -0.0007710014797 | L75: 0.00096705288 | M75: 0.003603389877 | N75: 2.525514025e-06
A76: =IF('DF raw data'!I81="","",'DF raw data'!I81) -> -293 | B76: =IF('DF raw data'!J81="","",'DF raw data'!J81) -> -2.12293e-05 | C76: =IF('DF raw data'!K81="","",'DF raw data'!K81) -> 0.000135165 | D76: =IF('DF raw data'!L81="","",'DF raw data'!L81) -> -1.00017e-05 | F76: -2.130360255e-05 | G76: 0.0001356380775 | H76: -1.003670595e-05 | J76: -0.0002149530239 | K76: -0.0008784779916 | L76: 0.001034871919 | M76: 0.004120825836 | N76: 3.08409637e-06
A77: =IF('DF raw data'!I82="","",'DF raw data'!I82) -> -292.5 | B77: =IF('DF raw data'!J82="","",'DF raw data'!J82) -> -3.25056e-05 | C77: =IF('DF raw data'!K82="","",'DF raw data'!K82) -> 0.000124848 | D77: =IF('DF raw data'!L82="","",'DF raw data'!L82) -> -9.85441e-06 | F77: -3.26193696e-05 | G77: 0.000125284968 | H77: -9.888900435e-06 | J77: -0.0002312627087 | K77: -0.000994109346 | L77: 0.001097514403 | M77: 0.004669583038 | N77: 3.713106522e-06
A78: =IF('DF raw data'!I83="","",'DF raw data'!I83) -> -292 | B78: =IF('DF raw data'!J83="","",'DF raw data'!J83) -> -3.4044e-05 | C78: =IF('DF raw data'!K83="","",'DF raw data'!K83) -> 0.000128967 | D78: =IF('DF raw data'!L83="","",'DF raw data'!L83) -> -8.67265e-06 | F78: -3.4163154e-05 | G78: 0.0001294183845 | H78: -8.703004275e-06 | J78: -0.0002483442857 | K78: -0.001118281489 | L78: 0.001162223595 | M78: 0.005250694835 | N78: 4.419325807e-06
A79: =IF('DF raw data'!I84="","",'DF raw data'!I84) -> -291.5 | B79: =IF('DF raw data'!J84="","",'DF raw data'!J84) -> -2.12248e-05 | C79: =IF('DF raw data'!K84="","",'DF raw data'!K84) -> 0.000136111 | D79: =IF('DF raw data'!L84="","",'DF raw data'!L84) -> -1.69399e-05 | F79: -2.12990868e-05 | G79: 0.0001365873885 | H79: -1.699918965e-05 | J79: -0.0002589938291 | K79: -0.001247778403 | L79: 0.001230517289 | M79: 0.00586595348 | N79: 5.209951108e-06
A80: =IF('DF raw data'!I85="","",'DF raw data'!I85) -> -291 | B80: =IF('DF raw data'!J85="","",'DF raw data'!J85) -> -2.494e-05 | C80: =IF('DF raw data'!K85="","",'DF raw data'!K85) -> 0.000132472 | D80: =IF('DF raw data'!L85="","",'DF raw data'!L85) -> -1.83899e-05 | F80: -2.502729e-05 | G80: 0.000132935652 | H80: -1.845426465e-05 | J80: -0.0002715074741 | K80: -0.00138353214 | L80: 0.001296985115 | M80: 0.006514446037 | N80: 6.087894457e-06
A81: =IF('DF raw data'!I86="","",'DF raw data'!I86) -> -290.5 | B81: =IF('DF raw data'!J86="","",'DF raw data'!J86) -> -2.5583e-05 | C81: =IF('DF raw data'!K86="","",'DF raw data'!K86) -> 0.000119751 | D81: =IF('DF raw data'!L86="","",'DF raw data'!L86) -> -1.47802e-05 | F81: -2.56725405e-05 | G81: 0.0001201701285 | H81: -1.48319307e-05 | J81: -0.0002843437444 | K81: -0.001525704013 | L81: 0.001357070179 | M81: 0.007192981127 | N81: 7.049139875e-06
A82: =IF('DF raw data'!I87="","",'DF raw data'!I87) -> -290 | B82: =IF('DF raw data'!J87="","",'DF raw data'!J87) -> -2.28936e-05 | C82: =IF('DF raw data'!K87="","",'DF raw data'!K87) -> 0.000115461 | D82: =IF('DF raw data'!L87="","",'DF raw data'!L87) -> -1.2709e-05 | F82: -2.29737276e-05 | G82: 0.0001158651135 | H82: -1.27534815e-05 | J82: -0.0002958306082 | K82: -0.001673619317 | L82: 0.001415002736 | M82: 0.007900482495 | N82: 8.094014122e-06
A83: =IF('DF raw data'!I88="","",'DF raw data'!I88) -> -289.5 | B83: =IF('DF raw data'!J88="","",'DF raw data'!J88) -> -2.39191e-05 | C83: =IF('DF raw data'!K88="","",'DF raw data'!K88) -> 0.000114569 | D83: =IF('DF raw data'!L88="","",'DF raw data'!L88) -> -1.19093e-05 | F83: -2.400281685e-05 | G83: 0.0001149699915 | H83: -1.195098255e-05 | J83: -0.0003078320166 | K83: -0.001827535325 | L83: 0.001472487732 | M83: 0.008636726361 | N83: 9.225504457e-06
A84: =IF('DF raw data'!I89="","",'DF raw data'!I89) -> -289 | B84: =IF('DF raw data'!J89="","",'DF raw data'!J89) -> -1.18724e-05 | C84: =IF('DF raw data'!K89="","",'DF raw data'!K89) -> 0.000117201 | D84: =IF('DF raw data'!L89="","",'DF raw data'!L89) -> -1.44135e-05 | F84: -1.19139534e-05 | G84: 0.0001176112035 | H84: -1.446394725e-05 | J84: -0.0003137889933 | K84: -0.001984429822 | L84: 0.001531293334 | M84: 0.009402373028 | N84: 1.044716586e-05
A85: =IF('DF raw data'!I90="","",'DF raw data'!I90) -> -288.5 | B85: =IF('DF raw data'!J90="","",'DF raw data'!J90) -> -2.97407e-05 | C85: =IF('DF raw data'!K90="","",'DF raw data'!K90) -> 0.000125533 | D85: =IF('DF raw data'!L90="","",'DF raw data'!L90) -> -2.51281e-05 | F85: -2.984479245e-05 | G85: 0.0001259723655 | H85: -2.521604835e-05 | J85: -0.0003287113895 | K85: -0.002148785516 | L85: 0.001594279516 | M85: 0.01019951279 | N85: 1.177205504e-05
A86: =IF('DF raw data'!I91="","",'DF raw data'!I91) -> -288 | B86: =IF('DF raw data'!J91="","",'DF raw data'!J91) -> -1.79569e-05 | C86: =IF('DF raw data'!K91="","",'DF raw data'!K91) -> 0.000120079 | D86: =IF('DF raw data'!L91="","",'DF raw data'!L91) -> -1.74538e-05 | F86: -1.801974915e-05 | G86: 0.0001204992765 | H86: -1.75148883e-05 | J86: -0.0003377212641 | K86: -0.002317646149 | L86: 0.001654529155 | M86: 0.01102677736 | N86: 1.319781623e-05
A87: =IF('DF raw data'!I92="","",'DF raw data'!I92) -> -287.5 | B87: =IF('DF raw data'!J92="","",'DF raw data'!J92) -> -1.78951e-05 | C87: =IF('DF raw data'!K92="","",'DF raw data'!K92) -> 0.000119945 | D87: =IF('DF raw data'!L92="","",'DF raw data'!L92) -> -1.41959e-05 | F87: -1.795773285e-05 | G87: 0.0001203648075 | H87: -1.424558565e-05 | J87: -0.0003467001305 | K87: -0.002490996214 | L87: 0.001714711558 | M87: 0.01188413314 | N87: 1.472803458e-05
A88: =IF('DF raw data'!I93="","",'DF raw data'!I93) -> -287 | B88: =IF('DF raw data'!J93="","",'DF raw data'!J93) -> -3.00627e-05 | C88: =IF('DF raw data'!K93="","",'DF raw data'!K93) -> 0.000125507 | D88: =IF('DF raw data'!L93="","",'DF raw data'!L93) -> -2.28022e-05 | F88: -3.016791945e-05 | G88: 0.0001259462745 | H88: -2.28820077e-05 | J88: -0.0003617840903 | K88: -0.002671888259 | L88: 0.001777684696 | M88: 0.01277297549 | N88: 1.637355988e-05
A89: =IF('DF raw data'!I94="","",'DF raw data'!I94) -> -286.5 | B89: =IF('DF raw data'!J94="","",'DF raw data'!J94) -> -2.76936e-05 | C89: =IF('DF raw data'!K94="","",'DF raw data'!K94) -> 0.000131419 | D89: =IF('DF raw data'!L94="","",'DF raw data'!L94) -> -2.04441e-05 | F89: -2.77905276e-05 | G89: 0.0001318789665 | H89: -2.051565435e-05 | J89: -0.0003756793541 | K89: -0.002859727936 | L89: 0.001843624179 | M89: 0.01369478758 | N89: 1.814360243e-05
A90: =IF('DF raw data'!I95="","",'DF raw data'!I95) -> -286 | B90: =IF('DF raw data'!J95="","",'DF raw data'!J95) -> -2.39818e-05 | C90: =IF('DF raw data'!K95="","",'DF raw data'!K95) -> 0.000116949 | D90: =IF('DF raw data'!L95="","",'DF raw data'!L95) -> -1.38136e-05 | F90: -2.40657363e-05 | G90: 0.0001173583215 | H90: -1.38619476e-05 | J90: -0.0003877122222 | K90: -0.003053584047 | L90: 0.00190230334 | M90: 0.01464593925 | N90: 2.002814181e-05
A91: =IF('DF raw data'!I96="","",'DF raw data'!I96) -> -285.5 | B91: =IF('DF raw data'!J96="","",'DF raw data'!J96) -> -3.10273e-05 | C91: =IF('DF raw data'!K96="","",'DF raw data'!K96) -> 0.000119168 | D91: =IF('DF raw data'!L96="","",'DF raw data'!L96) -> -1.71324e-05 | F91: -3.113589555e-05 | G91: 0.000119585088 | H91: -1.71923634e-05 | J91: -0.00040328017 | K91: -0.003255224132 | L91: 0.001962095884 | M91: 0.01562698719 | N91: 2.203436939e-05
A92: =IF('DF raw data'!I97="","",'DF raw data'!I97) -> -285 | B92: =IF('DF raw data'!J97="","",'DF raw data'!J97) -> -3.10303e-05 | C92: =IF('DF raw data'!K97="","",'DF raw data'!K97) -> 0.000124924 | D92: =IF('DF raw data'!L97="","",'DF raw data'!L97) -> -1.25418e-05 | F92: -3.113890605e-05 | G92: 0.000125361234 | H92: -1.25856963e-05 | J92: -0.000418849623 | K92: -0.003464648944 | L92: 0.002024776501 | M92: 0.01663937544 | N92: 2.417194683e-05
A93: =IF('DF raw data'!I98="","",'DF raw data'!I98) -> -284.5 | B93: =IF('DF raw data'!J98="","",'DF raw data'!J98) -> -2.2513e-05 | C93: =IF('DF raw data'!K98="","",'DF raw data'!K98) -> 0.000125912 | D93: =IF('DF raw data'!L98="","",'DF raw data'!L98) -> -6.37504e-06 | F93: -2.25917955e-05 | G93: 0.000126352692 | H93: -6.39735264e-06 | J93: -0.0004301455208 | K93: -0.003679721704 | L93: 0.002087952847 | M93: 0.01768335187 | N93: 2.644423296e-05
A94: =IF('DF raw data'!I99="","",'DF raw data'!I99) -> -284 | B94: =IF('DF raw data'!J99="","",'DF raw data'!J99) -> -3.29477e-05 | C94: =IF('DF raw data'!K99="","",'DF raw data'!K99) -> 0.000132151 | D94: =IF('DF raw data'!L99="","",'DF raw data'!L99) -> -1.96739e-05 | F94: -3.306301695e-05 | G94: 0.0001326135285 | H94: -1.974275865e-05 | J94: -0.0004466770292 | K94: -0.003903060219 | L94: 0.002154259611 | M94: 0.01876048167 | N94: 2.886441038e-05
A95: =IF('DF raw data'!I100="","",'DF raw data'!I100) -> -283.5 | B95: =IF('DF raw data'!J100="","",'DF raw data'!J100) -> -2.20667e-05 | C95: =IF('DF raw data'!K100="","",'DF raw data'!K100) -> 0.000138944 | D95: =IF('DF raw data'!L100="","",'DF raw data'!L100) -> -3.20542e-06 | F95: -2.214393345e-05 | G95: 0.000139430304 | H95: -3.21663897e-06 | J95: -0.000457748996 | K95: -0.004131934716 | L95: 0.002223974763 | M95: 0.01987246905 | N95: 3.144220932e-05
A96: =IF('DF raw data'!I101="","",'DF raw data'!I101) -> -283 | B96: =IF('DF raw data'!J101="","",'DF raw data'!J101) -> -2.78901e-05 | C96: =IF('DF raw data'!K101="","",'DF raw data'!K101) -> 0.000134789 | D96: =IF('DF raw data'!L101="","",'DF raw data'!L101) -> -1.36753e-05 | F96: -2.798771535e-05 | G96: 0.0001352607615 | H96: -1.372316355e-05 | J96: -0.0004717428536 | K96: -0.004367806143 | L96: 0.002291605144 | M96: 0.02101827162 | N96: 3.417920705e-05
A97: =IF('DF raw data'!I102="","",'DF raw data'!I102) -> -282.5 | B97: =IF('DF raw data'!J102="","",'DF raw data'!J102) -> -2.95555e-05 | C97: =IF('DF raw data'!K102="","",'DF raw data'!K102) -> 0.00011894 | D97: =IF('DF raw data'!L102="","",'DF raw data'!L102) -> -1.42513e-05 | F97: -2.965894425e-05 | G97: 0.00011935629 | H97: -1.430117955e-05 | J97: -0.0004865723258 | K97: -0.004611092306 | L97: 0.002351283289 | M97: 0.02219391327 | N97: 3.706184992e-05
A98: =IF('DF raw data'!I103="","",'DF raw data'!I103) -> -282 | B98: =IF('DF raw data'!J103="","",'DF raw data'!J103) -> -2.01393e-05 | C98: =IF('DF raw data'!K103="","",'DF raw data'!K103) -> 0.000118693 | D98: =IF('DF raw data'!L103="","",'DF raw data'!L103) -> -1.15051e-05 | F98: -2.020978755e-05 | G98: 0.0001191084255 | H98: -1.154536785e-05 | J98: -0.0004966772195 | K98: -0.004859430916 | L98: 0.002410837501 | M98: 0.02339933202 | N98: 4.009126278e-05
A99: =IF('DF raw data'!I104="","",'DF raw data'!I104) -> -281.5 | B99: =IF('DF raw data'!J104="","",'DF raw data'!J104) -> -2.30865e-05 | C99: =IF('DF raw data'!K104="","",'DF raw data'!K104) -> 0.000123072 | D99: =IF('DF raw data'!L104="","",'DF raw data'!L104) -> -1.13443e-05 | F99: -2.316730275e-05 | G99: 0.000123502752 | H99: -1.138400505e-05 | J99: -0.0005082608709 | K99: -0.005113561351 | L99: 0.002472588877 | M99: 0.02463562646 | N99: 4.327727521e-05
A100: =IF('DF raw data'!I105="","",'DF raw data'!I105) -> -281 | B100: =IF('DF raw data'!J105="","",'DF raw data'!J105) -> -2.66025e-05 | C100: =IF('DF raw data'!K105="","",'DF raw data'!K105) -> 0.000122315 | D100: =IF('DF raw data'!L105="","",'DF raw data'!L105) -> -2.34541e-05 | F100: -2.669560875e-05 | G100: 0.0001227431025 | H100: -2.353618935e-05 | J100: -0.0005216086753 | K100: -0.005374365689 | L100: 0.002533960429 | M100: 0.02590260667 | N100: 4.662379074e-05
A101: =IF('DF raw data'!I106="","",'DF raw data'!I106) -> -280.5 | B101: =IF('DF raw data'!J106="","",'DF raw data'!J106) -> -2.66715e-05 | C101: =IF('DF raw data'!K106="","",'DF raw data'!K106) -> 0.000115183 | D101: =IF('DF raw data'!L106="","",'DF raw data'!L106) -> -1.59156e-05 | F101: -2.676485025e-05 | G101: 0.0001155861405 | H101: -1.59713046e-05 | J101: -0.0005349911004 | K101: -0.005641861239 | L101: 0.002591753499 | M101: 0.02719848342 | N101: 5.012549158e-05
A102: =IF('DF raw data'!I107="","",'DF raw data'!I107) -> -280 | B102: =IF('DF raw data'!J107="","",'DF raw data'!J107) -> -2.50065e-05 | C102: =IF('DF raw data'!K107="","",'DF raw data'!K107) -> 0.000115414 | D102: =IF('DF raw data'!L107="","",'DF raw data'!L107) -> -1.44069e-05 | F102: -2.509402275e-05 | G102: 0.000115817949 | H102: -1.445732415e-05 | J102: -0.0005475381118 | K102: -0.005915630295 | L102: 0.002649662473 | M102: 0.02852331466 | N102: 5.378574619e-05
A103: =IF('DF raw data'!I108="","",'DF raw data'!I108) -> -279.5 | B103: =IF('DF raw data'!J108="","",'DF raw data'!J108) -> -3.96731e-05 | C103: =IF('DF raw data'!K108="","",'DF raw data'!K108) -> 0.00013101 | D103: =IF('DF raw data'!L108="","",'DF raw data'!L108) -> -2.27016e-05 | F103: -3.981195585e-05 | G103: 0.000131468535 | H103: -2.27810556e-05 | J103: -0.0005674440897 | K103: -0.00619935234 | L103: 0.002715396741 | M103: 0.02988101303 | N103: 5.763343231e-05
A104: =IF('DF raw data'!I109="","",'DF raw data'!I109) -> -279 | B104: =IF('DF raw data'!J109="","",'DF raw data'!J109) -> -3.27495e-05 | C104: =IF('DF raw data'!K109="","",'DF raw data'!K109) -> 0.000137883 | D104: =IF('DF raw data'!L109="","",'DF raw data'!L109) -> -2.91615e-05 | F104: -3.286412325e-05 | G104: 0.0001383655905 | H104: -2.926356525e-05 | J104: -0.0005838761513 | K104: -0.006491290416 | L104: 0.002784579536 | M104: 0.0312733028 | N104: 6.168082959e-05
A105: =IF('DF raw data'!I110="","",'DF raw data'!I110) -> -278.5 | B105: =IF('DF raw data'!J110="","",'DF raw data'!J110) -> -2.25597e-05 | C105: =IF('DF raw data'!K110="","",'DF raw data'!K110) -> 0.00013399 | D105: =IF('DF raw data'!L110="","",'DF raw data'!L110) -> -3.33217e-05 | F105: -2.263865895e-05 | G105: 0.000134458965 | H105: -3.343832595e-05 | J105: -0.0005951954808 | K105: -0.006788888156 | L105: 0.002851809019 | M105: 0.03269920731 | N105: 6.592436576e-05
A106: =IF('DF raw data'!I111="","",'DF raw data'!I111) -> -278 | B106: =IF('DF raw data'!J111="","",'DF raw data'!J111) -> -3.01901e-05 | C106: =IF('DF raw data'!K111="","",'DF raw data'!K111) -> 0.00012738 | D106: =IF('DF raw data'!L111="","",'DF raw data'!L111) -> -2.40903e-05 | F106: -3.029576535e-05 | G106: 0.00012782583 | H106: -2.417461605e-05 | J106: -0.0006103433635 | K106: -0.007094059838 | L106: 0.002915721934 | M106: 0.03415706827 | N106: 7.036134247e-05
A107: =IF('DF raw data'!I112="","",'DF raw data'!I112) -> -277.5 | B107: =IF('DF raw data'!J112="","",'DF raw data'!J112) -> -2.82677e-05 | C107: =IF('DF raw data'!K112="","",'DF raw data'!K112) -> 0.000128118 | D107: =IF('DF raw data'!L112="","",'DF raw data'!L112) -> -2.42689e-05 | F107: -2.836663695e-05 | G107: 0.000128566413 | H107: -2.435384115e-05 | J107: -0.0006245266819 | K107: -0.007406323179 | L107: 0.00298000514 | M107: 0.03564707084 | N107: 7.499657457e-05
A108: =IF('DF raw data'!I113="","",'DF raw data'!I113) -> -277 | B108: =IF('DF raw data'!J113="","",'DF raw data'!J113) -> -1.93077e-05 | C108: =IF('DF raw data'!K113="","",'DF raw data'!K113) -> 0.000126671 | D108: =IF('DF raw data'!L113="","",'DF raw data'!L113) -> -9.4334e-06 | F108: -1.937527695e-05 | G108: 0.0001271143485 | H108: -9.4664169e-06 | J108: -0.0006342143204 | K108: -0.007723430339 | L108: 0.003043562314 | M108: 0.037168852 | N108: 7.982932426e-05
A109: =IF('DF raw data'!I114="","",'DF raw data'!I114) -> -276.5 | B109: =IF('DF raw data'!J114="","",'DF raw data'!J114) -> -1.84057e-05 | C109: =IF('DF raw data'!K114="","",'DF raw data'!K114) -> 0.000114744 | D109: =IF('DF raw data'!L114="","",'DF raw data'!L114) -> -1.72263e-05 | F109: -1.847011995e-05 | G109: 0.000115145604 | H109: -1.728659205e-05 | J109: -0.0006434493804 | K109: -0.008045155029 | L109: 0.003101135116 | M109: 0.03871941956 | N109: 8.484485732e-05
A110: =IF('DF raw data'!I115="","",'DF raw data'!I115) -> -276 | B110: =IF('DF raw data'!J115="","",'DF raw data'!J115) -> -1.80232e-05 | C110: =IF('DF raw data'!K115="","",'DF raw data'!K115) -> 0.000122384 | D110: =IF('DF raw data'!L115="","",'DF raw data'!L115) -> -1.43491e-05 | F110: -1.80862812e-05 | G110: 0.000122812344 | H110: -1.439932185e-05 | J110: -0.000652492521 | K110: -0.00837140129 | L110: 0.003162541288 | M110: 0.0403006902 | N110: 9.005856426e-05
A111: =IF('DF raw data'!I116="","",'DF raw data'!I116) -> -275.5 | B111: =IF('DF raw data'!J116="","",'DF raw data'!J116) -> -1.76394e-05 | C111: =IF('DF raw data'!K116="","",'DF raw data'!K116) -> 0.000120912 | D111: =IF('DF raw data'!L116="","",'DF raw data'!L116) -> -1.33084e-05 | F111: -1.77011379e-05 | G111: 0.000121335192 | H111: -1.33549794e-05 | J111: -0.0006613430899 | K111: -0.008702072835 | L111: 0.003223208884 | M111: 0.04191229465 | N111: 9.547178936e-05
A112: =IF('DF raw data'!I117="","",'DF raw data'!I117) -> -275 | B112: =IF('DF raw data'!J117="","",'DF raw data'!J117) -> -3.24411e-05 | C112: =IF('DF raw data'!K117="","",'DF raw data'!K117) -> 0.000115727 | D112: =IF('DF raw data'!L117="","",'DF raw data'!L117) -> -1.04413e-05 | F112: -3.255464385e-05 | G112: 0.0001161320445 | H112: -1.047784455e-05 | J112: -0.0006776204119 | K112: -0.009040883041 | L112: 0.003281274907 | M112: 0.0435529321 | N112: 0.0001010847566
A113: =IF('DF raw data'!I118="","",'DF raw data'!I118) -> -274.5 | B113: =IF('DF raw data'!J118="","",'DF raw data'!J118) -> -2.61586e-05 | C113: =IF('DF raw data'!K118="","",'DF raw data'!K118) -> 0.000118211 | D113: =IF('DF raw data'!L118="","",'DF raw data'!L118) -> -1.6178e-05 | F113: -2.62501551e-05 | G113: 0.0001186247385 | H113: -1.6234623e-05 | J113: -0.0006907454894 | K113: -0.009386255785 | L113: 0.003340587276 | M113: 0.04522322574 | N113: 0.0001069030829
A114: =IF('DF raw data'!I119="","",'DF raw data'!I119) -> -274 | B114: =IF('DF raw data'!J119="","",'DF raw data'!J119) -> -2.8341e-05 | C114: =IF('DF raw data'!K119="","",'DF raw data'!K119) -> 0.000126938 | D114: =IF('DF raw data'!L119="","",'DF raw data'!L119) -> -1.01607e-05 | F114: -2.84401935e-05 | G114: 0.000127382283 | H114: -1.019626245e-05 | J114: -0.0007049655862 | K114: -0.009738738578 | L114: 0.003404278417 | M114: 0.04692536495 | N114: 0.0001129461269
A115: =IF('DF raw data'!I120="","",'DF raw data'!I120) -> -273.5 | B115: =IF('DF raw data'!J120="","",'DF raw data'!J120) -> -2.53933e-05 | C115: =IF('DF raw data'!K120="","",'DF raw data'!K120) -> 0.000130166 | D115: =IF('DF raw data'!L120="","",'DF raw data'!L120) -> -1.07449e-05 | F115: -2.548217655e-05 | G115: 0.000130621581 | H115: -1.078250715e-05 | J115: -0.0007177066744 | K115: -0.01009759192 | L115: 0.003469589208 | M115: 0.04866015955 | N115: 0.000119222703
A116: =IF('DF raw data'!I121="","",'DF raw data'!I121) -> -273 | B116: =IF('DF raw data'!J121="","",'DF raw data'!J121) -> -2.77596e-05 | C116: =IF('DF raw data'!K121="","",'DF raw data'!K121) -> 0.000123605 | D116: =IF('DF raw data'!L121="","",'DF raw data'!L121) -> -1.74346e-05 | F116: -2.78567586e-05 | G116: 0.0001240376175 | H116: -1.74956211e-05 | J116: -0.0007316350537 | K116: -0.01046340944 | L116: 0.003531608017 | M116: 0.05042596356 | N116: 0.0001257264755
A117: =IF('DF raw data'!I122="","",'DF raw data'!I122) -> -272.5 | B117: =IF('DF raw data'!J122="","",'DF raw data'!J122) -> -1.02108e-05 | C117: =IF('DF raw data'!K122="","",'DF raw data'!K122) -> 0.000128283 | D117: =IF('DF raw data'!L122="","",'DF raw data'!L122) -> -8.12677e-06 | F117: -1.02465378e-05 | G117: 0.0001287319905 | H117: -8.155213695e-06 | J117: -0.0007367583226 | K117: -0.0108317886 | L117: 0.003595974012 | M117: 0.05222395056 | N117: 0.0001324633965
A118: =IF('DF raw data'!I123="","",'DF raw data'!I123) -> -272 | B118: =IF('DF raw data'!J123="","",'DF raw data'!J123) -> -2.74983e-05 | C118: =IF('DF raw data'!K123="","",'DF raw data'!K123) -> 0.000123492 | D118: =IF('DF raw data'!L123="","",'DF raw data'!L123) -> -2.52139e-05 | F118: -2.759454405e-05 | G118: 0.000123924222 | H118: -2.530214865e-05 | J118: -0.0007505555947 | K118: -0.0112070664 | L118: 0.003657936123 | M118: 0.05405291863 | N118: 0.0001394353117
A119: =IF('DF raw data'!I124="","",'DF raw data'!I124) -> -271.5 | B119: =IF('DF raw data'!J124="","",'DF raw data'!J124) -> -2.23809e-05 | C119: =IF('DF raw data'!K124="","",'DF raw data'!K124) -> 0.00012368 | D119: =IF('DF raw data'!L124="","",'DF raw data'!L124) -> -1.24855e-05 | F119: -2.245923315e-05 | G119: 0.00012411288 | H119: -1.252919925e-05 | J119: -0.0007617852112 | K119: -0.01158795901 | L119: 0.003719992563 | M119: 0.05591291491 | N119: 0.0001466446424
A120: =IF('DF raw data'!I125="","",'DF raw data'!I125) -> -271 | B120: =IF('DF raw data'!J125="","",'DF raw data'!J125) -> -2.72471e-05 | C120: =IF('DF raw data'!K125="","",'DF raw data'!K125) -> 0.000130462 | D120: =IF('DF raw data'!L125="","",'DF raw data'!L125) -> -1.73612e-05 | F120: -2.734246485e-05 | G120: 0.000130918617 | H120: -1.74219642e-05 | J120: -0.0007754564437 | K120: -0.01197568723 | L120: 0.003785451871 | M120: 0.05780564084 | N120: 0.0001541101316
A121: =IF('DF raw data'!I126="","",'DF raw data'!I126) -> -270.5 | B121: =IF('DF raw data'!J126="","",'DF raw data'!J126) -> -3.23703e-05 | C121: =IF('DF raw data'!K126="","",'DF raw data'!K126) -> 0.000125778 | D121: =IF('DF raw data'!L126="","",'DF raw data'!L126) -> -2.10708e-05 | F121: -3.248359605e-05 | G121: 0.000126218223 | H121: -2.11445478e-05 | J121: -0.0007916982417 | K121: -0.01237153635 | L121: 0.003848560983 | M121: 0.05972992134 | N121: 0.0001618292355
A122: =IF('DF raw data'!I127="","",'DF raw data'!I127) -> -270 | B122: =IF('DF raw data'!J127="","",'DF raw data'!J127) -> -2.24469e-05 | C122: =IF('DF raw data'!K127="","",'DF raw data'!K127) -> 0.000124794 | D122: =IF('DF raw data'!L127="","",'DF raw data'!L127) -> -9.77259e-06 | F122: -2.252546415e-05 | G122: 0.000125230779 | H122: -9.806794065e-06 | J122: -0.0008029609738 | K122: -0.01277301684 | L122: 0.003911176372 | M122: 0.06168550952 | N122: 0.000169800259
A123: =IF('DF raw data'!I128="","",'DF raw data'!I128) -> -269.5 | B123: =IF('DF raw data'!J128="","",'DF raw data'!J128) -> -2.32802e-05 | C123: =IF('DF raw data'!K128="","",'DF raw data'!K128) -> 0.000125641 | D123: =IF('DF raw data'!L128="","",'DF raw data'!L128) -> -9.31805e-06 | F123: -2.33616807e-05 | G123: 0.0001260807435 | H123: -9.350663175e-06 | J123: -0.0008146418141 | K123: -0.01318033774 | L123: 0.003974216744 | M123: 0.06367261789 | N123: 0.000178029279
A124: =IF('DF raw data'!I129="","",'DF raw data'!I129) -> -269 | B124: =IF('DF raw data'!J129="","",'DF raw data'!J129) -> -2.3848e-05 | C124: =IF('DF raw data'!K129="","",'DF raw data'!K129) -> 0.00011897 | D124: =IF('DF raw data'!L129="","",'DF raw data'!L129) -> -2.27437e-05 | F124: -2.3931468e-05 | G124: 0.000119386395 | H124: -2.282330295e-05 | J124: -0.0008266075481 | K124: -0.01359364152 | L124: 0.004033909942 | M124: 0.06568957286 | N124: 0.0001865071337
A125: =IF('DF raw data'!I130="","",'DF raw data'!I130) -> -268.5 | B125: =IF('DF raw data'!J130="","",'DF raw data'!J130) -> -1.88015e-05 | C125: =IF('DF raw data'!K130="","",'DF raw data'!K130) -> 0.000117885 | D125: =IF('DF raw data'!L130="","",'DF raw data'!L130) -> 4.0307e-07 | F125: -1.886730525e-05 | G125: 0.0001182975975 | H125: 4.04480745e-07 | J125: -0.0008360412007 | K125: -0.01401166212 | L125: 0.00409305874 | M125: 0.06773610223 | N125: 0.0001952331811
A126: =IF('DF raw data'!I131="","",'DF raw data'!I131) -> -268 | B126: =IF('DF raw data'!J131="","",'DF raw data'!J131) -> -1.99497e-05 | C126: =IF('DF raw data'!K131="","",'DF raw data'!K131) -> 0.000113971 | D126: =IF('DF raw data'!L131="","",'DF raw data'!L131) -> -7.32583e-06 | F126: -2.001952395e-05 | G126: 0.0001143698985 | H126: -7.351470405e-06 | J126: -0.0008460509627 | K126: -0.0144346876 | L126: 0.00415024369 | M126: 0.06981122408 | N126: 0.0002042033436
A127: =IF('DF raw data'!I132="","",'DF raw data'!I132) -> -267.5 | B127: =IF('DF raw data'!J132="","",'DF raw data'!J132) -> -2.55881e-05 | C127: =IF('DF raw data'!K132="","",'DF raw data'!K132) -> 0.000112581 | D127: =IF('DF raw data'!L132="","",'DF raw data'!L132) -> -6.94966e-06 | F127: -2.567765835e-05 | G127: 0.0001129750335 | H127: -6.97398381e-06 | J127: -0.0008588897919 | K127: -0.0148641325 | L127: 0.004206731206 | M127: 0.07191458968 | N127: 0.0002134204831
A128: =IF('DF raw data'!I133="","",'DF raw data'!I133) -> -267 | B128: =IF('DF raw data'!J133="","",'DF raw data'!J133) -> -2.7507e-05 | C128: =IF('DF raw data'!K133="","",'DF raw data'!K133) -> 0.000106971 | D128: =IF('DF raw data'!L133="","",'DF raw data'!L133) -> -1.17601e-05 | F128: =(1-$G$1*($B$49-$G$2))*B128 -> -2.76032745e-05 | G128: 0.0001073453985 | H128: -1.180126035e-05 | J128: =F128*$G$3+J127 -> -0.0008726914291 | K128: =J128*$G$3+K127 -> -0.01530047821 | L128: =G128*$G$3+L127 -> 0.004260403906 | M128: =L128*$G$3+M127 -> 0.07404479164 | N128: =(J128^2+L128^2)*$G$3+N127 -> 0.000222876799
A129: =IF('DF raw data'!I134="","",'DF raw data'!I134) -> -266.5 | B129: =IF('DF raw data'!J134="","",'DF raw data'!J134) -> -2.16729e-05 | C129: =IF('DF raw data'!K134="","",'DF raw data'!K134) -> 0.000106073 | D129: =IF('DF raw data'!L134="","",'DF raw data'!L134) -> -1.77844e-05 | F129: -2.174875515e-05 | G129: 0.0001064442555 | H129: -1.78466454e-05 | J129: -0.0008835658067 | K129: -0.01574226111 | L129: 0.004313626033 | M129: 0.07620160465 | N129: 0.000232570828
A130: =IF('DF raw data'!I135="","",'DF raw data'!I135) -> -266 | B130: =IF('DF raw data'!J135="","",'DF raw data'!J135) -> -2.41694e-05 | C130: =IF('DF raw data'!K135="","",'DF raw data'!K135) -> 0.000109228 | D130: =IF('DF raw data'!L135="","",'DF raw data'!L135) -> -2.11957e-05 | F130: -2.42539929e-05 | G130: 0.000109610298 | H130: -2.126988495e-05 | J130: -0.0008956928032 | K130: -0.01619010751 | L130: 0.004368431182 | M130: 0.07838582024 | N130: 0.0002425135563
A131: =IF('DF raw data'!I136="","",'DF raw data'!I136) -> -265.5 | B131: =IF('DF raw data'!J136="","",'DF raw data'!J136) -> -2.83346e-05 | C131: =IF('DF raw data'!K136="","",'DF raw data'!K136) -> 0.000111307 | D131: =IF('DF raw data'!L136="","",'DF raw data'!L136) -> -2.01113e-05 | F131: -2.84337711e-05 | G131: 0.0001116965745 | H131: -2.018168955e-05 | J131: -0.0009099096887 | K131: -0.01664506236 | L131: 0.00442427947 | M131: 0.08059795998 | N131: 0.0002527146486
A132: =IF('DF raw data'!I137="","",'DF raw data'!I137) -> -265 | B132: =IF('DF raw data'!J137="","",'DF raw data'!J137) -> -2.4492e-05 | C132: =IF('DF raw data'!K137="","",'DF raw data'!K137) -> 0.000108608 | D132: =IF('DF raw data'!L137="","",'DF raw data'!L137) -> -1.74982e-05 | F132: -2.4577722e-05 | G132: 0.000108988128 | H132: -1.75594437e-05 | J132: -0.0009221985497 | K132: -0.01710616163 | L132: 0.004478773534 | M132: 0.08283734675 | N132: 0.0002631695798
A133: =IF('DF raw data'!I138="","",'DF raw data'!I138) -> -264.5 | B133: =IF('DF raw data'!J138="","",'DF raw data'!J138) -> -1.97524e-05 | C133: =IF('DF raw data'!K138="","",'DF raw data'!K138) -> 0.000114642 | D133: =IF('DF raw data'!L138="","",'DF raw data'!L138) -> -1.54839e-05 | F133: -1.98215334e-05 | G133: 0.000115043247 | H133: -1.553809365e-05 | J133: -0.0009321093164 | K133: -0.01757221629 | L133: 0.004536295157 | M133: 0.08510549432 | N133: 0.0002738929806
A134: =IF('DF raw data'!I139="","",'DF raw data'!I139) -> -264 | B134: =IF('DF raw data'!J139="","",'DF raw data'!J139) -> -1.01429e-05 | C134: =IF('DF raw data'!K139="","",'DF raw data'!K139) -> 0.000116162 | D134: =IF('DF raw data'!L139="","",'DF raw data'!L139) -> -1.37996e-05 | F134: -1.017840015e-05 | G134: 0.000116568567 | H134: -1.38478986e-05 | J134: -0.0009371985165 | K134: -0.01804081555 | L134: 0.004594579441 | M134: 0.08740278404 | N134: 0.0002848872313
A135: =IF('DF raw data'!I140="","",'DF raw data'!I140) -> -263.5 | B135: =IF('DF raw data'!J140="","",'DF raw data'!J140) -> -2.22526e-05 | C135: =IF('DF raw data'!K140="","",'DF raw data'!K140) -> 0.0001193 | D135: =IF('DF raw data'!L140="","",'DF raw data'!L140) -> -1.2696e-05 | F135: -2.23304841e-05 | G135: 0.00011971755 | H135: -1.2740436e-05 | J135: -0.0009483637585 | K135: -0.01851499743 | L135: 0.004654438216 | M135: 0.08973000315 | N135: 0.0002961688257
A136: =IF('DF raw data'!I141="","",'DF raw data'!I141) -> -263 | B136: =IF('DF raw data'!J141="","",'DF raw data'!J141) -> -1.23878e-05 | C136: =IF('DF raw data'!K141="","",'DF raw data'!K141) -> 0.00011586 | D136: =IF('DF raw data'!L141="","",'DF raw data'!L141) -> -1.01289e-05 | F136: -1.24311573e-05 | G136: 0.00011626551 | H136: -1.016435115e-05 | J136: -0.0009545793372 | K136: -0.0189922871 | L136: 0.004712570971 | M136: 0.09208628864 | N136: 0.0003077285991
A137: =IF('DF raw data'!I142="","",'DF raw data'!I142) -> -262.5 | B137: =IF('DF raw data'!J142="","",'DF raw data'!J142) -> -2.46908e-05 | C137: =IF('DF raw data'!K142="","",'DF raw data'!K142) -> 0.000112546 | D137: =IF('DF raw data'!L142="","",'DF raw data'!L142) -> -7.5497e-06 | F137: -2.47772178e-05 | G137: 0.000112939911 | H137: -7.57612395e-06 | J137: -0.0009669679461 | K137: -0.01947577107 | L137: 0.004769040926 | M137: 0.0944708091 | N137: 0.0003195679883
A138: =IF('DF raw data'!I143="","",'DF raw data'!I143) -> -262 | B138: =IF('DF raw data'!J143="","",'DF raw data'!J143) -> -1.44388e-05 | C138: =IF('DF raw data'!K143="","",'DF raw data'!K143) -> 0.000112096 | D138: =IF('DF raw data'!L143="","",'DF raw data'!L143) -> -8.71985e-06 | F138: -1.44893358e-05 | G138: 0.000112488336 | H138: -8.750369475e-06 | J138: -0.000974212614 | K138: -0.01996287738 | L138: 0.004825285094 | M138: 0.09688345165 | N138: 0.0003316842216
A139: =IF('DF raw data'!I144="","",'DF raw data'!I144) -> -261.5 | B139: =IF('DF raw data'!J144="","",'DF raw data'!J144) -> -1.87939e-05 | C139: =IF('DF raw data'!K144="","",'DF raw data'!K144) -> 0.000116778 | D139: =IF('DF raw data'!L144="","",'DF raw data'!L144) -> -1.13175e-05 | F139: -1.885967865e-05 | G139: 0.000117186723 | H139: -1.135711125e-05 | J139: -0.0009836424533 | K139: -0.0204546986 | L139: 0.004883878456 | M139: 0.09932539088 | N139: 0.0003440941322
A140: =IF('DF raw data'!I145="","",'DF raw data'!I145) -> -261 | B140: =IF('DF raw data'!J145="","",'DF raw data'!J145) -> -2.18096e-05 | C140: =IF('DF raw data'!K145="","",'DF raw data'!K145) -> 0.000118941 | D140: =IF('DF raw data'!L145="","",'DF raw data'!L145) -> -4.57564e-06 | F140: -2.18859336e-05 | G140: 0.0001193572935 | H140: -4.59165474e-06 | J140: -0.0009945854201 | K140: -0.02095199132 | L140: 0.004943557103 | M140: 0.1017971694 | N140: 0.0003568081107
A141: =IF('DF raw data'!I146="","",'DF raw data'!I146) -> -260.5 | B141: =IF('DF raw data'!J146="","",'DF raw data'!J146) -> -2.80138e-05 | C141: =IF('DF raw data'!K146="","",'DF raw data'!K146) -> 0.000117555 | D141: =IF('DF raw data'!L146="","",'DF raw data'!L146) -> -2.05298e-05 | F141: -2.81118483e-05 | G141: 0.0001179664425 | H141: -2.06016543e-05 | J141: -0.001008641344 | K141: -0.02145631199 | L141: 0.005002540324 | M141: 0.1042984396 | N141: 0.0003698294942
A142: =IF('DF raw data'!I147="","",'DF raw data'!I147) -> -260 | B142: =IF('DF raw data'!J147="","",'DF raw data'!J147) -> -3.58325e-05 | C142: =IF('DF raw data'!K147="","",'DF raw data'!K147) -> 0.000120399 | D142: =IF('DF raw data'!L147="","",'DF raw data'!L147) -> -1.71199e-05 | F142: -3.595791375e-05 | G142: 0.0001208203965 | H142: -1.717981965e-05 | J142: -0.001026620301 | K142: -0.02196962214 | L142: 0.005062950522 | M142: 0.1068299148 | N142: 0.0003831732028
A143: =IF('DF raw data'!I148="","",'DF raw data'!I148) -> -259.5 | B143: =IF('DF raw data'!J148="","",'DF raw data'!J148) -> -2.14812e-05 | C143: =IF('DF raw data'!K148="","",'DF raw data'!K148) -> 0.000113199 | D143: =IF('DF raw data'!L148="","",'DF raw data'!L148) -> -1.6719e-05 | F143: -2.15563842e-05 | G143: 0.0001135951965 | H143: -1.67775165e-05 | J143: -0.001037398493 | K143: -0.02248832138 | L143: 0.00511974812 | M143: 0.1093897889 | N143: 0.000396817211
A144: =IF('DF raw data'!I149="","",'DF raw data'!I149) -> -259 | B144: =IF('DF raw data'!J149="","",'DF raw data'!J149) -> -3.42328e-05 | C144: =IF('DF raw data'!K149="","",'DF raw data'!K149) -> 0.000109504 | D144: =IF('DF raw data'!L149="","",'DF raw data'!L149) -> -1.43745e-05 | F144: -3.43526148e-05 | G144: 0.000109887264 | H144: -1.442481075e-05 | J144: -0.001054574801 | K144: -0.02301560878 | L144: 0.005174691752 | M144: 0.1119771348 | N144: 0.0004107619924
A145: =IF('DF raw data'!I150="","",'DF raw data'!I150) -> -258.5 | B145: =IF('DF raw data'!J150="","",'DF raw data'!J150) -> -2.93612e-05 | C145: =IF('DF raw data'!K150="","",'DF raw data'!K150) -> 0.000116943 | D145: =IF('DF raw data'!L150="","",'DF raw data'!L150) -> -1.76713e-05 | F145: -2.94639642e-05 | G145: 0.0001173523005 | H145: -1.773314955e-05 | J145: -0.001069306783 | K145: -0.02355026218 | L145: 0.005233367903 | M145: 0.1145938187 | N145: 0.0004250277707
A146: =IF('DF raw data'!I151="","",'DF raw data'!I151) -> -258 | B146: =IF('DF raw data'!J151="","",'DF raw data'!J151) -> -2.19309e-05 | C146: =IF('DF raw data'!K151="","",'DF raw data'!K151) -> 0.000114531 | D146: =IF('DF raw data'!L151="","",'DF raw data'!L151) -> -1.51016e-05 | F146: -2.200765815e-05 | G146: 0.0001149318585 | H146: -1.51544556e-05 | J146: -0.001080310612 | K146: -0.02409041748 | L146: 0.005290833832 | M146: 0.1172392357 | N146: 0.0004396077675
A147: =IF('DF raw data'!I152="","",'DF raw data'!I152) -> -257.5 | B147: =IF('DF raw data'!J152="","",'DF raw data'!J152) -> -3.24394e-05 | C147: =IF('DF raw data'!K152="","",'DF raw data'!K152) -> 0.000104314 | D147: =IF('DF raw data'!L152="","",'DF raw data'!L152) -> -1.30714e-05 | F147: -3.25529379e-05 | G147: 0.000104679099 | H147: -1.31171499e-05 | J147: -0.001096587081 | K147: -0.02463871102 | L147: 0.005343173381 | M147: 0.1199108223 | N147: 0.00045448377
A148: =IF('DF raw data'!I153="","",'DF raw data'!I153) -> -257 | B148: =IF('DF raw data'!J153="","",'DF raw data'!J153) -> -2.30839e-05 | C148: =IF('DF raw data'!K153="","",'DF raw data'!K153) -> 0.000110944 | D148: =IF('DF raw data'!L153="","",'DF raw data'!L153) -> -1.54398e-05 | F148: -2.316469365e-05 | G148: 0.000111332304 | H148: -1.54938393e-05 | J148: -0.001108169428 | K148: -0.02519279574 | L148: 0.005398839533 | M148: 0.1226102421 | N148: 0.0004696715239
A149: =IF('DF raw data'!I154="","",'DF raw data'!I154) -> -256.5 | B149: =IF('DF raw data'!J154="","",'DF raw data'!J154) -> -2.81461e-05 | C149: =IF('DF raw data'!K154="","",'DF raw data'!K154) -> 0.000117431 | D149: =IF('DF raw data'!L154="","",'DF raw data'!L154) -> -1.42148e-05 | F149: -2.824461135e-05 | G149: 0.0001178420085 | H149: -1.42645518e-05 | J149: -0.001122291733 | K149: -0.0257539416 | L149: 0.005457760538 | M149: 0.1253391224 | N149: 0.0004851948683
A150: =IF('DF raw data'!I155="","",'DF raw data'!I155) -> -256 | B150: =IF('DF raw data'!J155="","",'DF raw data'!J155) -> -2.36644e-05 | C150: =IF('DF raw data'!K155="","",'DF raw data'!K155) -> 0.000118999 | D150: =IF('DF raw data'!L155="","",'DF raw data'!L155) -> -9.71541e-06 | F150: -2.37472254e-05 | G150: 0.0001194154965 | H150: -9.749413935e-06 | J150: -0.001134165346 | K150: -0.02632102428 | L150: 0.005517468286 | M150: 0.1280978565 | N150: 0.000501059262
A151: =IF('DF raw data'!I156="","",'DF raw data'!I156) -> -255.5 | B151: =IF('DF raw data'!J156="","",'DF raw data'!J156) -> -2.44254e-05 | C151: =IF('DF raw data'!K156="","",'DF raw data'!K156) -> 0.000121476 | D151: =IF('DF raw data'!L156="","",'DF raw data'!L156) -> -2.1588e-05 | F151: -2.45108889e-05 | G151: 0.000121901166 | H151: -2.1663558e-05 | J151: -0.00114642079 | K151: -0.02689423467 | L151: 0.005578418869 | M151: 0.130887066 | N151: 0.0005172757809
A152: =IF('DF raw data'!I157="","",'DF raw data'!I157) -> -255 | B152: =IF('DF raw data'!J157="","",'DF raw data'!J157) -> -2.16679e-05 | C152: =IF('DF raw data'!K157="","",'DF raw data'!K157) -> 0.000120549 | D152: =IF('DF raw data'!L157="","",'DF raw data'!L157) -> -2.54635e-05 | F152: -2.174373765e-05 | G152: 0.0001209709215 | H152: -2.555262225e-05 | J152: -0.001157292659 | K152: -0.027472881 | L152: 0.00563890433 | M152: 0.1337065181 | N152: 0.000533844065
A153: =IF('DF raw data'!I158="","",'DF raw data'!I158) -> -254.5 | B153: =IF('DF raw data'!J158="","",'DF raw data'!J158) -> -2.8535e-05 | C153: =IF('DF raw data'!K158="","",'DF raw data'!K158) -> 0.000109435 | D153: =IF('DF raw data'!L158="","",'DF raw data'!L158) -> -7.28737e-06 | F153: -2.86348725e-05 | G153: 0.0001098180225 | H153: -7.312875795e-06 | J153: -0.001171610095 | K153: -0.02805868605 | L153: 0.005693813341 | M153: 0.1365534248 | N153: 0.0005507401553
A154: =IF('DF raw data'!I159="","",'DF raw data'!I159) -> -254 | B154: =IF('DF raw data'!J159="","",'DF raw data'!J159) -> -2.38527e-05 | C154: =IF('DF raw data'!K159="","",'DF raw data'!K159) -> 0.000106732 | D154: =IF('DF raw data'!L159="","",'DF raw data'!L159) -> -1.54592e-05 | F154: -2.393618445e-05 | G154: 0.000107105562 | H154: -1.55133072e-05 | J154: -0.001183578188 | K154: -0.02865047514 | L154: 0.005747366122 | M154: 0.1394271079 | N154: 0.0005679566926
A155: =IF('DF raw data'!I160="","",'DF raw data'!I160) -> -253.5 | B155: =IF('DF raw data'!J160="","",'DF raw data'!J160) -> -2.9425e-05 | C155: =IF('DF raw data'!K160="","",'DF raw data'!K160) -> 0.000117593 | D155: =IF('DF raw data'!L160="","",'DF raw data'!L160) -> -1.79718e-05 | F155: -2.95279875e-05 | G155: 0.0001180045755 | H155: -1.80347013e-05 | J155: -0.001198342181 | K155: -0.02924964623 | L155: 0.00580636841 | M155: 0.1423302921 | N155: 0.0005855316617
A156: =IF('DF raw data'!I161="","",'DF raw data'!I161) -> -253 | B156: =IF('DF raw data'!J161="","",'DF raw data'!J161) -> -3.22514e-05 | C156: =IF('DF raw data'!K161="","",'DF raw data'!K161) -> 0.000120526 | D156: =IF('DF raw data'!L161="","",'DF raw data'!L161) -> -6.91824e-06 | F156: -3.23642799e-05 | G156: 0.000120947841 | H156: -6.94245384e-06 | J156: -0.001214524321 | K156: -0.02985690839 | L156: 0.00586684233 | M156: 0.1452637132 | N156: 0.0006034791158
A157: =IF('DF raw data'!I162="","",'DF raw data'!I162) -> -252.5 | B157: =IF('DF raw data'!J162="","",'DF raw data'!J162) -> -3.65998e-05 | C157: =IF('DF raw data'!K162="","",'DF raw data'!K162) -> 0.000113286 | D157: =IF('DF raw data'!L162="","",'DF raw data'!L162) -> -1.97843e-05 | F157: -3.67278993e-05 | G157: 0.000113682501 | H157: -1.985354505e-05 | J157: -0.001232888271 | K157: -0.03047335253 | L157: 0.005923683581 | M157: 0.148225555 | N157: 0.0006217841361
A158: =IF('DF raw data'!I163="","",'DF raw data'!I163) -> -252 | B158: =IF('DF raw data'!J163="","",'DF raw data'!J163) -> -3.26336e-05 | C158: =IF('DF raw data'!K163="","",'DF raw data'!K163) -> 0.000117566 | D158: =IF('DF raw data'!L163="","",'DF raw data'!L163) -> -1.03108e-05 | F158: -3.27478176e-05 | G158: 0.000117977481 | H158: -1.03468878e-05 | J158: -0.00124926218 | K158: -0.03109798362 | L158: 0.005982672321 | M158: 0.1512168912 | N158: 0.0006404606482
A159: =IF('DF raw data'!I164="","",'DF raw data'!I164) -> -251.5 | B159: =IF('DF raw data'!J164="","",'DF raw data'!J164) -> -2.50669e-05 | C159: =IF('DF raw data'!K164="","",'DF raw data'!K164) -> 0.000123253 | D159: =IF('DF raw data'!L164="","",'DF raw data'!L164) -> -2.04165e-05 | F159: -2.515463415e-05 | G159: 0.0001236843855 | H159: -2.048795775e-05 | J159: -0.001261839497 | K159: -0.03172890337 | L159: 0.006044514514 | M159: 0.1542391484 | N159: 0.0006595248455
A160: =IF('DF raw data'!I165="","",'DF raw data'!I165) -> -251 | B160: =IF('DF raw data'!J165="","",'DF raw data'!J165) -> -2.79557e-05 | C160: =IF('DF raw data'!K165="","",'DF raw data'!K165) -> 0.000112984 | D160: =IF('DF raw data'!L165="","",'DF raw data'!L165) -> -1.17307e-05 | F160: -2.805354495e-05 | G160: 0.000113379444 | H160: -1.177175745e-05 | J160: -0.001275866269 | K160: -0.0323668365 | L160: 0.006101204236 | M160: 0.1572897505 | N160: 0.0006789511094
A161: =IF('DF raw data'!I166="","",'DF raw data'!I166) -> -250.5 | B161: =IF('DF raw data'!J166="","",'DF raw data'!J166) -> -2.712e-05 | C161: =IF('DF raw data'!K166="","",'DF raw data'!K166) -> 0.000119643 | D161: =IF('DF raw data'!L166="","",'DF raw data'!L166) -> -1.58356e-05 | F161: -2.721492e-05 | G161: 0.0001200617505 | H161: -1.58910246e-05 | J161: -0.001289473729 | K161: -0.03301157337 | L161: 0.006161235111 | M161: 0.1603703681 | N161: 0.0006987628897
A162: =IF('DF raw data'!I167="","",'DF raw data'!I167) -> -250 | B162: =IF('DF raw data'!J167="","",'DF raw data'!J167) -> -3.46194e-05 | C162: =IF('DF raw data'!K167="","",'DF raw data'!K167) -> 0.000119552 | D162: =IF('DF raw data'!L167="","",'DF raw data'!L167) -> -1.10237e-05 | F162: -3.47405679e-05 | G162: 0.000119970432 | H162: -1.106228295e-05 | J162: -0.001306844013 | K162: -0.03366499537 | L162: 0.006221220327 | M162: 0.1634809783 | N162: 0.0007189686015
A163: =IF('DF raw data'!I168="","",'DF raw data'!I168) -> -249.5 | B163: =IF('DF raw data'!J168="","",'DF raw data'!J168) -> -1.77642e-05 | C163: =IF('DF raw data'!K168="","",'DF raw data'!K168) -> 0.000124667 | D163: =IF('DF raw data'!L168="","",'DF raw data'!L168) -> -1.8525e-05 | F163: -1.78263747e-05 | G163: 0.0001251033345 | H163: -1.85898375e-05 | J163: -0.001315757201 | K163: -0.03432287397 | L163: 0.006283771994 | M163: 0.1666228643 | N163: 0.0007395771053
A164: =IF('DF raw data'!I169="","",'DF raw data'!I169) -> -249 | B164: =IF('DF raw data'!J169="","",'DF raw data'!J169) -> -3.33452e-05 | C164: =IF('DF raw data'!K169="","",'DF raw data'!K169) -> 0.000117036 | D164: =IF('DF raw data'!L169="","",'DF raw data'!L169) -> 1.52094e-08 | F164: -3.34619082e-05 | G164: 0.000117445626 | H164: 1.52626329e-08 | J164: -0.001332488155 | K164: -0.03498911805 | L164: 0.006342494807 | M164: 0.1697941117 | N164: 0.0007605784878
A165: =IF('DF raw data'!I170="","",'DF raw data'!I170) -> -248.5 | B165: =IF('DF raw data'!J170="","",'DF raw data'!J170) -> -2.87836e-05 | C165: =IF('DF raw data'!K170="","",'DF raw data'!K170) -> 0.000110165 | D165: =IF('DF raw data'!L170="","",'DF raw data'!L170) -> -1.91275e-05 | F165: -2.88843426e-05 | G165: 0.0001105505775 | H165: -1.919444625e-05 | J165: -0.001346930326 | K165: -0.03566258321 | L165: 0.006397770096 | M165: 0.1729929967 | N165: 0.0007819513296
A166: =IF('DF raw data'!I171="","",'DF raw data'!I171) -> -248 | B166: =IF('DF raw data'!J171="","",'DF raw data'!J171) -> -3.07125e-05 | C166: =IF('DF raw data'!K171="","",'DF raw data'!K171) -> 0.000113802 | D166: =IF('DF raw data'!L171="","",'DF raw data'!L171) -> -8.88802e-06 | F166: -3.081999375e-05 | G166: 0.000114200307 | H166: -8.91912807e-06 | J166: -0.001362340323 | K166: -0.03634375338 | L166: 0.00645487025 | M166: 0.1762204318 | N166: 0.0008037119901
A167: =IF('DF raw data'!I172="","",'DF raw data'!I172) -> -247.5 | B167: =IF('DF raw data'!J172="","",'DF raw data'!J172) -> -2.85978e-05 | C167: =IF('DF raw data'!K172="","",'DF raw data'!K172) -> 0.000109856 | D167: =IF('DF raw data'!L172="","",'DF raw data'!L172) -> -9.44405e-06 | F167: -2.86978923e-05 | G167: 0.000110240496 | H167: -9.477104175e-06 | J167: -0.001376689269 | K167: -0.03703209801 | L167: 0.006509990498 | M167: 0.1794754271 | N167: 0.0008258496149
A168: =IF('DF raw data'!I173="","",'DF raw data'!I173) -> -247 | B168: =IF('DF raw data'!J173="","",'DF raw data'!J173) -> -2.36049e-05 | C168: =IF('DF raw data'!K173="","",'DF raw data'!K173) -> 0.000104873 | D168: =IF('DF raw data'!L173="","",'DF raw data'!L173) -> -2.48491e-06 | F168: -2.368751715e-05 | G168: 0.0001052400555 | H168: -2.493607185e-06 | J168: -0.001388533028 | K168: -0.03772636452 | L168: 0.006562610525 | M168: 0.1827567324 | N168: 0.0008483475554
A169: =IF('DF raw data'!I174="","",'DF raw data'!I174) -> -246.5 | B169: =IF('DF raw data'!J174="","",'DF raw data'!J174) -> -2.20616e-05 | C169: =IF('DF raw data'!K174="","",'DF raw data'!K174) -> 0.000108356 | D169: =IF('DF raw data'!L174="","",'DF raw data'!L174) -> -1.11021e-05 | F169: -2.21388156e-05 | G169: 0.000108735246 | H169: -1.114095735e-05 | J169: -0.001399602436 | K169: -0.03842616574 | L169: 0.006616978148 | M169: 0.1860652214 | N169: 0.0008712191988
A170: =IF('DF raw data'!I175="","",'DF raw data'!I175) -> -246 | B170: =IF('DF raw data'!J175="","",'DF raw data'!J175) -> -3.34579e-05 | C170: =IF('DF raw data'!K175="","",'DF raw data'!K175) -> 0.000108828 | D170: =IF('DF raw data'!L175="","",'DF raw data'!L175) -> -2.37693e-05 | F170: -3.357500265e-05 | G170: 0.000109208898 | H170: -2.385249255e-05 | J170: -0.001416389937 | K170: -0.03913436071 | L170: 0.006671582597 | M170: 0.1894010127 | N170: 0.0008944772862
A171: =IF('DF raw data'!I176="","",'DF raw data'!I176) -> -245.5 | B171: =IF('DF raw data'!J176="","",'DF raw data'!J176) -> -2.13607e-05 | C171: =IF('DF raw data'!K176="","",'DF raw data'!K176) -> 0.000110202 | D171: =IF('DF raw data'!L176="","",'DF raw data'!L176) -> -5.05061e-06 | F171: -2.143546245e-05 | G171: 0.000110587707 | H171: -5.068287135e-06 | J171: -0.001427107668 | K171: -0.03984791454 | L171: 0.006726876451 | M171: 0.1927644509 | N171: 0.0009181210377
A172: =IF('DF raw data'!I177="","",'DF raw data'!I177) -> -245 | B172: =IF('DF raw data'!J177="","",'DF raw data'!J177) -> -2.85952e-05 | C172: =IF('DF raw data'!K177="","",'DF raw data'!K177) -> 0.000106696 | D172: =IF('DF raw data'!L177="","",'DF raw data'!L177) -> -1.35537e-05 | F172: -2.86952832e-05 | G172: 0.000107069436 | H172: -1.360113795e-05 | J172: -0.00144145531 | K172: -0.0405686422 | L172: 0.006780411169 | M172: 0.1961546565 | N172: 0.0009421469222
A173: =IF('DF raw data'!I178="","",'DF raw data'!I178) -> -244.5 | B173: =IF('DF raw data'!J178="","",'DF raw data'!J178) -> -3.26995e-05 | C173: =IF('DF raw data'!K178="","",'DF raw data'!K178) -> 0.000109335 | D173: =IF('DF raw data'!L178="","",'DF raw data'!L178) -> -7.31295e-06 | F173: -3.281394825e-05 | G173: 0.0001097176725 | H173: -7.338545325e-06 | J173: -0.001457862284 | K173: -0.04129757334 | L173: 0.006835270005 | M173: 0.1995722915 | N173: 0.0009665700615
A174: =IF('DF raw data'!I179="","",'DF raw data'!I179) -> -244 | B174: =IF('DF raw data'!J179="","",'DF raw data'!J179) -> -3.56461e-05 | C174: =IF('DF raw data'!K179="","",'DF raw data'!K179) -> 0.000109486 | D174: =IF('DF raw data'!L179="","",'DF raw data'!L179) -> -8.41174e-06 | F174: -3.577086135e-05 | G174: 0.000109869201 | H174: -8.44118109e-06 | J174: -0.001475747714 | K174: -0.0420354472 | L174: 0.006890204606 | M174: 0.2030173938 | N174: 0.0009913964369
A175: =IF('DF raw data'!I180="","",'DF raw data'!I180) -> -243.5 | B175: =IF('DF raw data'!J180="","",'DF raw data'!J180) -> -1.61012e-05 | C175: =IF('DF raw data'!K180="","",'DF raw data'!K180) -> 0.000111197 | D175: =IF('DF raw data'!L180="","",'DF raw data'!L180) -> -1.43814e-05 | F175: -1.61575542e-05 | G175: 0.0001115861895 | H175: -1.44317349e-05 | J175: -0.001483826492 | K175: -0.04277736044 | L175: 0.0069459977 | M175: 0.2064903927 | N175: 0.001016620749
A176: =IF('DF raw data'!I181="","",'DF raw data'!I181) -> -243 | B176: =IF('DF raw data'!J181="","",'DF raw data'!J181) -> -2.14771e-05 | C176: =IF('DF raw data'!K181="","",'DF raw data'!K181) -> 0.000109971 | D176: =IF('DF raw data'!L181="","",'DF raw data'!L181) -> -2.32635e-05 | F176: -2.155226985e-05 | G176: 0.0001103558985 | H176: -2.334492225e-05 | J176: -0.001494602626 | K176: -0.04352466176 | L176: 0.00700117565 | M176: 0.2099909805 | N176: 0.001042245898
A177: =IF('DF raw data'!I182="","",'DF raw data'!I182) -> -242.5 | B177: =IF('DF raw data'!J182="","",'DF raw data'!J182) -> -2.68049e-05 | C177: =IF('DF raw data'!K182="","",'DF raw data'!K182) -> 0.000112743 | D177: =IF('DF raw data'!L182="","",'DF raw data'!L182) -> -7.9191e-06 | F177: -2.689871715e-05 | G177: 0.0001131376005 | H177: -7.94681685e-06 | J177: -0.001508051985 | K177: -0.04427868775 | L177: 0.00705774445 | M177: 0.2135198527 | N177: 0.001068288887
A178: =IF('DF raw data'!I183="","",'DF raw data'!I183) -> -242 | B178: =IF('DF raw data'!J183="","",'DF raw data'!J183) -> -2.91659e-05 | C178: =IF('DF raw data'!K183="","",'DF raw data'!K183) -> 0.000107007 | D178: =IF('DF raw data'!L183="","",'DF raw data'!L183) -> -2.24424e-05 | F178: -2.926798065e-05 | G178: 0.0001073815245 | H178: -2.25209484e-05 | J178: -0.001522685975 | K178: -0.04504003074 | L178: 0.007111435212 | M178: 0.2170755703 | N178: 0.001094734429
A179: =IF('DF raw data'!I184="","",'DF raw data'!I184) -> -241.5 | B179: =IF('DF raw data'!J184="","",'DF raw data'!J184) -> -3.21176e-05 | C179: =IF('DF raw data'!K184="","",'DF raw data'!K184) -> 0.000106016 | D179: =IF('DF raw data'!L184="","",'DF raw data'!L184) -> -1.56474e-05 | F179: -3.22300116e-05 | G179: 0.000106387056 | H179: -1.57021659e-05 | J179: -0.001538800981 | K179: -0.04580943123 | L179: 0.00716462874 | M179: 0.2206578847 | N179: 0.001121584335
A180: =IF('DF raw data'!I185="","",'DF raw data'!I185) -> -241 | B180: =IF('DF raw data'!J185="","",'DF raw data'!J185) -> -2.97484e-05 | C180: =IF('DF raw data'!K185="","",'DF raw data'!K185) -> 0.000110962 | D180: =IF('DF raw data'!L185="","",'DF raw data'!L185) -> -1.35135e-05 | F180: -2.98525194e-05 | G180: 0.000111350367 | H180: -1.356079725e-05 | J180: -0.001553727241 | K180: -0.04658629485 | L180: 0.007220303924 | M180: 0.2242680367 | N180: 0.001148857764
A181: =IF('DF raw data'!I186="","",'DF raw data'!I186) -> -240.5 | B181: =IF('DF raw data'!J186="","",'DF raw data'!J186) -> -2.50064e-05 | C181: =IF('DF raw data'!K186="","",'DF raw data'!K186) -> 0.000122057 | D181: =IF('DF raw data'!L186="","",'DF raw data'!L186) -> -1.47824e-05 | F181: -2.50939224e-05 | G181: 0.0001224841995 | H181: -1.48341384e-05 | J181: -0.001566274202 | K181: -0.04736943195 | L181: 0.007281546023 | M181: 0.2279088097 | N181: 0.001176594828
A182: =IF('DF raw data'!I187="","",'DF raw data'!I187) -> -240 | B182: =IF('DF raw data'!J187="","",'DF raw data'!J187) -> -2.5462e-05 | C182: =IF('DF raw data'!K187="","",'DF raw data'!K187) -> 0.000117744 | D182: =IF('DF raw data'!L187="","",'DF raw data'!L187) -> -3.9914e-06 | F182: -2.5551117e-05 | G182: 0.000118156104 | H182: -4.0053699e-06 | J182: -0.001579049761 | K182: -0.04815895683 | L182: 0.007340624075 | M182: 0.2315791217 | N182: 0.001204783908
A183: =IF('DF raw data'!I188="","",'DF raw data'!I188) -> -239.5 | B183: =IF('DF raw data'!J188="","",'DF raw data'!J188) -> -3.4812e-05 | C183: =IF('DF raw data'!K188="","",'DF raw data'!K188) -> 0.000114305 | D183: =IF('DF raw data'!L188="","",'DF raw data'!L188) -> -1.00889e-05 | F183: -3.4933842e-05 | G183: 0.0001147050675 | H183: -1.012421115e-05 | J183: -0.001596516682 | K183: -0.04895721517 | L183: 0.007397976609 | M183: 0.23527811 | N183: 0.001233423369
A184: =IF('DF raw data'!I189="","",'DF raw data'!I189) -> -239 | B184: =IF('DF raw data'!J189="","",'DF raw data'!J189) -> -4.33983e-05 | C184: =IF('DF raw data'!K189="","",'DF raw data'!K189) -> 0.000113402 | D184: =IF('DF raw data'!L189="","",'DF raw data'!L189) -> -8.55072e-06 | F184: -4.355019405e-05 | G184: 0.000113798907 | H184: -8.58064752e-06 | J184: -0.001618291779 | K184: -0.04976636106 | L184: 0.007454876063 | M184: 0.2390055481 | N184: 0.001262520392
A185: =IF('DF raw data'!I190="","",'DF raw data'!I190) -> -238.5 | B185: =IF('DF raw data'!J190="","",'DF raw data'!J190) -> -3.19936e-05 | C185: =IF('DF raw data'!K190="","",'DF raw data'!K190) -> 0.00010362 | D185: =IF('DF raw data'!L190="","",'DF raw data'!L190) -> -9.3562e-06 | F185: -3.21055776e-05 | G185: 0.00010398267 | H185: -9.3889467e-06 | J185: -0.001634344567 | K185: -0.05058353334 | L185: 0.007506867398 | M185: 0.2427589818 | N185: 0.001292032462
A186: =IF('DF raw data'!I191="","",'DF raw data'!I191) -> -238 | B186: =IF('DF raw data'!J191="","",'DF raw data'!J191) -> -1.43776e-05 | C186: =IF('DF raw data'!K191="","",'DF raw data'!K191) -> 0.000108136 | D186: =IF('DF raw data'!L191="","",'DF raw data'!L191) -> -4.58923e-06 | F186: -1.44279216e-05 | G186: 0.000108514476 | H186: -4.605292305e-06 | J186: -0.001641558528 | K186: -0.05140431261 | L186: 0.007561124636 | M186: 0.2465395441 | N186: 0.001321965122
A187: =IF('DF raw data'!I192="","",'DF raw data'!I192) -> -237.5 | B187: =IF('DF raw data'!J192="","",'DF raw data'!J192) -> -2.88617e-05 | C187: =IF('DF raw data'!K192="","",'DF raw data'!K192) -> 0.000117376 | D187: =IF('DF raw data'!L192="","",'DF raw data'!L192) -> 2.2235e-06 | F187: -2.896271595e-05 | G187: 0.000117786816 | H187: 2.23128225e-06 | J187: -0.001656039886 | K187: -0.05223233255 | L187: 0.007620018044 | M187: 0.2503495531 | N187: 0.001352368694
A188: =IF('DF raw data'!I193="","",'DF raw data'!I193) -> -237 | B188: =IF('DF raw data'!J193="","",'DF raw data'!J193) -> -3.91704e-05 | C188: =IF('DF raw data'!K193="","",'DF raw data'!K193) -> 0.000113261 | D188: =IF('DF raw data'!L193="","",'DF raw data'!L193) -> -7.86962e-06 | F188: -3.93074964e-05 | G188: 0.0001136574135 | H188: -7.89716367e-06 | J188: -0.001675693634 | K188: -0.05307017937 | L188: 0.00767684675 | M188: 0.2541879765 | N188: 0.001383239656
A189: =IF('DF raw data'!I194="","",'DF raw data'!I194) -> -236.5 | B189: =IF('DF raw data'!J194="","",'DF raw data'!J194) -> -2.43022e-05 | C189: =IF('DF raw data'!K194="","",'DF raw data'!K194) -> 0.000115609 | D189: =IF('DF raw data'!L194="","",'DF raw data'!L194) -> -1.40992e-05 | F189: -2.43872577e-05 | G189: 0.0001160136315 | H189: -1.41485472e-05 | J189: -0.001687887263 | K189: -0.053914123 | L189: 0.007734853566 | M189: 0.2580554033 | N189: 0.001414578118
A190: =IF('DF raw data'!I195="","",'DF raw data'!I195) -> -236 | B190: =IF('DF raw data'!J195="","",'DF raw data'!J195) -> -3.02608e-05 | C190: =IF('DF raw data'!K195="","",'DF raw data'!K195) -> 0.000116905 | D190: =IF('DF raw data'!L195="","",'DF raw data'!L195) -> -1.3849e-05 | F190: -3.03667128e-05 | G190: 0.0001173141675 | H190: -1.38974715e-05 | J190: -0.00170307062 | K190: -0.05476565831 | L190: 0.00779351065 | M190: 0.2619521586 | N190: 0.001446397747
A191: =IF('DF raw data'!I196="","",'DF raw data'!I196) -> -235.5 | B191: =IF('DF raw data'!J196="","",'DF raw data'!J196) -> -3.21884e-05 | C191: =IF('DF raw data'!K196="","",'DF raw data'!K196) -> 0.000113414 | D191: =IF('DF raw data'!L196="","",'DF raw data'!L196) -> -5.06641e-06 | F191: -3.23010594e-05 | G191: 0.000113810949 | H191: -5.084142435e-06 | J191: -0.001719221149 | K191: -0.05562526888 | L191: 0.007850416124 | M191: 0.2658773666 | N191: 0.001478690124
A192: =IF('DF raw data'!I197="","",'DF raw data'!I197) -> -235 | B192: =IF('DF raw data'!J197="","",'DF raw data'!J197) -> -3.41114e-05 | C192: =IF('DF raw data'!K197="","",'DF raw data'!K197) -> 0.00011074 | D192: =IF('DF raw data'!L197="","",'DF raw data'!L197) -> -4.01776e-06 | F192: =(1-$G$1*($B$49-$G$2))*B192 -> -3.42307899e-05 | G192: 0.00011112759 | H192: -4.03182216e-06 | J192: =F192*$G$3+J191 -> -0.001736336544 | K192: =J192*$G$3+K191 -> -0.05649343716 | L192: =G192*$G$3+L191 -> 0.007905979919 | M192: =L192*$G$3+M191 -> 0.2698303566 | N192: =(J192^2+L192^2)*$G$3+N191 -> 0.001511449816
A193: =IF('DF raw data'!I198="","",'DF raw data'!I198) -> -234.5 | B193: =IF('DF raw data'!J198="","",'DF raw data'!J198) -> -2.7565e-05 | C193: =IF('DF raw data'!K198="","",'DF raw data'!K198) -> 0.000115106 | D193: =IF('DF raw data'!L198="","",'DF raw data'!L198) -> -2.1523e-05 | F193: -2.76614775e-05 | G193: 0.000115508871 | H193: -2.15983305e-05 | J193: -0.001750167283 | K193: -0.0573685208 | L193: 0.007963734355 | M193: 0.2738122238 | N193: 0.001544691891
A194: =IF('DF raw data'!I199="","",'DF raw data'!I199) -> -234 | B194: =IF('DF raw data'!J199="","",'DF raw data'!J199) -> -3.52522e-05 | C194: =IF('DF raw data'!K199="","",'DF raw data'!K199) -> 0.000123101 | D194: =IF('DF raw data'!L199="","",'DF raw data'!L199) -> -2.32763e-05 | F194: -3.53755827e-05 | G194: 0.0001235318535 | H194: -2.335776705e-05 | J194: -0.001767855074 | K194: -0.05825244834 | L194: 0.008025500282 | M194: 0.2778249739 | N194: 0.001578458874
A195: =IF('DF raw data'!I200="","",'DF raw data'!I200) -> -233.5 | B195: =IF('DF raw data'!J200="","",'DF raw data'!J200) -> -2.36535e-05 | C195: =IF('DF raw data'!K200="","",'DF raw data'!K200) -> 0.000119364 | D195: =IF('DF raw data'!L200="","",'DF raw data'!L200) -> -2.65391e-05 | F195: -2.373628725e-05 | G195: 0.000119781774 | H195: -2.663198685e-05 | J195: -0.001779723218 | K195: -0.05914230994 | L195: 0.008085391169 | M195: 0.2818676695 | N195: 0.001612729357
A196: =IF('DF raw data'!I201="","",'DF raw data'!I201) -> -233 | B196: =IF('DF raw data'!J201="","",'DF raw data'!J201) -> -2.31546e-05 | C196: =IF('DF raw data'!K201="","",'DF raw data'!K201) -> 0.000118448 | D196: =IF('DF raw data'!L201="","",'DF raw data'!L201) -> -5.50941e-06 | F196: -2.32356411e-05 | G196: 0.000118862568 | H196: -5.528692935e-06 | J196: -0.001791341039 | K196: -0.06003798046 | L196: 0.008144822453 | M196: 0.2859400807 | N196: 0.001647502874
A197: =IF('DF raw data'!I202="","",'DF raw data'!I202) -> -232.5 | B197: =IF('DF raw data'!J202="","",'DF raw data'!J202) -> -2.8656e-05 | C197: =IF('DF raw data'!K202="","",'DF raw data'!K202) -> 0.000119037 | D197: =IF('DF raw data'!L202="","",'DF raw data'!L202) -> -1.83749e-05 | F197: -2.8756296e-05 | G197: 0.0001194536295 | H197: -1.843921215e-05 | J197: -0.001805719187 | K197: -0.06094084006 | L197: 0.008204549267 | M197: 0.2900423554 | N197: 0.001682790499
A198: =IF('DF raw data'!I203="","",'DF raw data'!I203) -> -232 | B198: =IF('DF raw data'!J203="","",'DF raw data'!J203) -> -3.63486e-05 | C198: =IF('DF raw data'!K203="","",'DF raw data'!K203) -> 0.000106124 | D198: =IF('DF raw data'!L203="","",'DF raw data'!L203) -> -1.18469e-05 | F198: -3.64758201e-05 | G198: 0.000106495434 | H198: -1.188836415e-05 | J198: -0.001823957097 | K198: -0.06185281861 | L198: 0.008257796984 | M198: 0.2941712539 | N198: 0.001718549515
A199: =IF('DF raw data'!I204="","",'DF raw data'!I204) -> -231.5 | B199: =IF('DF raw data'!J204="","",'DF raw data'!J204) -> -2.15438e-05 | C199: =IF('DF raw data'!K204="","",'DF raw data'!K204) -> 0.000101706 | D199: =IF('DF raw data'!L204="","",'DF raw data'!L204) -> -1.93075e-05 | F199: -2.16192033e-05 | G199: 0.000102061971 | H199: -1.937507625e-05 | J199: -0.001834766698 | K199: -0.06277020195 | L199: 0.00830882797 | M199: 0.2983256678 | N199: 0.00175475101
A200: =IF('DF raw data'!I205="","",'DF raw data'!I205) -> -231 | B200: =IF('DF raw data'!J205="","",'DF raw data'!J205) -> -3.22459e-05 | C200: =IF('DF raw data'!K205="","",'DF raw data'!K205) -> 0.000105821 | D200: =IF('DF raw data'!L205="","",'DF raw data'!L205) -> -1.56037e-05 | F200: -3.235876065e-05 | G200: 0.0001061913735 | H200: -1.565831295e-05 | J200: -0.001850946079 | K200: -0.06369567499 | L200: 0.008361923657 | M200: 0.3025066297 | N200: 0.001791424895
A201: =IF('DF raw data'!I206="","",'DF raw data'!I206) -> -230.5 | B201: =IF('DF raw data'!J206="","",'DF raw data'!J206) -> -2.59634e-05 | C201: =IF('DF raw data'!K206="","",'DF raw data'!K206) -> 0.000110286 | D201: =IF('DF raw data'!L206="","",'DF raw data'!L206) -> -2.10706e-05 | F201: -2.60542719e-05 | G201: 0.000110672001 | H201: -2.11443471e-05 | J201: -0.001863973215 | K201: -0.0646276616 | L201: 0.008417259657 | M201: 0.3067152595 | N201: 0.001828587223
... 1061 more rows

Sheet 10 x=1
A1: =IF('DF raw data'!M1="","",'DF raw data'!M1) -> Number of header lines | B1: =IF('DF raw data'!N1="","",'DF raw data'!N1) -> 54 | C1: =IF('DF raw data'!O1="","",'DF raw data'!O1) ->  | D1: =IF('DF raw data'!P1="","",'DF raw data'!P1) ->  | F1: T_coeff | G1: -0.001 | H1: /degC | J1: ='10 x=-2'!J1 -> IBy total | K1: ='10 x=-2'!K1 -> -15.83397156 | L1: ='10 x=-2'!L1 -> muTm | R1: ='10 x=-2'!R1 -> DF ref | S1: ='10 x=-2'!S1 -> 1
A2: =IF('DF raw data'!M2="","",'DF raw data'!M2) -> Measured by | B2: =IF('DF raw data'!N2="","",'DF raw data'!N2) -> Danfysik | C2: =IF('DF raw data'!O2="","",'DF raw data'!O2) ->  | D2: =IF('DF raw data'!P2="","",'DF raw data'!P2) ->  | F2: Tcorr | G2: 20 | H2: degC | J2: JBy total | K2: =K1262 -> -7.737121506 | L2: muTm^2 | M2: =M1262 -> -0.2420504122
A3: =IF('DF raw data'!M3="","",'DF raw data'!M3) -> Operator | B3: =IF('DF raw data'!N3="","",'DF raw data'!N3) -> PMHA | C3: =IF('DF raw data'!O3="","",'DF raw data'!O3) ->  | D3: =IF('DF raw data'!P3="","",'DF raw data'!P3) ->  | F3: Step | G3: =A63-A62 -> 0.5 | H3: mm | J3: PI total | K3: =N1262 -> 10592.54029 | L3: T^2mm^3
A4: =IF('DF raw data'!M4="","",'DF raw data'!M4) -> Data-time | B4: =IF('DF raw data'!N4="","",'DF raw data'!N4) -> 17-09-2024, 14:25:01 | C4: =IF('DF raw data'!O4="","",'DF raw data'!O4) ->  | D4: =IF('DF raw data'!P4="","",'DF raw data'!P4) -> 
A5: =IF('DF raw data'!M5="","",'DF raw data'!M5) -> Project | B5: =IF('DF raw data'!N5="","",'DF raw data'!N5) -> 504314 | C5: =IF('DF raw data'!O5="","",'DF raw data'!O5) ->  | D5: =IF('DF raw data'!P5="","",'DF raw data'!P5) -> 
A6: =IF('DF raw data'!M6="","",'DF raw data'!M6) -> Magnet type | B6: =IF('DF raw data'!N6="","",'DF raw data'!N6) -> Dipole | C6: =IF('DF raw data'!O6="","",'DF raw data'!O6) ->  | D6: =IF('DF raw data'!P6="","",'DF raw data'!P6) -> 
A7: =IF('DF raw data'!M7="","",'DF raw data'!M7) -> Magnet nr. | B7: =IF('DF raw data'!N7="","",'DF raw data'!N7) -> 2410097 | C7: =IF('DF raw data'!O7="","",'DF raw data'!O7) ->  | D7: =IF('DF raw data'!P7="","",'DF raw data'!P7) -> 
A8: =IF('DF raw data'!M8="","",'DF raw data'!M8) -> Meas. number | B8: =IF('DF raw data'!N8="","",'DF raw data'!N8) -> 552 | C8: =IF('DF raw data'!O8="","",'DF raw data'!O8) ->  | D8: =IF('DF raw data'!P8="","",'DF raw data'!P8) -> 
A9: =IF('DF raw data'!M9="","",'DF raw data'!M9) -> Add. info | B9: =IF('DF raw data'!N9="","",'DF raw data'!N9) -> X-alignment scan 4) | C9: =IF('DF raw data'!O9="","",'DF raw data'!O9) ->  | D9: =IF('DF raw data'!P9="","",'DF raw data'!P9) -> 
A10: =IF('DF raw data'!M10="","",'DF raw data'!M10) -> Device | B10: =IF('DF raw data'!N10="","",'DF raw data'!N10) -> (HAL) HALL-PROBE | C10: =IF('DF raw data'!O10="","",'DF raw data'!O10) ->  | D10: =IF('DF raw data'!P10="","",'DF raw data'!P10) -> 
A11: =IF('DF raw data'!M11="","",'DF raw data'!M11) -> Goal | B11: =IF('DF raw data'!N11="","",'DF raw data'!N11) -> (AXI) AXis Integral (Line, EFB) | C11: =IF('DF raw data'!O11="","",'DF raw data'!O11) ->  | D11: =IF('DF raw data'!P11="","",'DF raw data'!P11) -> 
A12: =IF('DF raw data'!M12="","",'DF raw data'!M12) -> Power supply mode | B12: =IF('DF raw data'!N12="","",'DF raw data'!N12) -> (PM) Permanent Magnet (no MPS in use) | C12: =IF('DF raw data'!O12="","",'DF raw data'!O12) ->  | D12: =IF('DF raw data'!P12="","",'DF raw data'!P12) -> 
A13: =IF('DF raw data'!M13="","",'DF raw data'!M13) -> Data format | B13: =IF('DF raw data'!N13="","",'DF raw data'!N13) -> Raw data text file | C13: =IF('DF raw data'!O13="","",'DF raw data'!O13) ->  | D13: =IF('DF raw data'!P13="","",'DF raw data'!P13) -> 
A14: =IF('DF raw data'!M14="","",'DF raw data'!M14) -> Direction of the pos. x-axis | B14: =IF('DF raw data'!N14="","",'DF raw data'!N14) -> See test program | C14: =IF('DF raw data'!O14="","",'DF raw data'!O14) ->  | D14: =IF('DF raw data'!P14="","",'DF raw data'!P14) -> 
A15: =IF('DF raw data'!M15="","",'DF raw data'!M15) -> Direction of the pos. y-axis | B15: =IF('DF raw data'!N15="","",'DF raw data'!N15) -> Vertical up | C15: =IF('DF raw data'!O15="","",'DF raw data'!O15) ->  | D15: =IF('DF raw data'!P15="","",'DF raw data'!P15) -> 
A16: =IF('DF raw data'!M16="","",'DF raw data'!M16) -> Direction of the pos. z-axis | B16: =IF('DF raw data'!N16="","",'DF raw data'!N16) -> See test program | C16: =IF('DF raw data'!O16="","",'DF raw data'!O16) ->  | D16: =IF('DF raw data'!P16="","",'DF raw data'!P16) -> 
A17: =IF('DF raw data'!M17="","",'DF raw data'!M17) -> Mapper type | B17: =IF('DF raw data'!N17="","",'DF raw data'!N17) -> Precision Hall Mapper | C17: =IF('DF raw data'!O17="","",'DF raw data'!O17) ->  | D17: =IF('DF raw data'!P17="","",'DF raw data'!P17) -> 
A18: =IF('DF raw data'!M18="","",'DF raw data'!M18) -> Mapper Danfysik Reg. Number | B18: =IF('DF raw data'!N18="","",'DF raw data'!N18) -> 2033-D (mapper 1) | C18: =IF('DF raw data'!O18="","",'DF raw data'!O18) ->  | D18: =IF('DF raw data'!P18="","",'DF raw data'!P18) -> 
A19: =IF('DF raw data'!M19="","",'DF raw data'!M19) -> Measurement consept | B19: =IF('DF raw data'!N19="","",'DF raw data'!N19) -> Square line grid | C19: =IF('DF raw data'!O19="","",'DF raw data'!O19) ->  | D19: =IF('DF raw data'!P19="","",'DF raw data'!P19) -> 
A20: =IF('DF raw data'!M20="","",'DF raw data'!M20) -> Mode | B20: =IF('DF raw data'!N20="","",'DF raw data'!N20) -> On-the-fly measurement | C20: =IF('DF raw data'!O20="","",'DF raw data'!O20) ->  | D20: =IF('DF raw data'!P20="","",'DF raw data'!P20) -> 
A21: =IF('DF raw data'!M21="","",'DF raw data'!M21) ->  | B21: =IF('DF raw data'!N21="","",'DF raw data'!N21) ->  | C21: =IF('DF raw data'!O21="","",'DF raw data'!O21) ->  | D21: =IF('DF raw data'!P21="","",'DF raw data'!P21) -> 
A22: =IF('DF raw data'!M22="","",'DF raw data'!M22) -> Probe Name | B22: =IF('DF raw data'!N22="","",'DF raw data'!N22) -> ID12_By | C22: =IF('DF raw data'!O22="","",'DF raw data'!O22) ->  | D22: =IF('DF raw data'!P22="","",'DF raw data'!P22) -> 
A23: =IF('DF raw data'!M23="","",'DF raw data'!M23) -> Probe Type | B23: =IF('DF raw data'!N23="","",'DF raw data'!N23) -> DF_ID_3D_Bxyz | C23: =IF('DF raw data'!O23="","",'DF raw data'!O23) ->  | D23: =IF('DF raw data'!P23="","",'DF raw data'!P23) -> 
A24: =IF('DF raw data'!M24="","",'DF raw data'!M24) -> Probe Danfysik Reg. Number | B24: =IF('DF raw data'!N24="","",'DF raw data'!N24) -> 2277 | C24: =IF('DF raw data'!O24="","",'DF raw data'!O24) ->  | D24: =IF('DF raw data'!P24="","",'DF raw data'!P24) -> 
A25: =IF('DF raw data'!M25="","",'DF raw data'!M25) -> Probe Axis | B25: =IF('DF raw data'!N25="","",'DF raw data'!N25) -> By | C25: =IF('DF raw data'!O25="","",'DF raw data'!O25) ->  | D25: =IF('DF raw data'!P25="","",'DF raw data'!P25) -> 
A26: =IF('DF raw data'!M26="","",'DF raw data'!M26) -> Probe Current Supply | B26: =IF('DF raw data'!N26="","",'DF raw data'!N26) -> 1825-D | C26: =IF('DF raw data'!O26="","",'DF raw data'!O26) ->  | D26: =IF('DF raw data'!P26="","",'DF raw data'!P26) -> 
A27: =IF('DF raw data'!M27="","",'DF raw data'!M27) -> Probe Gain Correction | B27: =IF('DF raw data'!N27="","",'DF raw data'!N27) -> 0.99606 | C27: =IF('DF raw data'!O27="","",'DF raw data'!O27) ->  | D27: =IF('DF raw data'!P27="","",'DF raw data'!P27) -> 
A28: =IF('DF raw data'!M28="","",'DF raw data'!M28) -> Probe Offset Correction | B28: =IF('DF raw data'!N28="","",'DF raw data'!N28) -> 0.0027513 | C28: =IF('DF raw data'!O28="","",'DF raw data'!O28) ->  | D28: =IF('DF raw data'!P28="","",'DF raw data'!P28) -> 
A29: =IF('DF raw data'!M29="","",'DF raw data'!M29) -> DVM Number | B29: =IF('DF raw data'!N29="","",'DF raw data'!N29) -> 2 | C29: =IF('DF raw data'!O29="","",'DF raw data'!O29) ->  | D29: =IF('DF raw data'!P29="","",'DF raw data'!P29) -> 
A30: =IF('DF raw data'!M30="","",'DF raw data'!M30) -> DVM Type | B30: =IF('DF raw data'!N30="","",'DF raw data'!N30) -> K2701 | C30: =IF('DF raw data'!O30="","",'DF raw data'!O30) ->  | D30: =IF('DF raw data'!P30="","",'DF raw data'!P30) -> 
A31: =IF('DF raw data'!M31="","",'DF raw data'!M31) -> DVM Danfysik Reg. Number | B31: =IF('DF raw data'!N31="","",'DF raw data'!N31) -> 1743-D | C31: =IF('DF raw data'!O31="","",'DF raw data'!O31) ->  | D31: =IF('DF raw data'!P31="","",'DF raw data'!P31) -> 
A32: =IF('DF raw data'!M32="","",'DF raw data'!M32) -> Probe Name | B32: =IF('DF raw data'!N32="","",'DF raw data'!N32) -> ID12_Bx | C32: =IF('DF raw data'!O32="","",'DF raw data'!O32) ->  | D32: =IF('DF raw data'!P32="","",'DF raw data'!P32) -> 
A33: =IF('DF raw data'!M33="","",'DF raw data'!M33) -> Probe Type | B33: =IF('DF raw data'!N33="","",'DF raw data'!N33) -> DF_ID_3D_Bxyz | C33: =IF('DF raw data'!O33="","",'DF raw data'!O33) ->  | D33: =IF('DF raw data'!P33="","",'DF raw data'!P33) -> 
A34: =IF('DF raw data'!M34="","",'DF raw data'!M34) -> Probe Danfysik Reg. Number | B34: =IF('DF raw data'!N34="","",'DF raw data'!N34) -> 2277 | C34: =IF('DF raw data'!O34="","",'DF raw data'!O34) ->  | D34: =IF('DF raw data'!P34="","",'DF raw data'!P34) -> 
A35: =IF('DF raw data'!M35="","",'DF raw data'!M35) -> Probe Axis | B35: =IF('DF raw data'!N35="","",'DF raw data'!N35) -> Bx | C35: =IF('DF raw data'!O35="","",'DF raw data'!O35) ->  | D35: =IF('DF raw data'!P35="","",'DF raw data'!P35) -> 
A36: =IF('DF raw data'!M36="","",'DF raw data'!M36) -> Probe Current Supply | B36: =IF('DF raw data'!N36="","",'DF raw data'!N36) -> 1825-D | C36: =IF('DF raw data'!O36="","",'DF raw data'!O36) ->  | D36: =IF('DF raw data'!P36="","",'DF raw data'!P36) -> 
A37: =IF('DF raw data'!M37="","",'DF raw data'!M37) -> Probe Gain Correction | B37: =IF('DF raw data'!N37="","",'DF raw data'!N37) -> 1 | C37: =IF('DF raw data'!O37="","",'DF raw data'!O37) ->  | D37: =IF('DF raw data'!P37="","",'DF raw data'!P37) -> 
A38: =IF('DF raw data'!M38="","",'DF raw data'!M38) -> Probe Offset Correction | B38: =IF('DF raw data'!N38="","",'DF raw data'!N38) -> -0.17549 | C38: =IF('DF raw data'!O38="","",'DF raw data'!O38) ->  | D38: =IF('DF raw data'!P38="","",'DF raw data'!P38) -> 
A39: =IF('DF raw data'!M39="","",'DF raw data'!M39) -> DVM Number | B39: =IF('DF raw data'!N39="","",'DF raw data'!N39) -> 3 | C39: =IF('DF raw data'!O39="","",'DF raw data'!O39) ->  | D39: =IF('DF raw data'!P39="","",'DF raw data'!P39) -> 
A40: =IF('DF raw data'!M40="","",'DF raw data'!M40) -> DVM Type | B40: =IF('DF raw data'!N40="","",'DF raw data'!N40) -> K2701 | C40: =IF('DF raw data'!O40="","",'DF raw data'!O40) ->  | D40: =IF('DF raw data'!P40="","",'DF raw data'!P40) -> 
A41: =IF('DF raw data'!M41="","",'DF raw data'!M41) -> DVM Danfysik Reg. Number | B41: =IF('DF raw data'!N41="","",'DF raw data'!N41) -> 1744-D | C41: =IF('DF raw data'!O41="","",'DF raw data'!O41) ->  | D41: =IF('DF raw data'!P41="","",'DF raw data'!P41) -> 
A42: =IF('DF raw data'!M42="","",'DF raw data'!M42) -> Probe Name | B42: =IF('DF raw data'!N42="","",'DF raw data'!N42) -> ID12_Bz | C42: =IF('DF raw data'!O42="","",'DF raw data'!O42) ->  | D42: =IF('DF raw data'!P42="","",'DF raw data'!P42) -> 
A43: =IF('DF raw data'!M43="","",'DF raw data'!M43) -> Probe Type | B43: =IF('DF raw data'!N43="","",'DF raw data'!N43) -> DF_ID_3D_Bxyz | C43: =IF('DF raw data'!O43="","",'DF raw data'!O43) ->  | D43: =IF('DF raw data'!P43="","",'DF raw data'!P43) -> 
A44: =IF('DF raw data'!M44="","",'DF raw data'!M44) -> Probe Danfysik Reg. Number | B44: =IF('DF raw data'!N44="","",'DF raw data'!N44) -> 2277 | C44: =IF('DF raw data'!O44="","",'DF raw data'!O44) ->  | D44: =IF('DF raw data'!P44="","",'DF raw data'!P44) -> 
A45: =IF('DF raw data'!M45="","",'DF raw data'!M45) -> Probe Axis | B45: =IF('DF raw data'!N45="","",'DF raw data'!N45) -> Bz | C45: =IF('DF raw data'!O45="","",'DF raw data'!O45) ->  | D45: =IF('DF raw data'!P45="","",'DF raw data'!P45) -> 
A46: =IF('DF raw data'!M46="","",'DF raw data'!M46) -> Probe Current Supply | B46: =IF('DF raw data'!N46="","",'DF raw data'!N46) -> 1825-D | C46: =IF('DF raw data'!O46="","",'DF raw data'!O46) ->  | D46: =IF('DF raw data'!P46="","",'DF raw data'!P46) -> 
A47: =IF('DF raw data'!M47="","",'DF raw data'!M47) -> Probe Gain Correction | B47: =IF('DF raw data'!N47="","",'DF raw data'!N47) -> 1 | C47: =IF('DF raw data'!O47="","",'DF raw data'!O47) ->  | D47: =IF('DF raw data'!P47="","",'DF raw data'!P47) -> 
A48: =IF('DF raw data'!M53="","",'DF raw data'!M53) -> PS-Gap: | B48: =IF('DF raw data'!N53="","",'DF raw data'!N53) -> 10 | C48: =IF('DF raw data'!O53="","",'DF raw data'!O53) ->  | D48: =IF('DF raw data'!P53="","",'DF raw data'!P53) -> 
A49: =IF('DF raw data'!M54="","",'DF raw data'!M54) -> PS-Temperature: | B49: =IF('DF raw data'!N54="","",'DF raw data'!N54) -> 23.5 | C49: =IF('DF raw data'!O54="","",'DF raw data'!O54) ->  | D49: =IF('DF raw data'!P54="","",'DF raw data'!P54) -> 
A50: =IF('DF raw data'!M55="","",'DF raw data'!M55) -> PS-Encoder: | B50: =IF('DF raw data'!N55="","",'DF raw data'!N55) -> 19.6817 | C50: =IF('DF raw data'!O55="","",'DF raw data'!O55) ->  | D50: =IF('DF raw data'!P55="","",'DF raw data'!P55) -> 
A51: =IF('DF raw data'!M56="","",'DF raw data'!M56) ->  | B51: =IF('DF raw data'!N56="","",'DF raw data'!N56) ->  | C51: =IF('DF raw data'!O56="","",'DF raw data'!O56) ->  | D51: =IF('DF raw data'!P56="","",'DF raw data'!P56) -> 
A52: =IF('DF raw data'!M57="","",'DF raw data'!M57) -> Monitor-Index | B52: =IF('DF raw data'!N57="","",'DF raw data'!N57) -> [1,1,4] | C52: =IF('DF raw data'!O57="","",'DF raw data'!O57) ->  | D52: =IF('DF raw data'!P57="","",'DF raw data'!P57) -> 
A53: =IF('DF raw data'!M58="","",'DF raw data'!M58) ->  | B53: =IF('DF raw data'!N58="","",'DF raw data'!N58) ->  | C53: =IF('DF raw data'!O58="","",'DF raw data'!O58) ->  | D53: =IF('DF raw data'!P58="","",'DF raw data'!P58) -> 
A54: =IF('DF raw data'!M59="","",'DF raw data'!M59) -> Time [s] | B54: =IF('DF raw data'!N59="","",'DF raw data'!N59) -> Y [mm] | C54: =IF('DF raw data'!O59="","",'DF raw data'!O59) -> X [mm] | D54: =IF('DF raw data'!P59="","",'DF raw data'!P59) -> Nominal current [A]
A55: =IF('DF raw data'!M60="","",'DF raw data'!M60) ->  | B55: =IF('DF raw data'!N60="","",'DF raw data'!N60) ->  | C55: =IF('DF raw data'!O60="","",'DF raw data'!O60) ->  | D55: =IF('DF raw data'!P60="","",'DF raw data'!P60) -> 
A56: =IF('DF raw data'!M61="","",'DF raw data'!M61) -> 208.5 | B56: =IF('DF raw data'!N61="","",'DF raw data'!N61) -> 31.56 | C56: =IF('DF raw data'!O61="","",'DF raw data'!O61) -> 302.55 | D56: =IF('DF raw data'!P61="","",'DF raw data'!P61) -> 0
A57: =IF('DF raw data'!M62="","",'DF raw data'!M62) ->  | B57: =IF('DF raw data'!N62="","",'DF raw data'!N62) ->  | C57: =IF('DF raw data'!O62="","",'DF raw data'!O62) ->  | D57: =IF('DF raw data'!P62="","",'DF raw data'!P62) -> 
A58: =IF('DF raw data'!M63="","",'DF raw data'!M63) -> Measurement-Index | B58: =IF('DF raw data'!N63="","",'DF raw data'!N63) -> [1,1,1201,2] | C58: =IF('DF raw data'!O63="","",'DF raw data'!O63) ->  | D58: =IF('DF raw data'!P63="","",'DF raw data'!P63) -> 
A59: =IF('DF raw data'!M64="","",'DF raw data'!M64) ->  | B59: =IF('DF raw data'!N64="","",'DF raw data'!N64) ->  | C59: =IF('DF raw data'!O64="","",'DF raw data'!O64) ->  | D59: =IF('DF raw data'!P64="","",'DF raw data'!P64) -> 
A60: =IF('DF raw data'!M65="","",'DF raw data'!M65) -> Z [mm] | B60: By [T] | C60: Bx [T] | D60: Bz [T] | F60: By_corr | G60: Bx_corr | H60: Bz_corr | J60: Iy | K60: Jy | L60: Ix | M60: Jx | N60: PI
A62: =IF('DF raw data'!M67="","",'DF raw data'!M67) -> -300 | B62: =IF('DF raw data'!N67="","",'DF raw data'!N67) -> -2.48067e-05 | C62: =IF('DF raw data'!O67="","",'DF raw data'!O67) -> 5.97965e-05 | D62: =IF('DF raw data'!P67="","",'DF raw data'!P67) -> -1.04248e-05 | F62: =(1-$G$1*($B$49))*B62 -> -2.538965745e-05 | G62: =(1-$G$1*($B$49-$G$2))*C62 -> 6.000578775e-05 | H62: =(1-$G$1*($B$49-$G$2))*D62 -> -1.04612868e-05 | J62: =F62*$G$3 -> -1.269482873e-05 | K62: =J62*$G$3 -> -6.347414363e-06 | L62: =G62*$G$3 -> 3.000289388e-05 | M62: =L62*$G$3 -> 1.500144694e-05 | N62: =(J62^2+L62^2)*$G$3 -> 5.306661586e-10
A63: =IF('DF raw data'!M68="","",'DF raw data'!M68) -> -299.5 | B63: =IF('DF raw data'!N68="","",'DF raw data'!N68) -> -3.33942e-05 | C63: =IF('DF raw data'!O68="","",'DF raw data'!O68) -> 5.99487e-05 | D63: =IF('DF raw data'!P68="","",'DF raw data'!P68) -> -9.91961e-06 | F63: =(1-$G$1*($B$49-$G$2))*B63 -> -3.35110797e-05 | G63: =(1-$G$1*($B$49-$G$2))*C63 -> 6.015852045e-05 | H63: -9.954328635e-06 | J63: =F63*$G$3+J62 -> -2.945036858e-05 | K63: =J63*$G$3+K62 -> -2.107259865e-05 | L63: =G63*$G$3+L62 -> 6.00821541e-05 | M63: =L63*$G$3+M62 -> 4.504252399e-05 | N63: =(J63^2+L63^2)*$G$3+N62 -> 2.769260884e-09
A64: =IF('DF raw data'!M69="","",'DF raw data'!M69) -> -299 | B64: =IF('DF raw data'!N69="","",'DF raw data'!N69) -> -2.42315e-05 | C64: =IF('DF raw data'!O69="","",'DF raw data'!O69) -> 6.21752e-05 | D64: =IF('DF raw data'!P69="","",'DF raw data'!P69) -> -9.56835e-06 | F64: =(1-$G$1*($B$49-$G$2))*B64 -> -2.431631025e-05 | G64: 6.23928132e-05 | H64: -9.601839225e-06 | J64: =F64*$G$3+J63 -> -4.16085237e-05 | K64: =J64*$G$3+K63 -> -4.18768605e-05 | L64: =G64*$G$3+L63 -> 9.12785607e-05 | M64: =L64*$G$3+M63 -> 9.068180434e-05 | N64: =(J64^2+L64^2)*$G$3+N63 -> 7.800783328e-09
A65: =IF('DF raw data'!M70="","",'DF raw data'!M70) -> -298.5 | B65: =IF('DF raw data'!N70="","",'DF raw data'!N70) -> -2.24346e-05 | C65: =IF('DF raw data'!O70="","",'DF raw data'!O70) -> 6.82787e-05 | D65: =IF('DF raw data'!P70="","",'DF raw data'!P70) -> -1.00522e-05 | F65: -2.25131211e-05 | G65: 6.851767545e-05 | H65: -1.00873827e-05 | J65: -5.286508425e-05 | K65: -6.830940263e-05 | L65: 0.0001255373984 | M65: 0.0001534505035 | N65: 1.70779611e-08
A66: =IF('DF raw data'!M71="","",'DF raw data'!M71) -> -298 | B66: =IF('DF raw data'!N71="","",'DF raw data'!N71) -> -3.23686e-05 | C66: =IF('DF raw data'!O71="","",'DF raw data'!O71) -> 7.8017e-05 | D66: =IF('DF raw data'!P71="","",'DF raw data'!P71) -> -1.0158e-05 | F66: -3.24818901e-05 | G66: 7.82900595e-05 | H66: -1.0193553e-05 | J66: -6.91060293e-05 | K66: -0.0001028624173 | L66: 0.0001646824282 | M66: 0.0002357917176 | N66: 3.302593381e-08
A67: =IF('DF raw data'!M72="","",'DF raw data'!M72) -> -297.5 | B67: =IF('DF raw data'!N72="","",'DF raw data'!N72) -> -3.19815e-05 | C67: =IF('DF raw data'!O72="","",'DF raw data'!O72) -> 6.76952e-05 | D67: =IF('DF raw data'!P72="","",'DF raw data'!P72) -> -9.42247e-06 | F67: -3.209343525e-05 | G67: 6.79321332e-05 | H67: -9.455448645e-06 | J67: -8.515274693e-05 | K67: -0.0001454387907 | L67: 0.0001986484948 | M67: 0.000335115965 | N67: 5.638204121e-08
A68: =IF('DF raw data'!M73="","",'DF raw data'!M73) -> -297 | B68: =IF('DF raw data'!N73="","",'DF raw data'!N73) -> -2.8525e-05 | C68: =IF('DF raw data'!O73="","",'DF raw data'!O73) -> 6.65174e-05 | D68: =IF('DF raw data'!P73="","",'DF raw data'!P73) -> -8.97947e-06 | F68: -2.86248375e-05 | G68: 6.67502109e-05 | H68: -9.010898145e-06 | J68: -9.946516568e-05 | K68: -0.0001951713736 | L68: 0.0002320236002 | M68: 0.0004511277651 | N68: 8.824617633e-08
A69: =IF('DF raw data'!M74="","",'DF raw data'!M74) -> -296.5 | B69: =IF('DF raw data'!N74="","",'DF raw data'!N74) -> -2.08335e-05 | C69: =IF('DF raw data'!O74="","",'DF raw data'!O74) -> 7.65466e-05 | D69: =IF('DF raw data'!P74="","",'DF raw data'!P74) -> -9.43145e-06 | F69: -2.090641725e-05 | G69: 7.68145131e-05 | H69: -9.464460075e-06 | J69: -0.0001099183743 | K69: -0.0002501305607 | L69: 0.0002704308568 | M69: 0.0005863431935 | N69: 1.30853625e-07
A70: =IF('DF raw data'!M75="","",'DF raw data'!M75) -> -296 | B70: =IF('DF raw data'!N75="","",'DF raw data'!N75) -> -2.89726e-05 | C70: =IF('DF raw data'!O75="","",'DF raw data'!O75) -> 7.6201e-05 | D70: =IF('DF raw data'!P75="","",'DF raw data'!P75) -> -9.98555e-06 | F70: -2.90740041e-05 | G70: 7.64677035e-05 | H70: -1.002049942e-05 | J70: -0.0001244553764 | K70: -0.0003123582489 | L70: 0.0003086647085 | M70: 0.0007406755478 | N70: 1.862351465e-07
A71: =IF('DF raw data'!M76="","",'DF raw data'!M76) -> -295.5 | B71: =IF('DF raw data'!N76="","",'DF raw data'!N76) -> -2.57664e-05 | C71: =IF('DF raw data'!O76="","",'DF raw data'!O76) -> 8.1574e-05 | D71: =IF('DF raw data'!P76="","",'DF raw data'!P76) -> -1.01928e-05 | F71: -2.58565824e-05 | G71: 8.1859509e-05 | H71: -1.02284748e-05 | J71: -0.0001373836676 | K71: -0.0003810500827 | L71: 0.000349594463 | M71: 0.0009154727793 | N71: 2.567804268e-07
A72: =IF('DF raw data'!M77="","",'DF raw data'!M77) -> -295 | B72: =IF('DF raw data'!N77="","",'DF raw data'!N77) -> -3.15355e-05 | C72: =IF('DF raw data'!O77="","",'DF raw data'!O77) -> 7.40487e-05 | D72: =IF('DF raw data'!P77="","",'DF raw data'!P77) -> -1.02528e-05 | F72: -3.164587425e-05 | G72: 7.430787045e-05 | H72: -1.02886848e-05 | J72: -0.0001532066047 | K72: -0.000457653385 | L72: 0.0003867483982 | M72: 0.001108846978 | N72: 3.433037205e-07
A73: =IF('DF raw data'!M78="","",'DF raw data'!M78) -> -294.5 | B73: =IF('DF raw data'!N78="","",'DF raw data'!N78) -> -2.94184e-05 | C73: =IF('DF raw data'!O78="","",'DF raw data'!O78) -> 7.61209e-05 | D73: =IF('DF raw data'!P78="","",'DF raw data'!P78) -> -1.0494e-05 | F73: -2.95213644e-05 | G73: 7.638732315e-05 | H73: -1.0530729e-05 | J73: -0.0001679672869 | K73: -0.0005416370285 | L73: 0.0004249420598 | M73: 0.001321318008 | N73: 4.476981023e-07
A74: =IF('DF raw data'!M79="","",'DF raw data'!M79) -> -294 | B74: =IF('DF raw data'!N79="","",'DF raw data'!N79) -> -3.51233e-05 | C74: =IF('DF raw data'!O79="","",'DF raw data'!O79) -> 7.58285e-05 | D74: =IF('DF raw data'!P79="","",'DF raw data'!P79) -> -1.05961e-05 | F74: -3.524623155e-05 | G74: 7.609389975e-05 | H74: -1.063318635e-05 | J74: -0.0001855904027 | K74: -0.0006344322298 | L74: 0.0004629890097 | M74: 0.001552812513 | N74: 5.720994126e-07
A75: =IF('DF raw data'!M80="","",'DF raw data'!M80) -> -293.5 | B75: =IF('DF raw data'!N80="","",'DF raw data'!N80) -> -3.94778e-05 | C75: =IF('DF raw data'!O80="","",'DF raw data'!O80) -> 7.22676e-05 | D75: =IF('DF raw data'!P80="","",'DF raw data'!P80) -> -1.00792e-05 | F75: -3.96159723e-05 | G75: 7.25205366e-05 | H75: -1.01144772e-05 | J75: -0.0002053983888 | K75: -0.0007371314242 | L75: 0.000499249278 | M75: 0.001802437152 | N75: 7.178185825e-07
A76: =IF('DF raw data'!M81="","",'DF raw data'!M81) -> -293 | B76: =IF('DF raw data'!N81="","",'DF raw data'!N81) -> -4.10194e-05 | C76: =IF('DF raw data'!O81="","",'DF raw data'!O81) -> 7.26971e-05 | D76: =IF('DF raw data'!P81="","",'DF raw data'!P81) -> -9.01848e-06 | F76: -4.11629679e-05 | G76: 7.295153985e-05 | H76: -9.05004468e-06 | J76: -0.0002259798728 | K76: -0.0008501213606 | L76: 0.0005357250479 | M76: 0.002070299676 | N76: 8.868526974e-07
A77: =IF('DF raw data'!M82="","",'DF raw data'!M82) -> -292.5 | B77: =IF('DF raw data'!N82="","",'DF raw data'!N82) -> -3.42894e-05 | C77: =IF('DF raw data'!O82="","",'DF raw data'!O82) -> 7.74007e-05 | D77: =IF('DF raw data'!P82="","",'DF raw data'!P82) -> -8.09769e-06 | F77: -3.44094129e-05 | G77: 7.767160245e-05 | H77: -8.126031915e-06 | J77: -0.0002431845792 | K77: -0.0009717136502 | L77: 0.0005745608492 | M77: 0.002357580101 | N77: 1.081482152e-06
A78: =IF('DF raw data'!M83="","",'DF raw data'!M83) -> -292 | B78: =IF('DF raw data'!N83="","",'DF raw data'!N83) -> -2.92943e-05 | C78: =IF('DF raw data'!O83="","",'DF raw data'!O83) -> 8.11291e-05 | D78: =IF('DF raw data'!P83="","",'DF raw data'!P83) -> -7.85928e-06 | F78: -2.939683005e-05 | G78: 8.141305185e-05 | H78: -7.88678748e-06 | J78: -0.0002578829942 | K78: -0.001100655147 | L78: 0.0006152673751 | M78: 0.002665213788 | N78: 1.304010943e-06
A79: =IF('DF raw data'!M84="","",'DF raw data'!M84) -> -291.5 | B79: =IF('DF raw data'!N84="","",'DF raw data'!N84) -> -2.04537e-05 | C79: =IF('DF raw data'!O84="","",'DF raw data'!O84) -> 7.39562e-05 | D79: =IF('DF raw data'!P84="","",'DF raw data'!P84) -> -2.12671e-06 | F79: -2.052528795e-05 | G79: 7.42150467e-05 | H79: -2.134153485e-06 | J79: -0.0002681456382 | K79: -0.001234727966 | L79: 0.0006523748984 | M79: 0.002991401237 | N79: 1.552758488e-06
A80: =IF('DF raw data'!M85="","",'DF raw data'!M85) -> -291 | B80: =IF('DF raw data'!N85="","",'DF raw data'!N85) -> -1.80123e-05 | C80: =IF('DF raw data'!O85="","",'DF raw data'!O85) -> 6.60193e-05 | D80: =IF('DF raw data'!P85="","",'DF raw data'!P85) -> -1.4913e-05 | F80: -1.807534305e-05 | G80: 6.625036755e-05 | H80: -1.49651955e-05 | J80: -0.0002771833097 | K80: -0.001373319621 | L80: 0.0006855000822 | M80: 0.003334151279 | N80: 1.826128963e-06
A81: =IF('DF raw data'!M86="","",'DF raw data'!M86) -> -290.5 | B81: =IF('DF raw data'!N86="","",'DF raw data'!N86) -> -2.35901e-05 | C81: =IF('DF raw data'!O86="","",'DF raw data'!O86) -> 6.58515e-05 | D81: =IF('DF raw data'!P86="","",'DF raw data'!P86) -> -6.90195e-06 | F81: -2.367266535e-05 | G81: 6.608198025e-05 | H81: -6.926106825e-06 | J81: -0.0002890196424 | K81: -0.001517829442 | L81: 0.0007185410723 | M81: 0.003693421815 | N81: 2.126045776e-06
A82: =IF('DF raw data'!M87="","",'DF raw data'!M87) -> -290 | B82: =IF('DF raw data'!N87="","",'DF raw data'!N87) -> -2.33313e-05 | C82: =IF('DF raw data'!O87="","",'DF raw data'!O87) -> 6.95807e-05 | D82: =IF('DF raw data'!P87="","",'DF raw data'!P87) -> -1.37373e-05 | F82: -2.341295955e-05 | G82: 6.982423245e-05 | H82: -1.378538055e-05 | J82: -0.0003007261222 | K82: -0.001668192504 | L82: 0.0007534531886 | M82: 0.004070148409 | N82: 2.45510973e-06
A83: =IF('DF raw data'!M88="","",'DF raw data'!M88) -> -289.5 | B83: =IF('DF raw data'!N88="","",'DF raw data'!N88) -> -2.56306e-05 | C83: =IF('DF raw data'!O88="","",'DF raw data'!O88) -> 6.44248e-05 | D83: =IF('DF raw data'!P88="","",'DF raw data'!P88) -> -2.22741e-05 | F83: -2.57203071e-05 | G83: 6.46502868e-05 | H83: -2.235205935e-05 | J83: -0.0003135862757 | K83: -0.001824985641 | L83: 0.000785778332 | M83: 0.004463037575 | N83: 2.8130017e-06
A84: =IF('DF raw data'!M89="","",'DF raw data'!M89) -> -289 | B84: =IF('DF raw data'!N89="","",'DF raw data'!N89) -> -2.819e-05 | C84: =IF('DF raw data'!O89="","",'DF raw data'!O89) -> 6.61339e-05 | D84: =IF('DF raw data'!P89="","",'DF raw data'!P89) -> -3.10013e-05 | F84: -2.8288665e-05 | G84: 6.636536865e-05 | H84: -3.110980455e-05 | J84: -0.0003277306082 | K84: -0.001988850945 | L84: 0.0008189610163 | M84: 0.004872518083 | N84: 3.202053949e-06
A85: =IF('DF raw data'!M90="","",'DF raw data'!M90) -> -288.5 | B85: =IF('DF raw data'!N90="","",'DF raw data'!N90) -> -2.19829e-05 | C85: =IF('DF raw data'!O90="","",'DF raw data'!O90) -> 6.77784e-05 | D85: =IF('DF raw data'!P90="","",'DF raw data'!P90) -> -1.56123e-05 | F85: -2.205984015e-05 | G85: 6.80156244e-05 | H85: -1.566694305e-05 | J85: -0.0003387605283 | K85: -0.00215823121 | L85: 0.0008529688285 | M85: 0.005299002497 | N85: 3.623211208e-06
A86: =IF('DF raw data'!M91="","",'DF raw data'!M91) -> -288 | B86: =IF('DF raw data'!N91="","",'DF raw data'!N91) -> -2.73103e-05 | C86: =IF('DF raw data'!O91="","",'DF raw data'!O91) -> 6.86685e-05 | D86: =IF('DF raw data'!P91="","",'DF raw data'!P91) -> -4.07401e-06 | F86: -2.740588605e-05 | G86: 6.890883975e-05 | H86: -4.088269035e-06 | J86: -0.0003524634713 | K86: -0.002334462945 | L86: 0.0008874232484 | M86: 0.005742714122 | N86: 4.079086468e-06
A87: =IF('DF raw data'!M92="","",'DF raw data'!M92) -> -287.5 | B87: =IF('DF raw data'!N92="","",'DF raw data'!N92) -> -2.89065e-05 | C87: =IF('DF raw data'!O92="","",'DF raw data'!O92) -> 7.20908e-05 | D87: =IF('DF raw data'!P92="","",'DF raw data'!P92) -> -9.70319e-06 | F87: -2.900767275e-05 | G87: 7.23431178e-05 | H87: -9.737151165e-06 | J87: -0.0003669673077 | K87: -0.002517946599 | L87: 0.0009235948073 | M87: 0.006204511525 | N87: 4.572932654e-06
A88: =IF('DF raw data'!M93="","",'DF raw data'!M93) -> -287 | B88: =IF('DF raw data'!N93="","",'DF raw data'!N93) -> -2.5578e-05 | C88: =IF('DF raw data'!O93="","",'DF raw data'!O93) -> 6.66434e-05 | D88: =IF('DF raw data'!P93="","",'DF raw data'!P93) -> -7.28465e-06 | F88: -2.5667523e-05 | G88: 6.68766519e-05 | H88: -7.310146275e-06 | J88: -0.0003798010692 | K88: -0.002707847134 | L88: 0.0009570331332 | M88: 0.006683028092 | N88: 5.10301329e-06
A89: =IF('DF raw data'!M94="","",'DF raw data'!M94) -> -286.5 | B89: =IF('DF raw data'!N94="","",'DF raw data'!N94) -> -2.69928e-05 | C89: =IF('DF raw data'!O94="","",'DF raw data'!O94) -> 6.43107e-05 | D89: =IF('DF raw data'!P94="","",'DF raw data'!P94) -> 3.1916e-06 | F89: -2.70872748e-05 | G89: 6.453578745e-05 | H89: 3.2027706e-06 | J89: -0.0003933447066 | K89: -0.002904519487 | L89: 0.0009893010269 | M89: 0.007177678605 | N89: 5.66973158e-06
A90: =IF('DF raw data'!M95="","",'DF raw data'!M95) -> -286 | B90: =IF('DF raw data'!N95="","",'DF raw data'!N95) -> -2.40348e-05 | C90: =IF('DF raw data'!O95="","",'DF raw data'!O95) -> 5.62132e-05 | D90: =IF('DF raw data'!P95="","",'DF raw data'!P95) -> -1.57259e-05 | F90: -2.41189218e-05 | G90: 5.64099462e-05 | H90: -1.578094065e-05 | J90: -0.0004054041675 | K90: -0.003107221571 | L90: 0.001017506 | M90: 0.007686431605 | N90: 6.269567079e-06
A91: =IF('DF raw data'!M96="","",'DF raw data'!M96) -> -285.5 | B91: =IF('DF raw data'!N96="","",'DF raw data'!N96) -> -2.71062e-05 | C91: =IF('DF raw data'!O96="","",'DF raw data'!O96) -> 6.63469e-05 | D91: =IF('DF raw data'!P96="","",'DF raw data'!P96) -> -1.96505e-05 | F91: -2.72010717e-05 | G91: 6.657911415e-05 | H91: -1.971927675e-05 | J91: -0.0004190047033 | K91: -0.003316723922 | L91: 0.001050795557 | M91: 0.008211829384 | N91: 6.909435201e-06
A92: =IF('DF raw data'!M97="","",'DF raw data'!M97) -> -285 | B92: =IF('DF raw data'!N97="","",'DF raw data'!N97) -> -2.33329e-05 | C92: =IF('DF raw data'!O97="","",'DF raw data'!O97) -> 6.79872e-05 | D92: =IF('DF raw data'!P97="","",'DF raw data'!P97) -> -1.0971e-05 | F92: -2.341456515e-05 | G92: 6.82251552e-05 | H92: -1.10093985e-05 | J92: -0.0004307119859 | K92: -0.003532079915 | L92: 0.001084908135 | M92: 0.008754283451 | N92: 7.590704439e-06
A93: =IF('DF raw data'!M98="","",'DF raw data'!M98) -> -284.5 | B93: =IF('DF raw data'!N98="","",'DF raw data'!N98) -> -1.71203e-05 | C93: =IF('DF raw data'!O98="","",'DF raw data'!O98) -> 6.0563e-05 | D93: =IF('DF raw data'!P98="","",'DF raw data'!P98) -> -5.24929e-06 | F93: -1.718022105e-05 | G93: 6.07749705e-05 | H93: -5.267662515e-06 | J93: -0.0004393020964 | K93: -0.003751730964 | L93: 0.00111529562 | M93: 0.009311931261 | N93: 8.309139765e-06
A94: =IF('DF raw data'!M99="","",'DF raw data'!M99) -> -284 | B94: =IF('DF raw data'!N99="","",'DF raw data'!N99) -> -2.76237e-05 | C94: =IF('DF raw data'!O99="","",'DF raw data'!O99) -> 6.25312e-05 | D94: =IF('DF raw data'!P99="","",'DF raw data'!P99) -> -1.48102e-05 | F94: -2.772038295e-05 | G94: 6.27500592e-05 | H94: -1.48620357e-05 | J94: -0.0004531622879 | K94: -0.003978312108 | L94: 0.00114667065 | M94: 0.009885266586 | N94: 9.069244584e-06
A95: =IF('DF raw data'!M100="","",'DF raw data'!M100) -> -283.5 | B95: =IF('DF raw data'!N100="","",'DF raw data'!N100) -> -1.51896e-05 | C95: =IF('DF raw data'!O100="","",'DF raw data'!O100) -> 6.92527e-05 | D95: =IF('DF raw data'!P100="","",'DF raw data'!P100) -> -1.84834e-05 | F95: -1.52427636e-05 | G95: 6.949508445e-05 | H95: -1.85480919e-05 | J95: -0.0004607836697 | K95: -0.004208703942 | L95: 0.001181418192 | M95: 0.01047597568 | N95: 9.873279851e-06
A96: =IF('DF raw data'!M101="","",'DF raw data'!M101) -> -283 | B96: =IF('DF raw data'!N101="","",'DF raw data'!N101) -> -2.62156e-05 | C96: =IF('DF raw data'!O101="","",'DF raw data'!O101) -> 7.0702e-05 | D96: =IF('DF raw data'!P101="","",'DF raw data'!P101) -> -1.20652e-05 | F96: -2.63073546e-05 | G96: 7.0949457e-05 | H96: -1.21074282e-05 | J96: -0.000473937347 | K96: -0.004445672616 | L96: 0.00121689292 | M96: 0.01108442214 | N96: 1.072600235e-05
A97: =IF('DF raw data'!M102="","",'DF raw data'!M102) -> -282.5 | B97: =IF('DF raw data'!N102="","",'DF raw data'!N102) -> -2.75603e-05 | C97: =IF('DF raw data'!O102="","",'DF raw data'!O102) -> 7.05502e-05 | D97: =IF('DF raw data'!P102="","",'DF raw data'!P102) -> -1.09322e-05 | F97: -2.765676105e-05 | G97: 7.07971257e-05 | H97: -1.09704627e-05 | J97: -0.0004877657275 | K97: -0.00468955548 | L97: 0.001252291483 | M97: 0.01171056788 | N97: 1.162907703e-05
A98: =IF('DF raw data'!M103="","",'DF raw data'!M103) -> -282 | B98: =IF('DF raw data'!N103="","",'DF raw data'!N103) -> -2.51967e-05 | C98: =IF('DF raw data'!O103="","",'DF raw data'!O103) -> 5.89956e-05 | D98: =IF('DF raw data'!P103="","",'DF raw data'!P103) -> -2.32962e-06 | F98: -2.528488845e-05 | G98: 5.92020846e-05 | H98: -2.33777367e-06 | J98: -0.0005004081718 | K98: -0.004939759566 | L98: 0.001281892525 | M98: 0.01235151415 | N98: 1.257590542e-05
A99: =IF('DF raw data'!M104="","",'DF raw data'!M104) -> -281.5 | B99: =IF('DF raw data'!N104="","",'DF raw data'!N104) -> -3.41573e-05 | C99: =IF('DF raw data'!O104="","",'DF raw data'!O104) -> 5.65481e-05 | D99: =IF('DF raw data'!P104="","",'DF raw data'!P104) -> -1.47841e-05 | F99: -3.427685055e-05 | G99: 5.674601835e-05 | H99: -1.483584435e-05 | J99: -0.000517546597 | K99: -0.005198532864 | L99: 0.001310265535 | M99: 0.01300664691 | N99: 1.356823055e-05
A100: =IF('DF raw data'!M105="","",'DF raw data'!M105) -> -281 | B100: =IF('DF raw data'!N105="","",'DF raw data'!N105) -> -3.0384e-05 | C100: =IF('DF raw data'!O105="","",'DF raw data'!O105) -> 6.09818e-05 | D100: =IF('DF raw data'!P105="","",'DF raw data'!P105) -> -7.05915e-06 | F100: -3.0490344e-05 | G100: 6.11952363e-05 | H100: -7.083857025e-06 | J100: -0.000532791769 | K100: -0.005464928749 | L100: 0.001340863153 | M100: 0.01367707849 | N100: 1.460912108e-05
A101: =IF('DF raw data'!M106="","",'DF raw data'!M106) -> -280.5 | B101: =IF('DF raw data'!N106="","",'DF raw data'!N106) -> -3.55027e-05 | C101: =IF('DF raw data'!O106="","",'DF raw data'!O106) -> 5.85201e-05 | D101: =IF('DF raw data'!P106="","",'DF raw data'!P106) -> -1.45012e-05 | F101: -3.562695945e-05 | G101: 5.872492035e-05 | H101: -1.45519542e-05 | J101: -0.0005506052488 | K101: -0.005740231373 | L101: 0.001370225613 | M101: 0.0143621913 | N101: 1.569946326e-05
A102: =IF('DF raw data'!M107="","",'DF raw data'!M107) -> -280 | B102: =IF('DF raw data'!N107="","",'DF raw data'!N107) -> -3.10188e-05 | C102: =IF('DF raw data'!O107="","",'DF raw data'!O107) -> 5.896e-05 | D102: =IF('DF raw data'!P107="","",'DF raw data'!P107) -> -1.6293e-05 | F102: -3.11273658e-05 | G102: 5.916636e-05 | H102: -1.63500255e-05 | J102: -0.0005661689317 | K102: -0.006023315839 | L102: 0.001399808793 | M102: 0.01506209569 | N102: 1.683946922e-05
A103: =IF('DF raw data'!M108="","",'DF raw data'!M108) -> -279.5 | B103: =IF('DF raw data'!N108="","",'DF raw data'!N108) -> -2.01962e-05 | C103: =IF('DF raw data'!O108="","",'DF raw data'!O108) -> 6.55068e-05 | D103: =IF('DF raw data'!P108="","",'DF raw data'!P108) -> -4.36253e-06 | F103: -2.02668867e-05 | G103: 6.57360738e-05 | H103: -4.377798855e-06 | J103: -0.000576302375 | K103: -0.006311467026 | L103: 0.00143267683 | M103: 0.01577843411 | N103: 1.803181288e-05
A104: =IF('DF raw data'!M109="","",'DF raw data'!M109) -> -279 | B104: =IF('DF raw data'!N109="","",'DF raw data'!N109) -> -2.71171e-05 | C104: =IF('DF raw data'!O109="","",'DF raw data'!O109) -> 6.09467e-05 | D104: =IF('DF raw data'!P109="","",'DF raw data'!P109) -> -5.73934e-06 | F104: -2.721200985e-05 | G104: 6.116001345e-05 | H104: -5.75942769e-06 | J104: -0.0005899083799 | K104: -0.006606421216 | L104: 0.001463256837 | M104: 0.01651006253 | N104: 1.927636912e-05
A105: =IF('DF raw data'!M110="","",'DF raw data'!M110) -> -278.5 | B105: =IF('DF raw data'!N110="","",'DF raw data'!N110) -> -2.75624e-05 | C105: =IF('DF raw data'!O110="","",'DF raw data'!O110) -> 6.37181e-05 | D105: =IF('DF raw data'!P110="","",'DF raw data'!P110) -> -7.51077e-06 | F105: -2.76588684e-05 | G105: 6.394111335e-05 | H105: -7.537057695e-06 | J105: -0.0006037378141 | K105: -0.006908290123 | L105: 0.001495227393 | M105: 0.01725767622 | N105: 2.057647127e-05
A106: =IF('DF raw data'!M111="","",'DF raw data'!M111) -> -278 | B106: =IF('DF raw data'!N111="","",'DF raw data'!N111) -> -2.16695e-05 | C106: =IF('DF raw data'!O111="","",'DF raw data'!O111) -> 5.75671e-05 | D106: =IF('DF raw data'!P111="","",'DF raw data'!P111) -> -7.151e-06 | F106: -2.174534325e-05 | G106: 5.776858485e-05 | H106: -7.1760285e-06 | J106: -0.0006146104858 | K106: -0.007215595366 | L106: 0.001524111686 | M106: 0.01801973207 | N106: 2.192680251e-05
A107: =IF('DF raw data'!M112="","",'DF raw data'!M112) -> -277.5 | B107: =IF('DF raw data'!N112="","",'DF raw data'!N112) -> -2.54513e-05 | C107: =IF('DF raw data'!O112="","",'DF raw data'!O112) -> 5.99479e-05 | D107: =IF('DF raw data'!P112="","",'DF raw data'!P112) -> -2.29702e-06 | F107: -2.554037955e-05 | G107: 6.015771765e-05 | H107: -2.30505957e-06 | J107: -0.0006273806755 | K107: -0.007529285704 | L107: 0.001554190544 | M107: 0.01879682734 | N107: 2.333135989e-05
A108: =IF('DF raw data'!M113="","",'DF raw data'!M113) -> -277 | B108: =IF('DF raw data'!N113="","",'DF raw data'!N113) -> -2.83962e-05 | C108: =IF('DF raw data'!O113="","",'DF raw data'!O113) -> 5.73005e-05 | D108: =IF('DF raw data'!P113="","",'DF raw data'!P113) -> -9.45496e-06 | F108: -2.84955867e-05 | G108: 5.750105175e-05 | H108: -9.48805236e-06 | J108: -0.0006416284689 | K108: -0.007850099939 | L108: 0.00158294107 | M108: 0.01958829787 | N108: 2.479005465e-05
A109: =IF('DF raw data'!M114="","",'DF raw data'!M114) -> -276.5 | B109: =IF('DF raw data'!N114="","",'DF raw data'!N114) -> -2.60866e-05 | C109: =IF('DF raw data'!O114="","",'DF raw data'!O114) -> 6.17643e-05 | D109: =IF('DF raw data'!P114="","",'DF raw data'!P114) -> -1.0684e-05 | F109: -2.61779031e-05 | G109: 6.198047505e-05 | H109: -1.0721394e-05 | J109: -0.0006547174204 | K109: -0.008177458649 | L109: 0.001613931308 | M109: 0.02039526353 | N109: 2.630676923e-05
A110: =IF('DF raw data'!M115="","",'DF raw data'!M115) -> -276 | B110: =IF('DF raw data'!N115="","",'DF raw data'!N115) -> -3.33988e-05 | C110: =IF('DF raw data'!O115="","",'DF raw data'!O115) -> 6.32905e-05 | D110: =IF('DF raw data'!P115="","",'DF raw data'!P115) -> -2.35527e-06 | F110: -3.35156958e-05 | G110: 6.351201675e-05 | H110: -2.363513445e-06 | J110: -0.0006714752683 | K110: -0.008513196283 | L110: 0.001645687316 | M110: 0.02121810718 | N110: 2.788635212e-05
A111: =IF('DF raw data'!M116="","",'DF raw data'!M116) -> -275.5 | B111: =IF('DF raw data'!N116="","",'DF raw data'!N116) -> -3.89002e-05 | C111: =IF('DF raw data'!O116="","",'DF raw data'!O116) -> 5.75656e-05 | D111: =IF('DF raw data'!P116="","",'DF raw data'!P116) -> -1.16121e-05 | F111: -3.90363507e-05 | G111: 5.77670796e-05 | H111: -1.165274235e-05 | J111: -0.0006909934437 | K111: -0.008858693005 | L111: 0.001674570856 | M111: 0.02205539261 | N111: 2.952718187e-05
A112: =IF('DF raw data'!M117="","",'DF raw data'!M117) -> -275 | B112: =IF('DF raw data'!N117="","",'DF raw data'!N117) -> -3.59539e-05 | C112: =IF('DF raw data'!O117="","",'DF raw data'!O117) -> 4.94945e-05 | D112: =IF('DF raw data'!P117="","",'DF raw data'!P117) -> -1.4292e-05 | F112: -3.607973865e-05 | G112: 4.966773075e-05 | H112: -1.4342022e-05 | J112: -0.000709033313 | K112: -0.009213209661 | L112: 0.001699404721 | M112: 0.02290509497 | N112: 3.122253419e-05
A113: =IF('DF raw data'!M118="","",'DF raw data'!M118) -> -274.5 | B113: =IF('DF raw data'!N118="","",'DF raw data'!N118) -> -3.17861e-05 | C113: =IF('DF raw data'!O118="","",'DF raw data'!O118) -> 4.6276e-05 | D113: =IF('DF raw data'!P118="","",'DF raw data'!P118) -> -1.5445e-05 | F113: -3.189735135e-05 | G113: 4.6437966e-05 | H113: -1.54990575e-05 | J113: -0.0007249819887 | K113: -0.009575700656 | L113: 0.001722623704 | M113: 0.02376640683 | N113: 3.296904985e-05
A114: =IF('DF raw data'!M119="","",'DF raw data'!M119) -> -274 | B114: =IF('DF raw data'!N119="","",'DF raw data'!N119) -> -2.75003e-05 | C114: =IF('DF raw data'!O119="","",'DF raw data'!O119) -> 4.22074e-05 | D114: =IF('DF raw data'!P119="","",'DF raw data'!P119) -> -7.70309e-06 | F114: -2.759655105e-05 | G114: 4.23551259e-05 | H114: -7.730050815e-06 | J114: -0.0007387802642 | K114: -0.009945090788 | L114: 0.001743801267 | M114: 0.02463830746 | N114: 3.476236942e-05
A115: =IF('DF raw data'!M120="","",'DF raw data'!M120) -> -273.5 | B115: =IF('DF raw data'!N120="","",'DF raw data'!N120) -> -3.52494e-05 | C115: =IF('DF raw data'!O120="","",'DF raw data'!O120) -> 5.53027e-05 | D115: =IF('DF raw data'!P120="","",'DF raw data'!P120) -> -9.86622e-06 | F115: -3.53727729e-05 | G115: 5.549625945e-05 | H115: -9.90075177e-06 | J115: -0.0007564666507 | K115: -0.01032332411 | L115: 0.001771549397 | M115: 0.02552408216 | N115: 3.661768395e-05
A116: =IF('DF raw data'!M121="","",'DF raw data'!M121) -> -273 | B116: =IF('DF raw data'!N121="","",'DF raw data'!N121) -> -1.85318e-05 | C116: =IF('DF raw data'!O121="","",'DF raw data'!O121) -> 5.74902e-05 | D116: =IF('DF raw data'!P121="","",'DF raw data'!P121) -> -4.17834e-06 | F116: -1.85966613e-05 | G116: 5.76914157e-05 | H116: -4.19296419e-06 | J116: -0.0007657649813 | K116: -0.0107062066 | L116: 0.001800395105 | M116: 0.02642427971 | N116: 3.853159322e-05
A117: =IF('DF raw data'!M122="","",'DF raw data'!M122) -> -272.5 | B117: =IF('DF raw data'!N122="","",'DF raw data'!N122) -> -2.44141e-05 | C117: =IF('DF raw data'!O122="","",'DF raw data'!O122) -> 4.92574e-05 | D117: =IF('DF raw data'!P122="","",'DF raw data'!P122) -> -2.10755e-05 | F117: -2.449954935e-05 | G117: 4.94298009e-05 | H117: -2.114926425e-05 | J117: -0.000778014756 | K117: -0.01109521398 | L117: 0.001825110005 | M117: 0.02733683471 | N117: 4.049975996e-05
A118: =IF('DF raw data'!M123="","",'DF raw data'!M123) -> -272 | B118: =IF('DF raw data'!N123="","",'DF raw data'!N123) -> -2.99892e-05 | C118: =IF('DF raw data'!O123="","",'DF raw data'!O123) -> 5.07315e-05 | D118: =IF('DF raw data'!P123="","",'DF raw data'!P123) -> -2.30529e-05 | F118: -3.00941622e-05 | G118: 5.090906025e-05 | H118: -2.313358515e-05 | J118: -0.0007930618371 | K118: -0.0114917449 | L118: 0.001850564536 | M118: 0.02826211698 | N118: 4.252652805e-05
A119: =IF('DF raw data'!M124="","",'DF raw data'!M124) -> -271.5 | B119: =IF('DF raw data'!N124="","",'DF raw data'!N124) -> -2.67209e-05 | C119: =IF('DF raw data'!O124="","",'DF raw data'!O124) -> 5.28798e-05 | D119: =IF('DF raw data'!P124="","",'DF raw data'!P124) -> -2.0597e-05 | F119: -2.681442315e-05 | G119: 5.30648793e-05 | H119: -2.06690895e-05 | J119: -0.0008064690487 | K119: -0.01189497942 | L119: 0.001877096975 | M119: 0.02920066547 | N119: 4.461347074e-05
A120: =IF('DF raw data'!M125="","",'DF raw data'!M125) -> -271 | B120: =IF('DF raw data'!N125="","",'DF raw data'!N125) -> -2.4484e-05 | C120: =IF('DF raw data'!O125="","",'DF raw data'!O125) -> 5.18863e-05 | D120: =IF('DF raw data'!P125="","",'DF raw data'!P125) -> -1.49308e-05 | F120: -2.4569694e-05 | G120: 5.206790205e-05 | H120: -1.49830578e-05 | J120: -0.0008187538957 | K120: -0.01230435637 | L120: 0.001903130926 | M120: 0.03015223093 | N120: 4.675960338e-05
A121: =IF('DF raw data'!M126="","",'DF raw data'!M126) -> -270.5 | B121: =IF('DF raw data'!N126="","",'DF raw data'!N126) -> -2.39029e-05 | C121: =IF('DF raw data'!O126="","",'DF raw data'!O126) -> 5.84998e-05 | D121: =IF('DF raw data'!P126="","",'DF raw data'!P126) -> -1.91599e-05 | F121: -2.398656015e-05 | G121: 5.87045493e-05 | H121: -1.922695965e-05 | J121: -0.0008307471758 | K121: -0.01271972996 | L121: 0.001932483201 | M121: 0.03111847253 | N121: 4.897191947e-05
A122: =IF('DF raw data'!M127="","",'DF raw data'!M127) -> -270 | B122: =IF('DF raw data'!N127="","",'DF raw data'!N127) -> -3.63382e-05 | C122: =IF('DF raw data'!O127="","",'DF raw data'!O127) -> 5.26003e-05 | D122: =IF('DF raw data'!P127="","",'DF raw data'!P127) -> -1.41813e-05 | F122: -3.64653837e-05 | G122: 5.278440105e-05 | H122: -1.423093455e-05 | J122: -0.0008489798676 | K122: -0.01314421989 | L122: 0.001958875401 | M122: 0.03209791023 | N122: 5.12508993e-05
A123: =IF('DF raw data'!M128="","",'DF raw data'!M128) -> -269.5 | B123: =IF('DF raw data'!N128="","",'DF raw data'!N128) -> -2.09551e-05 | C123: =IF('DF raw data'!O128="","",'DF raw data'!O128) -> 5.29137e-05 | D123: =IF('DF raw data'!P128="","",'DF raw data'!P128) -> -2.03134e-05 | F123: -2.102844285e-05 | G123: 5.309889795e-05 | H123: -2.03844969e-05 | J123: -0.000859494089 | K123: -0.01357396694 | L123: 0.00198542485 | M123: 0.03309062266 | N123: 5.359122026e-05
A124: =IF('DF raw data'!M129="","",'DF raw data'!M129) -> -269 | B124: =IF('DF raw data'!N129="","",'DF raw data'!N129) -> -3.12196e-05 | C124: =IF('DF raw data'!O129="","",'DF raw data'!O129) -> 6.099e-05 | D124: =IF('DF raw data'!P129="","",'DF raw data'!P129) -> -2.54042e-06 | F124: -3.13288686e-05 | G124: 6.1203465e-05 | H124: -2.54931147e-06 | J124: -0.0008751585233 | K124: -0.0140115462 | L124: 0.002016026583 | M124: 0.03409863595 | N124: 5.600635307e-05
A125: =IF('DF raw data'!M130="","",'DF raw data'!M130) -> -268.5 | B125: =IF('DF raw data'!N130="","",'DF raw data'!N130) -> -3.65323e-05 | C125: =IF('DF raw data'!O130="","",'DF raw data'!O130) -> 6.32092e-05 | D125: =IF('DF raw data'!P130="","",'DF raw data'!P130) -> -8.4302e-06 | F125: -3.666016305e-05 | G125: 6.34304322e-05 | H125: -8.4597057e-06 | J125: -0.0008934886048 | K125: -0.0144582905 | L125: 0.002047741799 | M125: 0.03512250685 | N125: 5.850213725e-05
A126: =IF('DF raw data'!M131="","",'DF raw data'!M131) -> -268 | B126: =IF('DF raw data'!N131="","",'DF raw data'!N131) -> -2.82676e-05 | C126: =IF('DF raw data'!O131="","",'DF raw data'!O131) -> 5.98749e-05 | D126: =IF('DF raw data'!P131="","",'DF raw data'!P131) -> -9.64062e-06 | F126: -2.83665366e-05 | G126: 6.008446215e-05 | H126: -9.67436217e-06 | J126: -0.0009076718731 | K126: -0.01491212644 | L126: 0.00207778403 | M126: 0.03616139886 | N126: 6.107266461e-05
A127: =IF('DF raw data'!M132="","",'DF raw data'!M132) -> -267.5 | B127: =IF('DF raw data'!N132="","",'DF raw data'!N132) -> -3.46702e-05 | C127: =IF('DF raw data'!O132="","",'DF raw data'!O132) -> 5.35192e-05 | D127: =IF('DF raw data'!P132="","",'DF raw data'!P132) -> -1.46617e-05 | F127: -3.47915457e-05 | G127: 5.37065172e-05 | H127: -1.471301595e-05 | J127: -0.000925067646 | K127: -0.01537466026 | L127: 0.002104637289 | M127: 0.03721371751 | N127: 6.371528874e-05
A128: =IF('DF raw data'!M133="","",'DF raw data'!M133) -> -267 | B128: =IF('DF raw data'!N133="","",'DF raw data'!N133) -> -3.36455e-05 | C128: =IF('DF raw data'!O133="","",'DF raw data'!O133) -> 5.69961e-05 | D128: =IF('DF raw data'!P133="","",'DF raw data'!P133) -> -1.66243e-05 | F128: =(1-$G$1*($B$49-$G$2))*B128 -> -3.376325925e-05 | G128: 5.719558635e-05 | H128: -1.668248505e-05 | J128: =F128*$G$3+J127 -> -0.0009419492756 | K128: =J128*$G$3+K127 -> -0.0158456349 | L128: =G128*$G$3+L127 -> 0.002133235082 | M128: =L128*$G$3+M127 -> 0.03828033505 | N128: =(J128^2+L128^2)*$G$3+N127 -> 6.643426892e-05
A129: =IF('DF raw data'!M134="","",'DF raw data'!M134) -> -266.5 | B129: =IF('DF raw data'!N134="","",'DF raw data'!N134) -> -2.10948e-05 | C129: =IF('DF raw data'!O134="","",'DF raw data'!O134) -> 6.06659e-05 | D129: =IF('DF raw data'!P134="","",'DF raw data'!P134) -> -2.5106e-06 | F129: -2.11686318e-05 | G129: 6.087823065e-05 | H129: -2.5193871e-06 | J129: -0.0009525335915 | K129: -0.0163219017 | L129: 0.002163674197 | M129: 0.03936217215 | N129: 6.922867205e-05
A130: =IF('DF raw data'!M135="","",'DF raw data'!M135) -> -266 | B130: =IF('DF raw data'!N135="","",'DF raw data'!N135) -> -3.82061e-05 | C130: =IF('DF raw data'!O135="","",'DF raw data'!O135) -> 5.5029e-05 | D130: =IF('DF raw data'!P135="","",'DF raw data'!P135) -> 8.12639e-07 | F130: -3.833982135e-05 | G130: 5.52216015e-05 | H130: 8.154832365e-07 | J130: -0.0009717035022 | K130: -0.01680775345 | L130: 0.002191284998 | M130: 0.04045781465 | N130: 7.210164087e-05
A131: =IF('DF raw data'!M136="","",'DF raw data'!M136) -> -265.5 | B131: =IF('DF raw data'!N136="","",'DF raw data'!N136) -> -2.74263e-05 | C131: =IF('DF raw data'!O136="","",'DF raw data'!O136) -> 5.10495e-05 | D131: =IF('DF raw data'!P136="","",'DF raw data'!P136) -> -2.02353e-05 | F131: -2.752229205e-05 | G131: 5.122817325e-05 | H131: -2.030612355e-05 | J131: -0.0009854646482 | K131: -0.01730048577 | L131: 0.002216899085 | M131: 0.04156626419 | N131: 7.504453193e-05
A132: =IF('DF raw data'!M137="","",'DF raw data'!M137) -> -265 | B132: =IF('DF raw data'!N137="","",'DF raw data'!N137) -> -3.60829e-05 | C132: =IF('DF raw data'!O137="","",'DF raw data'!O137) -> 4.23778e-05 | D132: =IF('DF raw data'!P137="","",'DF raw data'!P137) -> -1.28126e-05 | F132: -3.620919015e-05 | G132: 4.25261223e-05 | H132: -1.28574441e-05 | J132: -0.001003569243 | K132: -0.01780227039 | L132: 0.002238162146 | M132: 0.04268534526 | N132: 7.805279244e-05
A133: =IF('DF raw data'!M138="","",'DF raw data'!M138) -> -264.5 | B133: =IF('DF raw data'!N138="","",'DF raw data'!N138) -> -3.64666e-05 | C133: =IF('DF raw data'!O138="","",'DF raw data'!O138) -> 5.55688e-05 | D133: =IF('DF raw data'!P138="","",'DF raw data'!P138) -> -1.05896e-05 | F133: -3.65942331e-05 | G133: 5.57632908e-05 | H133: -1.06266636e-05 | J133: -0.00102186636 | K133: -0.01831320357 | L133: 0.002266043791 | M133: 0.04381836716 | N133: 8.11423751e-05
A134: =IF('DF raw data'!M139="","",'DF raw data'!M139) -> -264 | B134: =IF('DF raw data'!N139="","",'DF raw data'!N139) -> -3.73634e-05 | C134: =IF('DF raw data'!O139="","",'DF raw data'!O139) -> 6.48885e-05 | D134: =IF('DF raw data'!P139="","",'DF raw data'!P139) -> -1.44401e-05 | F134: -3.74941719e-05 | G134: 6.511560975e-05 | H134: -1.449064035e-05 | J134: -0.001040613446 | K134: -0.0188335103 | L134: 0.002298601596 | M134: 0.04496766796 | N134: 8.432559792e-05
A135: =IF('DF raw data'!M140="","",'DF raw data'!M140) -> -263.5 | B135: =IF('DF raw data'!N140="","",'DF raw data'!N140) -> -3.1987e-05 | C135: =IF('DF raw data'!O140="","",'DF raw data'!O140) -> 6.19532e-05 | D135: =IF('DF raw data'!P140="","",'DF raw data'!P140) -> -2.10145e-06 | F135: -3.20989545e-05 | G135: 6.21700362e-05 | H135: -2.108805075e-06 | J135: -0.001056662923 | K135: -0.01936184176 | L135: 0.002329686614 | M135: 0.04613251126 | N135: 8.759758605e-05
A136: =IF('DF raw data'!M141="","",'DF raw data'!M141) -> -263 | B136: =IF('DF raw data'!N141="","",'DF raw data'!N141) -> -2.16038e-05 | C136: =IF('DF raw data'!O141="","",'DF raw data'!O141) -> 5.42136e-05 | D136: =IF('DF raw data'!P141="","",'DF raw data'!P141) -> -9.82683e-06 | F136: -2.16794133e-05 | G136: 5.44033476e-05 | H136: -9.861223905e-06 | J136: -0.00106750263 | K136: -0.01989559307 | L136: 0.002356888288 | M136: 0.04731095541 | N136: 9.094482818e-05
A137: =IF('DF raw data'!M142="","",'DF raw data'!M142) -> -262.5 | B137: =IF('DF raw data'!N142="","",'DF raw data'!N142) -> -1.90386e-05 | C137: =IF('DF raw data'!O142="","",'DF raw data'!O142) -> 5.22266e-05 | D137: =IF('DF raw data'!P142="","",'DF raw data'!P142) -> -1.11141e-05 | F137: -1.91052351e-05 | G137: 5.24093931e-05 | H137: -1.115299935e-05 | J137: -0.001077055247 | K137: -0.0204341207 | L137: 0.002383092984 | M137: 0.0485025019 | N137: 9.436441827e-05
A138: =IF('DF raw data'!M143="","",'DF raw data'!M143) -> -262 | B138: =IF('DF raw data'!N143="","",'DF raw data'!N143) -> -3.03107e-05 | C138: =IF('DF raw data'!O143="","",'DF raw data'!O143) -> 5.69533e-05 | D138: =IF('DF raw data'!P143="","",'DF raw data'!P143) -> -2.12644e-05 | F138: -3.041678745e-05 | G138: 5.715263655e-05 | H138: -2.13388254e-05 | J138: -0.001092263641 | K138: -0.02098025252 | L138: 0.002411669303 | M138: 0.04970833655 | N138: 9.786901261e-05
A139: =IF('DF raw data'!M144="","",'DF raw data'!M144) -> -261.5 | B139: =IF('DF raw data'!N144="","",'DF raw data'!N144) -> -2.6152e-05 | C139: =IF('DF raw data'!O144="","",'DF raw data'!O144) -> 6.84331e-05 | D139: =IF('DF raw data'!P144="","",'DF raw data'!P144) -> -9.0911e-06 | F139: -2.6243532e-05 | G139: 6.867261585e-05 | H139: -9.12291885e-06 | J139: -0.001105385407 | K139: -0.02153294522 | L139: 0.002446005611 | M139: 0.05093133935 | N139: 0.0001014714228
A140: =IF('DF raw data'!M145="","",'DF raw data'!M145) -> -261 | B140: =IF('DF raw data'!N145="","",'DF raw data'!N145) -> -2.16045e-05 | C140: =IF('DF raw data'!O145="","",'DF raw data'!O145) -> 5.42038e-05 | D140: =IF('DF raw data'!P145="","",'DF raw data'!P145) -> -8.85968e-06 | F140: -2.168011575e-05 | G140: 5.43935133e-05 | H140: -8.89068888e-06 | J140: -0.001116225465 | K140: -0.02209105795 | L140: 0.002473202367 | M140: 0.05216794054 | N140: 0.0001051527674
A141: =IF('DF raw data'!M146="","",'DF raw data'!M146) -> -260.5 | B141: =IF('DF raw data'!N146="","",'DF raw data'!N146) -> -1.71135e-05 | C141: =IF('DF raw data'!O146="","",'DF raw data'!O146) -> 5.44727e-05 | D141: =IF('DF raw data'!P146="","",'DF raw data'!P146) -> -1.58471e-05 | F141: -1.717339725e-05 | G141: 5.466335445e-05 | H141: -1.590256485e-05 | J141: -0.001124812163 | K141: -0.02265346403 | L141: 0.002500534044 | M141: 0.05341820756 | N141: 0.0001089117039
A142: =IF('DF raw data'!M147="","",'DF raw data'!M147) -> -260 | B142: =IF('DF raw data'!N147="","",'DF raw data'!N147) -> -1.57065e-05 | C142: =IF('DF raw data'!O147="","",'DF raw data'!O147) -> 5.90576e-05 | D142: =IF('DF raw data'!P147="","",'DF raw data'!P147) -> -1.33198e-05 | F142: -1.576147275e-05 | G142: 5.92643016e-05 | H142: -1.33664193e-05 | J142: -0.0011326929 | K142: -0.02321981048 | L142: 0.002530166195 | M142: 0.05468329066 | N142: 0.000112754071
A143: =IF('DF raw data'!M148="","",'DF raw data'!M148) -> -259.5 | B143: =IF('DF raw data'!N148="","",'DF raw data'!N148) -> -3.61427e-05 | C143: =IF('DF raw data'!O148="","",'DF raw data'!O148) -> 5.10553e-05 | D143: =IF('DF raw data'!P148="","",'DF raw data'!P148) -> -1.60019e-05 | F143: -3.626919945e-05 | G143: 5.123399355e-05 | H143: -1.605790665e-05 | J143: -0.0011508275 | K143: -0.02379522423 | L143: 0.002555783192 | M143: 0.05596118225 | N143: 0.0001166822868
A144: =IF('DF raw data'!M149="","",'DF raw data'!M149) -> -259 | B144: =IF('DF raw data'!N149="","",'DF raw data'!N149) -> -3.42261e-05 | C144: =IF('DF raw data'!O149="","",'DF raw data'!O149) -> 4.82761e-05 | D144: =IF('DF raw data'!P149="","",'DF raw data'!P149) -> -1.05708e-05 | F144: -3.434589135e-05 | G144: 4.844506635e-05 | H144: -1.06077978e-05 | J144: -0.001168000445 | K144: -0.02437922446 | L144: 0.002580005725 | M144: 0.05725118512 | N144: 0.0001206926141
